Workbook

Sheet Introduction
B4: Costs and Emissions Appraisal Tool for Transit Buses | X4: Visual Overview of the Tool
B6: What Is This Model?
B7: This model provides a comprehensive analysis of the lifetime costs and emissions of different bus types. It allows users to compare two different virtual fleets, where each fleet is made up of up to three bus types.
B9: What Do I Need to Run the Model?
B10: Users who have data on their fleets can input those data into the model. Users who lack data can use the default data built into the model.
B12: Where Do the Data Come From?
B13: Users, of course, have the option of using their own data, but the model also provides the option of using default values for all of the necessary variables. The data are labeled as either cost or emissions data, and the default values are found in the Cost Data and Emissions Data tabs, respectively. The data have been calibrated from a variety of written and operator sources (e.g., 2013 APTA database, U.S. Energy Information Administration's Annual Energy Outlook 2015, 2017 Agência Nacional do Petróleo, Gás Natural e Biocombustíveis, 2014 Instituto Brasileiro de Geografia e Estatístic. Please refer to the Technical Note for full reference). On the basis of country, fuel type, and technology type, the corresponding default value will be pulled from the default sheets.
B15: What Kinds of Outputs Does the Model Produce?
B16: The model provides information that helps users make better-informed decisions about whether and how to transition to alternative-fuel buses. It reveals both the annual costs and the annual emissions produced by each bus type and fleet. The model breaks down costs into six categories: capital, depot/infrastructure, overhaul, maintenance, fuel, and operations. The results do not indicate that a particular fuel or technology should be adopted. They are preliminary results that help decision-makers during the bus and fleet selection process.
A19: Developed by: Erin Cooper, Erin Kenney, Juan Miguel Velasquez
A20: Contributors: Dario Hidalgo, Anqi Zhao, Magdala Arioli, Xiangyi Li, Thet Hein Tun
A21: 2018-12-06

Sheet How to Use
B3: How to Use

Sheet Fuel Selection
C1: Direction: This page allows users to select six different fuel, technology, and bus size combinations. Users can select the default cost and emissions option or input their own data.
C3: Country | D3: Brazil | E3: Option 1 | F3: Option 2 | G3: Option 3 | H3: Option 4 | I3: Option 5 | J3: Option 6
D4: Fuel Type | E4: Electric | F4: Ultra Low Sulfur Diesel (10 ppm) | G4: Diesel-Electric Hybrid (10 ppm) | H4: Electric | I4: Ultra Low Sulfur Diesel (10 ppm) | N4: To see the default values, please refer to Default Cost Data and Default Emissions Data pages.
D5: Technology | E5: Electric | F5: Euro III | G5: Euro V | H5: Electric | I5: Euro V
D6: Bus Size | E6: 12m | F6: 12m | G6: 12m | H6: 12m | I6: 12m
C7: Emissions Factors | K7: Uncheck and recheck box to refresh results.
D8: Units
C9: Carbon dioxide (CO2) | D9: g/L | E9: 0 | F9: 2603 | G9: 2352 | H9: 0 | I9: 2603
C10: Total hydrocarbons (THC) | D10: g/km | E10: 0 | F10: 0 | G10: 0 | H10: 0 | I10: 0
C11: Non-methane hydrocarbons (NMHC) | D11: g/km | E11: 0 | F11: 0.326 | G11: 0.46 | H11: 0 | I11: 0.033
C12: Methane (CH4) | D12: g/km | E12: 0 | F12: 0.06 | G12: 0.06 | H12: 0 | I12: 0.06
C13: Nitrogen oxide (NOx) | D13: g/km | E13: 0 | F13: 8.515 | G13: 1.703 | H13: 0 | I13: 2.103
C14: Nitrous oxide (N2O) | D14: g/km | E14: 0 | F14: 0.03 | G14: 0.03 | H14: 0 | I14: 0.03
C15: Nitric Oxide (NO) | D15: g/km | E15: 0 | F15: 0 | G15: 0 | H15: 0 | I15: 0
C16: Particulate matter (PM) | D16: g/km | E16: 0 | F16: 0.154 | G16: 0.01694 | H16: 0 | I16: 0.02
C17: Carbon monoxide (CO) | D17: g/km | E17: 0 | F17: 1.487 | G17: 1.552 | H17: 0 | I17: 0.44
C18: Greenhouse gases (GHG/CO2e) | D18: g/km | E18: 0 | F18: 0 | G18: 0 | H18: 0 | I18: 0
A19: Note for "Upstream GHG/CO2e": The tool allows the user to account for upstream emissions of different technologies, if data are provided by the user. Working out any upstream emissions to be input in the assessment is a complex exercise. For the moment, the Tool provides one example of an upstream emissions number related to the Brazilian electric grid intensity and is used for the electric technology. This number still does not allow for a life cycle assessment, which requires information about various other emissions (from vehicle production, disposal, etc.). | C19: Upstream GHG/CO2e | D19: g/km | E19: 179 | F19: 0 | G19: 0 | H19: 179 | I19: 0
C20: Total GHG/CO2e | D20: g/km | E20: 179 | F20: 0 | G20: 0 | H20: 179 | I20: 0
C22: Fleet-Specific Data
D23: Units
C24: Useful life of bus | D24: years | E24: 15 | F24: 10 | G24: 12 | H24: 15 | I24: 10
C25: Final purchase price for a single bus | D25: $/bus | E25: 537500 | F25: 215000 | G25: 322500 | H25: 537500 | I25: 215000
C26: Residual value | D26: % of final purchase price | E26: 0.05 | F26: 0.1 | G26: 0.1 | H26: 0.05 | I26: 0.1
C27: Down payment | D27: % of total cost | E27: 0.2 | F27: 0.2 | G27: 0.2 | H27: 0.2 | I27: 0.2
C28: Loan interest rate | D28: % | E28: 0.094 | F28: 0.099 | G28: 0.099 | H28: 0.094 | I28: 0.099
C29: Loan lifetime | D29: years | E29: 14 | F29: 9 | G29: 9 | H29: 14 | I29: 9
C31: Annual Operations Data
D32: Units
C33: Total cost of driver and on-board labor | D33: $/year/bus | E33: 0 | F33: 0 | G33: 0 | H33: 0 | I33: 0
C34: Energy use | D34: kwh/km | E34: 1.3 | F34: 0 | G34: 0 | H34: 1.3 | I34: 0
C35: Energy cost | D35: $/kwh | E35: 0.215 | F35: 0 | G35: 0 | H35: 0.215 | I35: 0
C36: Fuel economy/consumption | D36: L/100 km | E36: 0 | F36: 45 | G36: 41.5 | H36: 0 | I36: 45
C37: Fuel cost | D37: $/L | E37: 0 | F37: 1.43 | G37: 1.43 | H37: 0 | I37: 1.43
C38: Fuel cost projection | D38: %/year | E38: 0 | F38: 0 | G38: 0 | H38: 0 | I38: 0
C39: Fuel additive | D39: $/L | E39: 0 | F39: 0 | G39: 0 | H39: 0 | I39: 0
C40: Fuel station operation costs | D40: $/year/bus | E40: 0 | F40: 0 | G40: 0 | H40: 0 | I40: 0
C41: Insurance | D41: $/year/bus | E41: 0 | F41: 0 | G41: 0 | H41: 0 | I41: 0
C42: Additional operational costs to include | D42: $/year/bus | E42: 0 | F42: 0 | G42: 0 | H42: 0 | I42: 0
C44: Maintenance Data
D45: Units
B46: Note for "Fixed Annual Maintenance Cost": This can be a lump-sum value of all maintenance subcomponents; i.e., if you are using the individual components below, you do NOT need to enter this annual sum but only those incurred annually but not included below. | C46: Fixed annual maintenance cost | D46: $/year/bus | E46: 7310 | F46: 12900 | G46: 19350 | H46: 7310 | I46: 12900
C47: Total cost of maintenance labor | D47: $/year/bus | E47: 0 | F47: 0 | G47: 0 | H47: 0 | I47: 0
C48: Brake reline | D48: $/bus | E48: 0 | F48: 0 | G48: 0 | H48: 0 | I48: 0
C49: Frequency | D49: years | E49: 0 | F49: 0 | G49: 0 | H49: 0 | I49: 0
C50: Tires | D50: $/bus | E50: 0 | F50: 0 | G50: 0 | H50: 0 | I50: 0
C51: Frequency | D51: years | E51: 0 | F51: 0 | G51: 0 | H51: 0 | I51: 0
C52: Battery conditioning | D52: $/bus | E52: 0 | F52: 0 | G52: 0 | H52: 0 | I52: 0
C53: Frequency | D53: years | E53: 0 | F53: 0 | G53: 0 | H53: 0 | I53: 0
C54: DPF cleaning | D54: $/bus | E54: 0 | F54: 0 | G54: 0 | H54: 0 | I54: 0
C55: Frequency | D55: years | E55: 0 | F55: 0 | G55: 0 | H55: 0 | I55: 0
C56: Fuel station maintenance | D56: $/bus | E56: 0 | F56: 0 | G56: 0 | H56: 0 | I56: 0
C57: Frequency | D57: years | E57: 0 | F57: 0 | G57: 0 | H57: 0 | I57: 0
C58: Lubricant | D58: $/bus | E58: 0 | F58: 0 | G58: 0 | H58: 0 | I58: 0
C59: Frequency | D59: years | E59: 0 | F59: 0 | G59: 0 | H59: 0 | I59: 0
C60: Additional maintenance costs to include | D60: $/year/bus | E60: 0 | F60: 0 | G60: 0 | H60: 0 | I60: 0
C62: Overhaul or Retrofitting (Optional)
D63: Units
C64: Engine overhaul | D64: $/bus | E64: 0 | F64: 0 | G64: 0 | H64: 0 | I64: 0
C65: Frequency | D65: years | E65: 0 | F65: 0 | G65: 0 | H65: 0 | I65: 0
C66: Transmission overhaul | D66: $/bus | E66: 0 | F66: 0 | G66: 0 | H66: 0 | I66: 0
C67: Frequency | D67: years | E67: 0 | F67: 0 | G67: 0 | H67: 0 | I67: 0
C68: CNG fuel system overhaul | D68: $/bus | E68: 0 | F68: 0 | G68: 0 | H68: 0 | I68: 0
C69: Frequency | D69: years | E69: 0 | F69: 0 | G69: 0 | H69: 0 | I69: 0
C70: Hybrid system overhaul | D70: $/bus | E70: 0 | F70: 0 | G70: 0 | H70: 0 | I70: 0
C71: Frequency | D71: years | E71: 0 | F71: 0 | G71: 0 | H71: 0 | I71: 0
C72: Battery replacement | D72: $/bus | E72: 0 | F72: 0 | G72: 0 | H72: 0 | I72: 0
C73: Frequency | D73: years | E73: 0 | F73: 0 | G73: 0 | H73: 0 | I73: 0
C74: Vehicle retrofits | D74: $/bus | E74: 0 | F74: 0 | G74: 0 | H74: 0 | I74: 0
C75: Frequency | D75: years | E75: 0 | F75: 0 | G75: 0 | H75: 0 | I75: 0
B77: Note for "Additional Infrastructure": This is not a mandatory input section, and whether or not to include this section depends on the local situation. This option is given so that users can consider the extra infrastructure costs related to fleet upgrade. | C77: Additional Infrastructure (Optional)
D78: Units
C79: Depot/fuel station construction | D79: $ | E79: 0 | F79: 0 | G79: 0 | H79: 0 | I79: 0
C80: Depot/fuel station construction quantity | E80: 0 | F80: 0 | G80: 0 | H80: 0 | I80: 0
D81: INCLUDES: | E81: 0 | F81: 0 | G81: 0 | H81: 0 | I81: 0
C82: Depot/fuel station retrofit | D82: $ | E82: 0 | F82: 0 | G82: 0 | H82: 0 | I82: 0
C83: Depot/fuel station retrofit quantity | E83: 0 | F83: 0 | G83: 0 | H83: 0 | I83: 0
D84: INCLUDES: | E84: 0 | F84: 0 | G84: 0 | H84: 0 | I84: 0
C85: Special tools | D85: $ | E85: 0 | F85: 0 | G85: 0 | H85: 0 | I85: 0
C86: Special tools quantity | E86: 0 | F86: 0 | G86: 0 | H86: 0 | I86: 0
D87: INCLUDES: | E87: 0 | F87: 0 | G87: 0 | H87: 0 | I87: 0
D108: US | E108: 12m
D109: Brazil | E109: 18m
E112: Biodiesel 100% | F112: Diesel Particulate Filter (DPF)
E113: Biodiesel 20% | F113: Electric
E114: Diesel (150 ppm +) | F114: EPA 2007
E115: Diesel-Electric Hybrid (10 ppm) | F115: EPA 2010
E116: Diesel-Electric Hybrid (15 ppm) | F116: Euro II
E117: Electric | F117: Euro III
E118: Low Sulfur Diesel (50 ppm) | F118: Euro V
E119: Natural Gas | F119: Euro V-VI
E120: Ultra Low Sulfur Diesel (10 ppm) | F120: Exhaust Gas Recirculation (EGR)
E121: Ultra Low Sulfur Diesel (15 ppm) | F121: Oxidation Catalyst (OC)
F122: Selective Catalyst Reduction (SCR)
F123: Three-Way Catalyst (3WC)

Sheet Fuel Selection-2 (hidden)
B2: Directions: | C2: On this page you can select up to 6 different fuel, technology, and bus size combinations. If cost and emissions defaults are available, they will populate. You can also enter your own data.
C3: Country | D3: =IF('Fuel Selection'!D3=0,"",'Fuel Selection'!D3) -> Brazil | E3: Fuel Type 1 | F3: Fuel Type 2 | G3: Fuel Type 3 | H3: Fuel Type 4 | I3: Fuel Type 5 | J3: Fuel Type 6
D4: Select from list | E4: ='Fuel Selection'!E4 -> Electric | F4: ='Fuel Selection'!F4 -> Ultra Low Sulfur Diesel (10 ppm) | G4: ='Fuel Selection'!G4 -> Diesel-Electric Hybrid (10 ppm) | H4: ='Fuel Selection'!H4 -> Electric | I4: ='Fuel Selection'!I4 -> Ultra Low Sulfur Diesel (10 ppm) | J4: ='Fuel Selection'!J4 -> 0
D5: Technology | E5: ='Fuel Selection'!E5 -> Electric | F5: ='Fuel Selection'!F5 -> Euro III | G5: ='Fuel Selection'!G5 -> Euro V | H5: ='Fuel Selection'!H5 -> Electric | I5: ='Fuel Selection'!I5 -> Euro V | J5: ='Fuel Selection'!J5 -> 0
D6: Bus size | E6: ='Fuel Selection'!E6 -> 12m | F6: ='Fuel Selection'!F6 -> 12m | G6: ='Fuel Selection'!G6 -> 12m | H6: ='Fuel Selection'!H6 -> 12m | I6: ='Fuel Selection'!I6 -> 12m | J6: ='Fuel Selection'!J6 -> 0
C7: Emissions Factors
D8: Units
C9: Carbon Dioxide (CO2) | D9: g/km | E9: =INDEX('Default Emissions Data'!$B5:$AN5,MATCH($D$3&E4&E5&E6,'Default Emissions Data'!$B$1:$AQ$1&'Default Emissions Data'!$B$2:$AQ$2&'Default Emissions Data'!$B$3:$AQ$3&'Default Emissions Data'!$B$4:$AQ$4,0)) -> 0 | F9: =INDEX('Default Emissions Data'!$B5:$AN5,MATCH($D$3&F4&F5&F6,'Default Emissions Data'!$B$1:$AQ$1&'Default Emissions Data'!$B$2:$AQ$2&'Default Emissions Data'!$B$3:$AQ$3&'Default Emissions Data'!$B$4:$AQ$4,0)) -> 2603 | G9: =INDEX('Default Emissions Data'!$B5:$AN5,MATCH($D$3&G4&G5&G6,'Default Emissions Data'!$B$1:$AQ$1&'Default Emissions Data'!$B$2:$AQ$2&'Default Emissions Data'!$B$3:$AQ$3&'Default Emissions Data'!$B$4:$AQ$4,0)) -> 2352 | H9: =INDEX('Default Emissions Data'!$B5:$AN5,MATCH($D$3&H4&H5&H6,'Default Emissions Data'!$B$1:$AQ$1&'Default Emissions Data'!$B$2:$AQ$2&'Default Emissions Data'!$B$3:$AQ$3&'Default Emissions Data'!$B$4:$AQ$4,0)) -> 0 | I9: =INDEX('Default Emissions Data'!$B5:$AN5,MATCH($D$3&I4&I5&I6,'Default Emissions Data'!$B$1:$AQ$1&'Default Emissions Data'!$B$2:$AQ$2&'Default Emissions Data'!$B$3:$AQ$3&'Default Emissions Data'!$B$4:$AQ$4,0)) -> 2603 | J9: =INDEX('Default Emissions Data'!$B5:$AN5,MATCH($D$3&J4&J5&J6,'Default Emissions Data'!$B$1:$AQ$1&'Default Emissions Data'!$B$2:$AQ$2&'Default Emissions Data'!$B$3:$AQ$3&'Default Emissions Data'!$B$4:$AQ$4,0)) -> 
C10: Total Hydrocarbons (THC) | D10: g/km | E10: =INDEX('Default Emissions Data'!$B$6:$AN$6,MATCH($D$3&E$4&E$5&E$6,'Default Emissions Data'!$B$1:$AQ$1&'Default Emissions Data'!$B$2:$AQ$2&'Default Emissions Data'!$B$3:$AQ$3&'Default Emissions Data'!$B$4:$AQ$4,0)) -> 0 | F10: =INDEX('Default Emissions Data'!$B$6:$AN$6,MATCH($D$3&F4&F5&F6,'Default Emissions Data'!$B$1:$AQ$1&'Default Emissions Data'!$B$2:$AQ$2&'Default Emissions Data'!$B$3:$AQ$3&'Default Emissions Data'!$B$4:$AQ$4,0)) -> 0 | G10: =INDEX('Default Emissions Data'!$B$6:$AN$6,MATCH($D$3&G4&G5&G6,'Default Emissions Data'!$B$1:$AQ$1&'Default Emissions Data'!$B$2:$AQ$2&'Default Emissions Data'!$B$3:$AQ$3&'Default Emissions Data'!$B$4:$AQ$4,0)) -> 0 | H10: =INDEX('Default Emissions Data'!$B$6:$AN$6,MATCH($D$3&H4&H5&H6,'Default Emissions Data'!$B$1:$AQ$1&'Default Emissions Data'!$B$2:$AQ$2&'Default Emissions Data'!$B$3:$AQ$3&'Default Emissions Data'!$B$4:$AQ$4,0)) -> 0 | I10: =INDEX('Default Emissions Data'!$B$6:$AN$6,MATCH($D$3&I4&I5&I6,'Default Emissions Data'!$B$1:$AQ$1&'Default Emissions Data'!$B$2:$AQ$2&'Default Emissions Data'!$B$3:$AQ$3&'Default Emissions Data'!$B$4:$AQ$4,0)) -> 0 | J10: =INDEX('Default Emissions Data'!$B$6:$AN$6,MATCH($D$3&J4&J5&J6,'Default Emissions Data'!$B$1:$AQ$1&'Default Emissions Data'!$B$2:$AQ$2&'Default Emissions Data'!$B$3:$AQ$3&'Default Emissions Data'!$B$4:$AQ$4,0)) -> 
C11: Non-methane hydrocarbons (NMHC) | D11: g/km | E11: =INDEX('Default Emissions Data'!$B7:$AN7,MATCH($D$3&E$4&E$5&E$6,'Default Emissions Data'!$B$1:$AQ$1&'Default Emissions Data'!$B$2:$AQ$2&'Default Emissions Data'!$B$3:$AQ$3&'Default Emissions Data'!$B$4:$AQ$4,0)) -> 0 | F11: =INDEX('Default Emissions Data'!$B7:$AN7,MATCH($D$3&F$4&F$5&F$6,'Default Emissions Data'!$B$1:$AQ$1&'Default Emissions Data'!$B$2:$AQ$2&'Default Emissions Data'!$B$3:$AQ$3&'Default Emissions Data'!$B$4:$AQ$4,0)) -> 0.326 | G11: =INDEX('Default Emissions Data'!$B7:$AN7,MATCH($D$3&G$4&G$5&G$6,'Default Emissions Data'!$B$1:$AQ$1&'Default Emissions Data'!$B$2:$AQ$2&'Default Emissions Data'!$B$3:$AQ$3&'Default Emissions Data'!$B$4:$AQ$4,0)) -> 0.46 | H11: =INDEX('Default Emissions Data'!$B7:$AN7,MATCH($D$3&H$4&H$5&H$6,'Default Emissions Data'!$B$1:$AQ$1&'Default Emissions Data'!$B$2:$AQ$2&'Default Emissions Data'!$B$3:$AQ$3&'Default Emissions Data'!$B$4:$AQ$4,0)) -> 0 | I11: =INDEX('Default Emissions Data'!$B7:$AN7,MATCH($D$3&I$4&I$5&I$6,'Default Emissions Data'!$B$1:$AQ$1&'Default Emissions Data'!$B$2:$AQ$2&'Default Emissions Data'!$B$3:$AQ$3&'Default Emissions Data'!$B$4:$AQ$4,0)) -> 0.033 | J11: =INDEX('Default Emissions Data'!$B7:$AN7,MATCH($D$3&J$4&J$5&J$6,'Default Emissions Data'!$B$1:$AQ$1&'Default Emissions Data'!$B$2:$AQ$2&'Default Emissions Data'!$B$3:$AQ$3&'Default Emissions Data'!$B$4:$AQ$4,0)) -> 
C12: Methane (CH4) | D12: g/km | E12: =INDEX('Default Emissions Data'!$B8:$AN8,MATCH($D$3&E$4&E$5&E$6,'Default Emissions Data'!$B$1:$AQ$1&'Default Emissions Data'!$B$2:$AQ$2&'Default Emissions Data'!$B$3:$AQ$3&'Default Emissions Data'!$B$4:$AQ$4,0)) -> 0 | F12: =INDEX('Default Emissions Data'!$B8:$AN8,MATCH($D$3&F$4&F$5&F$6,'Default Emissions Data'!$B$1:$AQ$1&'Default Emissions Data'!$B$2:$AQ$2&'Default Emissions Data'!$B$3:$AQ$3&'Default Emissions Data'!$B$4:$AQ$4,0)) -> 0.06 | G12: =INDEX('Default Emissions Data'!$B8:$AN8,MATCH($D$3&G$4&G$5&G$6,'Default Emissions Data'!$B$1:$AQ$1&'Default Emissions Data'!$B$2:$AQ$2&'Default Emissions Data'!$B$3:$AQ$3&'Default Emissions Data'!$B$4:$AQ$4,0)) -> 0.06 | H12: =INDEX('Default Emissions Data'!$B8:$AN8,MATCH($D$3&H$4&H$5&H$6,'Default Emissions Data'!$B$1:$AQ$1&'Default Emissions Data'!$B$2:$AQ$2&'Default Emissions Data'!$B$3:$AQ$3&'Default Emissions Data'!$B$4:$AQ$4,0)) -> 0 | I12: =INDEX('Default Emissions Data'!$B8:$AN8,MATCH($D$3&I$4&I$5&I$6,'Default Emissions Data'!$B$1:$AQ$1&'Default Emissions Data'!$B$2:$AQ$2&'Default Emissions Data'!$B$3:$AQ$3&'Default Emissions Data'!$B$4:$AQ$4,0)) -> 0.06 | J12: =INDEX('Default Emissions Data'!$B8:$AN8,MATCH($D$3&J$4&J$5&J$6,'Default Emissions Data'!$B$1:$AQ$1&'Default Emissions Data'!$B$2:$AQ$2&'Default Emissions Data'!$B$3:$AQ$3&'Default Emissions Data'!$B$4:$AQ$4,0)) -> 
C13: Nitrogen Oxide (Nox) | D13: g/km | E13: =INDEX('Default Emissions Data'!$B9:$AN9,MATCH($D$3&E$4&E$5&E$6,'Default Emissions Data'!$B$1:$AQ$1&'Default Emissions Data'!$B$2:$AQ$2&'Default Emissions Data'!$B$3:$AQ$3&'Default Emissions Data'!$B$4:$AQ$4,0)) -> 0 | F13: =INDEX('Default Emissions Data'!$B9:$AN9,MATCH($D$3&F$4&F$5&F$6,'Default Emissions Data'!$B$1:$AQ$1&'Default Emissions Data'!$B$2:$AQ$2&'Default Emissions Data'!$B$3:$AQ$3&'Default Emissions Data'!$B$4:$AQ$4,0)) -> 8.515 | G13: =INDEX('Default Emissions Data'!$B9:$AN9,MATCH($D$3&G$4&G$5&G$6,'Default Emissions Data'!$B$1:$AQ$1&'Default Emissions Data'!$B$2:$AQ$2&'Default Emissions Data'!$B$3:$AQ$3&'Default Emissions Data'!$B$4:$AQ$4,0)) -> 1.703 | H13: =INDEX('Default Emissions Data'!$B9:$AN9,MATCH($D$3&H$4&H$5&H$6,'Default Emissions Data'!$B$1:$AQ$1&'Default Emissions Data'!$B$2:$AQ$2&'Default Emissions Data'!$B$3:$AQ$3&'Default Emissions Data'!$B$4:$AQ$4,0)) -> 0 | I13: =INDEX('Default Emissions Data'!$B9:$AN9,MATCH($D$3&I$4&I$5&I$6,'Default Emissions Data'!$B$1:$AQ$1&'Default Emissions Data'!$B$2:$AQ$2&'Default Emissions Data'!$B$3:$AQ$3&'Default Emissions Data'!$B$4:$AQ$4,0)) -> 2.103 | J13: =INDEX('Default Emissions Data'!$B9:$AN9,MATCH($D$3&J$4&J$5&J$6,'Default Emissions Data'!$B$1:$AQ$1&'Default Emissions Data'!$B$2:$AQ$2&'Default Emissions Data'!$B$3:$AQ$3&'Default Emissions Data'!$B$4:$AQ$4,0)) -> 
C14: Nitrous Oxide (N2O) | D14: g/km | E14: =INDEX('Default Emissions Data'!$B10:$AN10,MATCH($D$3&E$4&E$5&E$6,'Default Emissions Data'!$B$1:$AQ$1&'Default Emissions Data'!$B$2:$AQ$2&'Default Emissions Data'!$B$3:$AQ$3&'Default Emissions Data'!$B$4:$AQ$4,0)) -> 0 | F14: =INDEX('Default Emissions Data'!$B10:$AN10,MATCH($D$3&F$4&F$5&F$6,'Default Emissions Data'!$B$1:$AQ$1&'Default Emissions Data'!$B$2:$AQ$2&'Default Emissions Data'!$B$3:$AQ$3&'Default Emissions Data'!$B$4:$AQ$4,0)) -> 0.03 | G14: =INDEX('Default Emissions Data'!$B10:$AN10,MATCH($D$3&G$4&G$5&G$6,'Default Emissions Data'!$B$1:$AQ$1&'Default Emissions Data'!$B$2:$AQ$2&'Default Emissions Data'!$B$3:$AQ$3&'Default Emissions Data'!$B$4:$AQ$4,0)) -> 0.03 | H14: =INDEX('Default Emissions Data'!$B10:$AN10,MATCH($D$3&H$4&H$5&H$6,'Default Emissions Data'!$B$1:$AQ$1&'Default Emissions Data'!$B$2:$AQ$2&'Default Emissions Data'!$B$3:$AQ$3&'Default Emissions Data'!$B$4:$AQ$4,0)) -> 0 | I14: =INDEX('Default Emissions Data'!$B10:$AN10,MATCH($D$3&I$4&I$5&I$6,'Default Emissions Data'!$B$1:$AQ$1&'Default Emissions Data'!$B$2:$AQ$2&'Default Emissions Data'!$B$3:$AQ$3&'Default Emissions Data'!$B$4:$AQ$4,0)) -> 0.03 | J14: =INDEX('Default Emissions Data'!$B10:$AN10,MATCH($D$3&J$4&J$5&J$6,'Default Emissions Data'!$B$1:$AQ$1&'Default Emissions Data'!$B$2:$AQ$2&'Default Emissions Data'!$B$3:$AQ$3&'Default Emissions Data'!$B$4:$AQ$4,0)) -> 
C15: Nitric Oxide (NO) | D15: g/km | E15: =INDEX('Default Emissions Data'!$B11:$AN11,MATCH($D$3&E$4&E$5&E$6,'Default Emissions Data'!$B$1:$AQ$1&'Default Emissions Data'!$B$2:$AQ$2&'Default Emissions Data'!$B$3:$AQ$3&'Default Emissions Data'!$B$4:$AQ$4,0)) -> 0 | F15: =INDEX('Default Emissions Data'!$B11:$AN11,MATCH($D$3&F$4&F$5&F$6,'Default Emissions Data'!$B$1:$AQ$1&'Default Emissions Data'!$B$2:$AQ$2&'Default Emissions Data'!$B$3:$AQ$3&'Default Emissions Data'!$B$4:$AQ$4,0)) -> 0 | G15: =INDEX('Default Emissions Data'!$B11:$AN11,MATCH($D$3&G$4&G$5&G$6,'Default Emissions Data'!$B$1:$AQ$1&'Default Emissions Data'!$B$2:$AQ$2&'Default Emissions Data'!$B$3:$AQ$3&'Default Emissions Data'!$B$4:$AQ$4,0)) -> 0 | H15: =INDEX('Default Emissions Data'!$B11:$AN11,MATCH($D$3&H$4&H$5&H$6,'Default Emissions Data'!$B$1:$AQ$1&'Default Emissions Data'!$B$2:$AQ$2&'Default Emissions Data'!$B$3:$AQ$3&'Default Emissions Data'!$B$4:$AQ$4,0)) -> 0 | I15: =INDEX('Default Emissions Data'!$B11:$AN11,MATCH($D$3&I$4&I$5&I$6,'Default Emissions Data'!$B$1:$AQ$1&'Default Emissions Data'!$B$2:$AQ$2&'Default Emissions Data'!$B$3:$AQ$3&'Default Emissions Data'!$B$4:$AQ$4,0)) -> 0 | J15: =INDEX('Default Emissions Data'!$B11:$AN11,MATCH($D$3&J$4&J$5&J$6,'Default Emissions Data'!$B$1:$AQ$1&'Default Emissions Data'!$B$2:$AQ$2&'Default Emissions Data'!$B$3:$AQ$3&'Default Emissions Data'!$B$4:$AQ$4,0)) -> 
C16: Particulate Matter (PM) | D16: g/km | E16: =INDEX('Default Emissions Data'!$B12:$AN12,MATCH($D$3&E$4&E$5&E$6,'Default Emissions Data'!$B$1:$AQ$1&'Default Emissions Data'!$B$2:$AQ$2&'Default Emissions Data'!$B$3:$AQ$3&'Default Emissions Data'!$B$4:$AQ$4,0)) -> 0 | F16: =INDEX('Default Emissions Data'!$B12:$AN12,MATCH($D$3&F$4&F$5&F$6,'Default Emissions Data'!$B$1:$AQ$1&'Default Emissions Data'!$B$2:$AQ$2&'Default Emissions Data'!$B$3:$AQ$3&'Default Emissions Data'!$B$4:$AQ$4,0)) -> 0.154 | G16: =INDEX('Default Emissions Data'!$B12:$AN12,MATCH($D$3&G$4&G$5&G$6,'Default Emissions Data'!$B$1:$AQ$1&'Default Emissions Data'!$B$2:$AQ$2&'Default Emissions Data'!$B$3:$AQ$3&'Default Emissions Data'!$B$4:$AQ$4,0)) -> 0.01694 | H16: =INDEX('Default Emissions Data'!$B12:$AN12,MATCH($D$3&H$4&H$5&H$6,'Default Emissions Data'!$B$1:$AQ$1&'Default Emissions Data'!$B$2:$AQ$2&'Default Emissions Data'!$B$3:$AQ$3&'Default Emissions Data'!$B$4:$AQ$4,0)) -> 0 | I16: =INDEX('Default Emissions Data'!$B12:$AN12,MATCH($D$3&I$4&I$5&I$6,'Default Emissions Data'!$B$1:$AQ$1&'Default Emissions Data'!$B$2:$AQ$2&'Default Emissions Data'!$B$3:$AQ$3&'Default Emissions Data'!$B$4:$AQ$4,0)) -> 0.02 | J16: =INDEX('Default Emissions Data'!$B12:$AN12,MATCH($D$3&J$4&J$5&J$6,'Default Emissions Data'!$B$1:$AQ$1&'Default Emissions Data'!$B$2:$AQ$2&'Default Emissions Data'!$B$3:$AQ$3&'Default Emissions Data'!$B$4:$AQ$4,0)) -> 
C17: Carbon Monoxide (CO) | D17: g/km | E17: =INDEX('Default Emissions Data'!$B13:$AN13,MATCH($D$3&E$4&E$5&E$6,'Default Emissions Data'!$B$1:$AQ$1&'Default Emissions Data'!$B$2:$AQ$2&'Default Emissions Data'!$B$3:$AQ$3&'Default Emissions Data'!$B$4:$AQ$4,0)) -> 0 | F17: =INDEX('Default Emissions Data'!$B13:$AN13,MATCH($D$3&F$4&F$5&F$6,'Default Emissions Data'!$B$1:$AQ$1&'Default Emissions Data'!$B$2:$AQ$2&'Default Emissions Data'!$B$3:$AQ$3&'Default Emissions Data'!$B$4:$AQ$4,0)) -> 1.487 | G17: =INDEX('Default Emissions Data'!$B13:$AN13,MATCH($D$3&G$4&G$5&G$6,'Default Emissions Data'!$B$1:$AQ$1&'Default Emissions Data'!$B$2:$AQ$2&'Default Emissions Data'!$B$3:$AQ$3&'Default Emissions Data'!$B$4:$AQ$4,0)) -> 1.552 | H17: =INDEX('Default Emissions Data'!$B13:$AN13,MATCH($D$3&H$4&H$5&H$6,'Default Emissions Data'!$B$1:$AQ$1&'Default Emissions Data'!$B$2:$AQ$2&'Default Emissions Data'!$B$3:$AQ$3&'Default Emissions Data'!$B$4:$AQ$4,0)) -> 0 | I17: =INDEX('Default Emissions Data'!$B13:$AN13,MATCH($D$3&I$4&I$5&I$6,'Default Emissions Data'!$B$1:$AQ$1&'Default Emissions Data'!$B$2:$AQ$2&'Default Emissions Data'!$B$3:$AQ$3&'Default Emissions Data'!$B$4:$AQ$4,0)) -> 0.44 | J17: =INDEX('Default Emissions Data'!$B13:$AN13,MATCH($D$3&J$4&J$5&J$6,'Default Emissions Data'!$B$1:$AQ$1&'Default Emissions Data'!$B$2:$AQ$2&'Default Emissions Data'!$B$3:$AQ$3&'Default Emissions Data'!$B$4:$AQ$4,0)) -> 
C18: Greenhouse Gases (GHG/CO2e) | D18: g/km | E18: =INDEX('Default Emissions Data'!$B14:$AN14,MATCH($D$3&E$4&E$5&E$6,'Default Emissions Data'!$B$1:$AQ$1&'Default Emissions Data'!$B$2:$AQ$2&'Default Emissions Data'!$B$3:$AQ$3&'Default Emissions Data'!$B$4:$AQ$4,0)) -> 0 | F18: =INDEX('Default Emissions Data'!$B14:$AN14,MATCH($D$3&F$4&F$5&F$6,'Default Emissions Data'!$B$1:$AQ$1&'Default Emissions Data'!$B$2:$AQ$2&'Default Emissions Data'!$B$3:$AQ$3&'Default Emissions Data'!$B$4:$AQ$4,0)) -> 0 | G18: =INDEX('Default Emissions Data'!$B14:$AN14,MATCH($D$3&G$4&G$5&G$6,'Default Emissions Data'!$B$1:$AQ$1&'Default Emissions Data'!$B$2:$AQ$2&'Default Emissions Data'!$B$3:$AQ$3&'Default Emissions Data'!$B$4:$AQ$4,0)) -> 0 | H18: =INDEX('Default Emissions Data'!$B14:$AN14,MATCH($D$3&H$4&H$5&H$6,'Default Emissions Data'!$B$1:$AQ$1&'Default Emissions Data'!$B$2:$AQ$2&'Default Emissions Data'!$B$3:$AQ$3&'Default Emissions Data'!$B$4:$AQ$4,0)) -> 0 | I18: =INDEX('Default Emissions Data'!$B14:$AN14,MATCH($D$3&I$4&I$5&I$6,'Default Emissions Data'!$B$1:$AQ$1&'Default Emissions Data'!$B$2:$AQ$2&'Default Emissions Data'!$B$3:$AQ$3&'Default Emissions Data'!$B$4:$AQ$4,0)) -> 0 | J18: =INDEX('Default Emissions Data'!$B14:$AN14,MATCH($D$3&J$4&J$5&J$6,'Default Emissions Data'!$B$1:$AQ$1&'Default Emissions Data'!$B$2:$AQ$2&'Default Emissions Data'!$B$3:$AQ$3&'Default Emissions Data'!$B$4:$AQ$4,0)) -> 
C19: Upstream GHG/CO2e | D19: g/km | E19: =INDEX('Default Emissions Data'!$B15:$AN15,MATCH($D$3&E$4&E$5&E$6,'Default Emissions Data'!$B$1:$AQ$1&'Default Emissions Data'!$B$2:$AQ$2&'Default Emissions Data'!$B$3:$AQ$3&'Default Emissions Data'!$B$4:$AQ$4,0)) -> 179 | F19: =INDEX('Default Emissions Data'!$B15:$AN15,MATCH($D$3&F$4&F$5&F$6,'Default Emissions Data'!$B$1:$AQ$1&'Default Emissions Data'!$B$2:$AQ$2&'Default Emissions Data'!$B$3:$AQ$3&'Default Emissions Data'!$B$4:$AQ$4,0)) -> 0 | G19: =INDEX('Default Emissions Data'!$B15:$AN15,MATCH($D$3&G$4&G$5&G$6,'Default Emissions Data'!$B$1:$AQ$1&'Default Emissions Data'!$B$2:$AQ$2&'Default Emissions Data'!$B$3:$AQ$3&'Default Emissions Data'!$B$4:$AQ$4,0)) -> 0 | H19: =INDEX('Default Emissions Data'!$B15:$AN15,MATCH($D$3&H$4&H$5&H$6,'Default Emissions Data'!$B$1:$AQ$1&'Default Emissions Data'!$B$2:$AQ$2&'Default Emissions Data'!$B$3:$AQ$3&'Default Emissions Data'!$B$4:$AQ$4,0)) -> 179 | I19: =INDEX('Default Emissions Data'!$B15:$AN15,MATCH($D$3&I$4&I$5&I$6,'Default Emissions Data'!$B$1:$AQ$1&'Default Emissions Data'!$B$2:$AQ$2&'Default Emissions Data'!$B$3:$AQ$3&'Default Emissions Data'!$B$4:$AQ$4,0)) -> 0 | J19: =INDEX('Default Emissions Data'!$B15:$AN15,MATCH($D$3&J$4&J$5&J$6,'Default Emissions Data'!$B$1:$AQ$1&'Default Emissions Data'!$B$2:$AQ$2&'Default Emissions Data'!$B$3:$AQ$3&'Default Emissions Data'!$B$4:$AQ$4,0)) -> 
C20: Total GHG | D20: g/km | E20: =INDEX('Default Emissions Data'!$B16:$AN16,MATCH($D$3&E$4&E$5&E$6,'Default Emissions Data'!$B$1:$AQ$1&'Default Emissions Data'!$B$2:$AQ$2&'Default Emissions Data'!$B$3:$AQ$3&'Default Emissions Data'!$B$4:$AQ$4,0)) -> 179 | F20: =INDEX('Default Emissions Data'!$B16:$AN16,MATCH($D$3&F$4&F$5&F$6,'Default Emissions Data'!$B$1:$AQ$1&'Default Emissions Data'!$B$2:$AQ$2&'Default Emissions Data'!$B$3:$AQ$3&'Default Emissions Data'!$B$4:$AQ$4,0)) -> 0 | G20: =INDEX('Default Emissions Data'!$B16:$AN16,MATCH($D$3&G$4&G$5&G$6,'Default Emissions Data'!$B$1:$AQ$1&'Default Emissions Data'!$B$2:$AQ$2&'Default Emissions Data'!$B$3:$AQ$3&'Default Emissions Data'!$B$4:$AQ$4,0)) -> 0 | H20: =INDEX('Default Emissions Data'!$B16:$AN16,MATCH($D$3&H$4&H$5&H$6,'Default Emissions Data'!$B$1:$AQ$1&'Default Emissions Data'!$B$2:$AQ$2&'Default Emissions Data'!$B$3:$AQ$3&'Default Emissions Data'!$B$4:$AQ$4,0)) -> 179 | I20: =INDEX('Default Emissions Data'!$B16:$AN16,MATCH($D$3&I$4&I$5&I$6,'Default Emissions Data'!$B$1:$AQ$1&'Default Emissions Data'!$B$2:$AQ$2&'Default Emissions Data'!$B$3:$AQ$3&'Default Emissions Data'!$B$4:$AQ$4,0)) -> 0 | J20: =INDEX('Default Emissions Data'!$B16:$AN16,MATCH($D$3&J$4&J$5&J$6,'Default Emissions Data'!$B$1:$AQ$1&'Default Emissions Data'!$B$2:$AQ$2&'Default Emissions Data'!$B$3:$AQ$3&'Default Emissions Data'!$B$4:$AQ$4,0)) -> 
C22: Fleet-Specific Data
D23: Units
C24: Useful life of bus | D24: years | E24: =INDEX('Default Cost Data'!$C7:$N7,MATCH($D$3&E$4&E$6,'Default Cost Data'!$C$2:$N$2&'Default Cost Data'!$C$3:$N$3&'Default Cost Data'!$C$4:$N$4,0)) -> 15 | F24: =INDEX('Default Cost Data'!$C7:$N7,MATCH($D$3&F$4&F$6,'Default Cost Data'!$C$2:$N$2&'Default Cost Data'!$C$3:$N$3&'Default Cost Data'!$C$4:$N$4,0)) -> 10 | G24: =INDEX('Default Cost Data'!$C7:$N7,MATCH($D$3&G$4&G$6,'Default Cost Data'!$C$2:$N$2&'Default Cost Data'!$C$3:$N$3&'Default Cost Data'!$C$4:$N$4,0)) -> 12 | H24: =INDEX('Default Cost Data'!$C7:$N7,MATCH($D$3&H$4&H$6,'Default Cost Data'!$C$2:$N$2&'Default Cost Data'!$C$3:$N$3&'Default Cost Data'!$C$4:$N$4,0)) -> 15 | I24: =INDEX('Default Cost Data'!$C7:$N7,MATCH($D$3&I$4&I$6,'Default Cost Data'!$C$2:$N$2&'Default Cost Data'!$C$3:$N$3&'Default Cost Data'!$C$4:$N$4,0)) -> 10 | J24: =INDEX('Default Cost Data'!$C7:$N7,MATCH($D$3&J$4&J$6,'Default Cost Data'!$C$2:$N$2&'Default Cost Data'!$C$3:$N$3&'Default Cost Data'!$C$4:$N$4,0)) -> 
C25: Final purchase price for a single bus | D25: $/bus | E25: =INDEX('Default Cost Data'!$C8:$N8,MATCH($D$3&E$4&E$6,'Default Cost Data'!$C$2:$N$2&'Default Cost Data'!$C$3:$N$3&'Default Cost Data'!$C$4:$N$4,0)) -> 537500 | F25: =INDEX('Default Cost Data'!$C8:$N8,MATCH($D$3&F$4&F$6,'Default Cost Data'!$C$2:$N$2&'Default Cost Data'!$C$3:$N$3&'Default Cost Data'!$C$4:$N$4,0)) -> 215000 | G25: =INDEX('Default Cost Data'!$C8:$N8,MATCH($D$3&G$4&G$6,'Default Cost Data'!$C$2:$N$2&'Default Cost Data'!$C$3:$N$3&'Default Cost Data'!$C$4:$N$4,0)) -> 322500 | H25: =INDEX('Default Cost Data'!$C8:$N8,MATCH($D$3&H$4&H$6,'Default Cost Data'!$C$2:$N$2&'Default Cost Data'!$C$3:$N$3&'Default Cost Data'!$C$4:$N$4,0)) -> 537500 | I25: =INDEX('Default Cost Data'!$C8:$N8,MATCH($D$3&I$4&I$6,'Default Cost Data'!$C$2:$N$2&'Default Cost Data'!$C$3:$N$3&'Default Cost Data'!$C$4:$N$4,0)) -> 215000 | J25: =INDEX('Default Cost Data'!$C8:$N8,MATCH($D$3&J$4&J$6,'Default Cost Data'!$C$2:$N$2&'Default Cost Data'!$C$3:$N$3&'Default Cost Data'!$C$4:$N$4,0)) -> 
C26: Residual value | D26: % of final purchase price | E26: =INDEX('Default Cost Data'!$C9:$N9,MATCH($D$3&E$4&E$6,'Default Cost Data'!$C$2:$N$2&'Default Cost Data'!$C$3:$N$3&'Default Cost Data'!$C$4:$N$4,0)) -> 0.05 | F26: =INDEX('Default Cost Data'!$C9:$N9,MATCH($D$3&F$4&F$6,'Default Cost Data'!$C$2:$N$2&'Default Cost Data'!$C$3:$N$3&'Default Cost Data'!$C$4:$N$4,0)) -> 0.1 | G26: =INDEX('Default Cost Data'!$C9:$N9,MATCH($D$3&G$4&G$6,'Default Cost Data'!$C$2:$N$2&'Default Cost Data'!$C$3:$N$3&'Default Cost Data'!$C$4:$N$4,0)) -> 0.1 | H26: =INDEX('Default Cost Data'!$C9:$N9,MATCH($D$3&H$4&H$6,'Default Cost Data'!$C$2:$N$2&'Default Cost Data'!$C$3:$N$3&'Default Cost Data'!$C$4:$N$4,0)) -> 0.05 | I26: =INDEX('Default Cost Data'!$C9:$N9,MATCH($D$3&I$4&I$6,'Default Cost Data'!$C$2:$N$2&'Default Cost Data'!$C$3:$N$3&'Default Cost Data'!$C$4:$N$4,0)) -> 0.1 | J26: =INDEX('Default Cost Data'!$C9:$N9,MATCH($D$3&J$4&J$6,'Default Cost Data'!$C$2:$N$2&'Default Cost Data'!$C$3:$N$3&'Default Cost Data'!$C$4:$N$4,0)) -> 
C27: Down payment | D27: % of total cost | E27: =INDEX('Default Cost Data'!$C10:$N10,MATCH($D$3&E$4&E$6,'Default Cost Data'!$C$2:$N$2&'Default Cost Data'!$C$3:$N$3&'Default Cost Data'!$C$4:$N$4,0)) -> 0.2 | F27: =INDEX('Default Cost Data'!$C10:$N10,MATCH($D$3&F$4&F$6,'Default Cost Data'!$C$2:$N$2&'Default Cost Data'!$C$3:$N$3&'Default Cost Data'!$C$4:$N$4,0)) -> 0.2 | G27: =INDEX('Default Cost Data'!$C10:$N10,MATCH($D$3&G$4&G$6,'Default Cost Data'!$C$2:$N$2&'Default Cost Data'!$C$3:$N$3&'Default Cost Data'!$C$4:$N$4,0)) -> 0.2 | H27: =INDEX('Default Cost Data'!$C10:$N10,MATCH($D$3&H$4&H$6,'Default Cost Data'!$C$2:$N$2&'Default Cost Data'!$C$3:$N$3&'Default Cost Data'!$C$4:$N$4,0)) -> 0.2 | I27: =INDEX('Default Cost Data'!$C10:$N10,MATCH($D$3&I$4&I$6,'Default Cost Data'!$C$2:$N$2&'Default Cost Data'!$C$3:$N$3&'Default Cost Data'!$C$4:$N$4,0)) -> 0.2 | J27: =INDEX('Default Cost Data'!$C10:$N10,MATCH($D$3&J$4&J$6,'Default Cost Data'!$C$2:$N$2&'Default Cost Data'!$C$3:$N$3&'Default Cost Data'!$C$4:$N$4,0)) -> 
C28: Loan interest rate | D28: % | E28: =INDEX('Default Cost Data'!$C11:$N11,MATCH($D$3&E$4&E$6,'Default Cost Data'!$C$2:$N$2&'Default Cost Data'!$C$3:$N$3&'Default Cost Data'!$C$4:$N$4,0)) -> 0.094 | F28: =INDEX('Default Cost Data'!$C11:$N11,MATCH($D$3&F$4&F$6,'Default Cost Data'!$C$2:$N$2&'Default Cost Data'!$C$3:$N$3&'Default Cost Data'!$C$4:$N$4,0)) -> 0.099 | G28: =INDEX('Default Cost Data'!$C11:$N11,MATCH($D$3&G$4&G$6,'Default Cost Data'!$C$2:$N$2&'Default Cost Data'!$C$3:$N$3&'Default Cost Data'!$C$4:$N$4,0)) -> 0.099 | H28: =INDEX('Default Cost Data'!$C11:$N11,MATCH($D$3&H$4&H$6,'Default Cost Data'!$C$2:$N$2&'Default Cost Data'!$C$3:$N$3&'Default Cost Data'!$C$4:$N$4,0)) -> 0.094 | I28: =INDEX('Default Cost Data'!$C11:$N11,MATCH($D$3&I$4&I$6,'Default Cost Data'!$C$2:$N$2&'Default Cost Data'!$C$3:$N$3&'Default Cost Data'!$C$4:$N$4,0)) -> 0.099 | J28: =INDEX('Default Cost Data'!$C11:$N11,MATCH($D$3&J$4&J$6,'Default Cost Data'!$C$2:$N$2&'Default Cost Data'!$C$3:$N$3&'Default Cost Data'!$C$4:$N$4,0)) -> 
C29: Loan lifetime | D29: years | E29: =INDEX('Default Cost Data'!$C12:$N12,MATCH($D$3&E$4&E$6,'Default Cost Data'!$C$2:$N$2&'Default Cost Data'!$C$3:$N$3&'Default Cost Data'!$C$4:$N$4,0)) -> 14 | F29: =INDEX('Default Cost Data'!$C12:$N12,MATCH($D$3&F$4&F$6,'Default Cost Data'!$C$2:$N$2&'Default Cost Data'!$C$3:$N$3&'Default Cost Data'!$C$4:$N$4,0)) -> 9 | G29: =INDEX('Default Cost Data'!$C12:$N12,MATCH($D$3&G$4&G$6,'Default Cost Data'!$C$2:$N$2&'Default Cost Data'!$C$3:$N$3&'Default Cost Data'!$C$4:$N$4,0)) -> 9 | H29: =INDEX('Default Cost Data'!$C12:$N12,MATCH($D$3&H$4&H$6,'Default Cost Data'!$C$2:$N$2&'Default Cost Data'!$C$3:$N$3&'Default Cost Data'!$C$4:$N$4,0)) -> 14 | I29: =INDEX('Default Cost Data'!$C12:$N12,MATCH($D$3&I$4&I$6,'Default Cost Data'!$C$2:$N$2&'Default Cost Data'!$C$3:$N$3&'Default Cost Data'!$C$4:$N$4,0)) -> 9 | J29: =INDEX('Default Cost Data'!$C12:$N12,MATCH($D$3&J$4&J$6,'Default Cost Data'!$C$2:$N$2&'Default Cost Data'!$C$3:$N$3&'Default Cost Data'!$C$4:$N$4,0)) -> 
C31: Annual Operations Data
D32: Units
C33: Total cost of driver and on-board labor | D33: $/year/bus | E33: =INDEX('Default Cost Data'!$C16:$N16,MATCH($D$3&E$4&E$6,'Default Cost Data'!$C$2:$N$2&'Default Cost Data'!$C$3:$N$3&'Default Cost Data'!$C$4:$N$4,0)) -> 0 | F33: =INDEX('Default Cost Data'!$C16:$N16,MATCH($D$3&F$4&F$6,'Default Cost Data'!$C$2:$N$2&'Default Cost Data'!$C$3:$N$3&'Default Cost Data'!$C$4:$N$4,0)) -> 0 | G33: =INDEX('Default Cost Data'!$C16:$N16,MATCH($D$3&G$4&G$6,'Default Cost Data'!$C$2:$N$2&'Default Cost Data'!$C$3:$N$3&'Default Cost Data'!$C$4:$N$4,0)) -> 0 | H33: =INDEX('Default Cost Data'!$C16:$N16,MATCH($D$3&H$4&H$6,'Default Cost Data'!$C$2:$N$2&'Default Cost Data'!$C$3:$N$3&'Default Cost Data'!$C$4:$N$4,0)) -> 0 | I33: =INDEX('Default Cost Data'!$C16:$N16,MATCH($D$3&I$4&I$6,'Default Cost Data'!$C$2:$N$2&'Default Cost Data'!$C$3:$N$3&'Default Cost Data'!$C$4:$N$4,0)) -> 0 | J33: =INDEX('Default Cost Data'!$C16:$N16,MATCH($D$3&J$4&J$6,'Default Cost Data'!$C$2:$N$2&'Default Cost Data'!$C$3:$N$3&'Default Cost Data'!$C$4:$N$4,0)) -> 
C34: Energy Use | D34: kwh/km | E34: =INDEX('Default Cost Data'!$C17:$N17,MATCH($D$3&E$4&E$6,'Default Cost Data'!$C$2:$N$2&'Default Cost Data'!$C$3:$N$3&'Default Cost Data'!$C$4:$N$4,0)) -> 1.3 | F34: =INDEX('Default Cost Data'!$C17:$N17,MATCH($D$3&F$4&F$6,'Default Cost Data'!$C$2:$N$2&'Default Cost Data'!$C$3:$N$3&'Default Cost Data'!$C$4:$N$4,0)) -> 0 | G34: =INDEX('Default Cost Data'!$C17:$N17,MATCH($D$3&G$4&G$6,'Default Cost Data'!$C$2:$N$2&'Default Cost Data'!$C$3:$N$3&'Default Cost Data'!$C$4:$N$4,0)) -> 0 | H34: =INDEX('Default Cost Data'!$C17:$N17,MATCH($D$3&H$4&H$6,'Default Cost Data'!$C$2:$N$2&'Default Cost Data'!$C$3:$N$3&'Default Cost Data'!$C$4:$N$4,0)) -> 1.3 | I34: =INDEX('Default Cost Data'!$C17:$N17,MATCH($D$3&I$4&I$6,'Default Cost Data'!$C$2:$N$2&'Default Cost Data'!$C$3:$N$3&'Default Cost Data'!$C$4:$N$4,0)) -> 0 | J34: =INDEX('Default Cost Data'!$C17:$N17,MATCH($D$3&J$4&J$6,'Default Cost Data'!$C$2:$N$2&'Default Cost Data'!$C$3:$N$3&'Default Cost Data'!$C$4:$N$4,0)) -> 
C35: Energy Cost | D35: $/kwh | E35: =INDEX('Default Cost Data'!$C18:$N18,MATCH($D$3&E$4&E$6,'Default Cost Data'!$C$2:$N$2&'Default Cost Data'!$C$3:$N$3&'Default Cost Data'!$C$4:$N$4,0)) -> 0.215 | F35: =INDEX('Default Cost Data'!$C18:$N18,MATCH($D$3&F$4&F$6,'Default Cost Data'!$C$2:$N$2&'Default Cost Data'!$C$3:$N$3&'Default Cost Data'!$C$4:$N$4,0)) -> 0 | G35: =INDEX('Default Cost Data'!$C18:$N18,MATCH($D$3&G$4&G$6,'Default Cost Data'!$C$2:$N$2&'Default Cost Data'!$C$3:$N$3&'Default Cost Data'!$C$4:$N$4,0)) -> 0 | H35: =INDEX('Default Cost Data'!$C18:$N18,MATCH($D$3&H$4&H$6,'Default Cost Data'!$C$2:$N$2&'Default Cost Data'!$C$3:$N$3&'Default Cost Data'!$C$4:$N$4,0)) -> 0.215 | I35: =INDEX('Default Cost Data'!$C18:$N18,MATCH($D$3&I$4&I$6,'Default Cost Data'!$C$2:$N$2&'Default Cost Data'!$C$3:$N$3&'Default Cost Data'!$C$4:$N$4,0)) -> 0 | J35: =INDEX('Default Cost Data'!$C18:$N18,MATCH($D$3&J$4&J$6,'Default Cost Data'!$C$2:$N$2&'Default Cost Data'!$C$3:$N$3&'Default Cost Data'!$C$4:$N$4,0)) -> 
C36: Fuel consumption | D36: L/100 km | E36: =INDEX('Default Cost Data'!$C19:$N19,MATCH($D$3&E$4&E$6,'Default Cost Data'!$C$2:$N$2&'Default Cost Data'!$C$3:$N$3&'Default Cost Data'!$C$4:$N$4,0)) -> 0 | F36: =INDEX('Default Cost Data'!$C19:$N19,MATCH($D$3&F$4&F$6,'Default Cost Data'!$C$2:$N$2&'Default Cost Data'!$C$3:$N$3&'Default Cost Data'!$C$4:$N$4,0)) -> 45 | G36: =INDEX('Default Cost Data'!$C19:$N19,MATCH($D$3&G$4&G$6,'Default Cost Data'!$C$2:$N$2&'Default Cost Data'!$C$3:$N$3&'Default Cost Data'!$C$4:$N$4,0)) -> 41.5 | H36: =INDEX('Default Cost Data'!$C19:$N19,MATCH($D$3&H$4&H$6,'Default Cost Data'!$C$2:$N$2&'Default Cost Data'!$C$3:$N$3&'Default Cost Data'!$C$4:$N$4,0)) -> 0 | I36: =INDEX('Default Cost Data'!$C19:$N19,MATCH($D$3&I$4&I$6,'Default Cost Data'!$C$2:$N$2&'Default Cost Data'!$C$3:$N$3&'Default Cost Data'!$C$4:$N$4,0)) -> 45 | J36: =INDEX('Default Cost Data'!$C19:$N19,MATCH($D$3&J$4&J$6,'Default Cost Data'!$C$2:$N$2&'Default Cost Data'!$C$3:$N$3&'Default Cost Data'!$C$4:$N$4,0)) -> 
C37: Fuel cost | D37: $/L | E37: =INDEX('Default Cost Data'!$C20:$N20,MATCH($D$3&E$4&E$6,'Default Cost Data'!$C$2:$N$2&'Default Cost Data'!$C$3:$N$3&'Default Cost Data'!$C$4:$N$4,0)) -> 0 | F37: =INDEX('Default Cost Data'!$C20:$N20,MATCH($D$3&F$4&F$6,'Default Cost Data'!$C$2:$N$2&'Default Cost Data'!$C$3:$N$3&'Default Cost Data'!$C$4:$N$4,0)) -> 1.4319 | G37: =INDEX('Default Cost Data'!$C20:$N20,MATCH($D$3&G$4&G$6,'Default Cost Data'!$C$2:$N$2&'Default Cost Data'!$C$3:$N$3&'Default Cost Data'!$C$4:$N$4,0)) -> 1.4319 | H37: =INDEX('Default Cost Data'!$C20:$N20,MATCH($D$3&H$4&H$6,'Default Cost Data'!$C$2:$N$2&'Default Cost Data'!$C$3:$N$3&'Default Cost Data'!$C$4:$N$4,0)) -> 0 | I37: =INDEX('Default Cost Data'!$C20:$N20,MATCH($D$3&I$4&I$6,'Default Cost Data'!$C$2:$N$2&'Default Cost Data'!$C$3:$N$3&'Default Cost Data'!$C$4:$N$4,0)) -> 1.4319 | J37: =INDEX('Default Cost Data'!$C20:$N20,MATCH($D$3&J$4&J$6,'Default Cost Data'!$C$2:$N$2&'Default Cost Data'!$C$3:$N$3&'Default Cost Data'!$C$4:$N$4,0)) -> 
C38: Fuel cost projection | D38: %/year | E38: =INDEX('Default Cost Data'!$C21:$N21,MATCH($D$3&E$4&E$6,'Default Cost Data'!$C$2:$N$2&'Default Cost Data'!$C$3:$N$3&'Default Cost Data'!$C$4:$N$4,0)) -> 0 | F38: =INDEX('Default Cost Data'!$C21:$N21,MATCH($D$3&F$4&F$6,'Default Cost Data'!$C$2:$N$2&'Default Cost Data'!$C$3:$N$3&'Default Cost Data'!$C$4:$N$4,0)) -> 0 | G38: =INDEX('Default Cost Data'!$C21:$N21,MATCH($D$3&G$4&G$6,'Default Cost Data'!$C$2:$N$2&'Default Cost Data'!$C$3:$N$3&'Default Cost Data'!$C$4:$N$4,0)) -> 0 | H38: =INDEX('Default Cost Data'!$C21:$N21,MATCH($D$3&H$4&H$6,'Default Cost Data'!$C$2:$N$2&'Default Cost Data'!$C$3:$N$3&'Default Cost Data'!$C$4:$N$4,0)) -> 0 | I38: =INDEX('Default Cost Data'!$C21:$N21,MATCH($D$3&I$4&I$6,'Default Cost Data'!$C$2:$N$2&'Default Cost Data'!$C$3:$N$3&'Default Cost Data'!$C$4:$N$4,0)) -> 0 | J38: =INDEX('Default Cost Data'!$C21:$N21,MATCH($D$3&J$4&J$6,'Default Cost Data'!$C$2:$N$2&'Default Cost Data'!$C$3:$N$3&'Default Cost Data'!$C$4:$N$4,0)) -> 
C39: Fuel additive | D39: $/L | E39: =INDEX('Default Cost Data'!$C22:$N22,MATCH($D$3&E$4&E$6,'Default Cost Data'!$C$2:$N$2&'Default Cost Data'!$C$3:$N$3&'Default Cost Data'!$C$4:$N$4,0)) -> 0 | F39: =INDEX('Default Cost Data'!$C22:$N22,MATCH($D$3&F$4&F$6,'Default Cost Data'!$C$2:$N$2&'Default Cost Data'!$C$3:$N$3&'Default Cost Data'!$C$4:$N$4,0)) -> 0 | G39: =INDEX('Default Cost Data'!$C22:$N22,MATCH($D$3&G$4&G$6,'Default Cost Data'!$C$2:$N$2&'Default Cost Data'!$C$3:$N$3&'Default Cost Data'!$C$4:$N$4,0)) -> 0 | H39: =INDEX('Default Cost Data'!$C22:$N22,MATCH($D$3&H$4&H$6,'Default Cost Data'!$C$2:$N$2&'Default Cost Data'!$C$3:$N$3&'Default Cost Data'!$C$4:$N$4,0)) -> 0 | I39: =INDEX('Default Cost Data'!$C22:$N22,MATCH($D$3&I$4&I$6,'Default Cost Data'!$C$2:$N$2&'Default Cost Data'!$C$3:$N$3&'Default Cost Data'!$C$4:$N$4,0)) -> 0 | J39: =INDEX('Default Cost Data'!$C22:$N22,MATCH($D$3&J$4&J$6,'Default Cost Data'!$C$2:$N$2&'Default Cost Data'!$C$3:$N$3&'Default Cost Data'!$C$4:$N$4,0)) -> 
C40: Fuel station operation costs | D40: $/year/bus | E40: =INDEX('Default Cost Data'!$C23:$N23,MATCH($D$3&E$4&E$6,'Default Cost Data'!$C$2:$N$2&'Default Cost Data'!$C$3:$N$3&'Default Cost Data'!$C$4:$N$4,0)) -> 0 | F40: =INDEX('Default Cost Data'!$C23:$N23,MATCH($D$3&F$4&F$6,'Default Cost Data'!$C$2:$N$2&'Default Cost Data'!$C$3:$N$3&'Default Cost Data'!$C$4:$N$4,0)) -> 0 | G40: =INDEX('Default Cost Data'!$C23:$N23,MATCH($D$3&G$4&G$6,'Default Cost Data'!$C$2:$N$2&'Default Cost Data'!$C$3:$N$3&'Default Cost Data'!$C$4:$N$4,0)) -> 0 | H40: =INDEX('Default Cost Data'!$C23:$N23,MATCH($D$3&H$4&H$6,'Default Cost Data'!$C$2:$N$2&'Default Cost Data'!$C$3:$N$3&'Default Cost Data'!$C$4:$N$4,0)) -> 0 | I40: =INDEX('Default Cost Data'!$C23:$N23,MATCH($D$3&I$4&I$6,'Default Cost Data'!$C$2:$N$2&'Default Cost Data'!$C$3:$N$3&'Default Cost Data'!$C$4:$N$4,0)) -> 0 | J40: =INDEX('Default Cost Data'!$C23:$N23,MATCH($D$3&J$4&J$6,'Default Cost Data'!$C$2:$N$2&'Default Cost Data'!$C$3:$N$3&'Default Cost Data'!$C$4:$N$4,0)) -> 
C41: Insurance | D41: $/year/bus | E41: =INDEX('Default Cost Data'!$C24:$N24,MATCH($D$3&E$4&E$6,'Default Cost Data'!$C$2:$N$2&'Default Cost Data'!$C$3:$N$3&'Default Cost Data'!$C$4:$N$4,0)) -> 0 | F41: =INDEX('Default Cost Data'!$C24:$N24,MATCH($D$3&F$4&F$6,'Default Cost Data'!$C$2:$N$2&'Default Cost Data'!$C$3:$N$3&'Default Cost Data'!$C$4:$N$4,0)) -> 0 | G41: =INDEX('Default Cost Data'!$C24:$N24,MATCH($D$3&G$4&G$6,'Default Cost Data'!$C$2:$N$2&'Default Cost Data'!$C$3:$N$3&'Default Cost Data'!$C$4:$N$4,0)) -> 0 | H41: =INDEX('Default Cost Data'!$C24:$N24,MATCH($D$3&H$4&H$6,'Default Cost Data'!$C$2:$N$2&'Default Cost Data'!$C$3:$N$3&'Default Cost Data'!$C$4:$N$4,0)) -> 0 | I41: =INDEX('Default Cost Data'!$C24:$N24,MATCH($D$3&I$4&I$6,'Default Cost Data'!$C$2:$N$2&'Default Cost Data'!$C$3:$N$3&'Default Cost Data'!$C$4:$N$4,0)) -> 0 | J41: =INDEX('Default Cost Data'!$C24:$N24,MATCH($D$3&J$4&J$6,'Default Cost Data'!$C$2:$N$2&'Default Cost Data'!$C$3:$N$3&'Default Cost Data'!$C$4:$N$4,0)) -> 
C42: Additional operational costs to include | D42: $/year/bus | E42: =INDEX('Default Cost Data'!$C25:$N25,MATCH($D$3&E$4&E$6,'Default Cost Data'!$C$2:$N$2&'Default Cost Data'!$C$3:$N$3&'Default Cost Data'!$C$4:$N$4,0)) -> 0 | F42: =INDEX('Default Cost Data'!$C25:$N25,MATCH($D$3&F$4&F$6,'Default Cost Data'!$C$2:$N$2&'Default Cost Data'!$C$3:$N$3&'Default Cost Data'!$C$4:$N$4,0)) -> 0 | G42: =INDEX('Default Cost Data'!$C25:$N25,MATCH($D$3&G$4&G$6,'Default Cost Data'!$C$2:$N$2&'Default Cost Data'!$C$3:$N$3&'Default Cost Data'!$C$4:$N$4,0)) -> 0 | H42: =INDEX('Default Cost Data'!$C25:$N25,MATCH($D$3&H$4&H$6,'Default Cost Data'!$C$2:$N$2&'Default Cost Data'!$C$3:$N$3&'Default Cost Data'!$C$4:$N$4,0)) -> 0 | I42: =INDEX('Default Cost Data'!$C25:$N25,MATCH($D$3&I$4&I$6,'Default Cost Data'!$C$2:$N$2&'Default Cost Data'!$C$3:$N$3&'Default Cost Data'!$C$4:$N$4,0)) -> 0 | J42: =INDEX('Default Cost Data'!$C25:$N25,MATCH($D$3&J$4&J$6,'Default Cost Data'!$C$2:$N$2&'Default Cost Data'!$C$3:$N$3&'Default Cost Data'!$C$4:$N$4,0)) -> 
C44: Maintenance Data
D45: Units
C46: Fixed annual maintenance cost | D46: $/year/bus | E46: =INDEX('Default Cost Data'!$C29:$N29,MATCH($D$3&E$4&E$6,'Default Cost Data'!$C$2:$N$2&'Default Cost Data'!$C$3:$N$3&'Default Cost Data'!$C$4:$N$4,0)) -> 7310 | F46: =INDEX('Default Cost Data'!$C29:$N29,MATCH($D$3&F$4&F$6,'Default Cost Data'!$C$2:$N$2&'Default Cost Data'!$C$3:$N$3&'Default Cost Data'!$C$4:$N$4,0)) -> 12900 | G46: =INDEX('Default Cost Data'!$C29:$N29,MATCH($D$3&G$4&G$6,'Default Cost Data'!$C$2:$N$2&'Default Cost Data'!$C$3:$N$3&'Default Cost Data'!$C$4:$N$4,0)) -> 19350 | H46: =INDEX('Default Cost Data'!$C29:$N29,MATCH($D$3&H$4&H$6,'Default Cost Data'!$C$2:$N$2&'Default Cost Data'!$C$3:$N$3&'Default Cost Data'!$C$4:$N$4,0)) -> 7310 | I46: =INDEX('Default Cost Data'!$C29:$N29,MATCH($D$3&I$4&I$6,'Default Cost Data'!$C$2:$N$2&'Default Cost Data'!$C$3:$N$3&'Default Cost Data'!$C$4:$N$4,0)) -> 12900 | J46: =INDEX('Default Cost Data'!$C29:$N29,MATCH($D$3&J$4&J$6,'Default Cost Data'!$C$2:$N$2&'Default Cost Data'!$C$3:$N$3&'Default Cost Data'!$C$4:$N$4,0)) -> 
C47: Total cost of maintenance labor | D47: $/year/bus | E47: =INDEX('Default Cost Data'!$C30:$N30,MATCH($D$3&E$4&E$6,'Default Cost Data'!$C$2:$N$2&'Default Cost Data'!$C$3:$N$3&'Default Cost Data'!$C$4:$N$4,0)) -> 0 | F47: =INDEX('Default Cost Data'!$C30:$N30,MATCH($D$3&F$4&F$6,'Default Cost Data'!$C$2:$N$2&'Default Cost Data'!$C$3:$N$3&'Default Cost Data'!$C$4:$N$4,0)) -> 0 | G47: =INDEX('Default Cost Data'!$C30:$N30,MATCH($D$3&G$4&G$6,'Default Cost Data'!$C$2:$N$2&'Default Cost Data'!$C$3:$N$3&'Default Cost Data'!$C$4:$N$4,0)) -> 0 | H47: =INDEX('Default Cost Data'!$C30:$N30,MATCH($D$3&H$4&H$6,'Default Cost Data'!$C$2:$N$2&'Default Cost Data'!$C$3:$N$3&'Default Cost Data'!$C$4:$N$4,0)) -> 0 | I47: =INDEX('Default Cost Data'!$C30:$N30,MATCH($D$3&I$4&I$6,'Default Cost Data'!$C$2:$N$2&'Default Cost Data'!$C$3:$N$3&'Default Cost Data'!$C$4:$N$4,0)) -> 0 | J47: =INDEX('Default Cost Data'!$C30:$N30,MATCH($D$3&J$4&J$6,'Default Cost Data'!$C$2:$N$2&'Default Cost Data'!$C$3:$N$3&'Default Cost Data'!$C$4:$N$4,0)) -> 
C48: Brake reline | D48: $/bus | E48: =INDEX('Default Cost Data'!$C31:$N31,MATCH($D$3&E$4&E$6,'Default Cost Data'!$C$2:$N$2&'Default Cost Data'!$C$3:$N$3&'Default Cost Data'!$C$4:$N$4,0)) -> 0 | F48: =INDEX('Default Cost Data'!$C31:$N31,MATCH($D$3&F$4&F$6,'Default Cost Data'!$C$2:$N$2&'Default Cost Data'!$C$3:$N$3&'Default Cost Data'!$C$4:$N$4,0)) -> 0 | G48: =INDEX('Default Cost Data'!$C31:$N31,MATCH($D$3&G$4&G$6,'Default Cost Data'!$C$2:$N$2&'Default Cost Data'!$C$3:$N$3&'Default Cost Data'!$C$4:$N$4,0)) -> 0 | H48: =INDEX('Default Cost Data'!$C31:$N31,MATCH($D$3&H$4&H$6,'Default Cost Data'!$C$2:$N$2&'Default Cost Data'!$C$3:$N$3&'Default Cost Data'!$C$4:$N$4,0)) -> 0 | I48: =INDEX('Default Cost Data'!$C31:$N31,MATCH($D$3&I$4&I$6,'Default Cost Data'!$C$2:$N$2&'Default Cost Data'!$C$3:$N$3&'Default Cost Data'!$C$4:$N$4,0)) -> 0 | J48: =INDEX('Default Cost Data'!$C31:$N31,MATCH($D$3&J$4&J$6,'Default Cost Data'!$C$2:$N$2&'Default Cost Data'!$C$3:$N$3&'Default Cost Data'!$C$4:$N$4,0)) -> 
C49: Frequency | E49: =INDEX('Default Cost Data'!$C32:$N32,MATCH($D$3&E$4&E$6,'Default Cost Data'!$C$2:$N$2&'Default Cost Data'!$C$3:$N$3&'Default Cost Data'!$C$4:$N$4,0)) -> 0 | F49: =INDEX('Default Cost Data'!$C32:$N32,MATCH($D$3&F$4&F$6,'Default Cost Data'!$C$2:$N$2&'Default Cost Data'!$C$3:$N$3&'Default Cost Data'!$C$4:$N$4,0)) -> 0 | G49: =INDEX('Default Cost Data'!$C32:$N32,MATCH($D$3&G$4&G$6,'Default Cost Data'!$C$2:$N$2&'Default Cost Data'!$C$3:$N$3&'Default Cost Data'!$C$4:$N$4,0)) -> 0 | H49: =INDEX('Default Cost Data'!$C32:$N32,MATCH($D$3&H$4&H$6,'Default Cost Data'!$C$2:$N$2&'Default Cost Data'!$C$3:$N$3&'Default Cost Data'!$C$4:$N$4,0)) -> 0 | I49: =INDEX('Default Cost Data'!$C32:$N32,MATCH($D$3&I$4&I$6,'Default Cost Data'!$C$2:$N$2&'Default Cost Data'!$C$3:$N$3&'Default Cost Data'!$C$4:$N$4,0)) -> 0 | J49: =INDEX('Default Cost Data'!$C32:$N32,MATCH($D$3&J$4&J$6,'Default Cost Data'!$C$2:$N$2&'Default Cost Data'!$C$3:$N$3&'Default Cost Data'!$C$4:$N$4,0)) -> 
C50: Tires | D50: $/bus | E50: =INDEX('Default Cost Data'!$C33:$N33,MATCH($D$3&E$4&E$6,'Default Cost Data'!$C$2:$N$2&'Default Cost Data'!$C$3:$N$3&'Default Cost Data'!$C$4:$N$4,0)) -> 0 | F50: =INDEX('Default Cost Data'!$C33:$N33,MATCH($D$3&F$4&F$6,'Default Cost Data'!$C$2:$N$2&'Default Cost Data'!$C$3:$N$3&'Default Cost Data'!$C$4:$N$4,0)) -> 0 | G50: =INDEX('Default Cost Data'!$C33:$N33,MATCH($D$3&G$4&G$6,'Default Cost Data'!$C$2:$N$2&'Default Cost Data'!$C$3:$N$3&'Default Cost Data'!$C$4:$N$4,0)) -> 0 | H50: =INDEX('Default Cost Data'!$C33:$N33,MATCH($D$3&H$4&H$6,'Default Cost Data'!$C$2:$N$2&'Default Cost Data'!$C$3:$N$3&'Default Cost Data'!$C$4:$N$4,0)) -> 0 | I50: =INDEX('Default Cost Data'!$C33:$N33,MATCH($D$3&I$4&I$6,'Default Cost Data'!$C$2:$N$2&'Default Cost Data'!$C$3:$N$3&'Default Cost Data'!$C$4:$N$4,0)) -> 0 | J50: =INDEX('Default Cost Data'!$C33:$N33,MATCH($D$3&J$4&J$6,'Default Cost Data'!$C$2:$N$2&'Default Cost Data'!$C$3:$N$3&'Default Cost Data'!$C$4:$N$4,0)) -> 
C51: Frequency | E51: =INDEX('Default Cost Data'!$C34:$N34,MATCH($D$3&E$4&E$6,'Default Cost Data'!$C$2:$N$2&'Default Cost Data'!$C$3:$N$3&'Default Cost Data'!$C$4:$N$4,0)) -> 0 | F51: =INDEX('Default Cost Data'!$C34:$N34,MATCH($D$3&F$4&F$6,'Default Cost Data'!$C$2:$N$2&'Default Cost Data'!$C$3:$N$3&'Default Cost Data'!$C$4:$N$4,0)) -> 0 | G51: =INDEX('Default Cost Data'!$C34:$N34,MATCH($D$3&G$4&G$6,'Default Cost Data'!$C$2:$N$2&'Default Cost Data'!$C$3:$N$3&'Default Cost Data'!$C$4:$N$4,0)) -> 0 | H51: =INDEX('Default Cost Data'!$C34:$N34,MATCH($D$3&H$4&H$6,'Default Cost Data'!$C$2:$N$2&'Default Cost Data'!$C$3:$N$3&'Default Cost Data'!$C$4:$N$4,0)) -> 0 | I51: =INDEX('Default Cost Data'!$C34:$N34,MATCH($D$3&I$4&I$6,'Default Cost Data'!$C$2:$N$2&'Default Cost Data'!$C$3:$N$3&'Default Cost Data'!$C$4:$N$4,0)) -> 0 | J51: =INDEX('Default Cost Data'!$C34:$N34,MATCH($D$3&J$4&J$6,'Default Cost Data'!$C$2:$N$2&'Default Cost Data'!$C$3:$N$3&'Default Cost Data'!$C$4:$N$4,0)) -> 
C52: Battery conditioning | D52: $/bus | E52: =INDEX('Default Cost Data'!$C35:$N35,MATCH($D$3&E$4&E$6,'Default Cost Data'!$C$2:$N$2&'Default Cost Data'!$C$3:$N$3&'Default Cost Data'!$C$4:$N$4,0)) -> 0 | F52: =INDEX('Default Cost Data'!$C35:$N35,MATCH($D$3&F$4&F$6,'Default Cost Data'!$C$2:$N$2&'Default Cost Data'!$C$3:$N$3&'Default Cost Data'!$C$4:$N$4,0)) -> 0 | G52: =INDEX('Default Cost Data'!$C35:$N35,MATCH($D$3&G$4&G$6,'Default Cost Data'!$C$2:$N$2&'Default Cost Data'!$C$3:$N$3&'Default Cost Data'!$C$4:$N$4,0)) -> 0 | H52: =INDEX('Default Cost Data'!$C35:$N35,MATCH($D$3&H$4&H$6,'Default Cost Data'!$C$2:$N$2&'Default Cost Data'!$C$3:$N$3&'Default Cost Data'!$C$4:$N$4,0)) -> 0 | I52: =INDEX('Default Cost Data'!$C35:$N35,MATCH($D$3&I$4&I$6,'Default Cost Data'!$C$2:$N$2&'Default Cost Data'!$C$3:$N$3&'Default Cost Data'!$C$4:$N$4,0)) -> 0 | J52: =INDEX('Default Cost Data'!$C35:$N35,MATCH($D$3&J$4&J$6,'Default Cost Data'!$C$2:$N$2&'Default Cost Data'!$C$3:$N$3&'Default Cost Data'!$C$4:$N$4,0)) -> 
C53: Frequency | E53: =INDEX('Default Cost Data'!$C36:$N36,MATCH($D$3&E$4&E$6,'Default Cost Data'!$C$2:$N$2&'Default Cost Data'!$C$3:$N$3&'Default Cost Data'!$C$4:$N$4,0)) -> 0 | F53: =INDEX('Default Cost Data'!$C36:$N36,MATCH($D$3&F$4&F$6,'Default Cost Data'!$C$2:$N$2&'Default Cost Data'!$C$3:$N$3&'Default Cost Data'!$C$4:$N$4,0)) -> 0 | G53: =INDEX('Default Cost Data'!$C36:$N36,MATCH($D$3&G$4&G$6,'Default Cost Data'!$C$2:$N$2&'Default Cost Data'!$C$3:$N$3&'Default Cost Data'!$C$4:$N$4,0)) -> 0 | H53: =INDEX('Default Cost Data'!$C36:$N36,MATCH($D$3&H$4&H$6,'Default Cost Data'!$C$2:$N$2&'Default Cost Data'!$C$3:$N$3&'Default Cost Data'!$C$4:$N$4,0)) -> 0 | I53: =INDEX('Default Cost Data'!$C36:$N36,MATCH($D$3&I$4&I$6,'Default Cost Data'!$C$2:$N$2&'Default Cost Data'!$C$3:$N$3&'Default Cost Data'!$C$4:$N$4,0)) -> 0 | J53: =INDEX('Default Cost Data'!$C36:$N36,MATCH($D$3&J$4&J$6,'Default Cost Data'!$C$2:$N$2&'Default Cost Data'!$C$3:$N$3&'Default Cost Data'!$C$4:$N$4,0)) -> 
C54: DPF cleaning | D54: $/bus | E54: =INDEX('Default Cost Data'!$C37:$N37,MATCH($D$3&E$4&E$6,'Default Cost Data'!$C$2:$N$2&'Default Cost Data'!$C$3:$N$3&'Default Cost Data'!$C$4:$N$4,0)) -> 0 | F54: =INDEX('Default Cost Data'!$C37:$N37,MATCH($D$3&F$4&F$6,'Default Cost Data'!$C$2:$N$2&'Default Cost Data'!$C$3:$N$3&'Default Cost Data'!$C$4:$N$4,0)) -> 0 | G54: =INDEX('Default Cost Data'!$C37:$N37,MATCH($D$3&G$4&G$6,'Default Cost Data'!$C$2:$N$2&'Default Cost Data'!$C$3:$N$3&'Default Cost Data'!$C$4:$N$4,0)) -> 0 | H54: =INDEX('Default Cost Data'!$C37:$N37,MATCH($D$3&H$4&H$6,'Default Cost Data'!$C$2:$N$2&'Default Cost Data'!$C$3:$N$3&'Default Cost Data'!$C$4:$N$4,0)) -> 0 | I54: =INDEX('Default Cost Data'!$C37:$N37,MATCH($D$3&I$4&I$6,'Default Cost Data'!$C$2:$N$2&'Default Cost Data'!$C$3:$N$3&'Default Cost Data'!$C$4:$N$4,0)) -> 0 | J54: =INDEX('Default Cost Data'!$C37:$N37,MATCH($D$3&J$4&J$6,'Default Cost Data'!$C$2:$N$2&'Default Cost Data'!$C$3:$N$3&'Default Cost Data'!$C$4:$N$4,0)) -> 
C55: Frequency | E55: =INDEX('Default Cost Data'!$C38:$N38,MATCH($D$3&E$4&E$6,'Default Cost Data'!$C$2:$N$2&'Default Cost Data'!$C$3:$N$3&'Default Cost Data'!$C$4:$N$4,0)) -> 0 | F55: =INDEX('Default Cost Data'!$C38:$N38,MATCH($D$3&F$4&F$6,'Default Cost Data'!$C$2:$N$2&'Default Cost Data'!$C$3:$N$3&'Default Cost Data'!$C$4:$N$4,0)) -> 0 | G55: =INDEX('Default Cost Data'!$C38:$N38,MATCH($D$3&G$4&G$6,'Default Cost Data'!$C$2:$N$2&'Default Cost Data'!$C$3:$N$3&'Default Cost Data'!$C$4:$N$4,0)) -> 0 | H55: =INDEX('Default Cost Data'!$C38:$N38,MATCH($D$3&H$4&H$6,'Default Cost Data'!$C$2:$N$2&'Default Cost Data'!$C$3:$N$3&'Default Cost Data'!$C$4:$N$4,0)) -> 0 | I55: =INDEX('Default Cost Data'!$C38:$N38,MATCH($D$3&I$4&I$6,'Default Cost Data'!$C$2:$N$2&'Default Cost Data'!$C$3:$N$3&'Default Cost Data'!$C$4:$N$4,0)) -> 0 | J55: =INDEX('Default Cost Data'!$C38:$N38,MATCH($D$3&J$4&J$6,'Default Cost Data'!$C$2:$N$2&'Default Cost Data'!$C$3:$N$3&'Default Cost Data'!$C$4:$N$4,0)) -> 
C56: Fuel station maintenance | D56: $/bus | E56: =INDEX('Default Cost Data'!$C39:$N39,MATCH($D$3&E$4&E$6,'Default Cost Data'!$C$2:$N$2&'Default Cost Data'!$C$3:$N$3&'Default Cost Data'!$C$4:$N$4,0)) -> 0 | F56: =INDEX('Default Cost Data'!$C39:$N39,MATCH($D$3&F$4&F$6,'Default Cost Data'!$C$2:$N$2&'Default Cost Data'!$C$3:$N$3&'Default Cost Data'!$C$4:$N$4,0)) -> 0 | G56: =INDEX('Default Cost Data'!$C39:$N39,MATCH($D$3&G$4&G$6,'Default Cost Data'!$C$2:$N$2&'Default Cost Data'!$C$3:$N$3&'Default Cost Data'!$C$4:$N$4,0)) -> 0 | H56: =INDEX('Default Cost Data'!$C39:$N39,MATCH($D$3&H$4&H$6,'Default Cost Data'!$C$2:$N$2&'Default Cost Data'!$C$3:$N$3&'Default Cost Data'!$C$4:$N$4,0)) -> 0 | I56: =INDEX('Default Cost Data'!$C39:$N39,MATCH($D$3&I$4&I$6,'Default Cost Data'!$C$2:$N$2&'Default Cost Data'!$C$3:$N$3&'Default Cost Data'!$C$4:$N$4,0)) -> 0 | J56: =INDEX('Default Cost Data'!$C39:$N39,MATCH($D$3&J$4&J$6,'Default Cost Data'!$C$2:$N$2&'Default Cost Data'!$C$3:$N$3&'Default Cost Data'!$C$4:$N$4,0)) -> 
C57: Frequency | E57: =INDEX('Default Cost Data'!$C40:$N40,MATCH($D$3&E$4&E$6,'Default Cost Data'!$C$2:$N$2&'Default Cost Data'!$C$3:$N$3&'Default Cost Data'!$C$4:$N$4,0)) -> 0 | F57: =INDEX('Default Cost Data'!$C40:$N40,MATCH($D$3&F$4&F$6,'Default Cost Data'!$C$2:$N$2&'Default Cost Data'!$C$3:$N$3&'Default Cost Data'!$C$4:$N$4,0)) -> 0 | G57: =INDEX('Default Cost Data'!$C40:$N40,MATCH($D$3&G$4&G$6,'Default Cost Data'!$C$2:$N$2&'Default Cost Data'!$C$3:$N$3&'Default Cost Data'!$C$4:$N$4,0)) -> 0 | H57: =INDEX('Default Cost Data'!$C40:$N40,MATCH($D$3&H$4&H$6,'Default Cost Data'!$C$2:$N$2&'Default Cost Data'!$C$3:$N$3&'Default Cost Data'!$C$4:$N$4,0)) -> 0 | I57: =INDEX('Default Cost Data'!$C40:$N40,MATCH($D$3&I$4&I$6,'Default Cost Data'!$C$2:$N$2&'Default Cost Data'!$C$3:$N$3&'Default Cost Data'!$C$4:$N$4,0)) -> 0 | J57: =INDEX('Default Cost Data'!$C40:$N40,MATCH($D$3&J$4&J$6,'Default Cost Data'!$C$2:$N$2&'Default Cost Data'!$C$3:$N$3&'Default Cost Data'!$C$4:$N$4,0)) -> 
C58: Lubricant | D58: $/bus | E58: =INDEX('Default Cost Data'!$C41:$N41,MATCH($D$3&E$4&E$6,'Default Cost Data'!$C$2:$N$2&'Default Cost Data'!$C$3:$N$3&'Default Cost Data'!$C$4:$N$4,0)) -> 0 | F58: =INDEX('Default Cost Data'!$C41:$N41,MATCH($D$3&F$4&F$6,'Default Cost Data'!$C$2:$N$2&'Default Cost Data'!$C$3:$N$3&'Default Cost Data'!$C$4:$N$4,0)) -> 0 | G58: =INDEX('Default Cost Data'!$C41:$N41,MATCH($D$3&G$4&G$6,'Default Cost Data'!$C$2:$N$2&'Default Cost Data'!$C$3:$N$3&'Default Cost Data'!$C$4:$N$4,0)) -> 0 | H58: =INDEX('Default Cost Data'!$C41:$N41,MATCH($D$3&H$4&H$6,'Default Cost Data'!$C$2:$N$2&'Default Cost Data'!$C$3:$N$3&'Default Cost Data'!$C$4:$N$4,0)) -> 0 | I58: =INDEX('Default Cost Data'!$C41:$N41,MATCH($D$3&I$4&I$6,'Default Cost Data'!$C$2:$N$2&'Default Cost Data'!$C$3:$N$3&'Default Cost Data'!$C$4:$N$4,0)) -> 0 | J58: =INDEX('Default Cost Data'!$C41:$N41,MATCH($D$3&J$4&J$6,'Default Cost Data'!$C$2:$N$2&'Default Cost Data'!$C$3:$N$3&'Default Cost Data'!$C$4:$N$4,0)) -> 
C59: Frequency | E59: =INDEX('Default Cost Data'!$C42:$N42,MATCH($D$3&E$4&E$6,'Default Cost Data'!$C$2:$N$2&'Default Cost Data'!$C$3:$N$3&'Default Cost Data'!$C$4:$N$4,0)) -> 0 | F59: =INDEX('Default Cost Data'!$C42:$N42,MATCH($D$3&F$4&F$6,'Default Cost Data'!$C$2:$N$2&'Default Cost Data'!$C$3:$N$3&'Default Cost Data'!$C$4:$N$4,0)) -> 0 | G59: =INDEX('Default Cost Data'!$C42:$N42,MATCH($D$3&G$4&G$6,'Default Cost Data'!$C$2:$N$2&'Default Cost Data'!$C$3:$N$3&'Default Cost Data'!$C$4:$N$4,0)) -> 0 | H59: =INDEX('Default Cost Data'!$C42:$N42,MATCH($D$3&H$4&H$6,'Default Cost Data'!$C$2:$N$2&'Default Cost Data'!$C$3:$N$3&'Default Cost Data'!$C$4:$N$4,0)) -> 0 | I59: =INDEX('Default Cost Data'!$C42:$N42,MATCH($D$3&I$4&I$6,'Default Cost Data'!$C$2:$N$2&'Default Cost Data'!$C$3:$N$3&'Default Cost Data'!$C$4:$N$4,0)) -> 0 | J59: =INDEX('Default Cost Data'!$C42:$N42,MATCH($D$3&J$4&J$6,'Default Cost Data'!$C$2:$N$2&'Default Cost Data'!$C$3:$N$3&'Default Cost Data'!$C$4:$N$4,0)) -> 
C60: Additional maintenance costs to include | D60: $/year/bus | E60: =INDEX('Default Cost Data'!$C43:$N43,MATCH($D$3&E$4&E$6,'Default Cost Data'!$C$2:$N$2&'Default Cost Data'!$C$3:$N$3&'Default Cost Data'!$C$4:$N$4,0)) -> 0 | F60: =INDEX('Default Cost Data'!$C43:$N43,MATCH($D$3&F$4&F$6,'Default Cost Data'!$C$2:$N$2&'Default Cost Data'!$C$3:$N$3&'Default Cost Data'!$C$4:$N$4,0)) -> 0 | G60: =INDEX('Default Cost Data'!$C43:$N43,MATCH($D$3&G$4&G$6,'Default Cost Data'!$C$2:$N$2&'Default Cost Data'!$C$3:$N$3&'Default Cost Data'!$C$4:$N$4,0)) -> 0 | H60: =INDEX('Default Cost Data'!$C43:$N43,MATCH($D$3&H$4&H$6,'Default Cost Data'!$C$2:$N$2&'Default Cost Data'!$C$3:$N$3&'Default Cost Data'!$C$4:$N$4,0)) -> 0 | I60: =INDEX('Default Cost Data'!$C43:$N43,MATCH($D$3&I$4&I$6,'Default Cost Data'!$C$2:$N$2&'Default Cost Data'!$C$3:$N$3&'Default Cost Data'!$C$4:$N$4,0)) -> 0 | J60: =INDEX('Default Cost Data'!$C43:$N43,MATCH($D$3&J$4&J$6,'Default Cost Data'!$C$2:$N$2&'Default Cost Data'!$C$3:$N$3&'Default Cost Data'!$C$4:$N$4,0)) -> 
C62: Overhaul or Retrofitting (optional)
D63: Units
C64: Engine overhaul | D64: $/bus ; years | E64: =INDEX('Default Cost Data'!$C47:$N47,MATCH($D$3&E$4&E$6,'Default Cost Data'!$C$2:$N$2&'Default Cost Data'!$C$3:$N$3&'Default Cost Data'!$C$4:$N$4,0)) -> 0 | F64: =INDEX('Default Cost Data'!$C47:$N47,MATCH($D$3&F$4&F$6,'Default Cost Data'!$C$2:$N$2&'Default Cost Data'!$C$3:$N$3&'Default Cost Data'!$C$4:$N$4,0)) -> 0 | G64: =INDEX('Default Cost Data'!$C47:$N47,MATCH($D$3&G$4&G$6,'Default Cost Data'!$C$2:$N$2&'Default Cost Data'!$C$3:$N$3&'Default Cost Data'!$C$4:$N$4,0)) -> 0 | H64: =INDEX('Default Cost Data'!$C47:$N47,MATCH($D$3&H$4&H$6,'Default Cost Data'!$C$2:$N$2&'Default Cost Data'!$C$3:$N$3&'Default Cost Data'!$C$4:$N$4,0)) -> 0 | I64: =INDEX('Default Cost Data'!$C47:$N47,MATCH($D$3&I$4&I$6,'Default Cost Data'!$C$2:$N$2&'Default Cost Data'!$C$3:$N$3&'Default Cost Data'!$C$4:$N$4,0)) -> 0 | J64: =INDEX('Default Cost Data'!$C47:$N47,MATCH($D$3&J$4&J$6,'Default Cost Data'!$C$2:$N$2&'Default Cost Data'!$C$3:$N$3&'Default Cost Data'!$C$4:$N$4,0)) -> 
C65: Frequency | E65: =INDEX('Default Cost Data'!$C48:$N48,MATCH($D$3&E$4&E$6,'Default Cost Data'!$C$2:$N$2&'Default Cost Data'!$C$3:$N$3&'Default Cost Data'!$C$4:$N$4,0)) -> 0 | F65: =INDEX('Default Cost Data'!$C48:$N48,MATCH($D$3&F$4&F$6,'Default Cost Data'!$C$2:$N$2&'Default Cost Data'!$C$3:$N$3&'Default Cost Data'!$C$4:$N$4,0)) -> 0 | G65: =INDEX('Default Cost Data'!$C48:$N48,MATCH($D$3&G$4&G$6,'Default Cost Data'!$C$2:$N$2&'Default Cost Data'!$C$3:$N$3&'Default Cost Data'!$C$4:$N$4,0)) -> 0 | H65: =INDEX('Default Cost Data'!$C48:$N48,MATCH($D$3&H$4&H$6,'Default Cost Data'!$C$2:$N$2&'Default Cost Data'!$C$3:$N$3&'Default Cost Data'!$C$4:$N$4,0)) -> 0 | I65: =INDEX('Default Cost Data'!$C48:$N48,MATCH($D$3&I$4&I$6,'Default Cost Data'!$C$2:$N$2&'Default Cost Data'!$C$3:$N$3&'Default Cost Data'!$C$4:$N$4,0)) -> 0 | J65: =INDEX('Default Cost Data'!$C48:$N48,MATCH($D$3&J$4&J$6,'Default Cost Data'!$C$2:$N$2&'Default Cost Data'!$C$3:$N$3&'Default Cost Data'!$C$4:$N$4,0)) -> 
C66: Transmission overhaul | D66: $/bus ; years | E66: =INDEX('Default Cost Data'!$C49:$N49,MATCH($D$3&E$4&E$6,'Default Cost Data'!$C$2:$N$2&'Default Cost Data'!$C$3:$N$3&'Default Cost Data'!$C$4:$N$4,0)) -> 0 | F66: =INDEX('Default Cost Data'!$C49:$N49,MATCH($D$3&F$4&F$6,'Default Cost Data'!$C$2:$N$2&'Default Cost Data'!$C$3:$N$3&'Default Cost Data'!$C$4:$N$4,0)) -> 0 | G66: =INDEX('Default Cost Data'!$C49:$N49,MATCH($D$3&G$4&G$6,'Default Cost Data'!$C$2:$N$2&'Default Cost Data'!$C$3:$N$3&'Default Cost Data'!$C$4:$N$4,0)) -> 0 | H66: =INDEX('Default Cost Data'!$C49:$N49,MATCH($D$3&H$4&H$6,'Default Cost Data'!$C$2:$N$2&'Default Cost Data'!$C$3:$N$3&'Default Cost Data'!$C$4:$N$4,0)) -> 0 | I66: =INDEX('Default Cost Data'!$C49:$N49,MATCH($D$3&I$4&I$6,'Default Cost Data'!$C$2:$N$2&'Default Cost Data'!$C$3:$N$3&'Default Cost Data'!$C$4:$N$4,0)) -> 0 | J66: =INDEX('Default Cost Data'!$C49:$N49,MATCH($D$3&J$4&J$6,'Default Cost Data'!$C$2:$N$2&'Default Cost Data'!$C$3:$N$3&'Default Cost Data'!$C$4:$N$4,0)) -> 
C67: Frequency | E67: =INDEX('Default Cost Data'!$C50:$N50,MATCH($D$3&E$4&E$6,'Default Cost Data'!$C$2:$N$2&'Default Cost Data'!$C$3:$N$3&'Default Cost Data'!$C$4:$N$4,0)) -> 0 | F67: =INDEX('Default Cost Data'!$C50:$N50,MATCH($D$3&F$4&F$6,'Default Cost Data'!$C$2:$N$2&'Default Cost Data'!$C$3:$N$3&'Default Cost Data'!$C$4:$N$4,0)) -> 0 | G67: =INDEX('Default Cost Data'!$C50:$N50,MATCH($D$3&G$4&G$6,'Default Cost Data'!$C$2:$N$2&'Default Cost Data'!$C$3:$N$3&'Default Cost Data'!$C$4:$N$4,0)) -> 0 | H67: =INDEX('Default Cost Data'!$C50:$N50,MATCH($D$3&H$4&H$6,'Default Cost Data'!$C$2:$N$2&'Default Cost Data'!$C$3:$N$3&'Default Cost Data'!$C$4:$N$4,0)) -> 0 | I67: =INDEX('Default Cost Data'!$C50:$N50,MATCH($D$3&I$4&I$6,'Default Cost Data'!$C$2:$N$2&'Default Cost Data'!$C$3:$N$3&'Default Cost Data'!$C$4:$N$4,0)) -> 0 | J67: =INDEX('Default Cost Data'!$C50:$N50,MATCH($D$3&J$4&J$6,'Default Cost Data'!$C$2:$N$2&'Default Cost Data'!$C$3:$N$3&'Default Cost Data'!$C$4:$N$4,0)) -> 
C68: CNG fuel system overhaul | D68: $/bus ; years | E68: =INDEX('Default Cost Data'!$C51:$N51,MATCH($D$3&E$4&E$6,'Default Cost Data'!$C$2:$N$2&'Default Cost Data'!$C$3:$N$3&'Default Cost Data'!$C$4:$N$4,0)) -> 0 | F68: =INDEX('Default Cost Data'!$C51:$N51,MATCH($D$3&F$4&F$6,'Default Cost Data'!$C$2:$N$2&'Default Cost Data'!$C$3:$N$3&'Default Cost Data'!$C$4:$N$4,0)) -> 0 | G68: =INDEX('Default Cost Data'!$C51:$N51,MATCH($D$3&G$4&G$6,'Default Cost Data'!$C$2:$N$2&'Default Cost Data'!$C$3:$N$3&'Default Cost Data'!$C$4:$N$4,0)) -> 0 | H68: =INDEX('Default Cost Data'!$C51:$N51,MATCH($D$3&H$4&H$6,'Default Cost Data'!$C$2:$N$2&'Default Cost Data'!$C$3:$N$3&'Default Cost Data'!$C$4:$N$4,0)) -> 0 | I68: =INDEX('Default Cost Data'!$C51:$N51,MATCH($D$3&I$4&I$6,'Default Cost Data'!$C$2:$N$2&'Default Cost Data'!$C$3:$N$3&'Default Cost Data'!$C$4:$N$4,0)) -> 0 | J68: =INDEX('Default Cost Data'!$C51:$N51,MATCH($D$3&J$4&J$6,'Default Cost Data'!$C$2:$N$2&'Default Cost Data'!$C$3:$N$3&'Default Cost Data'!$C$4:$N$4,0)) -> 
C69: Frequency | E69: =INDEX('Default Cost Data'!$C52:$N52,MATCH($D$3&E$4&E$6,'Default Cost Data'!$C$2:$N$2&'Default Cost Data'!$C$3:$N$3&'Default Cost Data'!$C$4:$N$4,0)) -> 0 | F69: =INDEX('Default Cost Data'!$C52:$N52,MATCH($D$3&F$4&F$6,'Default Cost Data'!$C$2:$N$2&'Default Cost Data'!$C$3:$N$3&'Default Cost Data'!$C$4:$N$4,0)) -> 0 | G69: =INDEX('Default Cost Data'!$C52:$N52,MATCH($D$3&G$4&G$6,'Default Cost Data'!$C$2:$N$2&'Default Cost Data'!$C$3:$N$3&'Default Cost Data'!$C$4:$N$4,0)) -> 0 | H69: =INDEX('Default Cost Data'!$C52:$N52,MATCH($D$3&H$4&H$6,'Default Cost Data'!$C$2:$N$2&'Default Cost Data'!$C$3:$N$3&'Default Cost Data'!$C$4:$N$4,0)) -> 0 | I69: =INDEX('Default Cost Data'!$C52:$N52,MATCH($D$3&I$4&I$6,'Default Cost Data'!$C$2:$N$2&'Default Cost Data'!$C$3:$N$3&'Default Cost Data'!$C$4:$N$4,0)) -> 0 | J69: =INDEX('Default Cost Data'!$C52:$N52,MATCH($D$3&J$4&J$6,'Default Cost Data'!$C$2:$N$2&'Default Cost Data'!$C$3:$N$3&'Default Cost Data'!$C$4:$N$4,0)) -> 
C70: Hybrid system overhaul | D70: $/bus ; years | E70: =INDEX('Default Cost Data'!$C53:$N53,MATCH($D$3&E$4&E$6,'Default Cost Data'!$C$2:$N$2&'Default Cost Data'!$C$3:$N$3&'Default Cost Data'!$C$4:$N$4,0)) -> 0 | F70: =INDEX('Default Cost Data'!$C53:$N53,MATCH($D$3&F$4&F$6,'Default Cost Data'!$C$2:$N$2&'Default Cost Data'!$C$3:$N$3&'Default Cost Data'!$C$4:$N$4,0)) -> 0 | G70: =INDEX('Default Cost Data'!$C53:$N53,MATCH($D$3&G$4&G$6,'Default Cost Data'!$C$2:$N$2&'Default Cost Data'!$C$3:$N$3&'Default Cost Data'!$C$4:$N$4,0)) -> 0 | H70: =INDEX('Default Cost Data'!$C53:$N53,MATCH($D$3&H$4&H$6,'Default Cost Data'!$C$2:$N$2&'Default Cost Data'!$C$3:$N$3&'Default Cost Data'!$C$4:$N$4,0)) -> 0 | I70: =INDEX('Default Cost Data'!$C53:$N53,MATCH($D$3&I$4&I$6,'Default Cost Data'!$C$2:$N$2&'Default Cost Data'!$C$3:$N$3&'Default Cost Data'!$C$4:$N$4,0)) -> 0 | J70: =INDEX('Default Cost Data'!$C53:$N53,MATCH($D$3&J$4&J$6,'Default Cost Data'!$C$2:$N$2&'Default Cost Data'!$C$3:$N$3&'Default Cost Data'!$C$4:$N$4,0)) -> 
C71: Frequency | E71: =INDEX('Default Cost Data'!$C54:$N54,MATCH($D$3&E$4&E$6,'Default Cost Data'!$C$2:$N$2&'Default Cost Data'!$C$3:$N$3&'Default Cost Data'!$C$4:$N$4,0)) -> 0 | F71: =INDEX('Default Cost Data'!$C54:$N54,MATCH($D$3&F$4&F$6,'Default Cost Data'!$C$2:$N$2&'Default Cost Data'!$C$3:$N$3&'Default Cost Data'!$C$4:$N$4,0)) -> 0 | G71: =INDEX('Default Cost Data'!$C54:$N54,MATCH($D$3&G$4&G$6,'Default Cost Data'!$C$2:$N$2&'Default Cost Data'!$C$3:$N$3&'Default Cost Data'!$C$4:$N$4,0)) -> 0 | H71: =INDEX('Default Cost Data'!$C54:$N54,MATCH($D$3&H$4&H$6,'Default Cost Data'!$C$2:$N$2&'Default Cost Data'!$C$3:$N$3&'Default Cost Data'!$C$4:$N$4,0)) -> 0 | I71: =INDEX('Default Cost Data'!$C54:$N54,MATCH($D$3&I$4&I$6,'Default Cost Data'!$C$2:$N$2&'Default Cost Data'!$C$3:$N$3&'Default Cost Data'!$C$4:$N$4,0)) -> 0 | J71: =INDEX('Default Cost Data'!$C54:$N54,MATCH($D$3&J$4&J$6,'Default Cost Data'!$C$2:$N$2&'Default Cost Data'!$C$3:$N$3&'Default Cost Data'!$C$4:$N$4,0)) -> 
C72: Battery replacement | D72: $/bus ; years | E72: =INDEX('Default Cost Data'!$C55:$N55,MATCH($D$3&E$4&E$6,'Default Cost Data'!$C$2:$N$2&'Default Cost Data'!$C$3:$N$3&'Default Cost Data'!$C$4:$N$4,0)) -> 0 | F72: =INDEX('Default Cost Data'!$C55:$N55,MATCH($D$3&F$4&F$6,'Default Cost Data'!$C$2:$N$2&'Default Cost Data'!$C$3:$N$3&'Default Cost Data'!$C$4:$N$4,0)) -> 0 | G72: =INDEX('Default Cost Data'!$C55:$N55,MATCH($D$3&G$4&G$6,'Default Cost Data'!$C$2:$N$2&'Default Cost Data'!$C$3:$N$3&'Default Cost Data'!$C$4:$N$4,0)) -> 0 | H72: =INDEX('Default Cost Data'!$C55:$N55,MATCH($D$3&H$4&H$6,'Default Cost Data'!$C$2:$N$2&'Default Cost Data'!$C$3:$N$3&'Default Cost Data'!$C$4:$N$4,0)) -> 0 | I72: =INDEX('Default Cost Data'!$C55:$N55,MATCH($D$3&I$4&I$6,'Default Cost Data'!$C$2:$N$2&'Default Cost Data'!$C$3:$N$3&'Default Cost Data'!$C$4:$N$4,0)) -> 0 | J72: =INDEX('Default Cost Data'!$C55:$N55,MATCH($D$3&J$4&J$6,'Default Cost Data'!$C$2:$N$2&'Default Cost Data'!$C$3:$N$3&'Default Cost Data'!$C$4:$N$4,0)) -> 
C73: Frequency | E73: =INDEX('Default Cost Data'!$C56:$N56,MATCH($D$3&E$4&E$6,'Default Cost Data'!$C$2:$N$2&'Default Cost Data'!$C$3:$N$3&'Default Cost Data'!$C$4:$N$4,0)) -> 0 | F73: =INDEX('Default Cost Data'!$C56:$N56,MATCH($D$3&F$4&F$6,'Default Cost Data'!$C$2:$N$2&'Default Cost Data'!$C$3:$N$3&'Default Cost Data'!$C$4:$N$4,0)) -> 0 | G73: =INDEX('Default Cost Data'!$C56:$N56,MATCH($D$3&G$4&G$6,'Default Cost Data'!$C$2:$N$2&'Default Cost Data'!$C$3:$N$3&'Default Cost Data'!$C$4:$N$4,0)) -> 0 | H73: =INDEX('Default Cost Data'!$C56:$N56,MATCH($D$3&H$4&H$6,'Default Cost Data'!$C$2:$N$2&'Default Cost Data'!$C$3:$N$3&'Default Cost Data'!$C$4:$N$4,0)) -> 0 | I73: =INDEX('Default Cost Data'!$C56:$N56,MATCH($D$3&I$4&I$6,'Default Cost Data'!$C$2:$N$2&'Default Cost Data'!$C$3:$N$3&'Default Cost Data'!$C$4:$N$4,0)) -> 0 | J73: =INDEX('Default Cost Data'!$C56:$N56,MATCH($D$3&J$4&J$6,'Default Cost Data'!$C$2:$N$2&'Default Cost Data'!$C$3:$N$3&'Default Cost Data'!$C$4:$N$4,0)) -> 
C74: Vehicle retrofits | D74: $/bus ; years | E74: =INDEX('Default Cost Data'!$C57:$N57,MATCH($D$3&E$4&E$6,'Default Cost Data'!$C$2:$N$2&'Default Cost Data'!$C$3:$N$3&'Default Cost Data'!$C$4:$N$4,0)) -> 0 | F74: =INDEX('Default Cost Data'!$C57:$N57,MATCH($D$3&F$4&F$6,'Default Cost Data'!$C$2:$N$2&'Default Cost Data'!$C$3:$N$3&'Default Cost Data'!$C$4:$N$4,0)) -> 0 | G74: =INDEX('Default Cost Data'!$C57:$N57,MATCH($D$3&G$4&G$6,'Default Cost Data'!$C$2:$N$2&'Default Cost Data'!$C$3:$N$3&'Default Cost Data'!$C$4:$N$4,0)) -> 0 | H74: =INDEX('Default Cost Data'!$C57:$N57,MATCH($D$3&H$4&H$6,'Default Cost Data'!$C$2:$N$2&'Default Cost Data'!$C$3:$N$3&'Default Cost Data'!$C$4:$N$4,0)) -> 0 | I74: =INDEX('Default Cost Data'!$C57:$N57,MATCH($D$3&I$4&I$6,'Default Cost Data'!$C$2:$N$2&'Default Cost Data'!$C$3:$N$3&'Default Cost Data'!$C$4:$N$4,0)) -> 0 | J74: =INDEX('Default Cost Data'!$C57:$N57,MATCH($D$3&J$4&J$6,'Default Cost Data'!$C$2:$N$2&'Default Cost Data'!$C$3:$N$3&'Default Cost Data'!$C$4:$N$4,0)) -> 
C75: Frequency | E75: =INDEX('Default Cost Data'!$C58:$N58,MATCH($D$3&E$4&E$6,'Default Cost Data'!$C$2:$N$2&'Default Cost Data'!$C$3:$N$3&'Default Cost Data'!$C$4:$N$4,0)) -> 0 | F75: =INDEX('Default Cost Data'!$C58:$N58,MATCH($D$3&F$4&F$6,'Default Cost Data'!$C$2:$N$2&'Default Cost Data'!$C$3:$N$3&'Default Cost Data'!$C$4:$N$4,0)) -> 0 | G75: =INDEX('Default Cost Data'!$C58:$N58,MATCH($D$3&G$4&G$6,'Default Cost Data'!$C$2:$N$2&'Default Cost Data'!$C$3:$N$3&'Default Cost Data'!$C$4:$N$4,0)) -> 0 | H75: =INDEX('Default Cost Data'!$C58:$N58,MATCH($D$3&H$4&H$6,'Default Cost Data'!$C$2:$N$2&'Default Cost Data'!$C$3:$N$3&'Default Cost Data'!$C$4:$N$4,0)) -> 0 | I75: =INDEX('Default Cost Data'!$C58:$N58,MATCH($D$3&I$4&I$6,'Default Cost Data'!$C$2:$N$2&'Default Cost Data'!$C$3:$N$3&'Default Cost Data'!$C$4:$N$4,0)) -> 0 | J75: =INDEX('Default Cost Data'!$C58:$N58,MATCH($D$3&J$4&J$6,'Default Cost Data'!$C$2:$N$2&'Default Cost Data'!$C$3:$N$3&'Default Cost Data'!$C$4:$N$4,0)) -> 
C77: Infrastructure (optional)
D78: Units
C79: Depot/Fuel Station Construction | D79: $ ; bus quantity | E79: =INDEX('Default Cost Data'!$C62:$N62,MATCH($D$3&E$4&E$6,'Default Cost Data'!$C$2:$N$2&'Default Cost Data'!$C$3:$N$3&'Default Cost Data'!$C$4:$N$4,0)) -> 0 | F79: =INDEX('Default Cost Data'!$C62:$N62,MATCH($D$3&F$4&F$6,'Default Cost Data'!$C$2:$N$2&'Default Cost Data'!$C$3:$N$3&'Default Cost Data'!$C$4:$N$4,0)) -> 0 | G79: =INDEX('Default Cost Data'!$C62:$N62,MATCH($D$3&G$4&G$6,'Default Cost Data'!$C$2:$N$2&'Default Cost Data'!$C$3:$N$3&'Default Cost Data'!$C$4:$N$4,0)) -> 0 | H79: =INDEX('Default Cost Data'!$C62:$N62,MATCH($D$3&H$4&H$6,'Default Cost Data'!$C$2:$N$2&'Default Cost Data'!$C$3:$N$3&'Default Cost Data'!$C$4:$N$4,0)) -> 0 | I79: =INDEX('Default Cost Data'!$C62:$N62,MATCH($D$3&I$4&I$6,'Default Cost Data'!$C$2:$N$2&'Default Cost Data'!$C$3:$N$3&'Default Cost Data'!$C$4:$N$4,0)) -> 0 | J79: =INDEX('Default Cost Data'!$C62:$N62,MATCH($D$3&J$4&J$6,'Default Cost Data'!$C$2:$N$2&'Default Cost Data'!$C$3:$N$3&'Default Cost Data'!$C$4:$N$4,0)) -> 
C80: Depot/Fuel Station Construction Quantity | E80: =INDEX('Default Cost Data'!$C63:$N63,MATCH($D$3&E$4&E$6,'Default Cost Data'!$C$2:$N$2&'Default Cost Data'!$C$3:$N$3&'Default Cost Data'!$C$4:$N$4,0)) -> 0 | F80: =INDEX('Default Cost Data'!$C63:$N63,MATCH($D$3&F$4&F$6,'Default Cost Data'!$C$2:$N$2&'Default Cost Data'!$C$3:$N$3&'Default Cost Data'!$C$4:$N$4,0)) -> 0 | G80: =INDEX('Default Cost Data'!$C63:$N63,MATCH($D$3&G$4&G$6,'Default Cost Data'!$C$2:$N$2&'Default Cost Data'!$C$3:$N$3&'Default Cost Data'!$C$4:$N$4,0)) -> 0 | H80: =INDEX('Default Cost Data'!$C63:$N63,MATCH($D$3&H$4&H$6,'Default Cost Data'!$C$2:$N$2&'Default Cost Data'!$C$3:$N$3&'Default Cost Data'!$C$4:$N$4,0)) -> 0 | I80: =INDEX('Default Cost Data'!$C63:$N63,MATCH($D$3&I$4&I$6,'Default Cost Data'!$C$2:$N$2&'Default Cost Data'!$C$3:$N$3&'Default Cost Data'!$C$4:$N$4,0)) -> 0 | J80: =INDEX('Default Cost Data'!$C63:$N63,MATCH($D$3&J$4&J$6,'Default Cost Data'!$C$2:$N$2&'Default Cost Data'!$C$3:$N$3&'Default Cost Data'!$C$4:$N$4,0)) -> 
D81: INCLUDES: | E81: =INDEX('Default Cost Data'!$C64:$N64,MATCH($D$3&E$4&E$6,'Default Cost Data'!$C$2:$N$2&'Default Cost Data'!$C$3:$N$3&'Default Cost Data'!$C$4:$N$4,0)) -> 0 | F81: =INDEX('Default Cost Data'!$C64:$N64,MATCH($D$3&F$4&F$6,'Default Cost Data'!$C$2:$N$2&'Default Cost Data'!$C$3:$N$3&'Default Cost Data'!$C$4:$N$4,0)) -> 0 | G81: =INDEX('Default Cost Data'!$C64:$N64,MATCH($D$3&G$4&G$6,'Default Cost Data'!$C$2:$N$2&'Default Cost Data'!$C$3:$N$3&'Default Cost Data'!$C$4:$N$4,0)) -> 0 | H81: =INDEX('Default Cost Data'!$C64:$N64,MATCH($D$3&H$4&H$6,'Default Cost Data'!$C$2:$N$2&'Default Cost Data'!$C$3:$N$3&'Default Cost Data'!$C$4:$N$4,0)) -> 0 | I81: =INDEX('Default Cost Data'!$C64:$N64,MATCH($D$3&I$4&I$6,'Default Cost Data'!$C$2:$N$2&'Default Cost Data'!$C$3:$N$3&'Default Cost Data'!$C$4:$N$4,0)) -> 0 | J81: =INDEX('Default Cost Data'!$C64:$N64,MATCH($D$3&J$4&J$6,'Default Cost Data'!$C$2:$N$2&'Default Cost Data'!$C$3:$N$3&'Default Cost Data'!$C$4:$N$4,0)) -> 
C82: Depot/Fuel Station Retrofit | D82: $ ; bus quantity | E82: =INDEX('Default Cost Data'!$C65:$N65,MATCH($D$3&E$4&E$6,'Default Cost Data'!$C$2:$N$2&'Default Cost Data'!$C$3:$N$3&'Default Cost Data'!$C$4:$N$4,0)) -> 0 | F82: =INDEX('Default Cost Data'!$C65:$N65,MATCH($D$3&F$4&F$6,'Default Cost Data'!$C$2:$N$2&'Default Cost Data'!$C$3:$N$3&'Default Cost Data'!$C$4:$N$4,0)) -> 0 | G82: =INDEX('Default Cost Data'!$C65:$N65,MATCH($D$3&G$4&G$6,'Default Cost Data'!$C$2:$N$2&'Default Cost Data'!$C$3:$N$3&'Default Cost Data'!$C$4:$N$4,0)) -> 0 | H82: =INDEX('Default Cost Data'!$C65:$N65,MATCH($D$3&H$4&H$6,'Default Cost Data'!$C$2:$N$2&'Default Cost Data'!$C$3:$N$3&'Default Cost Data'!$C$4:$N$4,0)) -> 0 | I82: =INDEX('Default Cost Data'!$C65:$N65,MATCH($D$3&I$4&I$6,'Default Cost Data'!$C$2:$N$2&'Default Cost Data'!$C$3:$N$3&'Default Cost Data'!$C$4:$N$4,0)) -> 0 | J82: =INDEX('Default Cost Data'!$C65:$N65,MATCH($D$3&J$4&J$6,'Default Cost Data'!$C$2:$N$2&'Default Cost Data'!$C$3:$N$3&'Default Cost Data'!$C$4:$N$4,0)) -> 
C83: Depot/Fuel Station Retrofit Quantity | E83: =INDEX('Default Cost Data'!$C66:$N66,MATCH($D$3&E$4&E$6,'Default Cost Data'!$C$2:$N$2&'Default Cost Data'!$C$3:$N$3&'Default Cost Data'!$C$4:$N$4,0)) -> 0 | F83: =INDEX('Default Cost Data'!$C66:$N66,MATCH($D$3&F$4&F$6,'Default Cost Data'!$C$2:$N$2&'Default Cost Data'!$C$3:$N$3&'Default Cost Data'!$C$4:$N$4,0)) -> 0 | G83: =INDEX('Default Cost Data'!$C66:$N66,MATCH($D$3&G$4&G$6,'Default Cost Data'!$C$2:$N$2&'Default Cost Data'!$C$3:$N$3&'Default Cost Data'!$C$4:$N$4,0)) -> 0 | H83: =INDEX('Default Cost Data'!$C66:$N66,MATCH($D$3&H$4&H$6,'Default Cost Data'!$C$2:$N$2&'Default Cost Data'!$C$3:$N$3&'Default Cost Data'!$C$4:$N$4,0)) -> 0 | I83: =INDEX('Default Cost Data'!$C66:$N66,MATCH($D$3&I$4&I$6,'Default Cost Data'!$C$2:$N$2&'Default Cost Data'!$C$3:$N$3&'Default Cost Data'!$C$4:$N$4,0)) -> 0 | J83: =INDEX('Default Cost Data'!$C66:$N66,MATCH($D$3&J$4&J$6,'Default Cost Data'!$C$2:$N$2&'Default Cost Data'!$C$3:$N$3&'Default Cost Data'!$C$4:$N$4,0)) -> 
D84: INCLUDES: | E84: =INDEX('Default Cost Data'!$C67:$N67,MATCH($D$3&E$4&E$6,'Default Cost Data'!$C$2:$N$2&'Default Cost Data'!$C$3:$N$3&'Default Cost Data'!$C$4:$N$4,0)) -> 0 | F84: =INDEX('Default Cost Data'!$C67:$N67,MATCH($D$3&F$4&F$6,'Default Cost Data'!$C$2:$N$2&'Default Cost Data'!$C$3:$N$3&'Default Cost Data'!$C$4:$N$4,0)) -> 0 | G84: =INDEX('Default Cost Data'!$C67:$N67,MATCH($D$3&G$4&G$6,'Default Cost Data'!$C$2:$N$2&'Default Cost Data'!$C$3:$N$3&'Default Cost Data'!$C$4:$N$4,0)) -> 0 | H84: =INDEX('Default Cost Data'!$C67:$N67,MATCH($D$3&H$4&H$6,'Default Cost Data'!$C$2:$N$2&'Default Cost Data'!$C$3:$N$3&'Default Cost Data'!$C$4:$N$4,0)) -> 0 | I84: =INDEX('Default Cost Data'!$C67:$N67,MATCH($D$3&I$4&I$6,'Default Cost Data'!$C$2:$N$2&'Default Cost Data'!$C$3:$N$3&'Default Cost Data'!$C$4:$N$4,0)) -> 0 | J84: =INDEX('Default Cost Data'!$C67:$N67,MATCH($D$3&J$4&J$6,'Default Cost Data'!$C$2:$N$2&'Default Cost Data'!$C$3:$N$3&'Default Cost Data'!$C$4:$N$4,0)) -> 
C85: Special Tools | D85: $ ; bus quantity | E85: =INDEX('Default Cost Data'!$C68:$N68,MATCH($D$3&E$4&E$6,'Default Cost Data'!$C$2:$N$2&'Default Cost Data'!$C$3:$N$3&'Default Cost Data'!$C$4:$N$4,0)) -> 0 | F85: =INDEX('Default Cost Data'!$C68:$N68,MATCH($D$3&F$4&F$6,'Default Cost Data'!$C$2:$N$2&'Default Cost Data'!$C$3:$N$3&'Default Cost Data'!$C$4:$N$4,0)) -> 0 | G85: =INDEX('Default Cost Data'!$C68:$N68,MATCH($D$3&G$4&G$6,'Default Cost Data'!$C$2:$N$2&'Default Cost Data'!$C$3:$N$3&'Default Cost Data'!$C$4:$N$4,0)) -> 0 | H85: =INDEX('Default Cost Data'!$C68:$N68,MATCH($D$3&H$4&H$6,'Default Cost Data'!$C$2:$N$2&'Default Cost Data'!$C$3:$N$3&'Default Cost Data'!$C$4:$N$4,0)) -> 0 | I85: =INDEX('Default Cost Data'!$C68:$N68,MATCH($D$3&I$4&I$6,'Default Cost Data'!$C$2:$N$2&'Default Cost Data'!$C$3:$N$3&'Default Cost Data'!$C$4:$N$4,0)) -> 0 | J85: =INDEX('Default Cost Data'!$C68:$N68,MATCH($D$3&J$4&J$6,'Default Cost Data'!$C$2:$N$2&'Default Cost Data'!$C$3:$N$3&'Default Cost Data'!$C$4:$N$4,0)) -> 
C86: Special Tools Quantity | E86: =INDEX('Default Cost Data'!$C69:$N69,MATCH($D$3&E$4&E$6,'Default Cost Data'!$C$2:$N$2&'Default Cost Data'!$C$3:$N$3&'Default Cost Data'!$C$4:$N$4,0)) -> 0 | F86: =INDEX('Default Cost Data'!$C69:$N69,MATCH($D$3&F$4&F$6,'Default Cost Data'!$C$2:$N$2&'Default Cost Data'!$C$3:$N$3&'Default Cost Data'!$C$4:$N$4,0)) -> 0 | G86: =INDEX('Default Cost Data'!$C69:$N69,MATCH($D$3&G$4&G$6,'Default Cost Data'!$C$2:$N$2&'Default Cost Data'!$C$3:$N$3&'Default Cost Data'!$C$4:$N$4,0)) -> 0 | H86: =INDEX('Default Cost Data'!$C69:$N69,MATCH($D$3&H$4&H$6,'Default Cost Data'!$C$2:$N$2&'Default Cost Data'!$C$3:$N$3&'Default Cost Data'!$C$4:$N$4,0)) -> 0 | I86: =INDEX('Default Cost Data'!$C69:$N69,MATCH($D$3&I$4&I$6,'Default Cost Data'!$C$2:$N$2&'Default Cost Data'!$C$3:$N$3&'Default Cost Data'!$C$4:$N$4,0)) -> 0 | J86: =INDEX('Default Cost Data'!$C69:$N69,MATCH($D$3&J$4&J$6,'Default Cost Data'!$C$2:$N$2&'Default Cost Data'!$C$3:$N$3&'Default Cost Data'!$C$4:$N$4,0)) -> 
D87: INCLUDES: | E87: =INDEX('Default Cost Data'!$C70:$N70,MATCH($D$3&E$4&E$6,'Default Cost Data'!$C$2:$N$2&'Default Cost Data'!$C$3:$N$3&'Default Cost Data'!$C$4:$N$4,0)) -> 0 | F87: =INDEX('Default Cost Data'!$C70:$N70,MATCH($D$3&F$4&F$6,'Default Cost Data'!$C$2:$N$2&'Default Cost Data'!$C$3:$N$3&'Default Cost Data'!$C$4:$N$4,0)) -> 0 | G87: =INDEX('Default Cost Data'!$C70:$N70,MATCH($D$3&G$4&G$6,'Default Cost Data'!$C$2:$N$2&'Default Cost Data'!$C$3:$N$3&'Default Cost Data'!$C$4:$N$4,0)) -> 0 | H87: =INDEX('Default Cost Data'!$C70:$N70,MATCH($D$3&H$4&H$6,'Default Cost Data'!$C$2:$N$2&'Default Cost Data'!$C$3:$N$3&'Default Cost Data'!$C$4:$N$4,0)) -> 0 | I87: =INDEX('Default Cost Data'!$C70:$N70,MATCH($D$3&I$4&I$6,'Default Cost Data'!$C$2:$N$2&'Default Cost Data'!$C$3:$N$3&'Default Cost Data'!$C$4:$N$4,0)) -> 0 | J87: =INDEX('Default Cost Data'!$C70:$N70,MATCH($D$3&J$4&J$6,'Default Cost Data'!$C$2:$N$2&'Default Cost Data'!$C$3:$N$3&'Default Cost Data'!$C$4:$N$4,0)) -> 
D108: US | E108: 12m
D109: Brazil | E109: 18m
D110: Mexico
D111: India
E112: Biodiesel 100% | F112: Exhaust Gas Recirculation (EGR)
E113: Biodiesel 20% | F113: Oxidation Catalyst (OC)
E114: Diesel (150 ppm +) | F114: Euro II
E115: Diesel-Electric hybrid (15 ppm) | F115: Euro III
E116: Diesel-Electric hybrid (50 ppm) | F116: EPA 2007
E117: Ethanol | F117: Euro V-VI
E118: Low Sulfur Diesel (50 ppm) | F118: Diesel Particulate Filter (DPF)
E119: Natural Gas | F119: Three-Way Catalyst (3WC)
E120: Ultra Low Sulfur Diesel (15 ppm) | F120: Euro III
E121: Electric | F121: Electric
E122: Ultra Low Sulfur Diesel (10 ppm) | F122: Euro V
E123: Diesel-Electric hybrid (10 ppm)

Sheet Fleet Inputs
C1: Direction: Users can create two fleets with three different fuel types, by inputting the number of buses, the vehicle kilometers traveled (VKT), and the discount rate.
E2: Fleet 1 | H2: Fleet 2
C3: Country | D3: ='Fuel Selection-2'!D3 -> Brazil | E3: Bus Type 1 | F3: Bus Type 2 | G3: Bus Type 3 | H3: Bus Type 4 | I3: Bus Type 5 | J3: Bus Type 6
E4: Option 1 | F4: Option 2 | G4: Option 5 | H4: Option 1 | I4: Option 3 | J4: Option 2 | K4: (Select different bus options here)
D5: Fuel Selection | E5: =INDEX('Fuel Selection'!$E$4:$J$4,(MATCH('Fleet Inputs'!E4,'Fuel Selection'!$E$3:$J$3,0))) -> Electric | F5: =INDEX('Fuel Selection'!$E$4:$J$4,(MATCH('Fleet Inputs'!F4,'Fuel Selection'!$E$3:$J$3,0))) -> Ultra Low Sulfur Diesel (10 ppm) | G5: =INDEX('Fuel Selection'!$E$4:$J$4,(MATCH('Fleet Inputs'!G4,'Fuel Selection'!$E$3:$J$3,0))) -> Ultra Low Sulfur Diesel (10 ppm) | H5: =INDEX('Fuel Selection'!$E$4:$J$4,(MATCH('Fleet Inputs'!H4,'Fuel Selection'!$E$3:$J$3,0))) -> Electric | I5: =INDEX('Fuel Selection'!$E$4:$J$4,(MATCH('Fleet Inputs'!I4,'Fuel Selection'!$E$3:$J$3,0))) -> Diesel-Electric Hybrid (10 ppm) | J5: =INDEX('Fuel Selection'!$E$4:$J$4,(MATCH('Fleet Inputs'!J4,'Fuel Selection'!$E$3:$J$3,0))) -> Ultra Low Sulfur Diesel (10 ppm) | K5: (If the user wants to "save" the selected fleet options, please create a new tab, and copy/paste the options.)
D6: Technology | E6: =INDEX('Fuel Selection'!$E$5:$J$5,(MATCH('Fleet Inputs'!E4,'Fuel Selection'!$E$3:$J$3,0))) -> Electric | F6: =INDEX('Fuel Selection'!$E$5:$J$5,(MATCH('Fleet Inputs'!F4,'Fuel Selection'!$E$3:$J$3,0))) -> Euro III | G6: =INDEX('Fuel Selection'!$E$5:$J$5,(MATCH('Fleet Inputs'!G4,'Fuel Selection'!$E$3:$J$3,0))) -> Euro V | H6: =INDEX('Fuel Selection'!$E$5:$J$5,(MATCH('Fleet Inputs'!H4,'Fuel Selection'!$E$3:$J$3,0))) -> Electric | I6: =INDEX('Fuel Selection'!$E$5:$J$5,(MATCH('Fleet Inputs'!I4,'Fuel Selection'!$E$3:$J$3,0))) -> Euro V | J6: =INDEX('Fuel Selection'!$E$5:$J$5,(MATCH('Fleet Inputs'!J4,'Fuel Selection'!$E$3:$J$3,0))) -> Euro III
D7: Bus size | E7: =INDEX('Fuel Selection'!$E$6:$J$6,(MATCH('Fleet Inputs'!E4,'Fuel Selection'!$E$3:$J$3,0))) -> 12m | F7: =INDEX('Fuel Selection'!$E$6:$J$6,(MATCH('Fleet Inputs'!F4,'Fuel Selection'!$E$3:$J$3,0))) -> 12m | G7: =INDEX('Fuel Selection'!$E$6:$J$6,(MATCH('Fleet Inputs'!G4,'Fuel Selection'!$E$3:$J$3,0))) -> 12m | H7: =INDEX('Fuel Selection'!$E$6:$J$6,(MATCH('Fleet Inputs'!H4,'Fuel Selection'!$E$3:$J$3,0))) -> 12m | I7: =INDEX('Fuel Selection'!$E$6:$J$6,(MATCH('Fleet Inputs'!I4,'Fuel Selection'!$E$3:$J$3,0))) -> 12m | J7: =INDEX('Fuel Selection'!$E$6:$J$6,(MATCH('Fleet Inputs'!J4,'Fuel Selection'!$E$3:$J$3,0))) -> 12m
C8: Bus Operations
D9: Units
C10: Number of buses | E10: 2000 | F10: 100 | G10: 100 | H10: 1500 | I10: 100 | J10: 300
C11: Annual (individual) bus distance traveled | D11: km/year/bus | E11: 50000 | F11: 30000 | G11: 58512 | H11: 50000 | I11: 30000 | J11: 58512
C12: Discount rate | D12: % | E12: 0.1 | F12: 0.1 | G12: 0.1 | H12: 0.1 | I12: 0.1 | J12: 0.1
C14: Emissions Factors | K14: (Uncheck and recheck box to refresh results)
D15: Units
C16: Carbon dioxide (CO2) | D16: g/L | E16: 0 | F16: 2603 | G16: 2603 | H16: 0 | I16: 2352 | J16: 2603
C17: Total hydrocarbons (THC) | D17: g/km | E17: 0 | F17: 0 | G17: 0 | H17: 0 | I17: 0 | J17: 0
C18: Non-methane hydrocarbons (NMHC) | D18: g/km | E18: 0 | F18: 0.326 | G18: 0.033 | H18: 0 | I18: 0.46 | J18: 0.326
C19: Methane (CH4) | D19: g/km | E19: 0 | F19: 0.06 | G19: 0.06 | H19: 0 | I19: 0.06 | J19: 0.06
C20: Nitrogen oxide (NOx) | D20: g/km | E20: 0 | F20: 8.515 | G20: 2.103 | H20: 0 | I20: 1.703 | J20: 8.515
C21: Nitrous oxide (N2O) | D21: g/km | E21: 0 | F21: 0.03 | G21: 0.03 | H21: 0 | I21: 0.03 | J21: 0.03
C22: Nitric oxide (NO) | D22: g/km | E22: 0 | F22: 0 | G22: 0 | H22: 0 | I22: 0 | J22: 0
C23: Particulate matter (PM) | D23: g/km | E23: 0 | F23: 0.154 | G23: 0.02 | H23: 0 | I23: 0.01694 | J23: 0.154
C24: Carbon monoxide (CO) | D24: g/km | E24: 0 | F24: 1.487 | G24: 0.44 | H24: 0 | I24: 1.552 | J24: 1.487
C25: Greenhouse gases (GHG/CO2e) | D25: g/km | E25: 0 | F25: 0 | G25: 0 | H25: 0 | I25: 0 | J25: 0
A26: Note for "Upstream GHG/CO2e": The tool allows users to account for upstream emissions of different technologies, if data are provided by the user. Working out any upstream emissions to be input in the assessment is a complex exercise. For the moment, the Tool provides one example of an upstream emissions number related to the Brazilian electric grid intensity and is used for electric technology. This number still does not allow for a life cycle assessment, which requires information about various other emissions (from vehicle production, disposal, etc.). | C26: Upstream GHG/CO2e | D26: g/km | E26: 179 | F26: 0 | G26: 0 | H26: 179 | I26: 0 | J26: 0
C27: Total GHG/CO2e | D27: g/km | E27: 179 | F27: 0 | G27: 0 | H27: 179 | I27: 0 | J27: 0
C29: Fleet-Specific Data
D30: Units
C31: Useful life of bus | D31: years | E31: 15 | F31: 10 | G31: 10 | H31: 15 | I31: 12 | J31: 10
C32: Final purchase price for a single bus | D32: $/bus | E32: 537500 | F32: 215000 | G32: 215000 | H32: 537500 | I32: 322500 | J32: 215000
C33: Residual value | D33: % of final purchase price | E33: 0.05 | F33: 0.1 | G33: 0.1 | H33: 0.05 | I33: 0.1 | J33: 0.1
C34: Down payment | D34: % of total cost | E34: 0.2 | F34: 0.2 | G34: 0.2 | H34: 0.2 | I34: 0.2 | J34: 0.2
C35: Loan interest rate | D35: % | E35: 0.094 | F35: 0.099 | G35: 0.099 | H35: 0.094 | I35: 0.099 | J35: 0.099
C36: Loan lifetime | D36: years | E36: 14 | F36: 9 | G36: 9 | H36: 14 | I36: 9 | J36: 9
C38: Annual Operations Data
D39: Units
C40: Total cost of driver and on-board labor | D40: $/year/bus | E40: 0 | F40: 0 | G40: 0 | H40: 0 | I40: 0 | J40: 0
C41: Energy Use | D41: kwh/km | E41: 1.3 | F41: 0 | G41: 0 | H41: 1.3 | I41: 0 | J41: 0
C42: Energy Cost | D42: $/kwh | E42: 0.22 | F42: 0 | G42: 0 | H42: 0.22 | I42: 0 | J42: 0
C43: Fuel consumption | D43: L/100 km | E43: 0 | F43: 45 | G43: 45 | H43: 0 | I43: 41.5 | J43: 45
C44: Fuel cost | D44: $/L | E44: 0 | F44: 1.43 | G44: 1.43 | H44: 0 | I44: 1.43 | J44: 1.43
C45: Fuel cost projection | D45: %/year | E45: 0 | F45: 0 | G45: 0 | H45: 0 | I45: 0 | J45: 0
C46: Fuel additive | D46: $/L | E46: 0 | F46: 0 | G46: 0 | H46: 0 | I46: 0 | J46: 0
C47: Fuel station operation costs | D47: $/year/bus | E47: 0 | F47: 0 | G47: 0 | H47: 0 | I47: 0 | J47: 0
C48: Insurance | D48: $/year/bus | E48: 0 | F48: 0 | G48: 0 | H48: 0 | I48: 0 | J48: 0
C49: Additional operational costs to include | D49: $/year/bus | E49: 0 | F49: 0 | G49: 0 | H49: 0 | I49: 0 | J49: 0
C51: Maintenance Data
D52: Units
C53: Fixed annual maintenance cost | D53: $/year/bus | E53: 7310 | F53: 12900 | G53: 12900 | H53: 7310 | I53: 19350 | J53: 12900
A54: Note for "Fixed Annual Maintenance Cost": This can be a lump-sum value of all maintenance subcomponents; i.e., if you are using the individual components below, you do NOT need to enter this annual sum, but only those incurred annually but not included below. | C54: Total cost of maintenance labor | D54: $/year/bus | E54: 0 | F54: 0 | G54: 0 | H54: 0 | I54: 0 | J54: 0
C55: Brake reline | D55: $/bus | E55: 0 | F55: 0 | G55: 0 | H55: 0 | I55: 0 | J55: 0
C56: Frequency | D56: years | E56: 0 | F56: 0 | G56: 0 | H56: 0 | I56: 0 | J56: 0
C57: Tires | D57: $/bus | E57: 0 | F57: 0 | G57: 0 | H57: 0 | I57: 0 | J57: 0
C58: Frequency | D58: years | E58: 0 | F58: 0 | G58: 0 | H58: 0 | I58: 0 | J58: 0
C59: Battery conditioning | D59: $/bus | E59: 0 | F59: 0 | G59: 0 | H59: 0 | I59: 0 | J59: 0
C60: Frequency | D60: years | E60: 0 | F60: 0 | G60: 0 | H60: 0 | I60: 0 | J60: 0
C61: DPF cleaning | D61: $/bus | E61: 0 | F61: 0 | G61: 0 | H61: 0 | I61: 0 | J61: 0
C62: Frequency | D62: years | E62: 0 | F62: 0 | G62: 0 | H62: 0 | I62: 0 | J62: 0
C63: Fuel station maintenance | D63: $/bus | E63: 0 | F63: 0 | G63: 0 | H63: 0 | I63: 0 | J63: 0
C64: Frequency | D64: years | E64: 0 | F64: 0 | G64: 0 | H64: 0 | I64: 0 | J64: 0
C65: Lubricant | D65: $/bus | E65: 0 | F65: 0 | G65: 0 | H65: 0 | I65: 0 | J65: 0
C66: Frequency | D66: years | E66: 0 | F66: 0 | G66: 0 | H66: 0 | I66: 0 | J66: 0
C67: Additional maintenance costs to include | D67: $/year/bus | E67: 0 | F67: 0 | G67: 0 | H67: 0 | I67: 0 | J67: 0
C69: Overhaul or Retrofitting (Optional)
D70: Units
C71: Engine overhaul | D71: $/bus | E71: 0 | F71: 0 | G71: 0 | H71: 0 | I71: 0 | J71: 0
C72: Frequency | D72: years | E72: 0 | F72: 0 | G72: 0 | H72: 0 | I72: 0 | J72: 0
C73: Transmission overhaul | D73: $/bus | E73: 0 | F73: 0 | G73: 0 | H73: 0 | I73: 0 | J73: 0
C74: Frequency | D74: years | E74: 0 | F74: 0 | G74: 0 | H74: 0 | I74: 0 | J74: 0
C75: CNG fuel system overhaul | D75: $/bus | E75: 0 | F75: 0 | G75: 0 | H75: 0 | I75: 0 | J75: 0
C76: Frequency | D76: years | E76: 0 | F76: 0 | G76: 0 | H76: 0 | I76: 0 | J76: 0
C77: Hybrid system overhaul | D77: $/bus | E77: 0 | F77: 0 | G77: 0 | H77: 0 | I77: 0 | J77: 0
C78: Frequency | D78: years | E78: 0 | F78: 0 | G78: 0 | H78: 0 | I78: 0 | J78: 0
C79: Battery replacement | D79: $/bus | E79: 0 | F79: 0 | G79: 0 | H79: 0 | I79: 0 | J79: 0
C80: Frequency | D80: years | E80: 0 | F80: 0 | G80: 0 | H80: 0 | I80: 0 | J80: 0
C81: Vehicle retrofits | D81: $/bus | E81: 0 | F81: 0 | G81: 0 | H81: 0 | I81: 0 | J81: 0
C82: Frequency | D82: years | E82: 0 | F82: 0 | G82: 0 | H82: 0 | I82: 0 | J82: 0
C84: Additional Infrastructure (Optional)
A85: Note for "Additional Infrastructure": This is not a mandatory input section, and whether or not to include this section depends on the local situation. This option is given so that users can consider the extra infrastructure costs related to fleet upgrade. | D85: Units
C86: Depot/fuel station construction | D86: $ | E86: 0 | F86: 0 | G86: 0 | H86: 0 | I86: 0 | J86: 0
C87: Depot/fuel station construction quantity | E87: 0 | F87: 0 | G87: 0 | H87: 0 | I87: 0 | J87: 0
D88: INCLUDES: | E88: 0 | F88: 0 | G88: 0 | H88: 0 | I88: 0 | J88: 0
C89: Depot/fuel station retrofit | D89: $ | E89: 0 | F89: 0 | G89: 0 | H89: 0 | I89: 0 | J89: 0
C90: Depot/Fuel Station Retrofit Quantity | E90: 0 | F90: 0 | G90: 0 | H90: 0 | I90: 0 | J90: 0
D91: INCLUDES: | E91: 0 | F91: 0 | G91: 0 | H91: 0 | I91: 0 | J91: 0
C92: Special tools | D92: $ | E92: 0 | F92: 0 | G92: 0 | H92: 0 | I92: 0 | J92: 0
C93: Special tools quantity | E93: 0 | F93: 0 | G93: 0 | H93: 0 | I93: 0 | J93: 0
D94: INCLUDES: | E94: 0 | F94: 0 | G94: 0 | H94: 0 | I94: 0 | J94: 0
E111: Option 1
E112: Option 2
E113: Option 3
E114: Option 4
E115: Option 5
E116: Option 6

Sheet Summary Tables
B2: COST OUTPUT
B3: Annual Total Cost ($/yr) | C3: Fleet 1 | D3: Bus Type 1 | E3: Bus Type 2 | F3: Bus Type 3 | G3: Fleet 2 | H3: Bus Type 4 | I3: Bus Type 5 | J3: Bus Type 6 | L3: Annual Unit Cost ($/bus/yr) | M3: Bus Type 1 | N3: Bus Type 2 | O3: Bus Type 3 | P3: Bus Type 4 | Q3: Bus Type 5 | R3: Bus Type 6
D4: ='Capital-Financing Calc'!B12 -> Electric | Electric | 12m | E4: ='Capital-Financing Calc'!I12 -> Ultra Low Sulfur Diesel (10 ppm) | Euro III | 12m | F4: ='Capital-Financing Calc'!P12 -> Ultra Low Sulfur Diesel (10 ppm) | Euro V | 12m | H4: ='Capital-Financing Calc'!W12 -> Electric | Electric | 12m | I4: ='Capital-Financing Calc'!AD12 -> Diesel-Electric Hybrid (10 ppm) | Euro V | 12m | J4: ='Capital-Financing Calc'!AK12 -> Ultra Low Sulfur Diesel (10 ppm) | Euro III | 12m | M4: =D4 -> Electric | Electric | 12m | N4: =E4 -> Ultra Low Sulfur Diesel (10 ppm) | Euro III | 12m | O4: =F4 -> Ultra Low Sulfur Diesel (10 ppm) | Euro V | 12m | P4: =H4 -> Electric | Electric | 12m | Q4: =I4 -> Diesel-Electric Hybrid (10 ppm) | Euro V | 12m | R4: Ultra Low Sulfur Diesel (10 ppm) | Euro III | 12m
B5: Operations Cost ($/yr) | C5: =SUM(IF(ISERROR(D5:F5),0,D5:F5)) -> 0 | D5: =IFERROR(IF('Fleet Inputs'!$E$10>0,-PMT('Fleet Inputs'!$E$12,'Fleet Inputs'!$E$31,'Total Operating Cost Calc'!F25),0),0) -> 0 | E5: =IFERROR(IF('Fleet Inputs'!$F$10>0, -PMT('Fleet Inputs'!$E$12,'Fleet Inputs'!$F$31,'Total Operating Cost Calc'!Z25),0),0) -> 0 | F5: =IFERROR(IFERROR(IF('Fleet Inputs'!$G$10>0, ('Total Operating Cost Calc'!AT25)/'Fleet Inputs'!$G$31,0),"Input Incorrect"),0) -> 0 | G5: =SUM(IF(ISERROR(H5:J5),0,H5:J5)) -> 0 | H5: =IFERROR(IF('Fleet Inputs'!$H$10>0, -PMT('Fleet Inputs'!$E$12,'Fleet Inputs'!$H$31,'Total Operating Cost Calc'!BN25),0),0) -> 0 | I5: =IFERROR(IF('Fleet Inputs'!$I$10>0,-PMT('Fleet Inputs'!$E$12,'Fleet Inputs'!$I$31,'Total Operating Cost Calc'!CH25),0),0) -> 0 | J5: =IFERROR(IF('Fleet Inputs'!$J$10>0,-PMT('Fleet Inputs'!$E$12,'Fleet Inputs'!$J$31, 'Total Operating Cost Calc'!DB25),0),0) -> 0 | L5: Operations Cost ($/bus/yr) | M5: =D5/'Fleet Inputs'!E10 -> 0 | N5: =E5/'Fleet Inputs'!F10 -> 0 | O5: =F5/'Fleet Inputs'!G10 -> 0 | P5: =H5/'Fleet Inputs'!H10 -> 0 | Q5: =I5/'Fleet Inputs'!I10 -> 0 | R5: =J5/'Fleet Inputs'!J10 -> 0
B6: Fuel Cost ($/yr) | C6: =SUM(IF(ISERROR(D6:F6),0,D6:F6)) -> 59701651.42 | D6: =IFERROR(IF('Fleet Inputs'!$E$10>0,-PMT('Fleet Inputs'!$E$12,'Fleet Inputs'!$E$31,'Total Operating Cost Calc'!F26),0),0) -> 51274772.99 | E6: =IFERROR(IF('Fleet Inputs'!$F$10>0, -PMT('Fleet Inputs'!$E$12,'Fleet Inputs'!$F$31,'Total Operating Cost Calc'!Z26),0),0) -> 2856181.68 | F6: =IFERROR(IF('Fleet Inputs'!$G$10>0, -PMT('Fleet Inputs'!$E$12,'Fleet Inputs'!$G$31,'Total Operating Cost Calc'!AT26),0),0) -> 5570696.749 | G6: =SUM(IF(ISERROR(H6:J6),0,H6:J6)) -> 58018607.09 | H6: =IFERROR(IF('Fleet Inputs'!$H$10>0, -PMT('Fleet Inputs'!$E$12,'Fleet Inputs'!$H$31,'Total Operating Cost Calc'!BN26),0),0) -> 38456079.74 | I6: =IFERROR(IF('Fleet Inputs'!$I$10>0,-PMT('Fleet Inputs'!$E$12,'Fleet Inputs'!$I$31,'Total Operating Cost Calc'!CH26),0),0) -> 2850437.106 | J6: =IFERROR(IF('Fleet Inputs'!$J$10>0,-PMT('Fleet Inputs'!$E$12,'Fleet Inputs'!$J$31, 'Total Operating Cost Calc'!DB26),0),0) -> 16712090.25 | L6: Fuel Cost ($/bus/yr) | M6: =D6/'Fleet Inputs'!E10 -> 25637.38649 | N6: =E6/'Fleet Inputs'!F10 -> 28561.8168 | O6: =F6/'Fleet Inputs'!G10 -> 55706.96749 | P6: =H6/'Fleet Inputs'!H10 -> 25637.38649 | Q6: =I6/'Fleet Inputs'!I10 -> 28504.37106 | R6: =J6/'Fleet Inputs'!J10 -> 55706.96749
B7: Maintenance Cost ($/yr) | C7: =SUM(IF(ISERROR(D7:F7),0,D7:F7)) -> 30028209.51 | D7: =IFERROR(IF('Fleet Inputs'!$E$10>0,-PMT('Fleet Inputs'!$E$12,'Fleet Inputs'!$E$31,'Total Operating Cost Calc'!F27),0),0) -> 26211090.25 | E7: =IFERROR(IF('Fleet Inputs'!$F$10>0, -PMT('Fleet Inputs'!$E$12,'Fleet Inputs'!$F$31,'Total Operating Cost Calc'!Z27),0),0) -> 1908559.631 | F7: =IFERROR(IF('Fleet Inputs'!$G$10>0, -PMT('Fleet Inputs'!$E$12,'Fleet Inputs'!$G$31,'Total Operating Cost Calc'!AT27),0),0) -> 1908559.631 | G7: =SUM(IF(ISERROR(H7:J7),0,H7:J7)) -> 28482036.74 | H7: =IFERROR(IF('Fleet Inputs'!$H$10>0, -PMT('Fleet Inputs'!$E$12,'Fleet Inputs'!$H$31,'Total Operating Cost Calc'!BN27),0),0) -> 19658317.69 | I7: =IFERROR(IF('Fleet Inputs'!$I$10>0,-PMT('Fleet Inputs'!$E$12,'Fleet Inputs'!$I$31,'Total Operating Cost Calc'!CH27),0),0) -> 3098040.161 | J7: =IFERROR(IF('Fleet Inputs'!$J$10>0,-PMT('Fleet Inputs'!$E$12,'Fleet Inputs'!$J$31, 'Total Operating Cost Calc'!DB27),0),0) -> 5725678.893 | L7: Maintenance Cost ($/bus/yr) | M7: =D7/'Fleet Inputs'!E10 -> 13105.54512 | N7: =E7/'Fleet Inputs'!F10 -> 19085.59631 | O7: =F7/'Fleet Inputs'!G10 -> 19085.59631 | P7: =H7/'Fleet Inputs'!H10 -> 13105.54512 | Q7: =I7/'Fleet Inputs'!I10 -> 30980.40161 | R7: =J7/'Fleet Inputs'!J10 -> 19085.59631
B8: Overhaul Cost ($/yr) | C8: =SUM(IF(ISERROR(D8:F8),0,D8:F8)) -> 0 | D8: =IFERROR(IF('Fleet Inputs'!$E$10>0,-PMT('Fleet Inputs'!$E$12,'Fleet Inputs'!$E$31,'Total Operating Cost Calc'!F28),0),0) -> 0 | E8: =IFERROR(IF('Fleet Inputs'!$F$10>0, -PMT('Fleet Inputs'!$E$12,'Fleet Inputs'!$F$31,'Total Operating Cost Calc'!Z28),0),0) -> 0 | F8: =IFERROR(IF('Fleet Inputs'!$G$10>0, ('Total Operating Cost Calc'!AT28)/'Fleet Inputs'!$G$31,0),0) -> 0 | G8: =SUM(IF(ISERROR(H8:J8),0,H8:J8)) -> 0 | H8: =IFERROR(IF('Fleet Inputs'!$H$10>0, -PMT('Fleet Inputs'!$E$12,'Fleet Inputs'!$H$31,'Total Operating Cost Calc'!BN28),0),0) -> 0 | I8: =IFERROR(IF('Fleet Inputs'!$I$10>0,-PMT('Fleet Inputs'!$E$12,'Fleet Inputs'!$I$31,'Total Operating Cost Calc'!CH28),0),0) -> 0 | J8: =IFERROR(IF('Fleet Inputs'!$J$10>0,-PMT('Fleet Inputs'!$E$12,'Fleet Inputs'!$J$31, 'Total Operating Cost Calc'!DB28),0),0) -> 0 | L8: Overhaul Cost ($/bus/yr) | M8: =D8/'Fleet Inputs'!E10 -> 0 | N8: =E8/'Fleet Inputs'!F10 -> 0 | O8: =F8/'Fleet Inputs'!G10 -> 0 | P8: =H8/'Fleet Inputs'!H10 -> 0 | Q8: =I8/'Fleet Inputs'!I10 -> 0 | R8: =J8/'Fleet Inputs'!J10 -> 0
B9: Depot/Infrastructure Cost ($/yr) | C9: =SUM(IF(ISERROR(D9:F9),0,D9:F9)) -> 0 | D9: =IFERROR(IF('Fleet Inputs'!$E$10>0,-PMT('Fleet Inputs'!$E$12,'Fleet Inputs'!$E$31,'Capital-Financing Calc'!G20),0),0) -> 0 | E9: =IFERROR(IF('Fleet Inputs'!$F$10>0,-PMT('Fleet Inputs'!$E$12,'Fleet Inputs'!$F$31,'Capital-Financing Calc'!N20),0),0) -> 0 | F9: =IFERROR(IF('Fleet Inputs'!$G$10>0,-PMT('Fleet Inputs'!$E$12,'Fleet Inputs'!$G$31,'Capital-Financing Calc'!U20),0),0) -> 0 | G9: =SUM(IF(ISERROR(H9:J9),0,H9:J9)) -> 0 | H9: =IFERROR(IF('Fleet Inputs'!$H$10>0,-PMT('Fleet Inputs'!$E$12,'Fleet Inputs'!$H$31,'Capital-Financing Calc'!AB20),0),0) -> 0 | I9: =IFERROR(IF('Fleet Inputs'!$I$10>0,-PMT('Fleet Inputs'!$E$12,'Fleet Inputs'!$I$31,'Capital-Financing Calc'!AI20),0),0) -> 0 | J9: =IFERROR(IF('Fleet Inputs'!$J$10>0,-PMT('Fleet Inputs'!$E$12,'Fleet Inputs'!$J$31,'Capital-Financing Calc'!AP20),0),0) -> 0 | L9: Depot/Infrastructure Costs ($/bus/yr) | M9: =D9/'Fleet Inputs'!E10 -> 0 | N9: =E9/'Fleet Inputs'!F10 -> 0 | O9: =F9/'Fleet Inputs'!G10 -> 0 | P9: =H9/'Fleet Inputs'!H10 -> 0 | Q9: =I9/'Fleet Inputs'!I10 -> 0 | R9: =J9/'Fleet Inputs'!J10 -> 0
B10: Capital (Upfront Procurement) Cost ($/yr) | C10: =SUM(IF(ISERROR(D10:F10),0,D10:F10)) -> 83067212.68 | D10: =IFERROR(IF('Fleet Inputs'!$E$10>0,-PMT('Fleet Inputs'!$E$12,'Fleet Inputs'!$E$31,'Capital-Financing Calc'!G26-'Capital-Financing Calc'!G20),0),0) -> 78441447.7 | E10: =IFERROR(IF('Fleet Inputs'!$F$10>0,-PMT('Fleet Inputs'!$E$12,'Fleet Inputs'!$F$31,'Capital-Financing Calc'!N26-'Capital-Financing Calc'!N20),0),0) -> 2312882.49 | F10: =IFERROR(IF('Fleet Inputs'!$G$10>0,-PMT('Fleet Inputs'!$E$12,'Fleet Inputs'!$G$31,'Capital-Financing Calc'!U26-'Capital-Financing Calc'!U20),0),0) -> 2312882.49 | G10: =SUM(IF(ISERROR(H10:J10),0,H10:J10)) -> 68930027.73 | H10: =IFERROR(IF('Fleet Inputs'!$H$10>0,-PMT('Fleet Inputs'!$E$12,'Fleet Inputs'!$H$31,'Capital-Financing Calc'!AB26-'Capital-Financing Calc'!AB20),0),0) -> 58831085.51 | I10: =IFERROR(IF('Fleet Inputs'!$I$10>0,-PMT('Fleet Inputs'!$E$12,'Fleet Inputs'!$I$31,'Capital-Financing Calc'!AI26-'Capital-Financing Calc'!AI20),0),0) -> 3160295.548 | J10: =IFERROR(IF('Fleet Inputs'!$J$10>0,-PMT('Fleet Inputs'!$E$12,'Fleet Inputs'!$J$31,'Capital-Financing Calc'!AP26-'Capital-Financing Calc'!AP20),0),0) -> 6938646.671 | L10: Capital (or Upfront Procurement) Cost ($/bus/yr) | M10: =D10/'Fleet Inputs'!E10 -> 39220.72385 | N10: =E10/'Fleet Inputs'!F10 -> 23128.8249 | O10: =F10/'Fleet Inputs'!G10 -> 23128.8249 | P10: =H10/'Fleet Inputs'!H10 -> 39220.72367 | Q10: =I10/'Fleet Inputs'!I10 -> 31602.95548 | R10: =J10/'Fleet Inputs'!J10 -> 23128.82224
B11: Financing Cost ($/yr) | C11: =SUM(IF(ISERROR(D11:F11),0,D11:F11)) -> 59609326.09 | D11: =IFERROR(IF('Fleet Inputs'!$E$10>0,-PMT('Fleet Inputs'!$E$12,'Fleet Inputs'!$E$31,'Capital-Financing Calc'!D26),0),0) -> 57529078.08 | E11: =IFERROR(IF('Fleet Inputs'!$F$10>0,-PMT('Fleet Inputs'!$E$12,'Fleet Inputs'!$F$31,'Capital-Financing Calc'!K26),0),0) -> 1040124.009 | F11: =IFERROR(IF('Fleet Inputs'!$G$10>0,-PMT('Fleet Inputs'!$E$12,'Fleet Inputs'!$G$31,'Capital-Financing Calc'!R26),0),0) -> 1040124.009 | G11: =SUM(IF(ISERROR(H11:J11),0,H11:J11)) -> 47674153.55 | H11: =IFERROR(IF('Fleet Inputs'!$H$10>0,-PMT('Fleet Inputs'!$E$12,'Fleet Inputs'!$H$31,'Capital-Financing Calc'!Y26),0),0) -> 43146808.83 | I11: =IFERROR(IF('Fleet Inputs'!$I$10>0,-PMT('Fleet Inputs'!$E$12,'Fleet Inputs'!$I$31,'Capital-Financing Calc'!AF26),0),0) -> 1406971.902 | J11: =IFERROR(IF('Fleet Inputs'!$J$10>0,-PMT('Fleet Inputs'!$E$12,'Fleet Inputs'!$J$31,'Capital-Financing Calc'!AM26),0),0) -> 3120372.824 | L11: Financing Cost ($/bus/yr) | M11: =D11/'Fleet Inputs'!E10 -> 28764.53904 | N11: =E11/'Fleet Inputs'!F10 -> 10401.24009 | O11: =F11/'Fleet Inputs'!G10 -> 10401.24009 | P11: =H11/'Fleet Inputs'!H10 -> 28764.53922 | Q11: =I11/'Fleet Inputs'!I10 -> 14069.71902 | R11: =J11/'Fleet Inputs'!J10 -> 10401.24275
B12: Annual Total Costs ($/yr) | C12: =SUM(C5:C11) -> 232406399.7 | D12: 213456389 | E12: 8117747.81 | F12: 10832262.88 | G12: 203104825.1 | H12: 160092291.8 | I12: 10515744.72 | J12: 32496788.64 | L12: Annual Total ($/bus/yr) | M12: =SUM(M5:M11) -> 106728.1945 | N12: 81177.4781 | O12: 108322.6288 | P12: 106728.1945 | Q12: 105157.4472 | R12: 108322.6288
B14: Other Useful Cost Calculations
B15: Annual Capital-Financing Cost ($/yr) | C15: =SUM(IF(ISERROR(D15:F15),0,D15:F15)) -> 142676538.8 | D15: =IFERROR(IF('Fleet Inputs'!E$10>0,-PMT('Fleet Inputs'!$E$12,'Fleet Inputs'!$E$31,'Capital-Financing Calc'!D26+'Capital-Financing Calc'!G26), 0),0) -> 135970525.8 | E15: =IFERROR(IF('Fleet Inputs'!F10>0,-PMT('Fleet Inputs'!$E$12,'Fleet Inputs'!$F$31,'Capital-Financing Calc'!K26+'Capital-Financing Calc'!N26), 0),0) -> 3353006.498 | F15: =IFERROR(IF('Fleet Inputs'!G10>0,-PMT('Fleet Inputs'!$E$12,'Fleet Inputs'!$G$31,'Capital-Financing Calc'!R26+'Capital-Financing Calc'!U26), 0),0) -> 3353006.498 | G15: =SUM(IF(ISERROR(H15:J15),0,H15:J15)) -> 116604181.3 | H15: =IFERROR(IF('Fleet Inputs'!H10>0,-PMT('Fleet Inputs'!$E$12,'Fleet Inputs'!$H$31,'Capital-Financing Calc'!Y26+'Capital-Financing Calc'!AB26), 0),0) -> 101977894.3 | I15: =IFERROR(IF('Fleet Inputs'!I10>0,-PMT('Fleet Inputs'!$E$12,'Fleet Inputs'!$I$31,'Capital-Financing Calc'!AF26+'Capital-Financing Calc'!AI26), 0),0) -> 4567267.45 | J15: =IFERROR(IF('Fleet Inputs'!J10>0,-PMT('Fleet Inputs'!$E$12,'Fleet Inputs'!$J$31,'Capital-Financing Calc'!AM26+'Capital-Financing Calc'!AP26), 0),0) -> 10059019.5
B16: Annual Total Operating Cost ($/yr) | C16: =SUM(IF(ISERROR(D16:F16),0,D16:F16)) -> 89729860.92 | D16: =IFERROR(IF('Fleet Inputs'!E$10>0,-PMT('Fleet Inputs'!$E$12,'Fleet Inputs'!$E$31,'Total Operating Cost Calc'!F24), 0),0) -> 77485863.23 | E16: =IFERROR(IF('Fleet Inputs'!F$10>0,-PMT('Fleet Inputs'!$E$12,'Fleet Inputs'!$F$31,'Total Operating Cost Calc'!Z24), 0),0) -> 4764741.311 | F16: =IFERROR(IF('Fleet Inputs'!G$10>0,-PMT('Fleet Inputs'!$E$12,'Fleet Inputs'!$G$31,'Total Operating Cost Calc'!AT24), 0),0) -> 7479256.38 | G16: =SUM(IF(ISERROR(H16:J16),0,H16:J16)) -> 86500643.83 | H16: =IFERROR(IF('Fleet Inputs'!H$10>0,-PMT('Fleet Inputs'!$E$12,'Fleet Inputs'!$H$31,'Total Operating Cost Calc'!BN24), 0),0) -> 58114397.42 | I16: =IFERROR(IF('Fleet Inputs'!I$10>0,-PMT('Fleet Inputs'!$E$12,'Fleet Inputs'!$I$31,'Total Operating Cost Calc'!CH24), 0),0) -> 5948477.266 | J16: =IFERROR(IF('Fleet Inputs'!J$10>0,-PMT('Fleet Inputs'!$E$12,'Fleet Inputs'!$J$31,'Total Operating Cost Calc'!DB24), 0),0) -> 22437769.14
B17: Annual Total Cost ($/yr) | C17: =SUM(IF(ISERROR(D17:F17),0,D17:F17)) -> 232406399.7 | D17: =SUM(D15:D16) -> 213456389 | E17: =SUM(E15:E16) -> 8117747.81 | F17: =SUM(F15:F16) -> 10832262.88 | G17: =SUM(IF(ISERROR(H17:J17),0,H17:J17)) -> 203104825.1 | H17: =SUM(H15:H16) -> 160092291.8 | I17: =SUM(I15:I16) -> 10515744.72 | J17: =SUM(J15:J16) -> 32496788.64
B18: Lifetime Total Cost ($) | C18: =SUM(IF(ISERROR(D18:F18),0,D18:F18)) -> 1740005878 | D18: =IFERROR(IF('Fleet Inputs'!E$10>0,'Capital-Financing Calc'!D26+'Capital-Financing Calc'!G26+'Total Operating Cost Calc'!F24, 0),0) -> 1623566266 | E18: =IFERROR(IF('Fleet Inputs'!F$10>0,'Capital-Financing Calc'!K26+'Capital-Financing Calc'!N26+'Total Operating Cost Calc'!Z24, 0),0) -> 49880046.16 | F18: =IFERROR(IF('Fleet Inputs'!G$10>0,'Capital-Financing Calc'!R26+'Capital-Financing Calc'!U26+'Total Operating Cost Calc'!AT24, 0),0) -> 66559566.16 | G18: =SUM(IF(ISERROR(H18:J18),0,H18:J18)) -> 1489004442 | H18: =IFERROR(IF('Fleet Inputs'!H$10>0,'Capital-Financing Calc'!Y26+'Capital-Financing Calc'!AB26+'Total Operating Cost Calc'!BN24, 0),0) -> 1217674699 | I18: =IFERROR(IF('Fleet Inputs'!I$10>0,'Capital-Financing Calc'!AF26+'Capital-Financing Calc'!AI26+'Total Operating Cost Calc'!CH24, 0),0) -> 71651043.78 | J18: =IFERROR(IF('Fleet Inputs'!J$10>0,'Capital-Financing Calc'!AM26+'Capital-Financing Calc'!AP26+'Total Operating Cost Calc'!DB24, 0),0) -> 199678698.5
B19: Annual Total Unit Cost ($/bus/km/yr) | C19: =IF('Fleet Inputs'!E$10>0,C17/AVERAGE(('Fleet Inputs'!E$10*'Fleet Inputs'!E$11)+('Fleet Inputs'!F$10*'Fleet Inputs'!F$11)+('Fleet Inputs'!G$10*'Fleet Inputs'!G$11)), 0) -> 2.135083487 | D19: =IFERROR(IF('Fleet Inputs'!E$10>0,(D17)/('Fleet Inputs'!E$10*'Fleet Inputs'!E$11), 0),0) -> 2.13456389 | E19: =IFERROR(IF('Fleet Inputs'!F$10>0,(E17)/('Fleet Inputs'!F$10*'Fleet Inputs'!F$11), 0),0) -> 2.705915937 | F19: =IFERROR(IF('Fleet Inputs'!G$10>0,(F17)/('Fleet Inputs'!G$10*'Fleet Inputs'!G$11), 0),0) -> 1.851289116 | G19: =IF('Fleet Inputs'!I$10>0,G17/AVERAGE(('Fleet Inputs'!H$10*'Fleet Inputs'!H$11)+('Fleet Inputs'!J$10*'Fleet Inputs'!J$11)+('Fleet Inputs'!I$10*'Fleet Inputs'!I$11)), 0) -> 2.125559111 | H19: =IF('Fleet Inputs'!H$10>0,(H17)/('Fleet Inputs'!H$10*'Fleet Inputs'!H$11), 0) -> 2.13456389 | I19: =IF('Fleet Inputs'!I$10>0,(I17)/('Fleet Inputs'!I$10*'Fleet Inputs'!I$11), 0) -> 3.505248239 | J19: =IFERROR(IF('Fleet Inputs'!J$10>0,(J17)/('Fleet Inputs'!J$10*'Fleet Inputs'!J$11), 0),0) -> 1.851289116
B23: EMISSIONS OUTPUT
B25: Emissions (Unit: Annual Tonnes) | C25: Fleet 1 | D25: Bus Type 1 | E25: Bus Type 2 | F25: Bus Type 3 | G25: Fleet 2 | H25: Bus Type 4 | I25: Bus Type 5 | J25: Bus Type 6
B26: Carbon Dioxide (CO2) | C26: =SUM(IF(ISERROR(D26:F26),0,D26:F26)) -> 10367.85312 | D26: =IFERROR(IF('Fleet Inputs'!E$10>0, ('Fleet Inputs'!E$10*'Fleet Inputs'!E$11*'Fleet Inputs'!E16*'Fleet Inputs'!E43)/10^8,0),0) -> 0 | E26: =IFERROR(IF('Fleet Inputs'!F$10>0, ('Fleet Inputs'!F$10*'Fleet Inputs'!F$11*'Fleet Inputs'!F16*'Fleet Inputs'!F43)/10^8,0),0) -> 3514.05 | F26: =IFERROR(IF('Fleet Inputs'!G$10>0, ('Fleet Inputs'!G$10*'Fleet Inputs'!G$11*'Fleet Inputs'!G16*'Fleet Inputs'!G43)/10^8,0),0) -> 6853.80312 | G26: =SUM(IF(ISERROR(H26:J26),0,H26:J26)) -> 23489.64936 | H26: =IFERROR(IF('Fleet Inputs'!H$10>0, ('Fleet Inputs'!H$10*'Fleet Inputs'!H$11*'Fleet Inputs'!H16*'Fleet Inputs'!H43)/10^8,0),0) -> 0 | I26: =IFERROR(IF('Fleet Inputs'!I$10>0, ('Fleet Inputs'!I$10*'Fleet Inputs'!I$11*'Fleet Inputs'!I16*'Fleet Inputs'!I43)/10^8,0),0) -> 2928.24 | J26: =IFERROR(IF('Fleet Inputs'!J$10>0, ('Fleet Inputs'!J$10*'Fleet Inputs'!J$11*'Fleet Inputs'!J16*'Fleet Inputs'!J43)/10^8,0),0) -> 20561.40936
B27: Total Hydrocarbons (THC) | C27: =SUM(IF(ISERROR(D27:F27),0,D27:F27)) -> 0 | D27: =IFERROR(IF('Fleet Inputs'!E$10>0, ('Fleet Inputs'!E$10*'Fleet Inputs'!E$11*'Fleet Inputs'!E17)/10^6,0),0) -> 0 | E27: =IFERROR(IF('Fleet Inputs'!F$10>0, ('Fleet Inputs'!F$10*'Fleet Inputs'!F$11*'Fleet Inputs'!F17)/10^6,0),0) -> 0 | F27: =IFERROR(IF('Fleet Inputs'!G$10>0, ('Fleet Inputs'!G$10*'Fleet Inputs'!G$11*'Fleet Inputs'!G17)/10^6,0),0) -> 0 | G27: =SUM(IF(ISERROR(H27:J27),0,H27:J27)) -> 0 | H27: =IFERROR(IF('Fleet Inputs'!H$10>0, ('Fleet Inputs'!H$10*'Fleet Inputs'!H$11*'Fleet Inputs'!H17)/10^6,0),0) -> 0 | I27: =IFERROR(IF('Fleet Inputs'!I$10>0, ('Fleet Inputs'!I$10*'Fleet Inputs'!I$11*'Fleet Inputs'!I17)/10^6,0),0) -> 0 | J27: =IFERROR(IF('Fleet Inputs'!J$10>0, ('Fleet Inputs'!J$10*'Fleet Inputs'!J$11*'Fleet Inputs'!J17)/10^6,0),0) -> 0
B28: Non-Methane Hydrocarbons (NMHC) | C28: =SUM(IF(ISERROR(D28:F28),0,D28:F28)) -> 1.1710896 | D28: =IFERROR(IF('Fleet Inputs'!E$10>0, ('Fleet Inputs'!E$10*'Fleet Inputs'!E$11*'Fleet Inputs'!E18)/10^6,0),0) -> 0 | E28: =IFERROR(IF('Fleet Inputs'!F$10>0, ('Fleet Inputs'!F$10*'Fleet Inputs'!F$11*'Fleet Inputs'!F18)/10^6,0),0) -> 0.978 | F28: =IFERROR(IF('Fleet Inputs'!G$10>0, ('Fleet Inputs'!G$10*'Fleet Inputs'!G$11*'Fleet Inputs'!G18)/10^6,0),0) -> 0.1930896 | G28: =SUM(IF(ISERROR(H28:J28),0,H28:J28)) -> 7.1024736 | H28: =IFERROR(IF('Fleet Inputs'!H$10>0, ('Fleet Inputs'!H$10*'Fleet Inputs'!H$11*'Fleet Inputs'!H18)/10^6,0),0) -> 0 | I28: =IFERROR(IF('Fleet Inputs'!I$10>0, ('Fleet Inputs'!I$10*'Fleet Inputs'!I$11*'Fleet Inputs'!I18)/10^6,0),0) -> 1.38 | J28: =IFERROR(IF('Fleet Inputs'!J$10>0, ('Fleet Inputs'!J$10*'Fleet Inputs'!J$11*'Fleet Inputs'!J18)/10^6,0),0) -> 5.7224736
B29: Methane (CH4) | C29: =SUM(IF(ISERROR(D29:F29),0,D29:F29)) -> 0.531072 | D29: =IFERROR(IF('Fleet Inputs'!E$10>0, ('Fleet Inputs'!E$10*'Fleet Inputs'!E$11*'Fleet Inputs'!E19)/10^6,0),0) -> 0 | E29: =IFERROR(IF('Fleet Inputs'!F$10>0, ('Fleet Inputs'!F$10*'Fleet Inputs'!F$11*'Fleet Inputs'!F19)/10^6,0),0) -> 0.18 | F29: =IFERROR(IF('Fleet Inputs'!G$10>0, ('Fleet Inputs'!G$10*'Fleet Inputs'!G$11*'Fleet Inputs'!G19)/10^6,0),0) -> 0.351072 | G29: =SUM(IF(ISERROR(H29:J29),0,H29:J29)) -> 1.233216 | H29: =IFERROR(IF('Fleet Inputs'!H$10>0, ('Fleet Inputs'!H$10*'Fleet Inputs'!H$11*'Fleet Inputs'!H19)/10^6,0),0) -> 0 | I29: =IFERROR(IF('Fleet Inputs'!I$10>0, ('Fleet Inputs'!I$10*'Fleet Inputs'!I$11*'Fleet Inputs'!I19)/10^6,0),0) -> 0.18 | J29: =IFERROR(IF('Fleet Inputs'!J$10>0, ('Fleet Inputs'!J$10*'Fleet Inputs'!J$11*'Fleet Inputs'!J19)/10^6,0),0) -> 1.053216
B30: Nitrogen Oxide (NOx) | C30: =SUM(IF(ISERROR(D30:F30),0,D30:F30)) -> 37.8500736 | D30: =IFERROR(IF('Fleet Inputs'!E$10>0, ('Fleet Inputs'!E$10*'Fleet Inputs'!E$11*'Fleet Inputs'!E20)/10^6,0),0) -> 0 | E30: =IFERROR(IF('Fleet Inputs'!F$10>0, ('Fleet Inputs'!F$10*'Fleet Inputs'!F$11*'Fleet Inputs'!F20)/10^6,0),0) -> 25.545 | F30: =IFERROR(IF('Fleet Inputs'!G$10>0, ('Fleet Inputs'!G$10*'Fleet Inputs'!G$11*'Fleet Inputs'!G20)/10^6,0),0) -> 12.3050736 | G30: =SUM(IF(ISERROR(H30:J30),0,H30:J30)) -> 154.577904 | H30: =IFERROR(IF('Fleet Inputs'!H$10>0, ('Fleet Inputs'!H$10*'Fleet Inputs'!H$11*'Fleet Inputs'!H20)/10^6,0),0) -> 0 | I30: =IFERROR(IF('Fleet Inputs'!I$10>0, ('Fleet Inputs'!I$10*'Fleet Inputs'!I$11*'Fleet Inputs'!I20)/10^6,0),0) -> 5.109 | J30: =IFERROR(IF('Fleet Inputs'!J$10>0, ('Fleet Inputs'!J$10*'Fleet Inputs'!J$11*'Fleet Inputs'!J20)/10^6,0),0) -> 149.468904
B31: Nitrous Oxide (N2O) | C31: =SUM(IF(ISERROR(D31:F31),0,D31:F31)) -> 0.265536 | D31: =IFERROR(IF('Fleet Inputs'!E$10>0, ('Fleet Inputs'!E$10*'Fleet Inputs'!E$11*'Fleet Inputs'!E21)/10^6,0),0) -> 0 | E31: =IFERROR(IF('Fleet Inputs'!F$10>0, ('Fleet Inputs'!F$10*'Fleet Inputs'!F$11*'Fleet Inputs'!F21)/10^6,0),0) -> 0.09 | F31: =IFERROR(IF('Fleet Inputs'!G$10>0, ('Fleet Inputs'!G$10*'Fleet Inputs'!G$11*'Fleet Inputs'!G21)/10^6,0),0) -> 0.175536 | G31: =SUM(IF(ISERROR(H31:J31),0,H31:J31)) -> 0.616608 | H31: =IFERROR(IF('Fleet Inputs'!H$10>0, ('Fleet Inputs'!H$10*'Fleet Inputs'!H$11*'Fleet Inputs'!H21)/10^6,0),0) -> 0 | I31: =IFERROR(IF('Fleet Inputs'!I$10>0, ('Fleet Inputs'!I$10*'Fleet Inputs'!I$11*'Fleet Inputs'!I21)/10^6,0),0) -> 0.09 | J31: =IFERROR(IF('Fleet Inputs'!J$10>0, ('Fleet Inputs'!J$10*'Fleet Inputs'!J$11*'Fleet Inputs'!J21)/10^6,0),0) -> 0.526608
B32: Nitric Oxide (NO) | C32: =SUM(IF(ISERROR(D32:F32),0,D32:F32)) -> 0 | D32: =IFERROR(IF('Fleet Inputs'!E$10>0, ('Fleet Inputs'!E$10*'Fleet Inputs'!E$11*'Fleet Inputs'!E22)/10^6,0),0) -> 0 | E32: =IFERROR(IF('Fleet Inputs'!F$10>0, ('Fleet Inputs'!F$10*'Fleet Inputs'!F$11*'Fleet Inputs'!F22)/10^6,0),0) -> 0 | F32: =IFERROR(IF('Fleet Inputs'!G$10>0, ('Fleet Inputs'!G$10*'Fleet Inputs'!G$11*'Fleet Inputs'!G22)/10^6,0),0) -> 0 | G32: =SUM(IF(ISERROR(H32:J32),0,H32:J32)) -> 0 | H32: =IFERROR(IF('Fleet Inputs'!H$10>0, ('Fleet Inputs'!H$10*'Fleet Inputs'!H$11*'Fleet Inputs'!H22)/10^6,0),0) -> 0 | I32: =IFERROR(IF('Fleet Inputs'!I$10>0, ('Fleet Inputs'!I$10*'Fleet Inputs'!I$11*'Fleet Inputs'!I22)/10^6,0),0) -> 0 | J32: =IFERROR(IF('Fleet Inputs'!J$10>0, ('Fleet Inputs'!J$10*'Fleet Inputs'!J$11*'Fleet Inputs'!J22)/10^6,0),0) -> 0
B33: Particulate Matter (PM) | C33: =SUM(IF(ISERROR(D33:F33),0,D33:F33)) -> 0.579024 | D33: =IFERROR(IF('Fleet Inputs'!E$10>0, ('Fleet Inputs'!E$10*'Fleet Inputs'!E$11*'Fleet Inputs'!E23)/10^6,0),0) -> 0 | E33: =IFERROR(IF('Fleet Inputs'!F$10>0, ('Fleet Inputs'!F$10*'Fleet Inputs'!F$11*'Fleet Inputs'!F23)/10^6,0),0) -> 0.462 | F33: =IFERROR(IF('Fleet Inputs'!G$10>0, ('Fleet Inputs'!G$10*'Fleet Inputs'!G$11*'Fleet Inputs'!G23)/10^6,0),0) -> 0.117024 | G33: =SUM(IF(ISERROR(H33:J33),0,H33:J33)) -> 2.7540744 | H33: =IFERROR(IF('Fleet Inputs'!H$10>0, ('Fleet Inputs'!H$10*'Fleet Inputs'!H$11*'Fleet Inputs'!H23)/10^6,0),0) -> 0 | I33: =IFERROR(IF('Fleet Inputs'!I$10>0, ('Fleet Inputs'!I$10*'Fleet Inputs'!I$11*'Fleet Inputs'!I23)/10^6,0),0) -> 0.05082 | J33: =IFERROR(IF('Fleet Inputs'!J$10>0, ('Fleet Inputs'!J$10*'Fleet Inputs'!J$11*'Fleet Inputs'!J23)/10^6,0),0) -> 2.7032544
B34: Carbon Monoxide (CO) | C34: =SUM(IF(ISERROR(D34:F34),0,D34:F34)) -> 7.035528 | D34: =IFERROR(IF('Fleet Inputs'!E$10>0, ('Fleet Inputs'!E$10*'Fleet Inputs'!E$11*'Fleet Inputs'!E24)/10^6,0),0) -> 0 | E34: =IFERROR(IF('Fleet Inputs'!F$10>0, ('Fleet Inputs'!F$10*'Fleet Inputs'!F$11*'Fleet Inputs'!F24)/10^6,0),0) -> 4.461 | F34: =IFERROR(IF('Fleet Inputs'!G$10>0, ('Fleet Inputs'!G$10*'Fleet Inputs'!G$11*'Fleet Inputs'!G24)/10^6,0),0) -> 2.574528 | G34: =SUM(IF(ISERROR(H34:J34),0,H34:J34)) -> 30.7582032 | H34: =IFERROR(IF('Fleet Inputs'!H$10>0, ('Fleet Inputs'!H$10*'Fleet Inputs'!H$11*'Fleet Inputs'!H24)/10^6,0),0) -> 0 | I34: =IFERROR(IF('Fleet Inputs'!I$10>0, ('Fleet Inputs'!I$10*'Fleet Inputs'!I$11*'Fleet Inputs'!I24)/10^6,0),0) -> 4.656 | J34: =IFERROR(IF('Fleet Inputs'!J$10>0, ('Fleet Inputs'!J$10*'Fleet Inputs'!J$11*'Fleet Inputs'!J24)/10^6,0),0) -> 26.1022032
B35: Greenhouse Gases (GHG/CO2e) | C35: =SUM(IF(ISERROR(D35:F35),0,D35:F35)) -> 0 | D35: =IFERROR(IF('Fleet Inputs'!E$10>0, ('Fleet Inputs'!E$10*'Fleet Inputs'!E$11*'Fleet Inputs'!E25)/10^6,0),0) -> 0 | E35: =IFERROR(IF('Fleet Inputs'!F$10>0, ('Fleet Inputs'!F$10*'Fleet Inputs'!F$11*'Fleet Inputs'!F25)/10^6,0),0) -> 0 | F35: =IFERROR(IF('Fleet Inputs'!G$10>0, ('Fleet Inputs'!G$10*'Fleet Inputs'!G$11*'Fleet Inputs'!G25)/10^6,0),0) -> 0 | G35: =SUM(IF(ISERROR(H35:J35),0,H35:J35)) -> 0 | H35: =IFERROR(IF('Fleet Inputs'!H$10>0, ('Fleet Inputs'!H$10*'Fleet Inputs'!H$11*'Fleet Inputs'!H25)/10^6,0),0) -> 0 | I35: =IFERROR(IF('Fleet Inputs'!I$10>0, ('Fleet Inputs'!I$10*'Fleet Inputs'!I$11*'Fleet Inputs'!I25)/10^6,0),0) -> 0 | J35: =IFERROR(IF('Fleet Inputs'!J$10>0, ('Fleet Inputs'!J$10*'Fleet Inputs'!J$11*'Fleet Inputs'!J25)/10^6,0),0) -> 0
B36: Upstream GHG/CO2e | C36: =SUM(IF(ISERROR(D36:F36),0,D36:F36)) -> 17900 | D36: =IFERROR(IF('Fleet Inputs'!E$10>0, ('Fleet Inputs'!E$10*'Fleet Inputs'!E$11*'Fleet Inputs'!E26)/10^6,0),0) -> 17900 | E36: =IFERROR(IF('Fleet Inputs'!F$10>0, ('Fleet Inputs'!F$10*'Fleet Inputs'!F$11*'Fleet Inputs'!F26)/10^6,0),0) -> 0 | F36: =IFERROR(IF('Fleet Inputs'!G$10>0, ('Fleet Inputs'!G$10*'Fleet Inputs'!G$11*'Fleet Inputs'!G26)/10^6,0),0) -> 0 | G36: =SUM(IF(ISERROR(H36:J36),0,H36:J36)) -> 13425 | H36: =IFERROR(IF('Fleet Inputs'!H$10>0, ('Fleet Inputs'!H$10*'Fleet Inputs'!H$11*'Fleet Inputs'!H26)/10^6,0),0) -> 13425 | I36: =IFERROR(IF('Fleet Inputs'!I$10>0, ('Fleet Inputs'!I$10*'Fleet Inputs'!I$11*'Fleet Inputs'!I26)/10^6,0),0) -> 0 | J36: =IFERROR(IF('Fleet Inputs'!J$10>0, ('Fleet Inputs'!J$10*'Fleet Inputs'!J$11*'Fleet Inputs'!J26)/10^6,0),0) -> 0
B37: Total GHG | C37: =SUM(IF(ISERROR(D37:F37),0,D37:F37)) -> 28361.32179 | D37: =D26+(D29*21)+(D31*310)+D36 -> 17900 | E37: 3545.73 | F37: =F26+(F29*21)+(F31*310)+F36 -> 6915.591792 | G37: =SUM(IF(ISERROR(H37:J37),0,H37:J37)) -> 37131.69538 | H37: =H26+(H29*21)+(H31*310)+H36 -> 13425 | I37: =I26+(I29*21)+(I31*310)+I36 -> 2959.92 | J37: =J26+(J29*21)+(J31*310)+J36 -> 20746.77538
B40: Emissions (Unit: Lifetime Tonnes) | C40: Fleet 1 | D40: Bus Type 1 | E40: Bus Type 2 | F40: Bus Type 3 | G40: Fleet 2 | H40: Bus Type 4 | I40: Bus Type 5 | J40: Bus Type 6
B41: Carbon Dioxide (CO2) | C41: =SUM(IF(ISERROR(D41:F41),0,D41:F41)) -> 103678.5312 | D41: =IFERROR(IF('Fleet Inputs'!E$10>0,D26*'Fleet Inputs'!E$31,0),0) -> 0 | E41: =IFERROR(IF('Fleet Inputs'!F$10>0,E26*'Fleet Inputs'!F$31,0),0) -> 35140.5 | F41: =IFERROR(IF('Fleet Inputs'!G$10>0,F26*'Fleet Inputs'!G$31,0),0) -> 68538.0312 | G41: =SUM(IF(ISERROR(H41:J41),0,H41:J41)) -> 240752.9736 | H41: =IFERROR(IF('Fleet Inputs'!H$10>0,H26*'Fleet Inputs'!H$31,0),0) -> 0 | I41: =IFERROR(IF('Fleet Inputs'!I$10>0,I26*'Fleet Inputs'!I$31,0),0) -> 35138.88 | J41: =IFERROR(IF('Fleet Inputs'!J$10>0,J26*'Fleet Inputs'!J$31,0),0) -> 205614.0936
B42: Total Hydrocarbons (THC) | C42: =SUM(IF(ISERROR(D42:F42),0,D42:F42)) -> 0 | D42: =IFERROR(IF('Fleet Inputs'!E$10>0,D27*'Fleet Inputs'!E$31,0),0) -> 0 | E42: =IFERROR(IF('Fleet Inputs'!F$10>0,E27*'Fleet Inputs'!F$31,0),0) -> 0 | F42: =IFERROR(IF('Fleet Inputs'!G$10>0,F27*'Fleet Inputs'!G$31,0),0) -> 0 | G42: =SUM(IF(ISERROR(H42:J42),0,H42:J42)) -> 0 | H42: =IFERROR(IF('Fleet Inputs'!H$10>0,H27*'Fleet Inputs'!H$31,0),0) -> 0 | I42: =IFERROR(IF('Fleet Inputs'!I$10>0,I27*'Fleet Inputs'!I$31,0),0) -> 0 | J42: =IFERROR(IF('Fleet Inputs'!J$10>0,J27*'Fleet Inputs'!J$31,0),0) -> 0
B43: Non-Methane Hydrocarbons (NMHC) | C43: =SUM(IF(ISERROR(D43:F43),0,D43:F43)) -> 11.710896 | D43: =IFERROR(IF('Fleet Inputs'!E$10>0,D28*'Fleet Inputs'!E$31,0),0) -> 0 | E43: =IFERROR(IF('Fleet Inputs'!F$10>0,E28*'Fleet Inputs'!F$31,0),0) -> 9.78 | F43: =IFERROR(IF('Fleet Inputs'!G$10>0,F28*'Fleet Inputs'!G$31,0),0) -> 1.930896 | G43: =SUM(IF(ISERROR(H43:J43),0,H43:J43)) -> 73.784736 | H43: =IFERROR(IF('Fleet Inputs'!H$10>0,H28*'Fleet Inputs'!H$31,0),0) -> 0 | I43: =IFERROR(IF('Fleet Inputs'!I$10>0,I28*'Fleet Inputs'!I$31,0),0) -> 16.56 | J43: =IFERROR(IF('Fleet Inputs'!J$10>0,J28*'Fleet Inputs'!J$31,0),0) -> 57.224736
B44: Methane (CH4) | C44: =SUM(IF(ISERROR(D44:F44),0,D44:F44)) -> 5.31072 | D44: =IFERROR(IF('Fleet Inputs'!E$10>0,D29*'Fleet Inputs'!E$31,0),0) -> 0 | E44: =IFERROR(IF('Fleet Inputs'!F$10>0,E29*'Fleet Inputs'!F$31,0),0) -> 1.8 | F44: =IFERROR(IF('Fleet Inputs'!G$10>0,F29*'Fleet Inputs'!G$31,0),0) -> 3.51072 | G44: =SUM(IF(ISERROR(H44:J44),0,H44:J44)) -> 12.69216 | H44: =IFERROR(IF('Fleet Inputs'!H$10>0,H29*'Fleet Inputs'!H$31,0),0) -> 0 | I44: =IFERROR(IF('Fleet Inputs'!I$10>0,I29*'Fleet Inputs'!I$31,0),0) -> 2.16 | J44: =IFERROR(IF('Fleet Inputs'!J$10>0,J29*'Fleet Inputs'!J$31,0),0) -> 10.53216
B45: Nitrogen Oxide (NOx) | C45: =SUM(IF(ISERROR(D45:F45),0,D45:F45)) -> 378.500736 | D45: =IFERROR(IF('Fleet Inputs'!E$10>0,D30*'Fleet Inputs'!E$31,0),0) -> 0 | E45: =IFERROR(IF('Fleet Inputs'!F$10>0,E30*'Fleet Inputs'!F$31,0),0) -> 255.45 | F45: =IFERROR(IF('Fleet Inputs'!G$10>0,F30*'Fleet Inputs'!G$31,0),0) -> 123.050736 | G45: =SUM(IF(ISERROR(H45:J45),0,H45:J45)) -> 1555.99704 | H45: =IFERROR(IF('Fleet Inputs'!H$10>0,H30*'Fleet Inputs'!H$31,0),0) -> 0 | I45: =IFERROR(IF('Fleet Inputs'!I$10>0,I30*'Fleet Inputs'!I$31,0),0) -> 61.308 | J45: =IFERROR(IF('Fleet Inputs'!J$10>0,J30*'Fleet Inputs'!J$31,0),0) -> 1494.68904
B46: Nitrous Oxide (N2O) | C46: =SUM(IF(ISERROR(D46:F46),0,D46:F46)) -> 2.65536 | D46: =IFERROR(IF('Fleet Inputs'!E$10>0,D31*'Fleet Inputs'!E$31,0),0) -> 0 | E46: =IFERROR(IF('Fleet Inputs'!F$10>0,E31*'Fleet Inputs'!F$31,0),0) -> 0.9 | F46: =IFERROR(IF('Fleet Inputs'!G$10>0,F31*'Fleet Inputs'!G$31,0),0) -> 1.75536 | G46: =SUM(IF(ISERROR(H46:J46),0,H46:J46)) -> 6.34608 | H46: =IFERROR(IF('Fleet Inputs'!H$10>0,H31*'Fleet Inputs'!H$31,0),0) -> 0 | I46: =IFERROR(IF('Fleet Inputs'!I$10>0,I31*'Fleet Inputs'!I$31,0),0) -> 1.08 | J46: =IFERROR(IF('Fleet Inputs'!J$10>0,J31*'Fleet Inputs'!J$31,0),0) -> 5.26608
B47: Nitric Oxide (NO) | C47: =SUM(IF(ISERROR(D47:F47),0,D47:F47)) -> 0 | D47: =IFERROR(IF('Fleet Inputs'!E$10>0,D32*'Fleet Inputs'!E$31,0),0) -> 0 | E47: =IFERROR(IF('Fleet Inputs'!F$10>0,E32*'Fleet Inputs'!F$31,0),0) -> 0 | F47: =IFERROR(IF('Fleet Inputs'!G$10>0,F32*'Fleet Inputs'!G$31,0),0) -> 0 | G47: =SUM(IF(ISERROR(H47:J47),0,H47:J47)) -> 0 | H47: =IFERROR(IF('Fleet Inputs'!H$10>0,H32*'Fleet Inputs'!H$31,0),0) -> 0 | I47: =IFERROR(IF('Fleet Inputs'!I$10>0,I32*'Fleet Inputs'!I$31,0),0) -> 0 | J47: =IFERROR(IF('Fleet Inputs'!J$10>0,J32*'Fleet Inputs'!J$31,0),0) -> 0
B48: Particulate Matter (PM) | C48: =SUM(IF(ISERROR(D48:F48),0,D48:F48)) -> 5.79024 | D48: =IFERROR(IF('Fleet Inputs'!E$10>0,D33*'Fleet Inputs'!E$31,0),0) -> 0 | E48: =IFERROR(IF('Fleet Inputs'!F$10>0,E33*'Fleet Inputs'!F$31,0),0) -> 4.62 | F48: =IFERROR(IF('Fleet Inputs'!G$10>0,F33*'Fleet Inputs'!G$31,0),0) -> 1.17024 | G48: =SUM(IF(ISERROR(H48:J48),0,H48:J48)) -> 27.642384 | H48: =IFERROR(IF('Fleet Inputs'!H$10>0,H33*'Fleet Inputs'!H$31,0),0) -> 0 | I48: =IFERROR(IF('Fleet Inputs'!I$10>0,I33*'Fleet Inputs'!I$31,0),0) -> 0.60984 | J48: =IFERROR(IF('Fleet Inputs'!J$10>0,J33*'Fleet Inputs'!J$31,0),0) -> 27.032544
B49: Carbon Monoxide (CO) | C49: =SUM(IF(ISERROR(D49:F49),0,D49:F49)) -> 70.35528 | D49: =IFERROR(IF('Fleet Inputs'!E$10>0,D34*'Fleet Inputs'!E$31,0),0) -> 0 | E49: =IFERROR(IF('Fleet Inputs'!F$10>0,E34*'Fleet Inputs'!F$31,0),0) -> 44.61 | F49: =IFERROR(IF('Fleet Inputs'!G$10>0,F34*'Fleet Inputs'!G$31,0),0) -> 25.74528 | G49: =SUM(IF(ISERROR(H49:J49),0,H49:J49)) -> 316.894032 | H49: =IFERROR(IF('Fleet Inputs'!H$10>0,H34*'Fleet Inputs'!H$31,0),0) -> 0 | I49: =IFERROR(IF('Fleet Inputs'!I$10>0,I34*'Fleet Inputs'!I$31,0),0) -> 55.872 | J49: =IFERROR(IF('Fleet Inputs'!J$10>0,J34*'Fleet Inputs'!J$31,0),0) -> 261.022032
B50: Greenhouse Gases (GHG/CO2e) | C50: =SUM(IF(ISERROR(D50:F50),0,D50:F50)) -> 0 | D50: =IFERROR(IF('Fleet Inputs'!E$10>0,D35*'Fleet Inputs'!E$31,0),0) -> 0 | E50: =IFERROR(IF('Fleet Inputs'!F$10>0,E35*'Fleet Inputs'!F$31,0),0) -> 0 | F50: =IFERROR(IF('Fleet Inputs'!G$10>0,F35*'Fleet Inputs'!G$31,0),0) -> 0 | G50: =SUM(IF(ISERROR(H50:J50),0,H50:J50)) -> 0 | H50: =IFERROR(IF('Fleet Inputs'!H$10>0,H35*'Fleet Inputs'!H$31,0),0) -> 0 | I50: =IFERROR(IF('Fleet Inputs'!I$10>0,I35*'Fleet Inputs'!I$31,0),0) -> 0 | J50: =IFERROR(IF('Fleet Inputs'!J$10>0,J35*'Fleet Inputs'!J$31,0),0) -> 0
B51: Upstream GHG/CO2e | C51: =SUM(IF(ISERROR(D51:F51),0,D51:F51)) -> 268500 | D51: =IFERROR(IF('Fleet Inputs'!E$10>0,D36*'Fleet Inputs'!E$31,0),0) -> 268500 | E51: =IFERROR(IF('Fleet Inputs'!F$10>0,E36*'Fleet Inputs'!F$31,0),0) -> 0 | F51: =IFERROR(IF('Fleet Inputs'!G$10>0,F36*'Fleet Inputs'!G$31,0),0) -> 0 | G51: =SUM(IF(ISERROR(H51:J51),0,H51:J51)) -> 201375 | H51: =IFERROR(IF('Fleet Inputs'!H$10>0,H36*'Fleet Inputs'!H$31,0),0) -> 201375 | I51: =IFERROR(IF('Fleet Inputs'!I$10>0,I36*'Fleet Inputs'!I$31,0),0) -> 0 | J51: =IFERROR(IF('Fleet Inputs'!J$10>0,J36*'Fleet Inputs'!J$31,0),0) -> 0
B52: Total GHG | C52: =SUM(IF(ISERROR(D52:F52),0,D52:F52)) -> 373113.2179 | D52: =IFERROR(IF('Fleet Inputs'!E$10>0,D37*'Fleet Inputs'!E$31,0),0) -> 268500 | E52: =IFERROR(IF('Fleet Inputs'!F$10>0,E37*'Fleet Inputs'!F$31,0),0) -> 35457.3 | F52: =IFERROR(IF('Fleet Inputs'!G$10>0,F37*'Fleet Inputs'!G$31,0),0) -> 69155.91792 | G52: =SUM(IF(ISERROR(H52:J52),0,H52:J52)) -> 444361.7938 | H52: =IFERROR(IF('Fleet Inputs'!H$10>0,H37*'Fleet Inputs'!H$31,0),0) -> 201375 | I52: =IFERROR(IF('Fleet Inputs'!I$10>0,I37*'Fleet Inputs'!I$31,0),0) -> 35519.04 | J52: =IFERROR(IF('Fleet Inputs'!J$10>0,J37*'Fleet Inputs'!J$31,0),0) -> 207467.7538

Sheet Summary Graphs - Fleet
C2: COST BREAKDOWN - FLEET
C28: EMISSIONS VS. COST - FLEET
C30: Calculation for Unit Cost:
C31: Calculation for Exhaust Emissions:
D34: Unit Cost ($/km/bus/yr) | E34: Exhaust CO2 (Annual tonnes)
C35: Fleet 1 | D35: ='Summary Tables'!$C$19 -> 2.135083487 | E35: ='Summary Tables'!C26 -> 10367.85312
C36: Fleet 2 | D36: ='Summary Tables'!$G$19 -> 2.125559111 | E36: ='Summary Tables'!G26 -> 23489.64936
D51: Unit Cost ($/km/bus/yr) | E51: Exhaust THC (Annual tonnes)
C52: Fleet 1 | D52: ='Summary Tables'!$C$19 -> 2.135083487 | E52: ='Summary Tables'!C27 -> 0
C53: Fleet 2 | D53: ='Summary Tables'!$G$19 -> 2.125559111 | E53: ='Summary Tables'!G27 -> 0
D67: Unit Cost ($/km/bus/yr) | E67: Exhaust NMHC (Annual tonnes)
C68: Fleet 1 | D68: ='Summary Tables'!$C$19 -> 2.135083487 | E68: ='Summary Tables'!C28 -> 1.1710896
C69: Fleet 2 | D69: ='Summary Tables'!$G$19 -> 2.125559111 | E69: ='Summary Tables'!G28 -> 7.1024736
D84: Unit Cost ($/km/bus/yr) | E84: Exhaust CH4 (Annual tonnes)
C85: Fleet 1 | D85: ='Summary Tables'!$C$19 -> 2.135083487 | E85: ='Summary Tables'!C29 -> 0.531072
C86: Fleet 2 | D86: ='Summary Tables'!$G$19 -> 2.125559111 | E86: ='Summary Tables'!G29 -> 1.233216
D100: Unit Cost ($/km/bus/yr) | E100: Exhaust NOx (Annual tonnes)
C101: Fleet 1 | D101: ='Summary Tables'!$C$19 -> 2.135083487 | E101: ='Summary Tables'!C30 -> 37.8500736
C102: Fleet 2 | D102: ='Summary Tables'!$G$19 -> 2.125559111 | E102: ='Summary Tables'!G30 -> 154.577904
D116: Unit Cost ($/km/bus/yr) | E116: Exhaust N2O (Annual tonnes)
C117: Fleet 1 | D117: ='Summary Tables'!$C$19 -> 2.135083487 | E117: ='Summary Tables'!C31 -> 0.265536
C118: Fleet 2 | D118: ='Summary Tables'!$G$19 -> 2.125559111 | E118: ='Summary Tables'!G31 -> 0.616608
D131: Unit Cost ($/km/bus/yr) | E131: Exhaust NO (Annual tonnes)
C132: Fleet 1 | D132: ='Summary Tables'!$C$19 -> 2.135083487 | E132: ='Summary Tables'!C32 -> 0
C133: Fleet 2 | D133: ='Summary Tables'!$G$19 -> 2.125559111 | E133: ='Summary Tables'!G32 -> 0
D147: Unit Cost ($/km/bus/yr) | E147: Exhaust PM (Annual tonnes)
C148: Fleet 1 | D148: ='Summary Tables'!$C$19 -> 2.135083487 | E148: ='Summary Tables'!C33 -> 0.579024
C149: Fleet 2 | D149: ='Summary Tables'!$G$19 -> 2.125559111 | E149: ='Summary Tables'!G33 -> 2.7540744
D163: Unit Cost ($/km/bus/yr) | E163: Exhaust CO (Annual tonnes)
C164: Fleet 1 | D164: ='Summary Tables'!$C$19 -> 2.135083487 | E164: ='Summary Tables'!C34 -> 7.035528
C165: Fleet 2 | D165: ='Summary Tables'!$G$19 -> 2.125559111 | E165: ='Summary Tables'!G34 -> 30.7582032
D179: Unit Cost ($/km/bus/yr) | E179: Exhaust GHG (Annual tonnes)
C180: Fleet 1 | D180: ='Summary Tables'!$C$19 -> 2.135083487 | E180: ='Summary Tables'!C35 -> 0
C181: Fleet 2 | D181: ='Summary Tables'!$G$19 -> 2.125559111 | E181: ='Summary Tables'!G35 -> 0
D195: Unit Cost ($/km/bus/yr) | E195: Upstream GHG (Annual tonnes)
C196: Fleet 1 | D196: ='Summary Tables'!$C$19 -> 2.135083487 | E196: ='Summary Tables'!C36 -> 17900
C197: Fleet 2 | D197: ='Summary Tables'!$G$19 -> 2.125559111 | E197: ='Summary Tables'!G36 -> 13425
D211: Unit Cost ($/km/bus/yr) | E211: Total GHG (Annual tonnes)
C212: Fleet 1 | D212: ='Summary Tables'!$C$19 -> 2.135083487 | E212: ='Summary Tables'!C37 -> 28361.32179
C213: Fleet 2 | D213: ='Summary Tables'!$G$19 -> 2.125559111 | E213: ='Summary Tables'!G37 -> 37131.69538

Sheet Fleet Inputs-2 (hidden)
B1: Directions: | C1: On this page you can create two fleets with 3 different fuel types. Input # of buses, VKT, and operational speed (CO2 will be affected by speed, other defaults come from previous page but can also be changed here).
E2: Fleet 1 | H2: Fleet 2
C3: Country | D3: ='Fuel Selection-2'!D3 -> Brazil | E3: Bus 1 | F3: Bus 2 | G3: Bus 3 | H3: Bus 4 | I3: Bus 5 | J3: Bus 6
C4: General inflation rate | E4: ='Fleet Inputs'!E4 -> Option 1 | F4: ='Fleet Inputs'!F4 -> Option 2 | G4: ='Fleet Inputs'!G4 -> Option 5 | H4: ='Fleet Inputs'!H4 -> Option 1 | I4: ='Fleet Inputs'!I4 -> Option 3 | J4: ='Fleet Inputs'!J4 -> Option 2
D5: Fuel Selection | E5: =INDEX('Fuel Selection'!$E$4:$J$4,(MATCH(E4,'Fuel Selection'!$E$3:$J$3,0))) -> Electric | F5: =INDEX('Fuel Selection'!$E$4:$J$4,(MATCH(F4,'Fuel Selection'!$E$3:$J$3,0))) -> Ultra Low Sulfur Diesel (10 ppm) | G5: =INDEX('Fuel Selection'!$E$4:$J$4,(MATCH(G4,'Fuel Selection'!$E$3:$J$3,0))) -> Ultra Low Sulfur Diesel (10 ppm) | H5: =INDEX('Fuel Selection'!$E$4:$J$4,(MATCH(H4,'Fuel Selection'!$E$3:$J$3,0))) -> Electric | I5: =INDEX('Fuel Selection'!$E$4:$J$4,(MATCH(I4,'Fuel Selection'!$E$3:$J$3,0))) -> Diesel-Electric Hybrid (10 ppm) | J5: =INDEX('Fuel Selection'!$E$4:$J$4,(MATCH(J4,'Fuel Selection'!$E$3:$J$3,0))) -> Ultra Low Sulfur Diesel (10 ppm)
C6: Real discount rate | D6: Technology | E6: =INDEX('Fuel Selection'!$E$5:$J$5,(MATCH(E4,'Fuel Selection'!$E$3:$J$3,0))) -> Electric | F6: =INDEX('Fuel Selection'!$E$5:$J$5,(MATCH(F4,'Fuel Selection'!$E$3:$J$3,0))) -> Euro III | G6: =INDEX('Fuel Selection'!$E$5:$J$5,(MATCH(G4,'Fuel Selection'!$E$3:$J$3,0))) -> Euro V | H6: =INDEX('Fuel Selection'!$E$5:$J$5,(MATCH(H4,'Fuel Selection'!$E$3:$J$3,0))) -> Electric | I6: =INDEX('Fuel Selection'!$E$5:$J$5,(MATCH(I4,'Fuel Selection'!$E$3:$J$3,0))) -> Euro V | J6: =INDEX('Fuel Selection'!$E$5:$J$5,(MATCH(J4,'Fuel Selection'!$E$3:$J$3,0))) -> Euro III
C7: 0.1 | D7: Bus size | E7: =INDEX('Fuel Selection'!$E$6:$J$6,(MATCH(E4,'Fuel Selection'!$E$3:$J$3,0))) -> 12m | F7: =INDEX('Fuel Selection'!$E$6:$J$6,(MATCH(F4,'Fuel Selection'!$E$3:$J$3,0))) -> 12m | G7: =INDEX('Fuel Selection'!$E$6:$J$6,(MATCH(G4,'Fuel Selection'!$E$3:$J$3,0))) -> 12m | H7: =INDEX('Fuel Selection'!$E$6:$J$6,(MATCH(H4,'Fuel Selection'!$E$3:$J$3,0))) -> 12m | I7: =INDEX('Fuel Selection'!$E$6:$J$6,(MATCH(I4,'Fuel Selection'!$E$3:$J$3,0))) -> 12m | J7: =INDEX('Fuel Selection'!$E$6:$J$6,(MATCH(J4,'Fuel Selection'!$E$3:$J$3,0))) -> 12m
C8: Bus Operations
D9: Units
C10: Number of buses
C11: Annual (individual) bus distance traveled | D11: km/year/bus
C12: Average operational speed | D12: (km/h) | E12: 30 | F12: ='Fleet Inputs'!#REF! ->  | G12: ='Fleet Inputs'!#REF! ->  | H12: ='Fleet Inputs'!#REF! ->  | I12: ='Fleet Inputs'!#REF! ->  | J12: ='Fleet Inputs'!#REF! -> 
C14: Emissions Factors
D15: Units | F15: Input | H15: Input | I15: Input | J15: Input
C16: Carbon Dioxide (CO2) | D16: g/km | E16: =INDEX('Fuel Selection'!$E9:$J9,MATCH(E$4,'Fuel Selection'!$E$3:$J$3,0)) -> 0 | F16: =INDEX('Fuel Selection'!$E9:$J9,MATCH(F$4,'Fuel Selection'!$E$3:$J$3,0)) -> 2603 | G16: =INDEX('Fuel Selection'!$E9:$J9,MATCH(G$4,'Fuel Selection'!$E$3:$J$3,0)) -> 2603 | H16: =INDEX('Fuel Selection'!$E9:$J9,MATCH(H$4,'Fuel Selection'!$E$3:$J$3,0)) -> 0 | I16: =INDEX('Fuel Selection'!$E9:$J9,MATCH(I$4,'Fuel Selection'!$E$3:$J$3,0)) -> 2352 | J16: =INDEX('Fuel Selection'!$E9:$J9,MATCH(J$4,'Fuel Selection'!$E$3:$J$3,0)) -> 2603
C17: Total Hydrocarbons (THC) | D17: g/km | E17: =INDEX('Fuel Selection'!$E10:$J10,MATCH(E$4,'Fuel Selection'!$E$3:$J$3,0)) -> 0 | F17: =INDEX('Fuel Selection'!$E10:$J10,MATCH(F$4,'Fuel Selection'!$E$3:$J$3,0)) -> 0 | G17: =INDEX('Fuel Selection'!$E10:$J10,MATCH(G$4,'Fuel Selection'!$E$3:$J$3,0)) -> 0 | H17: =INDEX('Fuel Selection'!$E10:$J10,MATCH(H$4,'Fuel Selection'!$E$3:$J$3,0)) -> 0 | I17: =INDEX('Fuel Selection'!$E10:$J10,MATCH(I$4,'Fuel Selection'!$E$3:$J$3,0)) -> 0 | J17: =INDEX('Fuel Selection'!$E10:$J10,MATCH(J$4,'Fuel Selection'!$E$3:$J$3,0)) -> 0
C18: Non-methane hydrocarbons (NMHC) | D18: g/km | E18: =INDEX('Fuel Selection'!$E11:$J11,MATCH(E$4,'Fuel Selection'!$E$3:$J$3,0)) -> 0 | F18: =INDEX('Fuel Selection'!$E11:$J11,MATCH(F$4,'Fuel Selection'!$E$3:$J$3,0)) -> 0.326 | G18: =INDEX('Fuel Selection'!$E11:$J11,MATCH(G$4,'Fuel Selection'!$E$3:$J$3,0)) -> 0.033 | H18: =INDEX('Fuel Selection'!$E11:$J11,MATCH(H$4,'Fuel Selection'!$E$3:$J$3,0)) -> 0 | I18: =INDEX('Fuel Selection'!$E11:$J11,MATCH(I$4,'Fuel Selection'!$E$3:$J$3,0)) -> 0.46 | J18: =INDEX('Fuel Selection'!$E11:$J11,MATCH(J$4,'Fuel Selection'!$E$3:$J$3,0)) -> 0.326
C19: Methane (CH4) | D19: g/km | E19: =INDEX('Fuel Selection'!$E12:$J12,MATCH(E$4,'Fuel Selection'!$E$3:$J$3,0)) -> 0 | F19: =INDEX('Fuel Selection'!$E12:$J12,MATCH(F$4,'Fuel Selection'!$E$3:$J$3,0)) -> 0.06 | G19: =INDEX('Fuel Selection'!$E12:$J12,MATCH(G$4,'Fuel Selection'!$E$3:$J$3,0)) -> 0.06 | H19: =INDEX('Fuel Selection'!$E12:$J12,MATCH(H$4,'Fuel Selection'!$E$3:$J$3,0)) -> 0 | I19: =INDEX('Fuel Selection'!$E12:$J12,MATCH(I$4,'Fuel Selection'!$E$3:$J$3,0)) -> 0.06 | J19: =INDEX('Fuel Selection'!$E12:$J12,MATCH(J$4,'Fuel Selection'!$E$3:$J$3,0)) -> 0.06
C20: Nitrogen Oxide (Nox) | D20: g/km | E20: =INDEX('Fuel Selection'!$E13:$J13,MATCH(E$4,'Fuel Selection'!$E$3:$J$3,0)) -> 0 | F20: =INDEX('Fuel Selection'!$E13:$J13,MATCH(F$4,'Fuel Selection'!$E$3:$J$3,0)) -> 8.515 | G20: =INDEX('Fuel Selection'!$E13:$J13,MATCH(G$4,'Fuel Selection'!$E$3:$J$3,0)) -> 2.103 | H20: =INDEX('Fuel Selection'!$E13:$J13,MATCH(H$4,'Fuel Selection'!$E$3:$J$3,0)) -> 0 | I20: =INDEX('Fuel Selection'!$E13:$J13,MATCH(I$4,'Fuel Selection'!$E$3:$J$3,0)) -> 1.703 | J20: =INDEX('Fuel Selection'!$E13:$J13,MATCH(J$4,'Fuel Selection'!$E$3:$J$3,0)) -> 8.515
C21: Nitrous Oxide (N2O) | D21: g/km | E21: =INDEX('Fuel Selection'!$E14:$J14,MATCH(E$4,'Fuel Selection'!$E$3:$J$3,0)) -> 0 | F21: =INDEX('Fuel Selection'!$E14:$J14,MATCH(F$4,'Fuel Selection'!$E$3:$J$3,0)) -> 0.03 | G21: =INDEX('Fuel Selection'!$E14:$J14,MATCH(G$4,'Fuel Selection'!$E$3:$J$3,0)) -> 0.03 | H21: =INDEX('Fuel Selection'!$E14:$J14,MATCH(H$4,'Fuel Selection'!$E$3:$J$3,0)) -> 0 | I21: =INDEX('Fuel Selection'!$E14:$J14,MATCH(I$4,'Fuel Selection'!$E$3:$J$3,0)) -> 0.03 | J21: =INDEX('Fuel Selection'!$E14:$J14,MATCH(J$4,'Fuel Selection'!$E$3:$J$3,0)) -> 0.03
C22: Nitric Oxide (NO) | D22: g/km | E22: =INDEX('Fuel Selection'!$E15:$J15,MATCH(E$4,'Fuel Selection'!$E$3:$J$3,0)) -> 0 | F22: =INDEX('Fuel Selection'!$E15:$J15,MATCH(F$4,'Fuel Selection'!$E$3:$J$3,0)) -> 0 | G22: =INDEX('Fuel Selection'!$E15:$J15,MATCH(G$4,'Fuel Selection'!$E$3:$J$3,0)) -> 0 | H22: =INDEX('Fuel Selection'!$E15:$J15,MATCH(H$4,'Fuel Selection'!$E$3:$J$3,0)) -> 0 | I22: =INDEX('Fuel Selection'!$E15:$J15,MATCH(I$4,'Fuel Selection'!$E$3:$J$3,0)) -> 0 | J22: =INDEX('Fuel Selection'!$E15:$J15,MATCH(J$4,'Fuel Selection'!$E$3:$J$3,0)) -> 0
C23: Particulate Matter (PM) | D23: g/km | E23: =INDEX('Fuel Selection'!$E16:$J16,MATCH(E$4,'Fuel Selection'!$E$3:$J$3,0)) -> 0 | F23: =INDEX('Fuel Selection'!$E16:$J16,MATCH(F$4,'Fuel Selection'!$E$3:$J$3,0)) -> 0.154 | G23: =INDEX('Fuel Selection'!$E16:$J16,MATCH(G$4,'Fuel Selection'!$E$3:$J$3,0)) -> 0.02 | H23: =INDEX('Fuel Selection'!$E16:$J16,MATCH(H$4,'Fuel Selection'!$E$3:$J$3,0)) -> 0 | I23: =INDEX('Fuel Selection'!$E16:$J16,MATCH(I$4,'Fuel Selection'!$E$3:$J$3,0)) -> 0.01694 | J23: =INDEX('Fuel Selection'!$E16:$J16,MATCH(J$4,'Fuel Selection'!$E$3:$J$3,0)) -> 0.154
C24: Carbon Monoxide (CO) | D24: g/km | E24: =INDEX('Fuel Selection'!$E17:$J17,MATCH(E$4,'Fuel Selection'!$E$3:$J$3,0)) -> 0 | F24: =INDEX('Fuel Selection'!$E17:$J17,MATCH(F$4,'Fuel Selection'!$E$3:$J$3,0)) -> 1.487 | G24: =INDEX('Fuel Selection'!$E17:$J17,MATCH(G$4,'Fuel Selection'!$E$3:$J$3,0)) -> 0.44 | H24: =INDEX('Fuel Selection'!$E17:$J17,MATCH(H$4,'Fuel Selection'!$E$3:$J$3,0)) -> 0 | I24: =INDEX('Fuel Selection'!$E17:$J17,MATCH(I$4,'Fuel Selection'!$E$3:$J$3,0)) -> 1.552 | J24: =INDEX('Fuel Selection'!$E17:$J17,MATCH(J$4,'Fuel Selection'!$E$3:$J$3,0)) -> 1.487
C25: Greenhouse Gases (GHG/CO2e) | D25: g/km | E25: =INDEX('Fuel Selection'!$E18:$J18,MATCH(E$4,'Fuel Selection'!$E$3:$J$3,0)) -> 0 | F25: =INDEX('Fuel Selection'!$E18:$J18,MATCH(F$4,'Fuel Selection'!$E$3:$J$3,0)) -> 0 | G25: =INDEX('Fuel Selection'!$E18:$J18,MATCH(G$4,'Fuel Selection'!$E$3:$J$3,0)) -> 0 | H25: =INDEX('Fuel Selection'!$E18:$J18,MATCH(H$4,'Fuel Selection'!$E$3:$J$3,0)) -> 0 | I25: =INDEX('Fuel Selection'!$E18:$J18,MATCH(I$4,'Fuel Selection'!$E$3:$J$3,0)) -> 0 | J25: =INDEX('Fuel Selection'!$E18:$J18,MATCH(J$4,'Fuel Selection'!$E$3:$J$3,0)) -> 0
C26: Upstream GHG/CO2e | D26: g/km | E26: =INDEX('Fuel Selection'!$E19:$J19,MATCH(E$4,'Fuel Selection'!$E$3:$J$3,0)) -> 179 | F26: =INDEX('Fuel Selection'!$E19:$J19,MATCH(F$4,'Fuel Selection'!$E$3:$J$3,0)) -> 0 | G26: =INDEX('Fuel Selection'!$E19:$J19,MATCH(G$4,'Fuel Selection'!$E$3:$J$3,0)) -> 0 | H26: =INDEX('Fuel Selection'!$E19:$J19,MATCH(H$4,'Fuel Selection'!$E$3:$J$3,0)) -> 179 | I26: =INDEX('Fuel Selection'!$E19:$J19,MATCH(I$4,'Fuel Selection'!$E$3:$J$3,0)) -> 0 | J26: =INDEX('Fuel Selection'!$E19:$J19,MATCH(J$4,'Fuel Selection'!$E$3:$J$3,0)) -> 0
C27: Total GHG | D27: g/km | E27: =INDEX('Fuel Selection'!$E20:$J20,MATCH(E$4,'Fuel Selection'!$E$3:$J$3,0)) -> 179 | F27: =INDEX('Fuel Selection'!$E20:$J20,MATCH(F$4,'Fuel Selection'!$E$3:$J$3,0)) -> 0 | G27: =INDEX('Fuel Selection'!$E20:$J20,MATCH(G$4,'Fuel Selection'!$E$3:$J$3,0)) -> 0 | H27: =INDEX('Fuel Selection'!$E20:$J20,MATCH(H$4,'Fuel Selection'!$E$3:$J$3,0)) -> 179 | I27: =INDEX('Fuel Selection'!$E20:$J20,MATCH(I$4,'Fuel Selection'!$E$3:$J$3,0)) -> 0 | J27: =INDEX('Fuel Selection'!$E20:$J20,MATCH(J$4,'Fuel Selection'!$E$3:$J$3,0)) -> 0
C29: Fleet-Specific Data
D30: Units
C31: Useful life of bus | D31: years | E31: =INDEX('Fuel Selection'!$E24:$J24,MATCH(E$4,'Fuel Selection'!$E$3:$J$3,0)) -> 15 | F31: =INDEX('Fuel Selection'!$E24:$J24,MATCH(F$4,'Fuel Selection'!$E$3:$J$3,0)) -> 10 | G31: =INDEX('Fuel Selection'!$E24:$J24,MATCH(G$4,'Fuel Selection'!$E$3:$J$3,0)) -> 10 | H31: =INDEX('Fuel Selection'!$E24:$J24,MATCH(H$4,'Fuel Selection'!$E$3:$J$3,0)) -> 15 | I31: =INDEX('Fuel Selection'!$E24:$J24,MATCH(I$4,'Fuel Selection'!$E$3:$J$3,0)) -> 12 | J31: =INDEX('Fuel Selection'!$E24:$J24,MATCH(J$4,'Fuel Selection'!$E$3:$J$3,0)) -> 10
C32: Final purchase price for a single bus | D32: $/bus | E32: =INDEX('Fuel Selection'!$E25:$J25,MATCH(E$4,'Fuel Selection'!$E$3:$J$3,0)) -> 537500 | F32: =INDEX('Fuel Selection'!$E25:$J25,MATCH(F$4,'Fuel Selection'!$E$3:$J$3,0)) -> 215000 | G32: =INDEX('Fuel Selection'!$E25:$J25,MATCH(G$4,'Fuel Selection'!$E$3:$J$3,0)) -> 215000 | H32: =INDEX('Fuel Selection'!$E25:$J25,MATCH(H$4,'Fuel Selection'!$E$3:$J$3,0)) -> 537500 | I32: =INDEX('Fuel Selection'!$E25:$J25,MATCH(I$4,'Fuel Selection'!$E$3:$J$3,0)) -> 322500 | J32: =INDEX('Fuel Selection'!$E25:$J25,MATCH(J$4,'Fuel Selection'!$E$3:$J$3,0)) -> 215000
C33: Residual value | D33: % of final purchase price | E33: =INDEX('Fuel Selection'!$E26:$J26,MATCH(E$4,'Fuel Selection'!$E$3:$J$3,0)) -> 0.05 | F33: =INDEX('Fuel Selection'!$E26:$J26,MATCH(F$4,'Fuel Selection'!$E$3:$J$3,0)) -> 0.1 | G33: =INDEX('Fuel Selection'!$E26:$J26,MATCH(G$4,'Fuel Selection'!$E$3:$J$3,0)) -> 0.1 | H33: =INDEX('Fuel Selection'!$E26:$J26,MATCH(H$4,'Fuel Selection'!$E$3:$J$3,0)) -> 0.05 | I33: =INDEX('Fuel Selection'!$E26:$J26,MATCH(I$4,'Fuel Selection'!$E$3:$J$3,0)) -> 0.1 | J33: =INDEX('Fuel Selection'!$E26:$J26,MATCH(J$4,'Fuel Selection'!$E$3:$J$3,0)) -> 0.1
C34: Down payment | D34: % of total cost | E34: =INDEX('Fuel Selection'!$E27:$J27,MATCH(E$4,'Fuel Selection'!$E$3:$J$3,0)) -> 0.2 | F34: =INDEX('Fuel Selection'!$E27:$J27,MATCH(F$4,'Fuel Selection'!$E$3:$J$3,0)) -> 0.2 | G34: =INDEX('Fuel Selection'!$E27:$J27,MATCH(G$4,'Fuel Selection'!$E$3:$J$3,0)) -> 0.2 | H34: =INDEX('Fuel Selection'!$E27:$J27,MATCH(H$4,'Fuel Selection'!$E$3:$J$3,0)) -> 0.2 | I34: =INDEX('Fuel Selection'!$E27:$J27,MATCH(I$4,'Fuel Selection'!$E$3:$J$3,0)) -> 0.2 | J34: =INDEX('Fuel Selection'!$E27:$J27,MATCH(J$4,'Fuel Selection'!$E$3:$J$3,0)) -> 0.2
C35: Loan interest rate | D35: % | E35: =INDEX('Fuel Selection'!$E28:$J28,MATCH(E$4,'Fuel Selection'!$E$3:$J$3,0)) -> 0.094 | F35: =INDEX('Fuel Selection'!$E28:$J28,MATCH(F$4,'Fuel Selection'!$E$3:$J$3,0)) -> 0.099 | G35: =INDEX('Fuel Selection'!$E28:$J28,MATCH(G$4,'Fuel Selection'!$E$3:$J$3,0)) -> 0.099 | H35: =INDEX('Fuel Selection'!$E28:$J28,MATCH(H$4,'Fuel Selection'!$E$3:$J$3,0)) -> 0.094 | I35: =INDEX('Fuel Selection'!$E28:$J28,MATCH(I$4,'Fuel Selection'!$E$3:$J$3,0)) -> 0.099 | J35: =INDEX('Fuel Selection'!$E28:$J28,MATCH(J$4,'Fuel Selection'!$E$3:$J$3,0)) -> 0.099
C36: Loan lifetime | D36: years | E36: =INDEX('Fuel Selection'!$E29:$J29,MATCH(E$4,'Fuel Selection'!$E$3:$J$3,0)) -> 14 | F36: =INDEX('Fuel Selection'!$E29:$J29,MATCH(F$4,'Fuel Selection'!$E$3:$J$3,0)) -> 9 | G36: =INDEX('Fuel Selection'!$E29:$J29,MATCH(G$4,'Fuel Selection'!$E$3:$J$3,0)) -> 9 | H36: =INDEX('Fuel Selection'!$E29:$J29,MATCH(H$4,'Fuel Selection'!$E$3:$J$3,0)) -> 14 | I36: =INDEX('Fuel Selection'!$E29:$J29,MATCH(I$4,'Fuel Selection'!$E$3:$J$3,0)) -> 9 | J36: =INDEX('Fuel Selection'!$E29:$J29,MATCH(J$4,'Fuel Selection'!$E$3:$J$3,0)) -> 9
C38: Annual Operations Data
D39: Units
C40: Total cost of driver and on-board labor | D40: $/year/bus | E40: =INDEX('Fuel Selection'!$E33:$J33,MATCH(E$4,'Fuel Selection'!$E$3:$J$3,0)) -> 0 | F40: =INDEX('Fuel Selection'!$E33:$J33,MATCH(F$4,'Fuel Selection'!$E$3:$J$3,0)) -> 0 | G40: =INDEX('Fuel Selection'!$E33:$J33,MATCH(G$4,'Fuel Selection'!$E$3:$J$3,0)) -> 0 | H40: =INDEX('Fuel Selection'!$E33:$J33,MATCH(H$4,'Fuel Selection'!$E$3:$J$3,0)) -> 0 | I40: =INDEX('Fuel Selection'!$E33:$J33,MATCH(I$4,'Fuel Selection'!$E$3:$J$3,0)) -> 0 | J40: =INDEX('Fuel Selection'!$E33:$J33,MATCH(J$4,'Fuel Selection'!$E$3:$J$3,0)) -> 0
C41: Energy Use | D41: kwh/km | E41: =INDEX('Fuel Selection'!$E34:$J34,MATCH(E$4,'Fuel Selection'!$E$3:$J$3,0)) -> 1.3 | F41: =INDEX('Fuel Selection'!$E34:$J34,MATCH(F$4,'Fuel Selection'!$E$3:$J$3,0)) -> 0 | G41: =INDEX('Fuel Selection'!$E34:$J34,MATCH(G$4,'Fuel Selection'!$E$3:$J$3,0)) -> 0 | H41: =INDEX('Fuel Selection'!$E34:$J34,MATCH(H$4,'Fuel Selection'!$E$3:$J$3,0)) -> 1.3 | I41: =INDEX('Fuel Selection'!$E34:$J34,MATCH(I$4,'Fuel Selection'!$E$3:$J$3,0)) -> 0 | J41: =INDEX('Fuel Selection'!$E34:$J34,MATCH(J$4,'Fuel Selection'!$E$3:$J$3,0)) -> 0
C42: Energy Cost | D42: $/kwh | E42: =INDEX('Fuel Selection'!$E35:$J35,MATCH(E$4,'Fuel Selection'!$E$3:$J$3,0)) -> 0.215 | F42: =INDEX('Fuel Selection'!$E35:$J35,MATCH(F$4,'Fuel Selection'!$E$3:$J$3,0)) -> 0 | G42: =INDEX('Fuel Selection'!$E35:$J35,MATCH(G$4,'Fuel Selection'!$E$3:$J$3,0)) -> 0 | H42: =INDEX('Fuel Selection'!$E35:$J35,MATCH(H$4,'Fuel Selection'!$E$3:$J$3,0)) -> 0.215 | I42: =INDEX('Fuel Selection'!$E35:$J35,MATCH(I$4,'Fuel Selection'!$E$3:$J$3,0)) -> 0 | J42: =INDEX('Fuel Selection'!$E35:$J35,MATCH(J$4,'Fuel Selection'!$E$3:$J$3,0)) -> 0
C43: Fuel economy | D43: L/100 km | E43: =INDEX('Fuel Selection'!$E36:$J36,MATCH(E$4,'Fuel Selection'!$E$3:$J$3,0)) -> 0 | F43: =INDEX('Fuel Selection'!$E36:$J36,MATCH(F$4,'Fuel Selection'!$E$3:$J$3,0)) -> 45 | G43: =INDEX('Fuel Selection'!$E36:$J36,MATCH(G$4,'Fuel Selection'!$E$3:$J$3,0)) -> 45 | H43: =INDEX('Fuel Selection'!$E36:$J36,MATCH(H$4,'Fuel Selection'!$E$3:$J$3,0)) -> 0 | I43: =INDEX('Fuel Selection'!$E36:$J36,MATCH(I$4,'Fuel Selection'!$E$3:$J$3,0)) -> 41.5 | J43: =INDEX('Fuel Selection'!$E36:$J36,MATCH(J$4,'Fuel Selection'!$E$3:$J$3,0)) -> 45
C44: Fuel cost | D44: $/L | E44: =INDEX('Fuel Selection'!$E37:$J37,MATCH(E$4,'Fuel Selection'!$E$3:$J$3,0)) -> 0 | F44: =INDEX('Fuel Selection'!$E37:$J37,MATCH(F$4,'Fuel Selection'!$E$3:$J$3,0)) -> 1.43 | G44: =INDEX('Fuel Selection'!$E37:$J37,MATCH(G$4,'Fuel Selection'!$E$3:$J$3,0)) -> 1.43 | H44: =INDEX('Fuel Selection'!$E37:$J37,MATCH(H$4,'Fuel Selection'!$E$3:$J$3,0)) -> 0 | I44: =INDEX('Fuel Selection'!$E37:$J37,MATCH(I$4,'Fuel Selection'!$E$3:$J$3,0)) -> 1.43 | J44: =INDEX('Fuel Selection'!$E37:$J37,MATCH(J$4,'Fuel Selection'!$E$3:$J$3,0)) -> 1.43
C45: Fuel cost projection | D45: %/year | E45: =INDEX('Fuel Selection'!$E38:$J38,MATCH(E$4,'Fuel Selection'!$E$3:$J$3,0)) -> 0 | F45: =INDEX('Fuel Selection'!$E38:$J38,MATCH(F$4,'Fuel Selection'!$E$3:$J$3,0)) -> 0 | G45: =INDEX('Fuel Selection'!$E38:$J38,MATCH(G$4,'Fuel Selection'!$E$3:$J$3,0)) -> 0 | H45: =INDEX('Fuel Selection'!$E38:$J38,MATCH(H$4,'Fuel Selection'!$E$3:$J$3,0)) -> 0 | I45: =INDEX('Fuel Selection'!$E38:$J38,MATCH(I$4,'Fuel Selection'!$E$3:$J$3,0)) -> 0 | J45: =INDEX('Fuel Selection'!$E38:$J38,MATCH(J$4,'Fuel Selection'!$E$3:$J$3,0)) -> 0
C46: Fuel additive | D46: $/L | E46: =INDEX('Fuel Selection'!$E39:$J39,MATCH(E$4,'Fuel Selection'!$E$3:$J$3,0)) -> 0 | F46: =INDEX('Fuel Selection'!$E39:$J39,MATCH(F$4,'Fuel Selection'!$E$3:$J$3,0)) -> 0 | G46: =INDEX('Fuel Selection'!$E39:$J39,MATCH(G$4,'Fuel Selection'!$E$3:$J$3,0)) -> 0 | H46: =INDEX('Fuel Selection'!$E39:$J39,MATCH(H$4,'Fuel Selection'!$E$3:$J$3,0)) -> 0 | I46: =INDEX('Fuel Selection'!$E39:$J39,MATCH(I$4,'Fuel Selection'!$E$3:$J$3,0)) -> 0 | J46: =INDEX('Fuel Selection'!$E39:$J39,MATCH(J$4,'Fuel Selection'!$E$3:$J$3,0)) -> 0
C47: Fuel station operation costs | D47: $/year/bus | E47: =INDEX('Fuel Selection'!$E40:$J40,MATCH(E$4,'Fuel Selection'!$E$3:$J$3,0)) -> 0 | F47: =INDEX('Fuel Selection'!$E40:$J40,MATCH(F$4,'Fuel Selection'!$E$3:$J$3,0)) -> 0 | G47: =INDEX('Fuel Selection'!$E40:$J40,MATCH(G$4,'Fuel Selection'!$E$3:$J$3,0)) -> 0 | H47: =INDEX('Fuel Selection'!$E40:$J40,MATCH(H$4,'Fuel Selection'!$E$3:$J$3,0)) -> 0 | I47: =INDEX('Fuel Selection'!$E40:$J40,MATCH(I$4,'Fuel Selection'!$E$3:$J$3,0)) -> 0 | J47: =INDEX('Fuel Selection'!$E40:$J40,MATCH(J$4,'Fuel Selection'!$E$3:$J$3,0)) -> 0
C48: Insurance | D48: $/year/bus | E48: =INDEX('Fuel Selection'!$E41:$J41,MATCH(E$4,'Fuel Selection'!$E$3:$J$3,0)) -> 0 | F48: =INDEX('Fuel Selection'!$E41:$J41,MATCH(F$4,'Fuel Selection'!$E$3:$J$3,0)) -> 0 | G48: =INDEX('Fuel Selection'!$E41:$J41,MATCH(G$4,'Fuel Selection'!$E$3:$J$3,0)) -> 0 | H48: =INDEX('Fuel Selection'!$E41:$J41,MATCH(H$4,'Fuel Selection'!$E$3:$J$3,0)) -> 0 | I48: =INDEX('Fuel Selection'!$E41:$J41,MATCH(I$4,'Fuel Selection'!$E$3:$J$3,0)) -> 0 | J48: =INDEX('Fuel Selection'!$E41:$J41,MATCH(J$4,'Fuel Selection'!$E$3:$J$3,0)) -> 0
C49: Additional operational costs to include | D49: $/year/bus | E49: =INDEX('Fuel Selection'!$E42:$J42,MATCH(E$4,'Fuel Selection'!$E$3:$J$3,0)) -> 0 | F49: =INDEX('Fuel Selection'!$E42:$J42,MATCH(F$4,'Fuel Selection'!$E$3:$J$3,0)) -> 0 | G49: =INDEX('Fuel Selection'!$E42:$J42,MATCH(G$4,'Fuel Selection'!$E$3:$J$3,0)) -> 0 | H49: =INDEX('Fuel Selection'!$E42:$J42,MATCH(H$4,'Fuel Selection'!$E$3:$J$3,0)) -> 0 | I49: =INDEX('Fuel Selection'!$E42:$J42,MATCH(I$4,'Fuel Selection'!$E$3:$J$3,0)) -> 0 | J49: =INDEX('Fuel Selection'!$E42:$J42,MATCH(J$4,'Fuel Selection'!$E$3:$J$3,0)) -> 0
C51: Maintenance Data
D52: Units
C53: Fixed annual maintenance cost | D53: $/year/bus | E53: =INDEX('Fuel Selection'!$E46:$J46,MATCH(E$4,'Fuel Selection'!$E$3:$J$3,0)) -> 7310 | F53: =INDEX('Fuel Selection'!$E46:$J46,MATCH(F$4,'Fuel Selection'!$E$3:$J$3,0)) -> 12900 | G53: =INDEX('Fuel Selection'!$E46:$J46,MATCH(G$4,'Fuel Selection'!$E$3:$J$3,0)) -> 12900 | H53: =INDEX('Fuel Selection'!$E46:$J46,MATCH(H$4,'Fuel Selection'!$E$3:$J$3,0)) -> 7310 | I53: =INDEX('Fuel Selection'!$E46:$J46,MATCH(I$4,'Fuel Selection'!$E$3:$J$3,0)) -> 19350 | J53: =INDEX('Fuel Selection'!$E46:$J46,MATCH(J$4,'Fuel Selection'!$E$3:$J$3,0)) -> 12900
C54: Total cost of maintenance labor | D54: $/year/bus | E54: =INDEX('Fuel Selection'!$E47:$J47,MATCH(E$4,'Fuel Selection'!$E$3:$J$3,0)) -> 0 | F54: =INDEX('Fuel Selection'!$E47:$J47,MATCH(F$4,'Fuel Selection'!$E$3:$J$3,0)) -> 0 | G54: =INDEX('Fuel Selection'!$E47:$J47,MATCH(G$4,'Fuel Selection'!$E$3:$J$3,0)) -> 0 | H54: =INDEX('Fuel Selection'!$E47:$J47,MATCH(H$4,'Fuel Selection'!$E$3:$J$3,0)) -> 0 | I54: =INDEX('Fuel Selection'!$E47:$J47,MATCH(I$4,'Fuel Selection'!$E$3:$J$3,0)) -> 0 | J54: =INDEX('Fuel Selection'!$E47:$J47,MATCH(J$4,'Fuel Selection'!$E$3:$J$3,0)) -> 0
C55: Brake reline | D55: $/bus | E55: =INDEX('Fuel Selection'!$E48:$J48,MATCH(E$4,'Fuel Selection'!$E$3:$J$3,0)) -> 0 | F55: =INDEX('Fuel Selection'!$E48:$J48,MATCH(F$4,'Fuel Selection'!$E$3:$J$3,0)) -> 0 | G55: =INDEX('Fuel Selection'!$E48:$J48,MATCH(G$4,'Fuel Selection'!$E$3:$J$3,0)) -> 0 | H55: =INDEX('Fuel Selection'!$E48:$J48,MATCH(H$4,'Fuel Selection'!$E$3:$J$3,0)) -> 0 | I55: =INDEX('Fuel Selection'!$E48:$J48,MATCH(I$4,'Fuel Selection'!$E$3:$J$3,0)) -> 0 | J55: =INDEX('Fuel Selection'!$E48:$J48,MATCH(J$4,'Fuel Selection'!$E$3:$J$3,0)) -> 0
C56: Frequency | D56: years | E56: =INDEX('Fuel Selection'!$E49:$J49,MATCH(E$4,'Fuel Selection'!$E$3:$J$3,0)) -> 0 | F56: =INDEX('Fuel Selection'!$E49:$J49,MATCH(F$4,'Fuel Selection'!$E$3:$J$3,0)) -> 0 | G56: =INDEX('Fuel Selection'!$E49:$J49,MATCH(G$4,'Fuel Selection'!$E$3:$J$3,0)) -> 0 | H56: =INDEX('Fuel Selection'!$E49:$J49,MATCH(H$4,'Fuel Selection'!$E$3:$J$3,0)) -> 0 | I56: =INDEX('Fuel Selection'!$E49:$J49,MATCH(I$4,'Fuel Selection'!$E$3:$J$3,0)) -> 0 | J56: =INDEX('Fuel Selection'!$E49:$J49,MATCH(J$4,'Fuel Selection'!$E$3:$J$3,0)) -> 0
C57: Tires | D57: $/bus | E57: =INDEX('Fuel Selection'!$E50:$J50,MATCH(E$4,'Fuel Selection'!$E$3:$J$3,0)) -> 0 | F57: =INDEX('Fuel Selection'!$E50:$J50,MATCH(F$4,'Fuel Selection'!$E$3:$J$3,0)) -> 0 | G57: =INDEX('Fuel Selection'!$E50:$J50,MATCH(G$4,'Fuel Selection'!$E$3:$J$3,0)) -> 0 | H57: =INDEX('Fuel Selection'!$E50:$J50,MATCH(H$4,'Fuel Selection'!$E$3:$J$3,0)) -> 0 | I57: =INDEX('Fuel Selection'!$E50:$J50,MATCH(I$4,'Fuel Selection'!$E$3:$J$3,0)) -> 0 | J57: =INDEX('Fuel Selection'!$E50:$J50,MATCH(J$4,'Fuel Selection'!$E$3:$J$3,0)) -> 0
C58: Frequency | D58: years | E58: =INDEX('Fuel Selection'!$E51:$J51,MATCH(E$4,'Fuel Selection'!$E$3:$J$3,0)) -> 0 | F58: =INDEX('Fuel Selection'!$E51:$J51,MATCH(F$4,'Fuel Selection'!$E$3:$J$3,0)) -> 0 | G58: =INDEX('Fuel Selection'!$E51:$J51,MATCH(G$4,'Fuel Selection'!$E$3:$J$3,0)) -> 0 | H58: =INDEX('Fuel Selection'!$E51:$J51,MATCH(H$4,'Fuel Selection'!$E$3:$J$3,0)) -> 0 | I58: =INDEX('Fuel Selection'!$E51:$J51,MATCH(I$4,'Fuel Selection'!$E$3:$J$3,0)) -> 0 | J58: =INDEX('Fuel Selection'!$E51:$J51,MATCH(J$4,'Fuel Selection'!$E$3:$J$3,0)) -> 0
C59: Battery conditioning | D59: $/bus | E59: =INDEX('Fuel Selection'!$E52:$J52,MATCH(E$4,'Fuel Selection'!$E$3:$J$3,0)) -> 0 | F59: =INDEX('Fuel Selection'!$E52:$J52,MATCH(F$4,'Fuel Selection'!$E$3:$J$3,0)) -> 0 | G59: =INDEX('Fuel Selection'!$E52:$J52,MATCH(G$4,'Fuel Selection'!$E$3:$J$3,0)) -> 0 | H59: =INDEX('Fuel Selection'!$E52:$J52,MATCH(H$4,'Fuel Selection'!$E$3:$J$3,0)) -> 0 | I59: =INDEX('Fuel Selection'!$E52:$J52,MATCH(I$4,'Fuel Selection'!$E$3:$J$3,0)) -> 0 | J59: =INDEX('Fuel Selection'!$E52:$J52,MATCH(J$4,'Fuel Selection'!$E$3:$J$3,0)) -> 0
C60: Frequency | D60: years | E60: =INDEX('Fuel Selection'!$E53:$J53,MATCH(E$4,'Fuel Selection'!$E$3:$J$3,0)) -> 0 | F60: =INDEX('Fuel Selection'!$E53:$J53,MATCH(F$4,'Fuel Selection'!$E$3:$J$3,0)) -> 0 | G60: =INDEX('Fuel Selection'!$E53:$J53,MATCH(G$4,'Fuel Selection'!$E$3:$J$3,0)) -> 0 | H60: =INDEX('Fuel Selection'!$E53:$J53,MATCH(H$4,'Fuel Selection'!$E$3:$J$3,0)) -> 0 | I60: =INDEX('Fuel Selection'!$E53:$J53,MATCH(I$4,'Fuel Selection'!$E$3:$J$3,0)) -> 0 | J60: =INDEX('Fuel Selection'!$E53:$J53,MATCH(J$4,'Fuel Selection'!$E$3:$J$3,0)) -> 0
C61: DPF cleaning | D61: $/bus | E61: =INDEX('Fuel Selection'!$E54:$J54,MATCH(E$4,'Fuel Selection'!$E$3:$J$3,0)) -> 0 | F61: =INDEX('Fuel Selection'!$E54:$J54,MATCH(F$4,'Fuel Selection'!$E$3:$J$3,0)) -> 0 | G61: =INDEX('Fuel Selection'!$E54:$J54,MATCH(G$4,'Fuel Selection'!$E$3:$J$3,0)) -> 0 | H61: =INDEX('Fuel Selection'!$E54:$J54,MATCH(H$4,'Fuel Selection'!$E$3:$J$3,0)) -> 0 | I61: =INDEX('Fuel Selection'!$E54:$J54,MATCH(I$4,'Fuel Selection'!$E$3:$J$3,0)) -> 0 | J61: =INDEX('Fuel Selection'!$E54:$J54,MATCH(J$4,'Fuel Selection'!$E$3:$J$3,0)) -> 0
C62: Frequency | D62: years | E62: =INDEX('Fuel Selection'!$E55:$J55,MATCH(E$4,'Fuel Selection'!$E$3:$J$3,0)) -> 0 | F62: =INDEX('Fuel Selection'!$E55:$J55,MATCH(F$4,'Fuel Selection'!$E$3:$J$3,0)) -> 0 | G62: =INDEX('Fuel Selection'!$E55:$J55,MATCH(G$4,'Fuel Selection'!$E$3:$J$3,0)) -> 0 | H62: =INDEX('Fuel Selection'!$E55:$J55,MATCH(H$4,'Fuel Selection'!$E$3:$J$3,0)) -> 0 | I62: =INDEX('Fuel Selection'!$E55:$J55,MATCH(I$4,'Fuel Selection'!$E$3:$J$3,0)) -> 0 | J62: =INDEX('Fuel Selection'!$E55:$J55,MATCH(J$4,'Fuel Selection'!$E$3:$J$3,0)) -> 0
C63: Fuel station maintenance | D63: $/bus | E63: =INDEX('Fuel Selection'!$E56:$J56,MATCH(E$4,'Fuel Selection'!$E$3:$J$3,0)) -> 0 | F63: =INDEX('Fuel Selection'!$E56:$J56,MATCH(F$4,'Fuel Selection'!$E$3:$J$3,0)) -> 0 | G63: =INDEX('Fuel Selection'!$E56:$J56,MATCH(G$4,'Fuel Selection'!$E$3:$J$3,0)) -> 0 | H63: =INDEX('Fuel Selection'!$E56:$J56,MATCH(H$4,'Fuel Selection'!$E$3:$J$3,0)) -> 0 | I63: =INDEX('Fuel Selection'!$E56:$J56,MATCH(I$4,'Fuel Selection'!$E$3:$J$3,0)) -> 0 | J63: =INDEX('Fuel Selection'!$E56:$J56,MATCH(J$4,'Fuel Selection'!$E$3:$J$3,0)) -> 0
C64: Frequency | D64: years | E64: =INDEX('Fuel Selection'!$E57:$J57,MATCH(E$4,'Fuel Selection'!$E$3:$J$3,0)) -> 0 | F64: =INDEX('Fuel Selection'!$E57:$J57,MATCH(F$4,'Fuel Selection'!$E$3:$J$3,0)) -> 0 | G64: =INDEX('Fuel Selection'!$E57:$J57,MATCH(G$4,'Fuel Selection'!$E$3:$J$3,0)) -> 0 | H64: =INDEX('Fuel Selection'!$E57:$J57,MATCH(H$4,'Fuel Selection'!$E$3:$J$3,0)) -> 0 | I64: =INDEX('Fuel Selection'!$E57:$J57,MATCH(I$4,'Fuel Selection'!$E$3:$J$3,0)) -> 0 | J64: =INDEX('Fuel Selection'!$E57:$J57,MATCH(J$4,'Fuel Selection'!$E$3:$J$3,0)) -> 0
C65: Lubricant | D65: $/bus | E65: =INDEX('Fuel Selection'!$E58:$J58,MATCH(E$4,'Fuel Selection'!$E$3:$J$3,0)) -> 0 | F65: =INDEX('Fuel Selection'!$E58:$J58,MATCH(F$4,'Fuel Selection'!$E$3:$J$3,0)) -> 0 | G65: =INDEX('Fuel Selection'!$E58:$J58,MATCH(G$4,'Fuel Selection'!$E$3:$J$3,0)) -> 0 | H65: =INDEX('Fuel Selection'!$E58:$J58,MATCH(H$4,'Fuel Selection'!$E$3:$J$3,0)) -> 0 | I65: =INDEX('Fuel Selection'!$E58:$J58,MATCH(I$4,'Fuel Selection'!$E$3:$J$3,0)) -> 0 | J65: =INDEX('Fuel Selection'!$E58:$J58,MATCH(J$4,'Fuel Selection'!$E$3:$J$3,0)) -> 0
C66: Frequency | D66: years | E66: =INDEX('Fuel Selection'!$E59:$J59,MATCH(E$4,'Fuel Selection'!$E$3:$J$3,0)) -> 0 | F66: =INDEX('Fuel Selection'!$E59:$J59,MATCH(F$4,'Fuel Selection'!$E$3:$J$3,0)) -> 0 | G66: =INDEX('Fuel Selection'!$E59:$J59,MATCH(G$4,'Fuel Selection'!$E$3:$J$3,0)) -> 0 | H66: =INDEX('Fuel Selection'!$E59:$J59,MATCH(H$4,'Fuel Selection'!$E$3:$J$3,0)) -> 0 | I66: =INDEX('Fuel Selection'!$E59:$J59,MATCH(I$4,'Fuel Selection'!$E$3:$J$3,0)) -> 0 | J66: =INDEX('Fuel Selection'!$E59:$J59,MATCH(J$4,'Fuel Selection'!$E$3:$J$3,0)) -> 0
C67: Additional maintenance costs to include | D67: $/year/bus | E67: =INDEX('Fuel Selection'!$E60:$J60,MATCH(E$4,'Fuel Selection'!$E$3:$J$3,0)) -> 0 | F67: =INDEX('Fuel Selection'!$E60:$J60,MATCH(F$4,'Fuel Selection'!$E$3:$J$3,0)) -> 0 | G67: =INDEX('Fuel Selection'!$E60:$J60,MATCH(G$4,'Fuel Selection'!$E$3:$J$3,0)) -> 0 | H67: =INDEX('Fuel Selection'!$E60:$J60,MATCH(H$4,'Fuel Selection'!$E$3:$J$3,0)) -> 0 | I67: =INDEX('Fuel Selection'!$E60:$J60,MATCH(I$4,'Fuel Selection'!$E$3:$J$3,0)) -> 0 | J67: =INDEX('Fuel Selection'!$E60:$J60,MATCH(J$4,'Fuel Selection'!$E$3:$J$3,0)) -> 0
C69: Overhaul or Retrofitting (optional)
D70: Units
C71: Engine overhaul | D71: $/bus | E71: =INDEX('Fuel Selection'!$E64:$J64,MATCH(E$4,'Fuel Selection'!$E$3:$J$3,0)) -> 0 | F71: =INDEX('Fuel Selection'!$E64:$J64,MATCH(F$4,'Fuel Selection'!$E$3:$J$3,0)) -> 0 | G71: =INDEX('Fuel Selection'!$E64:$J64,MATCH(G$4,'Fuel Selection'!$E$3:$J$3,0)) -> 0 | H71: =INDEX('Fuel Selection'!$E64:$J64,MATCH(H$4,'Fuel Selection'!$E$3:$J$3,0)) -> 0 | I71: =INDEX('Fuel Selection'!$E64:$J64,MATCH(I$4,'Fuel Selection'!$E$3:$J$3,0)) -> 0 | J71: =INDEX('Fuel Selection'!$E64:$J64,MATCH(J$4,'Fuel Selection'!$E$3:$J$3,0)) -> 0
C72: Frequency | D72: years | E72: =INDEX('Fuel Selection'!$E65:$J65,MATCH(E$4,'Fuel Selection'!$E$3:$J$3,0)) -> 0 | F72: =INDEX('Fuel Selection'!$E65:$J65,MATCH(F$4,'Fuel Selection'!$E$3:$J$3,0)) -> 0 | G72: =INDEX('Fuel Selection'!$E65:$J65,MATCH(G$4,'Fuel Selection'!$E$3:$J$3,0)) -> 0 | H72: =INDEX('Fuel Selection'!$E65:$J65,MATCH(H$4,'Fuel Selection'!$E$3:$J$3,0)) -> 0 | I72: =INDEX('Fuel Selection'!$E65:$J65,MATCH(I$4,'Fuel Selection'!$E$3:$J$3,0)) -> 0 | J72: =INDEX('Fuel Selection'!$E65:$J65,MATCH(J$4,'Fuel Selection'!$E$3:$J$3,0)) -> 0
C73: Transmission overhaul | D73: $/bus | E73: =INDEX('Fuel Selection'!$E66:$J66,MATCH(E$4,'Fuel Selection'!$E$3:$J$3,0)) -> 0 | F73: =INDEX('Fuel Selection'!$E66:$J66,MATCH(F$4,'Fuel Selection'!$E$3:$J$3,0)) -> 0 | G73: =INDEX('Fuel Selection'!$E66:$J66,MATCH(G$4,'Fuel Selection'!$E$3:$J$3,0)) -> 0 | H73: =INDEX('Fuel Selection'!$E66:$J66,MATCH(H$4,'Fuel Selection'!$E$3:$J$3,0)) -> 0 | I73: =INDEX('Fuel Selection'!$E66:$J66,MATCH(I$4,'Fuel Selection'!$E$3:$J$3,0)) -> 0 | J73: =INDEX('Fuel Selection'!$E66:$J66,MATCH(J$4,'Fuel Selection'!$E$3:$J$3,0)) -> 0
C74: Frequency | D74: years | E74: =INDEX('Fuel Selection'!$E67:$J67,MATCH(E$4,'Fuel Selection'!$E$3:$J$3,0)) -> 0 | F74: =INDEX('Fuel Selection'!$E67:$J67,MATCH(F$4,'Fuel Selection'!$E$3:$J$3,0)) -> 0 | G74: =INDEX('Fuel Selection'!$E67:$J67,MATCH(G$4,'Fuel Selection'!$E$3:$J$3,0)) -> 0 | H74: =INDEX('Fuel Selection'!$E67:$J67,MATCH(H$4,'Fuel Selection'!$E$3:$J$3,0)) -> 0 | I74: =INDEX('Fuel Selection'!$E67:$J67,MATCH(I$4,'Fuel Selection'!$E$3:$J$3,0)) -> 0 | J74: =INDEX('Fuel Selection'!$E67:$J67,MATCH(J$4,'Fuel Selection'!$E$3:$J$3,0)) -> 0
C75: CNG fuel system overhaul | D75: $/bus | E75: =INDEX('Fuel Selection'!$E68:$J68,MATCH(E$4,'Fuel Selection'!$E$3:$J$3,0)) -> 0 | F75: =INDEX('Fuel Selection'!$E68:$J68,MATCH(F$4,'Fuel Selection'!$E$3:$J$3,0)) -> 0 | G75: =INDEX('Fuel Selection'!$E68:$J68,MATCH(G$4,'Fuel Selection'!$E$3:$J$3,0)) -> 0 | H75: =INDEX('Fuel Selection'!$E68:$J68,MATCH(H$4,'Fuel Selection'!$E$3:$J$3,0)) -> 0 | I75: =INDEX('Fuel Selection'!$E68:$J68,MATCH(I$4,'Fuel Selection'!$E$3:$J$3,0)) -> 0 | J75: =INDEX('Fuel Selection'!$E68:$J68,MATCH(J$4,'Fuel Selection'!$E$3:$J$3,0)) -> 0
C76: Frequency | D76: years | E76: =INDEX('Fuel Selection'!$E69:$J69,MATCH(E$4,'Fuel Selection'!$E$3:$J$3,0)) -> 0 | F76: =INDEX('Fuel Selection'!$E69:$J69,MATCH(F$4,'Fuel Selection'!$E$3:$J$3,0)) -> 0 | G76: =INDEX('Fuel Selection'!$E69:$J69,MATCH(G$4,'Fuel Selection'!$E$3:$J$3,0)) -> 0 | H76: =INDEX('Fuel Selection'!$E69:$J69,MATCH(H$4,'Fuel Selection'!$E$3:$J$3,0)) -> 0 | I76: =INDEX('Fuel Selection'!$E69:$J69,MATCH(I$4,'Fuel Selection'!$E$3:$J$3,0)) -> 0 | J76: =INDEX('Fuel Selection'!$E69:$J69,MATCH(J$4,'Fuel Selection'!$E$3:$J$3,0)) -> 0
C77: Hybrid system overhaul | D77: $/bus | E77: =INDEX('Fuel Selection'!$E70:$J70,MATCH(E$4,'Fuel Selection'!$E$3:$J$3,0)) -> 0 | F77: =INDEX('Fuel Selection'!$E70:$J70,MATCH(F$4,'Fuel Selection'!$E$3:$J$3,0)) -> 0 | G77: =INDEX('Fuel Selection'!$E70:$J70,MATCH(G$4,'Fuel Selection'!$E$3:$J$3,0)) -> 0 | H77: =INDEX('Fuel Selection'!$E70:$J70,MATCH(H$4,'Fuel Selection'!$E$3:$J$3,0)) -> 0 | I77: =INDEX('Fuel Selection'!$E70:$J70,MATCH(I$4,'Fuel Selection'!$E$3:$J$3,0)) -> 0 | J77: =INDEX('Fuel Selection'!$E70:$J70,MATCH(J$4,'Fuel Selection'!$E$3:$J$3,0)) -> 0
C78: Frequency | D78: years | E78: =INDEX('Fuel Selection'!$E71:$J71,MATCH(E$4,'Fuel Selection'!$E$3:$J$3,0)) -> 0 | F78: =INDEX('Fuel Selection'!$E71:$J71,MATCH(F$4,'Fuel Selection'!$E$3:$J$3,0)) -> 0 | G78: =INDEX('Fuel Selection'!$E71:$J71,MATCH(G$4,'Fuel Selection'!$E$3:$J$3,0)) -> 0 | H78: =INDEX('Fuel Selection'!$E71:$J71,MATCH(H$4,'Fuel Selection'!$E$3:$J$3,0)) -> 0 | I78: =INDEX('Fuel Selection'!$E71:$J71,MATCH(I$4,'Fuel Selection'!$E$3:$J$3,0)) -> 0 | J78: =INDEX('Fuel Selection'!$E71:$J71,MATCH(J$4,'Fuel Selection'!$E$3:$J$3,0)) -> 0
C79: Battery replacement | D79: $/bus | E79: =INDEX('Fuel Selection'!$E72:$J72,MATCH(E$4,'Fuel Selection'!$E$3:$J$3,0)) -> 0 | F79: =INDEX('Fuel Selection'!$E72:$J72,MATCH(F$4,'Fuel Selection'!$E$3:$J$3,0)) -> 0 | G79: =INDEX('Fuel Selection'!$E72:$J72,MATCH(G$4,'Fuel Selection'!$E$3:$J$3,0)) -> 0 | H79: =INDEX('Fuel Selection'!$E72:$J72,MATCH(H$4,'Fuel Selection'!$E$3:$J$3,0)) -> 0 | I79: =INDEX('Fuel Selection'!$E72:$J72,MATCH(I$4,'Fuel Selection'!$E$3:$J$3,0)) -> 0 | J79: =INDEX('Fuel Selection'!$E72:$J72,MATCH(J$4,'Fuel Selection'!$E$3:$J$3,0)) -> 0
C80: Frequency | D80: years | E80: =INDEX('Fuel Selection'!$E73:$J73,MATCH(E$4,'Fuel Selection'!$E$3:$J$3,0)) -> 0 | F80: =INDEX('Fuel Selection'!$E73:$J73,MATCH(F$4,'Fuel Selection'!$E$3:$J$3,0)) -> 0 | G80: =INDEX('Fuel Selection'!$E73:$J73,MATCH(G$4,'Fuel Selection'!$E$3:$J$3,0)) -> 0 | H80: =INDEX('Fuel Selection'!$E73:$J73,MATCH(H$4,'Fuel Selection'!$E$3:$J$3,0)) -> 0 | I80: =INDEX('Fuel Selection'!$E73:$J73,MATCH(I$4,'Fuel Selection'!$E$3:$J$3,0)) -> 0 | J80: =INDEX('Fuel Selection'!$E73:$J73,MATCH(J$4,'Fuel Selection'!$E$3:$J$3,0)) -> 0
C81: Vehicle retrofits | D81: $/bus | E81: =INDEX('Fuel Selection'!$E74:$J74,MATCH(E$4,'Fuel Selection'!$E$3:$J$3,0)) -> 0 | F81: =INDEX('Fuel Selection'!$E74:$J74,MATCH(F$4,'Fuel Selection'!$E$3:$J$3,0)) -> 0 | G81: =INDEX('Fuel Selection'!$E74:$J74,MATCH(G$4,'Fuel Selection'!$E$3:$J$3,0)) -> 0 | H81: =INDEX('Fuel Selection'!$E74:$J74,MATCH(H$4,'Fuel Selection'!$E$3:$J$3,0)) -> 0 | I81: =INDEX('Fuel Selection'!$E74:$J74,MATCH(I$4,'Fuel Selection'!$E$3:$J$3,0)) -> 0 | J81: =INDEX('Fuel Selection'!$E74:$J74,MATCH(J$4,'Fuel Selection'!$E$3:$J$3,0)) -> 0
C82: Frequency | D82: years | E82: =INDEX('Fuel Selection'!$E75:$J75,MATCH(E$4,'Fuel Selection'!$E$3:$J$3,0)) -> 0 | F82: =INDEX('Fuel Selection'!$E75:$J75,MATCH(F$4,'Fuel Selection'!$E$3:$J$3,0)) -> 0 | G82: =INDEX('Fuel Selection'!$E75:$J75,MATCH(G$4,'Fuel Selection'!$E$3:$J$3,0)) -> 0 | H82: =INDEX('Fuel Selection'!$E75:$J75,MATCH(H$4,'Fuel Selection'!$E$3:$J$3,0)) -> 0 | I82: =INDEX('Fuel Selection'!$E75:$J75,MATCH(I$4,'Fuel Selection'!$E$3:$J$3,0)) -> 0 | J82: =INDEX('Fuel Selection'!$E75:$J75,MATCH(J$4,'Fuel Selection'!$E$3:$J$3,0)) -> 0
C84: Infrastructure (optional)
D85: Units
C86: Depot/Fuel Station Construction | D86: $ | E86: =INDEX('Fuel Selection'!$E79:$J79,MATCH(E$4,'Fuel Selection'!$E$3:$J$3,0)) -> 0 | F86: =INDEX('Fuel Selection'!$E79:$J79,MATCH(F$4,'Fuel Selection'!$E$3:$J$3,0)) -> 0 | G86: =INDEX('Fuel Selection'!$E79:$J79,MATCH(G$4,'Fuel Selection'!$E$3:$J$3,0)) -> 0 | H86: =INDEX('Fuel Selection'!$E79:$J79,MATCH(H$4,'Fuel Selection'!$E$3:$J$3,0)) -> 0 | I86: =INDEX('Fuel Selection'!$E79:$J79,MATCH(I$4,'Fuel Selection'!$E$3:$J$3,0)) -> 0 | J86: =INDEX('Fuel Selection'!$E79:$J79,MATCH(J$4,'Fuel Selection'!$E$3:$J$3,0)) -> 0
C87: Depot/Fuel Station Construction Quantity | D87: bus quantity | E87: =INDEX('Fuel Selection'!$E80:$J80,MATCH(E$4,'Fuel Selection'!$E$3:$J$3,0)) -> 0 | F87: =INDEX('Fuel Selection'!$E80:$J80,MATCH(F$4,'Fuel Selection'!$E$3:$J$3,0)) -> 0 | G87: =INDEX('Fuel Selection'!$E80:$J80,MATCH(G$4,'Fuel Selection'!$E$3:$J$3,0)) -> 0 | H87: =INDEX('Fuel Selection'!$E80:$J80,MATCH(H$4,'Fuel Selection'!$E$3:$J$3,0)) -> 0 | I87: =INDEX('Fuel Selection'!$E80:$J80,MATCH(I$4,'Fuel Selection'!$E$3:$J$3,0)) -> 0 | J87: =INDEX('Fuel Selection'!$E80:$J80,MATCH(J$4,'Fuel Selection'!$E$3:$J$3,0)) -> 0
D88: INCLUDES: | E88: =INDEX('Fuel Selection'!$E81:$J81,MATCH(E$4,'Fuel Selection'!$E$3:$J$3,0)) -> 0 | F88: =INDEX('Fuel Selection'!$E81:$J81,MATCH(F$4,'Fuel Selection'!$E$3:$J$3,0)) -> 0 | G88: =INDEX('Fuel Selection'!$E81:$J81,MATCH(G$4,'Fuel Selection'!$E$3:$J$3,0)) -> 0 | H88: =INDEX('Fuel Selection'!$E81:$J81,MATCH(H$4,'Fuel Selection'!$E$3:$J$3,0)) -> 0 | I88: =INDEX('Fuel Selection'!$E81:$J81,MATCH(I$4,'Fuel Selection'!$E$3:$J$3,0)) -> 0 | J88: =INDEX('Fuel Selection'!$E81:$J81,MATCH(J$4,'Fuel Selection'!$E$3:$J$3,0)) -> 0
C89: Depot/Fuel Station Retrofit | D89: $ | E89: =INDEX('Fuel Selection'!$E82:$J82,MATCH(E$4,'Fuel Selection'!$E$3:$J$3,0)) -> 0 | F89: =INDEX('Fuel Selection'!$E82:$J82,MATCH(F$4,'Fuel Selection'!$E$3:$J$3,0)) -> 0 | G89: =INDEX('Fuel Selection'!$E82:$J82,MATCH(G$4,'Fuel Selection'!$E$3:$J$3,0)) -> 0 | H89: =INDEX('Fuel Selection'!$E82:$J82,MATCH(H$4,'Fuel Selection'!$E$3:$J$3,0)) -> 0 | I89: =INDEX('Fuel Selection'!$E82:$J82,MATCH(I$4,'Fuel Selection'!$E$3:$J$3,0)) -> 0 | J89: =INDEX('Fuel Selection'!$E82:$J82,MATCH(J$4,'Fuel Selection'!$E$3:$J$3,0)) -> 0
C90: Depot/Fuel Station Retrofit Quantity | D90: bus quantity | E90: =INDEX('Fuel Selection'!$E83:$J83,MATCH(E$4,'Fuel Selection'!$E$3:$J$3,0)) -> 0 | F90: =INDEX('Fuel Selection'!$E83:$J83,MATCH(F$4,'Fuel Selection'!$E$3:$J$3,0)) -> 0 | G90: =INDEX('Fuel Selection'!$E83:$J83,MATCH(G$4,'Fuel Selection'!$E$3:$J$3,0)) -> 0 | H90: =INDEX('Fuel Selection'!$E83:$J83,MATCH(H$4,'Fuel Selection'!$E$3:$J$3,0)) -> 0 | I90: =INDEX('Fuel Selection'!$E83:$J83,MATCH(I$4,'Fuel Selection'!$E$3:$J$3,0)) -> 0 | J90: =INDEX('Fuel Selection'!$E83:$J83,MATCH(J$4,'Fuel Selection'!$E$3:$J$3,0)) -> 0
D91: INCLUDES: | E91: =INDEX('Fuel Selection'!$E84:$J84,MATCH(E$4,'Fuel Selection'!$E$3:$J$3,0)) -> 0 | F91: =INDEX('Fuel Selection'!$E84:$J84,MATCH(F$4,'Fuel Selection'!$E$3:$J$3,0)) -> 0 | G91: =INDEX('Fuel Selection'!$E84:$J84,MATCH(G$4,'Fuel Selection'!$E$3:$J$3,0)) -> 0 | H91: =INDEX('Fuel Selection'!$E84:$J84,MATCH(H$4,'Fuel Selection'!$E$3:$J$3,0)) -> 0 | I91: =INDEX('Fuel Selection'!$E84:$J84,MATCH(I$4,'Fuel Selection'!$E$3:$J$3,0)) -> 0 | J91: =INDEX('Fuel Selection'!$E84:$J84,MATCH(J$4,'Fuel Selection'!$E$3:$J$3,0)) -> 0
C92: Special Tools | D92: $ | E92: =INDEX('Fuel Selection'!$E85:$J85,MATCH(E$4,'Fuel Selection'!$E$3:$J$3,0)) -> 0 | F92: =INDEX('Fuel Selection'!$E85:$J85,MATCH(F$4,'Fuel Selection'!$E$3:$J$3,0)) -> 0 | G92: =INDEX('Fuel Selection'!$E85:$J85,MATCH(G$4,'Fuel Selection'!$E$3:$J$3,0)) -> 0 | H92: =INDEX('Fuel Selection'!$E85:$J85,MATCH(H$4,'Fuel Selection'!$E$3:$J$3,0)) -> 0 | I92: =INDEX('Fuel Selection'!$E85:$J85,MATCH(I$4,'Fuel Selection'!$E$3:$J$3,0)) -> 0 | J92: =INDEX('Fuel Selection'!$E85:$J85,MATCH(J$4,'Fuel Selection'!$E$3:$J$3,0)) -> 0
C93: Special Tools Quantity | D93: bus quantity | E93: =INDEX('Fuel Selection'!$E86:$J86,MATCH(E$4,'Fuel Selection'!$E$3:$J$3,0)) -> 0 | F93: =INDEX('Fuel Selection'!$E86:$J86,MATCH(F$4,'Fuel Selection'!$E$3:$J$3,0)) -> 0 | G93: =INDEX('Fuel Selection'!$E86:$J86,MATCH(G$4,'Fuel Selection'!$E$3:$J$3,0)) -> 0 | H93: =INDEX('Fuel Selection'!$E86:$J86,MATCH(H$4,'Fuel Selection'!$E$3:$J$3,0)) -> 0 | I93: =INDEX('Fuel Selection'!$E86:$J86,MATCH(I$4,'Fuel Selection'!$E$3:$J$3,0)) -> 0 | J93: =INDEX('Fuel Selection'!$E86:$J86,MATCH(J$4,'Fuel Selection'!$E$3:$J$3,0)) -> 0
D94: INCLUDES: | E94: =INDEX('Fuel Selection'!$E87:$J87,MATCH(E$4,'Fuel Selection'!$E$3:$J$3,0)) -> 0 | F94: =INDEX('Fuel Selection'!$E87:$J87,MATCH(F$4,'Fuel Selection'!$E$3:$J$3,0)) -> 0 | G94: =INDEX('Fuel Selection'!$E87:$J87,MATCH(G$4,'Fuel Selection'!$E$3:$J$3,0)) -> 0 | H94: =INDEX('Fuel Selection'!$E87:$J87,MATCH(H$4,'Fuel Selection'!$E$3:$J$3,0)) -> 0 | I94: =INDEX('Fuel Selection'!$E87:$J87,MATCH(I$4,'Fuel Selection'!$E$3:$J$3,0)) -> 0 | J94: =INDEX('Fuel Selection'!$E87:$J87,MATCH(J$4,'Fuel Selection'!$E$3:$J$3,0)) -> 0
E115: Fuel Type 1
E116: Fuel Type 2
E117: Fuel Type 3
E118: Fuel Type 4
E119: Fuel Type 5
E120: Fuel Type 6

Sheet Summary Graphs - Bus Type
C2: COST BREAKDOWN - BUS TYPE
C30: EMISSIONS VS. COST - BUS TYPE
C32: Calculation for Unit Cost:
C33: Calculation for Exhaust Emission:
D37: Unit annual cost ($/km/bus/yr) | E37: Exhaust CO2 (g/km/bus)
C38: Bus Type 1 | D38: ='Summary Tables'!$D$19 -> 2.13456389 | E38: ='Fleet Inputs'!E$16*'Fleet Inputs'!E$43/100 -> 0
C39: Bus Type 2 | D39: ='Summary Tables'!$E$19 -> 2.705915937 | E39: ='Fleet Inputs'!F$16*'Fleet Inputs'!F$43/100 -> 1171.35
C40: Bus Type 3 | D40: ='Summary Tables'!$F$19 -> 1.851289116 | E40: ='Fleet Inputs'!G$16*'Fleet Inputs'!G$43/100 -> 1171.35
C41: Bus Type 4 | D41: ='Summary Tables'!$H$19 -> 2.13456389 | E41: ='Fleet Inputs'!H$16*'Fleet Inputs'!H$43/100 -> 0
C42: Bus Type 5 | D42: ='Summary Tables'!$I$19 -> 3.505248239 | E42: ='Fleet Inputs'!I$16*'Fleet Inputs'!I$43/100 -> 976.08
C43: Bus Type 6 | D43: ='Summary Tables'!$J$19 -> 1.851289116 | E43: ='Fleet Inputs'!J$16*'Fleet Inputs'!J$43/100 -> 1171.35
D54: Unit annual cost ($/km/bus/yr) | E54: Exhaust THC (g/km/bus)
C55: Bus Type 1 | D55: ='Summary Tables'!$D$19 -> 2.13456389 | E55: ='Fleet Inputs'!E$17 -> 0
C56: Bus Type 2 | D56: ='Summary Tables'!$E$19 -> 2.705915937 | E56: ='Fleet Inputs'!F$17 -> 0
C57: Bus Type 3 | D57: ='Summary Tables'!$F$19 -> 1.851289116 | E57: ='Fleet Inputs'!G$17 -> 0
C58: Bus Type 4 | D58: ='Summary Tables'!$H$19 -> 2.13456389 | E58: ='Fleet Inputs'!H$17 -> 0
C59: Bus Type 5 | D59: ='Summary Tables'!$I$19 -> 3.505248239 | E59: ='Fleet Inputs'!I$17 -> 0
C60: Bus Type 6 | D60: ='Summary Tables'!$J$19 -> 1.851289116 | E60: ='Fleet Inputs'!J$17 -> 0
D71: Unit annual cost ($/km/bus/yr) | E71: Exhaust NMHC (g/km/bus)
C72: Bus Type 1 | D72: ='Summary Tables'!$D$19 -> 2.13456389 | E72: ='Fleet Inputs'!E$18 -> 0
C73: Bus Type 2 | D73: ='Summary Tables'!$E$19 -> 2.705915937 | E73: ='Fleet Inputs'!F$18 -> 0.326
C74: Bus Type 3 | D74: ='Summary Tables'!$F$19 -> 1.851289116 | E74: ='Fleet Inputs'!G$18 -> 0.033
C75: Bus Type 4 | D75: ='Summary Tables'!$H$19 -> 2.13456389 | E75: ='Fleet Inputs'!H$18 -> 0
C76: Bus Type 5 | D76: ='Summary Tables'!$I$19 -> 3.505248239 | E76: ='Fleet Inputs'!I$18 -> 0.46
C77: Bus Type 6 | D77: ='Summary Tables'!$J$19 -> 1.851289116 | E77: ='Fleet Inputs'!J$18 -> 0.326
D88: Unit annual cost ($/km/bus/yr) | E88: Exhaust CH4 (g/km/bus)
C89: Bus Type 1 | D89: ='Summary Tables'!$D$19 -> 2.13456389 | E89: ='Fleet Inputs'!E$19 -> 0
C90: Bus Type 2 | D90: ='Summary Tables'!$E$19 -> 2.705915937 | E90: ='Fleet Inputs'!F$19 -> 0.06
C91: Bus Type 3 | D91: ='Summary Tables'!$F$19 -> 1.851289116 | E91: ='Fleet Inputs'!G$19 -> 0.06
C92: Bus Type 4 | D92: ='Summary Tables'!$H$19 -> 2.13456389 | E92: ='Fleet Inputs'!H$19 -> 0
C93: Bus Type 5 | D93: ='Summary Tables'!$I$19 -> 3.505248239 | E93: ='Fleet Inputs'!I$19 -> 0.06
C94: Bus Type 6 | D94: ='Summary Tables'!$J$19 -> 1.851289116 | E94: ='Fleet Inputs'!J$19 -> 0.06
D105: Unit annual cost ($/km/bus/yr) | E105: Exhaust NOx (g/km/bus)
C106: Bus Type 1 | D106: ='Summary Tables'!$D$19 -> 2.13456389 | E106: ='Fleet Inputs'!E$20 -> 0
C107: Bus Type 2 | D107: ='Summary Tables'!$E$19 -> 2.705915937 | E107: ='Fleet Inputs'!F$20 -> 8.515
C108: Bus Type 3 | D108: ='Summary Tables'!$F$19 -> 1.851289116 | E108: ='Fleet Inputs'!G$20 -> 2.103
C109: Bus Type 4 | D109: ='Summary Tables'!$H$19 -> 2.13456389 | E109: ='Fleet Inputs'!H$20 -> 0
C110: Bus Type 5 | D110: ='Summary Tables'!$I$19 -> 3.505248239 | E110: ='Fleet Inputs'!I$20 -> 1.703
C111: Bus Type 6 | D111: ='Summary Tables'!$J$19 -> 1.851289116 | E111: ='Fleet Inputs'!J$20 -> 8.515
D122: Unit annual cost ($/km/bus/yr) | E122: Exhaust N2O (g/km/bus)
C123: Bus Type 1 | D123: ='Summary Tables'!$D$19 -> 2.13456389 | E123: ='Fleet Inputs'!E$21 -> 0
C124: Bus Type 2 | D124: ='Summary Tables'!$E$19 -> 2.705915937 | E124: ='Fleet Inputs'!F$21 -> 0.03
C125: Bus Type 3 | D125: ='Summary Tables'!$F$19 -> 1.851289116 | E125: ='Fleet Inputs'!G$21 -> 0.03
C126: Bus Type 4 | D126: ='Summary Tables'!$H$19 -> 2.13456389 | E126: ='Fleet Inputs'!H$21 -> 0
C127: Bus Type 5 | D127: ='Summary Tables'!$I$19 -> 3.505248239 | E127: ='Fleet Inputs'!I$21 -> 0.03
C128: Bus Type 6 | D128: ='Summary Tables'!$J$19 -> 1.851289116 | E128: ='Fleet Inputs'!J$21 -> 0.03
D139: Unit annual cost ($/km/bus/yr) | E139: Exhaust NO (g/km/bus)
C140: Bus Type 1 | D140: ='Summary Tables'!$D$19 -> 2.13456389 | E140: ='Fleet Inputs'!E$22 -> 0
C141: Bus Type 2 | D141: ='Summary Tables'!$E$19 -> 2.705915937 | E141: ='Fleet Inputs'!F$22 -> 0
C142: Bus Type 3 | D142: ='Summary Tables'!$F$19 -> 1.851289116 | E142: ='Fleet Inputs'!G$22 -> 0
C143: Bus Type 4 | D143: ='Summary Tables'!$H$19 -> 2.13456389 | E143: ='Fleet Inputs'!H$22 -> 0
C144: Bus Type 5 | D144: ='Summary Tables'!$I$19 -> 3.505248239 | E144: ='Fleet Inputs'!I$22 -> 0
C145: Bus Type 6 | D145: ='Summary Tables'!$J$19 -> 1.851289116 | E145: ='Fleet Inputs'!J$22 -> 0
D156: Unit annual cost ($/km/bus/yr) | E156: Exhaust PM (g/km/bus)
C157: Bus Type 1 | D157: ='Summary Tables'!$D$19 -> 2.13456389 | E157: ='Fleet Inputs'!E$23 -> 0
C158: Bus Type 2 | D158: ='Summary Tables'!$E$19 -> 2.705915937 | E158: ='Fleet Inputs'!F$23 -> 0.154
C159: Bus Type 3 | D159: ='Summary Tables'!$F$19 -> 1.851289116 | E159: ='Fleet Inputs'!G$23 -> 0.02
C160: Bus Type 4 | D160: ='Summary Tables'!$H$19 -> 2.13456389 | E160: ='Fleet Inputs'!H$23 -> 0
C161: Bus Type 5 | D161: ='Summary Tables'!$I$19 -> 3.505248239 | E161: ='Fleet Inputs'!I$23 -> 0.01694
C162: Bus Type 6 | D162: ='Summary Tables'!$J$19 -> 1.851289116 | E162: ='Fleet Inputs'!J$23 -> 0.154
D172: Unit annual cost ($/km/bus/yr) | E172: Exhaust CO (g/km/bus)
C173: Bus Type 1 | D173: ='Summary Tables'!$D$19 -> 2.13456389 | E173: ='Fleet Inputs'!E$24 -> 0
C174: Bus Type 2 | D174: ='Summary Tables'!$E$19 -> 2.705915937 | E174: ='Fleet Inputs'!F$24 -> 1.487
C175: Bus Type 3 | D175: ='Summary Tables'!$F$19 -> 1.851289116 | E175: ='Fleet Inputs'!G$24 -> 0.44
C176: Bus Type 4 | D176: ='Summary Tables'!$H$19 -> 2.13456389 | E176: ='Fleet Inputs'!H$24 -> 0
C177: Bus Type 5 | D177: ='Summary Tables'!$I$19 -> 3.505248239 | E177: ='Fleet Inputs'!I$24 -> 1.552
C178: Bus Type 6 | D178: ='Summary Tables'!$J$19 -> 1.851289116 | E178: ='Fleet Inputs'!J$24 -> 1.487
D188: Unit annual cost ($/km/bus/yr) | E188: Exhaust GHG (g/km/bus)
C189: Bus Type 1 | D189: ='Summary Tables'!$D$19 -> 2.13456389 | E189: ='Fleet Inputs'!E$25 -> 0
C190: Bus Type 2 | D190: ='Summary Tables'!$E$19 -> 2.705915937 | E190: ='Fleet Inputs'!F$25 -> 0
C191: Bus Type 3 | D191: ='Summary Tables'!$F$19 -> 1.851289116 | E191: ='Fleet Inputs'!G$25 -> 0
C192: Bus Type 4 | D192: ='Summary Tables'!$H$19 -> 2.13456389 | E192: ='Fleet Inputs'!H$25 -> 0
C193: Bus Type 5 | D193: ='Summary Tables'!$I$19 -> 3.505248239 | E193: ='Fleet Inputs'!I$25 -> 0
C194: Bus Type 6 | D194: ='Summary Tables'!$J$19 -> 1.851289116 | E194: ='Fleet Inputs'!J$25 -> 0
D204: Unit annual cost ($/km/bus/yr) | E204: Upstream GHG (g/km/bus)
C205: Bus Type 1 | D205: ='Summary Tables'!$D$19 -> 2.13456389 | E205: ='Fleet Inputs'!E$26 -> 179
C206: Bus Type 2 | D206: ='Summary Tables'!$E$19 -> 2.705915937 | E206: ='Fleet Inputs'!F$26 -> 0
C207: Bus Type 3 | D207: ='Summary Tables'!$F$19 -> 1.851289116 | E207: ='Fleet Inputs'!G$26 -> 0
C208: Bus Type 4 | D208: ='Summary Tables'!$H$19 -> 2.13456389 | E208: ='Fleet Inputs'!H$26 -> 179
C209: Bus Type 5 | D209: ='Summary Tables'!$I$19 -> 3.505248239 | E209: ='Fleet Inputs'!I$26 -> 0
C210: Bus Type 6 | D210: ='Summary Tables'!$J$19 -> 1.851289116 | E210: ='Fleet Inputs'!J$26 -> 0
D221: Unit annual cost ($/km/bus/yr) | E221: Total GHG (g/km/bus)
C222: Bus Type 1 | D222: ='Summary Tables'!$D$19 -> 2.13456389 | E222: ='Fleet Inputs'!E$27 -> 179
C223: Bus Type 2 | D223: ='Summary Tables'!$E$19 -> 2.705915937 | E223: ='Fleet Inputs'!F$27 -> 0
C224: Bus Type 3 | D224: ='Summary Tables'!$F$19 -> 1.851289116 | E224: ='Fleet Inputs'!G$27 -> 0
C225: Bus Type 4 | D225: ='Summary Tables'!$H$19 -> 2.13456389 | E225: ='Fleet Inputs'!H$27 -> 179
C226: Bus Type 5 | D226: ='Summary Tables'!$I$19 -> 3.505248239 | E226: ='Fleet Inputs'!I$27 -> 0
C227: Bus Type 6 | D227: ='Summary Tables'!$J$19 -> 1.851289116 | E227: ='Fleet Inputs'!J$27 -> 0

Sheet Default Cost Data
A1: COST DATA
B2: Country | C2: US | D2: US | E2: US | F2: US | G2: US | H2: US | I2: US | J2: US | K2: Brazil | L2: Brazil | M2: Brazil | N2: Brazil
B3: Fuel | C3: Biodiesel 100% | D3: Biodiesel 20% | E3: Diesel (150 ppm +) | F3: Diesel-Electric Hybrid (15 ppm) | G3: Low Sulfur Diesel (50 ppm) | H3: Natural Gas | I3: Ultra Low Sulfur Diesel (15 ppm) | J3: Electric | K3: Diesel-Electric Hybrid (10 ppm) | L3: Electric | M3: Ultra Low Sulfur Diesel (10 ppm) | N3: Ultra Low Sulfur Diesel (10 ppm)
B4: Bus length | C4: 12m | D4: 12m | E4: 12m | F4: 12m | G4: 12m | H4: 12m | I4: 12m | J4: 12m | K4: 12m | L4: 12m | M4: 12m | N4: 18m
A5: Fleet-Specific Data
B6: Units
A7: Useful life of bus | B7: years | C7: 13 | D7: 13 | E7: 13 | F7: 13 | G7: 13 | H7: 13 | I7: 13 | J7: 20 | K7: 12 | L7: 15 | M7: 10 | N7: 12
A8: Final purchase price for a single bus | B8: $/bus | C8: 189465.6522 | D8: 189465.6522 | E8: 349830 | F8: 540000 | G8: 349830 | H8: 153000 | I8: 349830 | J8: 800000 | K8: =750000*S9 -> 322500 | L8: =1250000*S9 -> 537500 | M8: =500000*S9 -> 215000 | N8: =800000*S9 -> 344000 | P8: Assumed Exchange rate:
A9: Residual value | B9: % of final purchase price | C9: 0.1 | D9: 0.1 | E9: 0.1 | F9: 0.1 | G9: 0.1 | H9: 0.1 | I9: 0.1 | J9: 0.1 | K9: 0.1 | L9: 0.05 | M9: 0.1 | N9: 0.1 | P9: 1 | Q9: Brazilian Real | R9: = | S9: 0.43 | T9: US$
A10: Down payment | B10: % of total cost | C10: 0.3 | D10: 0.3 | E10: 0.3 | F10: 0.3 | G10: 0.3 | H10: 0.3 | I10: 0.3 | J10: 0.3 | K10: 0.2 | L10: 0.2 | M10: 0.2 | N10: 0.2
A11: Loan interest rate | B11: % | C11: 0.12 | D11: 0.12 | E11: 0.12 | F11: 0.12 | G11: 0.12 | H11: 0.12 | I11: 0.12 | J11: 0.12 | K11: 0.099 | L11: 0.094 | M11: 0.099 | N11: 0.099 | P11: Inflation rate | R11: = | S11: 0 | T11: % | U11: Note: For Brazilian cities, general inflation rate can be included here should you wish to forecast fuel expenses in future years.
A12: Loan life | B12: years | C12: 13 | D12: 13 | E12: 13 | F12: 13 | G12: 13 | H12: 13 | I12: 13 | J12: 13 | K12: 9 | L12: 14 | M12: 9 | N12: 9
A14: Annual Operations Data
B15: Units
A16: Total cost of driver and on-board labor | B16: $/year/bus | C16: 61777.68056 | D16: 61777.68056 | E16: 45566.70087 | F16: 45566.70087 | G16: 45566.70087 | H16: 79828.90171 | I16: 45566.70087 | J16: 45566.70087
A17: Energy Use | B17: kwh/km | L17: 1.3
A18: Energy cost | B18: $/kwh | L18: =0.5*S9*(1+S11/100) -> 0.215
A19: Fuel consumption | B19: L/100 km | C19: 50 | D19: 50 | E19: 50 | F19: 50 | G19: 50 | H19: 50 | I19: 50 | J19: 0 | K19: 41.5 | M19: 45 | N19: 73
A20: Fuel cost | B20: $/L | C20: 1.040838377 | D20: 1.040838377 | E20: 0.7925165306 | F20: 0.7925165306 | G20: 0.7925165306 | H20: 0.4596595877 | I20: 0.7925165306 | J20: 0 | K20: =3.33*S9*(1+S11/100) -> 1.4319 | M20: =3.33*S9*(1+S11/100) -> 1.4319 | N20: =3.33*S9*(1+S11/100) -> 1.4319
A21: Fuel cost projection | B21: %/year | C21: 0 | D21: 0 | E21: 0.008 | F21: 0.008 | G21: 0.008 | H21: 0.004 | I21: 0.008
A22: Fuel additive | B22: $/L
A23: Fuel station operation costs | B23: $/year/bus | C23: 6800 | D23: 6800 | E23: 6800 | F23: 6800 | G23: 6800 | H23: 8500 | I23: 6800
A24: Insurance | B24: $/year/bus
A25: Additional operational costs to include | B25: $/year/bus
A27: Maintenance Data
B28: Units
A29: Fixed annual maintenance cost | B29: $/year/bus | C29: 35620.53314 | D29: 35620.53314 | E29: 30969.67429 | F29: 28725 | G29: 30969.67429 | H29: 36016.56628 | I29: 30969.67429 | J29: 30969.67429 | K29: =M29*1.5 -> 19350 | L29: =17000*S9 -> 7310 | M29: =30000*S9 -> 12900 | N29: =70000*S9 -> 30100
A30: Total cost of maintenance labor | B30: $/year/bus | E30: =E29*1.26 -> 39021.7896 | F30: =F29*1.26 -> 36193.5 | G30: =G29*1.26 -> 39021.7896 | H30: 54000 | I30: =I29*1.26 -> 39021.7896 | J30: =J29*1.26 -> 39021.7896
A31: Brake reline | B31: $/bus | E31: 2000 | F31: 2700 | G31: 2000 | H31: 3800 | I31: 2000
A32: Frequency | E32: 1 | F32: 1 | G32: 1 | H32: 1 | I32: 1
A33: Tires | B33: $/bus | C33: 11409.51349 | D33: 11409.51349 | E33: 9939.376556 | G33: 9939.376556 | H33: 6751.970107 | I33: 9939.376556
A34: Frequency
A35: Battery conditioning | B35: $/bus
A36: Frequency
A37: DPF cleaning | B37: $/bus
A38: Frequency
A39: Fuel station maintenance | B39: $/bus | C39: 6566.929772 | D39: 6566.929772 | E39: 6011.540672 | F39: 2096.666667 | G39: 6011.540672 | H39: 5306.469594 | I39: 6011.540672
A40: Frequency | C40: 1 | D40: 1 | E40: 1 | F40: 1 | G40: 1 | H40: 1 | I40: 1
A41: Lubricant | B41: $/bus
A42: Frequency
A43: Additional maintenance costs to include | B43: $/year/bus | C43: 11409.29004 | D43: 11409.29004 | E43: 11846.81481 | F43: 24810.70833 | G43: 11846.81481 | H43: 7108.6161 | I43: 11846.81481
A45: Overhaul or Retrofitting (Optional)
B46: Units
A47: Engine overhaul | B47: $/bus | C47: 23000 | D47: 23000 | E47: 23000 | F47: 17000 | G47: 23000 | H47: 23000 | I47: 23000
A48: Frequency | B48: years | C48: 6 | D48: 6 | E48: 6 | F48: 6 | G48: 6 | H48: 6 | I48: 6
A49: Transmission overhaul | B49: $/bus | C49: 13400 | D49: 13400 | E49: 13400 | F49: 39000 | G49: 13400 | H49: 13400 | I49: 13400
A50: Frequency | B50: years | C50: 6 | D50: 6 | E50: 6 | F50: 6 | G50: 6 | H50: 6 | I50: 6
A51: CNG fuel system overhaul | B51: $/bus
A52: Frequency | B52: years
A53: Hybrid system overhaul | B53: $/bus | F53: 13200
A54: Frequency | B54: years | F54: 2
A55: Battery replacement | B55: $/bus | F55: 31400
A56: Frequency | B56: years | F56: 6
A57: Vehicle retrofits | B57: $/bus
A58: Frequency | B58: years
A60: Additional Infrastructure (optional)
B61: Units
A62: Depot/fuel station construction | B62: $ | C62: 14617.01487 | D62: 14617.01487 | E62: 24091.46102 | F62: 53000 | G62: 24091.46102 | H62: 10274.88803 | I62: 24091.46102 | J62: 1000000
A63: Depot/fuel station construction quantity
B64: INCLUDES: | F64: Battery charging and conditioning equipment | H64: Refueling station
A65: Depot/fuel station retrofit | B65: $ | C65: 870 | D65: 870 | F65: 85000 | H65: 33000
A66: Depot/fuel station retrofit quantity
B67: INCLUDES: | C67: Update depot | D67: Update depot | F67: Battery conditioning station | H67: Refueling station
A68: Special tools | B68: $ | F68: 11400 | I68: 7300
A69: Special tools quantity | C69: 0 | D69: 0 | E69: 0 | F69: 100 | G69: 0 | H69: 0 | I69: 1
B70: INCLUDES: | F70: Diagnostic equipment | I70: DPF

Sheet Default Emissions Data
A1: Country | B1: US | C1: US | D1: US | E1: US | F1: US | G1: US | H1: US | I1: US | J1: US | K1: US | L1: US | M1: US | N1: US | O1: US | P1: US | Q1: US | R1: US | S1: US | T1: US | U1: US | V1: US | W1: US | X1: Brazil | Y1: Brazil | Z1: Brazil | AA1: Brazil | AB1: Brazil
A2: Fuel | B2: Biodiesel 100% | C2: Biodiesel 100% | D2: Biodiesel 20% | E2: Biodiesel 20% | F2: Biodiesel 20% | G2: Diesel (150 ppm +) | H2: Diesel (150 ppm +) | I2: Diesel (150 ppm +) | J2: Diesel-Electric Hybrid (15 ppm) | K2: Low Sulfur Diesel (50 ppm) | L2: Low Sulfur Diesel (50 ppm) | M2: Natural Gas | N2: Natural Gas | O2: Natural Gas | P2: Ultra Low Sulfur Diesel (15 ppm) | Q2: Ultra Low Sulfur Diesel (15 ppm) | R2: Ultra Low Sulfur Diesel (15 ppm) | S2: Ultra Low Sulfur Diesel (15 ppm) | T2: Ultra Low Sulfur Diesel (15 ppm) | U2: Ultra Low Sulfur Diesel (15 ppm) | V2: Ultra Low Sulfur Diesel (15 ppm) | W2: Ultra Low Sulfur Diesel (15 ppm) | X2: Ultra Low Sulfur Diesel (10 ppm) | Y2: Ultra Low Sulfur Diesel (10 ppm) | Z2: Ultra Low Sulfur Diesel (10 ppm) | AA2: Electric | AB2: Diesel-Electric Hybrid (10 ppm)
A3: Technology | B3: Exhaust Gas Recirculation (EGR) | C3: Euro V-VI | D3: Exhaust Gas Recirculation (EGR) | E3: Selective Catalyst Reduction (SCR) | F3: Euro V-VI | G3: Oxidation Catalyst (OC) | H3: Euro II | I3: Euro III | J3: Selective Catalyst Reduction (SCR) | K3: Euro II | L3: Euro III | M3: Oxidation Catalyst (OC) | N3: Three-Way Catalyst (3WC) | O3: Euro V-VI | P3: Oxidation Catalyst (OC) | Q3: Diesel Particulate Filter (DPF) | R3: Exhaust Gas Recirculation (EGR) | S3: EPA 2007 | T3: EPA 2010 | U3: Euro III | V3: Euro IV | W3: Euro V-VI | X3: Euro V | Y3: Euro III | Z3: Euro V | AA3: Electric | AB3: Euro V
A4: Bus Length | B4: 12m | C4: 12m | D4: 12m | E4: 12m | F4: 12m | G4: 12m | H4: 12m | I4: 12m | J4: 12m | K4: 12m | L4: 12m | M4: 12m | N4: 12m | O4: 12m | P4: 12m | Q4: 12m | R4: 12m | S4: 12m | T4: 12m | U4: 12m | V4: 12m | W4: 12m | X4: 12m | Y4: 12m | Z4: 18m | AA4: 12m | AB4: 12m
A5: Carbon Dioxide (CO2), g/L | B5: 2424 | C5: 2432 | D5: 2714 | E5: 2414 | F5: 2564 | G5: 2266 | H5: 2320 | J5: 1886 | K5: 2586 | L5: 2400 | M5: 2918 | N5: 2418 | O5: 2380 | P5: 2958 | Q5: 2802 | R5: 2668 | S5: 3780 | T5: 3260 | U5: 2418 | V5: 2238 | W5: 2352 | X5: 2603 | Y5: 2603 | Z5: 2603 | AB5: =2.8*840 -> 2352
A6: Total Hydrocarbons (THC), g/km | B6: 0.19 | C6: 0.011 | D6: 0.028 | E6: 0.021 | F6: 0.025 | G6: 0.222 | H6: 0.806 | J6: 1 | K6: 0.073 | L6: 0.072 | M6: 16.179 | N6: 1.153 | O6: 0.368 | P6: 0.483 | Q6: 0.046 | R6: 0.044 | S6: 0.093 | T6: 0.011 | U6: 0.223 | V6: 0.036 | W6: 0.029
A7: Non-Methane Hydrocarbons (NMHC), g/km | J7: 2 | X7: 0.033 | Y7: 0.326 | Z7: 0.033 | AB7: 0.46
A8: Methane (CH4), g/km | J8: 3 | X8: 0.06 | Y8: 0.06 | Z8: 0.06 | AB8: =X8 -> 0.06
A9: Nitrogen Oxide (NOx), g/km | B9: 8.323 | C9: 8.143 | D9: 10.37 | E9: 10.1 | F9: 10.235 | G9: 10.121 | H9: 12.447 | J9: 9.804 | K9: 12.533 | L9: 11.015 | M9: 12.269 | N9: 3.154 | O9: 1.889 | P9: 5.308 | Q9: 16.27 | R9: 8.95 | S9: 3.56 | T9: 1.005 | U9: 8.974 | V9: 8.52 | W9: 8.025 | X9: 2.103 | Y9: 8.515 | Z9: 2.103 | AB9: =0.2*Y9 -> 1.703
A10: Nitrous Oxide (N2O), g/km | J10: 4 | X10: 0.03 | Y10: 0.03 | Z10: 0.03 | AB10: =X10 -> 0.03
A11: Nitric Oxide (NO), g/km | J11: 5
A12: Particulate Matter (PM), g/km | B12: 0.049 | C12: 0.03 | D12: 0.044 | E12: 0.031 | F12: 0.037 | G12: 0.05 | H12: 0.107 | I12: 1.12 | J12: 0.167 | K12: 0.107 | L12: 0.107 | M12: 0.03 | N12: 0.03 | O12: 0.03 | P12: 0.107 | Q12: 0.107 | R12: 0.107 | S12: 0.107 | T12: 0.107 | U12: 0.107 | V12: 0.107 | W12: 0.107 | X12: 0.02 | Y12: 0.154 | Z12: 0.02 | AB12: =0.11*Y12 -> 0.01694
A13: Carbon Monoxide (CO), g/km | B13: 0.174 | C13: 0.837 | D13: 0.103 | E13: 4.969 | F13: 2.536 | G13: 2.487 | H13: 2.313 | J13: 1.552 | K13: 2.155 | L13: 5.66 | M13: 0.406 | N13: 1.468 | O13: 1.592 | P13: 1.014 | Q13: 0.74 | R13: 0.253 | S13: 0.092 | T13: 0.052 | U13: 2.752 | V13: 4.48 | W13: 1.763 | X13: 0.44 | Y13: 1.487 | Z13: 0.44 | AB13: 1.552
A14: Greenhouse Gases (GHG/CO2e), g/km
A15: Upstream GHG/CO2e, g/km | J15: 6 | AA15: 179
A16: Total GHG, g/km | AA16: =AA14+AA15 -> 179

Sheet Capital-Financing Calc
B2: Capital-Financing Cost Calculation
B5: Summary | C5: Fleet 1 | D5: Fleet 2
B6: Total Financing Cost (Annual) | C6: =IF(C11="YES",(D26/'Fleet Inputs'!E31),0)+IF(J11="YES",(K26/'Fleet Inputs'!F31),0)+IF(Q11="YES",(R26/'Fleet Inputs'!G31),0) -> 30449605.14 | D6: =IF(X11="YES",(AB26/'Fleet Inputs'!H31),0)+IF(AE11="YES",(AI26/'Fleet Inputs'!I31),0)+IF(AL11="YES",(AP26/'Fleet Inputs'!J31),0) -> 35889532.26
B7: Total Capital/ Upfront Procurement Cost (Annual) | C7: =IF(C11="YES",(G26/'Fleet Inputs'!E31),0)+IF(J11="YES",(N26/'Fleet Inputs'!F31),0)+IF(Q11="YES",(U26/'Fleet Inputs'!G31),0) -> 42617791.52 | D7: =IF(X11="YES",(Y26/'Fleet Inputs'!H31),0)+IF(AE12="YES",(AF26/'Fleet Inputs'!I31),0)+IF(AL12="YES",(AM26/'Fleet Inputs'!J31),0) -> 21878537.23
B8: Total Annual Cost | C8: =SUM(C6:C7) -> 73067396.66 | D8: =SUM(D6:D7) -> 57768069.48
B10: Fleet 1 | W10: Fleet 2
B11: Bus Type 1 | C11: =IF('Fleet Inputs'!E10>0,"YES","") -> YES | I11: Bus Type 2 | J11: =IF('Fleet Inputs'!F10>0,"YES","") -> YES | P11: Bus Type 3 | Q11: =IF('Fleet Inputs'!G10>0,"YES","") -> YES | W11: Bus Type 4 | X11: =IF('Fleet Inputs'!H10>0,"YES","") -> YES | AD11: Bus Type 5 | AE11: =IF('Fleet Inputs'!I10>0,"YES","") -> YES | AK11: Bus Type 6 | AL11: =IF('Fleet Inputs'!J10>0,"YES","") -> YES
B12: =CONCATENATE('Fleet Inputs'!E5," | ",'Fleet Inputs'!E6," | ",'Fleet Inputs'!E7) -> Electric | Electric | 12m | I12: =CONCATENATE('Fleet Inputs'!F5," | ",'Fleet Inputs'!F6," | ",'Fleet Inputs'!F7) -> Ultra Low Sulfur Diesel (10 ppm) | Euro III | 12m | P12: =CONCATENATE('Fleet Inputs'!G5," | ",'Fleet Inputs'!G6," | ",'Fleet Inputs'!G7) -> Ultra Low Sulfur Diesel (10 ppm) | Euro V | 12m | W12: =CONCATENATE('Fleet Inputs'!H5," | ",'Fleet Inputs'!H6," | ",'Fleet Inputs'!H7) -> Electric | Electric | 12m | AD12: =CONCATENATE('Fleet Inputs'!I5," | ",'Fleet Inputs'!I6," | ",'Fleet Inputs'!I7) -> Diesel-Electric Hybrid (10 ppm) | Euro V | 12m | AK12: =CONCATENATE(IF('Fleet Inputs'!J5=0,"",'Fleet Inputs'!J5)," | ", IF('Fleet Inputs'!J6=0,"",'Fleet Inputs'!J6)," | ",IF('Fleet Inputs'!J7=0,"",'Fleet Inputs'!J7)) -> Ultra Low Sulfur Diesel (10 ppm) | Euro III | 12m
C14: Financing Costs | F14: Capital Costs | J14: Financing Costs | M14: Capital Costs | Q14: Financing Costs | T14: Capital Costs | X14: Financing Costs | AA14: Capital Costs | AE14: Financing Costs | AH14: Capital Costs | AL14: Financing Costs | AO14: Capital Costs
C16: Loan amount | D16: =G16-G17 -> 860000000 | F16: Total bus cost | G16: ='Fleet Inputs'!E10*'Fleet Inputs'!E32 -> 1075000000 | J16: Loan amount | K16: =N16-N17 -> 17200000 | M16: Total bus cost | N16: ='Fleet Inputs'!F10*'Fleet Inputs'!F32 -> 21500000 | Q16: Loan amount | R16: =U16-U17 -> 17200000 | T16: Total bus cost | U16: ='Fleet Inputs'!G10*'Fleet Inputs'!G32 -> 21500000 | X16: Loan amount | Y16: =AB16-AB17 -> 645000000 | AA16: Total bus cost | AB16: ='Fleet Inputs'!H10*'Fleet Inputs'!H32 -> 806250000 | AE16: Loan amount | AF16: =AI16-AI17 -> 25800000 | AH16: Total bus cost | AI16: ='Fleet Inputs'!I10*'Fleet Inputs'!I32 -> 32250000 | AL16: Loan amount | AM16: =AP16-AP17 -> 51600000 | AO16: Total bus cost | AP16: ='Fleet Inputs'!J10*'Fleet Inputs'!J32 -> 64500000
C17: Annual interest rate | D17: ='Fleet Inputs'!E35 -> 0.094 | F17: Down payment | G17: =G16*'Fleet Inputs'!E34 -> 215000000 | J17: Annual interest rate | K17: ='Fleet Inputs'!F35 -> 0.099 | M17: Down payment | N17: =N16*'Fleet Inputs'!F34 -> 4300000 | Q17: Annual interest rate | R17: ='Fleet Inputs'!G35 -> 0.099 | T17: Down payment | U17: =U16*'Fleet Inputs'!G34 -> 4300000 | X17: Annual interest rate | Y17: ='Fleet Inputs'!H35 -> 0.094 | AA17: Down payment | AB17: =AB16*'Fleet Inputs'!H34 -> 161250000 | AE17: Annual interest rate | AF17: ='Fleet Inputs'!I35 -> 0.099 | AH17: Down payment | AI17: =AI16*'Fleet Inputs'!I34 -> 6450000 | AL17: Annual interest rate | AM17: ='Fleet Inputs'!J35 -> 0.099 | AO17: Down payment | AP17: =AP16*'Fleet Inputs'!J34 -> 12900000
C18: Loan period in years | D18: ='Fleet Inputs'!E36 -> 14 | F18: Discount rate | G18: ='Fleet Inputs'!E12 -> 0.1 | J18: Loan period in years | K18: ='Fleet Inputs'!F36 -> 9 | M18: Discount rate | N18: ='Fleet Inputs'!F12 -> 0.1 | Q18: Loan period in years | R18: ='Fleet Inputs'!G36 -> 9 | T18: Discount rate | U18: ='Fleet Inputs'!G12 -> 0.1 | X18: Loan period in years | Y18: ='Fleet Inputs'!H36 -> 14 | AA18: Discount rate | AB18: ='Fleet Inputs'!H12 -> 0.1 | AE18: Loan period in years | AF18: ='Fleet Inputs'!I36 -> 9 | AH18: Discount rate | AI18: ='Fleet Inputs'!I12 -> 0.1 | AL18: Loan period in years | AM18: ='Fleet Inputs'!J36 -> 9 | AO18: Discount rate | AP18: ='Fleet Inputs'!J12 -> 0.1
C19: Start date of loan | D19: =TODAY() -> 2021-10-22 | J19: Start date of loan | K19: =TODAY() -> 2021-10-22 | Q19: Start date of loan | R19: =TODAY() -> 2021-10-22 | X19: Start date of loan | Y19: =TODAY() -> 2021-10-22 | AE19: Start date of loan | AF19: =TODAY() -> 2021-10-22 | AL19: Start date of loan | AM19: =TODAY() -> 2021-10-22
C20: Annual payment | D20: =-PMT(D17,D21,D16) -> 112950353.5 | F20: Infrastructure costs | G20: =IF('Fleet Inputs'!E87>0,CEILING('Fleet Inputs'!E10/'Fleet Inputs'!E87,1)*'Fleet Inputs'!E86,0)+IF('Fleet Inputs'!E90>0,CEILING('Fleet Inputs'!E10/'Fleet Inputs'!E90,1)*'Fleet Inputs'!E89,0)+IF('Fleet Inputs'!E93>0,CEILING('Fleet Inputs'!E10/'Fleet Inputs'!E93,1)*'Fleet Inputs'!E92,0) -> 0 | J20: Annual payment | K20: =-PMT(K17,K21,K16) -> 2974756.149 | M20: Infrastructure costs | N20: =IF('Fleet Inputs'!F87>0,CEILING('Fleet Inputs'!F10/'Fleet Inputs'!F87,1)*'Fleet Inputs'!F86,0)+IF('Fleet Inputs'!F90>0,CEILING('Fleet Inputs'!F10/'Fleet Inputs'!F90,1)*'Fleet Inputs'!F89,0)+IF('Fleet Inputs'!F93>0,CEILING('Fleet Inputs'!F10/'Fleet Inputs'!F93,1)*'Fleet Inputs'!F92,0) -> 0 | Q20: Annual payment | R20: =-PMT(R17,R21,R16) -> 2974756.149 | T20: Infrastructure costs | U20: =IF('Fleet Inputs'!G87>0,CEILING('Fleet Inputs'!G10/'Fleet Inputs'!G87,1)*'Fleet Inputs'!G86,0)+IF('Fleet Inputs'!G90>0,CEILING('Fleet Inputs'!G10/'Fleet Inputs'!G90,1)*'Fleet Inputs'!G89,0)+IF('Fleet Inputs'!G93>0,CEILING('Fleet Inputs'!G10/'Fleet Inputs'!G93,1)*'Fleet Inputs'!G92,0) -> 0 | X20: Annual payment | Y20: =-PMT(Y17,Y21,Y16) -> 84712765.11 | AA20: Infrastructure costs | AB20: =IF('Fleet Inputs'!H87>0,CEILING('Fleet Inputs'!H10/'Fleet Inputs'!H87,1)*'Fleet Inputs'!H86,0)+IF('Fleet Inputs'!H90>0,CEILING('Fleet Inputs'!H10/'Fleet Inputs'!H90,1)*'Fleet Inputs'!H89,0)+IF('Fleet Inputs'!H93>0,CEILING('Fleet Inputs'!H10/'Fleet Inputs'!H93,1)*'Fleet Inputs'!H92,0) -> 0 | AE20: Annual payment | AF20: =-PMT(AF17,AF21,AF16) -> 4462134.223 | AH20: Infrastructure costs | AI20: =IF('Fleet Inputs'!I87>0,CEILING('Fleet Inputs'!I10/'Fleet Inputs'!I87,1)*'Fleet Inputs'!I86,0)+IF('Fleet Inputs'!I90>0,CEILING('Fleet Inputs'!I10/'Fleet Inputs'!I90,1)*'Fleet Inputs'!I89,0)+IF('Fleet Inputs'!I93>0,CEILING('Fleet Inputs'!I10/'Fleet Inputs'!I93,1)*'Fleet Inputs'!I92,0) -> 0 | AL20: Annual payment | AM20: =-PMT(AM17,AM21,AM16) -> 8924268.446 | AO20: Infrastructure costs | AP20: =IF('Fleet Inputs'!J87>0,CEILING('Fleet Inputs'!J10/'Fleet Inputs'!J87,1)*'Fleet Inputs'!J86,0)+IF('Fleet Inputs'!J90>0,CEILING('Fleet Inputs'!J10/'Fleet Inputs'!J90,1)*'Fleet Inputs'!J89,0)+IF('Fleet Inputs'!J93>0,CEILING('Fleet Inputs'!J10/'Fleet Inputs'!J93,1)*'Fleet Inputs'!J92,0) -> 0
C21: Number of payments | D21: =D18 -> 14 | F21: Bus residual value | G21: ='Fleet Inputs'!E33*'Capital-Financing Calc'!G16 -> 53750000 | J21: Number of payments | K21: =K18 -> 9 | M21: Bus residual value | N21: ='Fleet Inputs'!F33*'Capital-Financing Calc'!N16 -> 2150000 | Q21: Number of payments | R21: =R18 -> 9 | T21: Bus residual value | U21: ='Fleet Inputs'!G33*'Capital-Financing Calc'!U16 -> 2150000 | X21: Number of payments | Y21: =Y18 -> 14 | AA21: Bus residual value | AB21: ='Fleet Inputs'!H33*'Capital-Financing Calc'!AB16 -> 40312500 | AE21: Number of payments | AF21: =AF18 -> 9 | AH21: Bus residual value | AI21: ='Fleet Inputs'!I33*'Capital-Financing Calc'!AI16 -> 3225000 | AL21: Number of payments | AM21: =AM18 -> 9 | AO21: Bus residual value | AP21: ='Fleet Inputs'!J33*'Capital-Financing Calc'!AP16 -> 6450000
C22: Total interest | D22: =D23-D16 -> 721304948.7 | F22: Bus residual PV | G22: =G21/(1+'Fleet Inputs'!E12)^'Fleet Inputs'!E31 -> 12867322.65 | J22: Total interest | K22: =K23-K16 -> 9572805.338 | M22: Bus residual PV | N22: =N21/(1+'Fleet Inputs'!E12)^'Fleet Inputs'!F31 -> 828918.0723 | Q22: Total interest | R22: =R23-R16 -> 9572805.338 | T22: Bus residual PV | U22: =U21/(1+'Fleet Inputs'!E12)^'Fleet Inputs'!G31 -> 828918.0723 | X22: Total interest | Y22: =Y23-Y16 -> 540978711.5 | AA22: Bus residual PV | AB22: =AB21/(1+'Fleet Inputs'!E12)^'Fleet Inputs'!H31 -> 9650491.99 | AE22: Total interest | AF22: =AF23-AF16 -> 14359208.01 | AH22: Bus residual PV | AI22: =AI21/(1+'Fleet Inputs'!E12)^'Fleet Inputs'!I31 -> 1027584.387 | AL22: Total interest | AM22: =AM23-AM16 -> 28718416.01 | AO22: Bus residual PV | AP22: =AP21/(1+'Fleet Inputs'!E12)^'Fleet Inputs'!J31 -> 2486754.217
C23: Total cost of loan | D23: =D21*D20 -> 1581304949 | J23: Total cost of loan | K23: =K21*K20 -> 26772805.34 | Q23: Total cost of loan | R23: =R21*R20 -> 26772805.34 | X23: Total cost of loan | Y23: =Y21*Y20 -> 1185978712 | AE23: Total cost of loan | AF23: =AF21*AF20 -> 40159208.01 | AL23: Total cost of loan | AM23: =AM21*AM20 -> 80318416.01
C26: Lifetime Financing PV | D26: =NPV(G18,INDIRECT("f"&(ROW(30:30)+1)):INDIRECT("f"&(ROW(30:30)+D18))) -> 437570741.8 | F26: Lifetime Capital/ Upfront Procurement PV | G26: =(G17-G22)+G20+NPV(G18,INDIRECT("e"&(ROW(30:30)+1)):INDIRECT("e"&(ROW(30:30)+D18))) -> 596631887.8 | J26: Lifetime Financing PV | K26: =NPV(N18,INDIRECT("m"&(ROW(30:30)+1)):INDIRECT("m"&(ROW(30:30)+K18))) -> 6391111.77 | M26: Lifetime Capital/ Upfront Procurement PV | N26: =(N17-N22)+N20+NPV(N18,INDIRECT("l"&(ROW(30:30)+1)):INDIRECT("l"&(ROW(30:30)+K18))) -> 14211661.67 | Q26: Lifetime Financing PV | R26: =NPV(U18,INDIRECT("t"&(ROW(30:30)+1)):INDIRECT("t"&(ROW(30:30)+R18))) -> 6391111.77 | T26: Lifetime Capital/ Upfront Procurement PV | U26: =(U17-U22)+U20+NPV(U18,INDIRECT("s"&(ROW(30:30)+1)):INDIRECT("s"&(ROW(30:30)+R18))) -> 14211661.67 | X26: Lifetime Financing PV | Y26: =NPV(AB18,INDIRECT("AA"&(ROW(30:30)+1)):INDIRECT("AA"&(ROW(30:30)+Y18))) -> 328178058.4 | AA26: Lifetime Capital/ Upfront Procurement PV | AB26: =(AB17-AB22)+AB20+NPV(AB18,INDIRECT("Z"&(ROW(30:30)+1)):INDIRECT("Z"&(ROW(30:30)+Y18))) -> 447473913.8 | AE26: Lifetime Financing PV | AF26: =NPV(AI18,INDIRECT("AH"&(ROW(30:30)+1)):INDIRECT("AH"&(ROW(30:30)+AF18))) -> 9586672.943 | AH26: Lifetime Capital/ Upfront Procurement PV | AI26: =(AI17-AI22)+AI20+NPV(AI18,INDIRECT("AG"&(ROW(30:30)+1)):INDIRECT("AG"&(ROW(30:30)+AF18))) -> 21533279.93 | AL26: Lifetime Financing PV | AM26: =NPV(AP18,INDIRECT("AO"&(ROW(30:30)+1)):INDIRECT("AO"&(ROW(30:30)+AM18))) -> 19173340.21 | AO26: Lifetime Capital/ Upfront Procurement PV | AP26: =(AP17-AP22)+AP20+NPV(AP18,INDIRECT("AN"&(ROW(30:30)+1)):INDIRECT("AN"&(ROW(30:30)+AM18))) -> 42634980.09
B29: Loan cost calculator | I29: Loan cost calculator | P29: Loan cost calculator | W29: Loan cost calculator | AD29: Loan cost calculator | AK29: Loan cost calculator
B30: No. | C30: Beginning Balance | D30: Payment | E30: Principal | F30: Interest | G30: Ending Balance | I30: No. | J30: Beginning Balance | K30: Payment | L30: Principal | M30: Interest | N30: Ending Balance | P30: No. | Q30: Beginning Balance | R30: Payment | S30: Principal | T30: Interest | U30: Ending Balance | W30: No. | X30: Beginning Balance | Y30: Payment | Z30: Principal | AA30: Interest | AB30: Ending Balance | AD30: No. | AE30: Beginning Balance | AF30: Payment | AG30: Principal | AH30: Interest | AI30: Ending Balance | AK30: No. | AL30: Beginning Balance | AM30: Payment | AN30: Principal | AO30: Interest | AP30: Ending Balance
B31: =ROW()-ROW(30:30) -> 1 | C31: =IF(D16>0,D16," ") -> 860000000 | D31: =$D$20 -> 112950353.5 | E31: =D31-F31 -> 32110353.48 | F31: =C31*D17 -> 80840000 | G31: =ROUND(C31-E31,-1) -> 827889650 | I31: =ROW()-ROW(30:30) -> 1 | J31: =IF(K16>0,K16," ") -> 17200000 | K31: =$K$20 -> 2974756.149 | L31: =K31-M31 -> 1271956.149 | M31: =J31*K17 -> 1702800 | N31: =ROUND(J31-L31,-1) -> 15928040 | P31: =ROW()-ROW(30:30) -> 1 | Q31: =IF(R16>0,R16," ") -> 17200000 | R31: =$R$20 -> 2974756.149 | S31: =R31-T31 -> 1271956.149 | T31: =Q31*R17 -> 1702800 | U31: =ROUND(Q31-S31,-1) -> 15928040 | W31: =ROW()-ROW(30:30) -> 1 | X31: =IF(Y16>0,Y16," ") -> 645000000 | Y31: =$Y$20 -> 84712765.11 | Z31: =Y31-AA31 -> 24082765.11 | AA31: =X31*Y17 -> 60630000 | AB31: =ROUND(X31-Z31,-1) -> 620917230 | AD31: =ROW()-ROW(30:30) -> 1 | AE31: =IF(AF16>0,AF16," ") -> 25800000 | AF31: =$AF$20 -> 4462134.223 | AG31: =AF31-AH31 -> 1907934.223 | AH31: =AE31*AF17 -> 2554200 | AI31: =ROUND(AE31-AG31,-1) -> 23892070 | AK31: =ROW()-ROW(30:30) -> 1 | AL31: =IF(AM16>0,AM16," ") -> 51600000 | AM31: =$AM$20 -> 8924268.446 | AN31: =AM31-AO31 -> 3815868.446 | AO31: =AL31*AM17 -> 5108400 | AP31: =ROUND(AL31-AN31,-1) -> 47784130
B32: =IF(G31>0,B31+1,"END") -> 2 | C32: =IF(G31>0,G31," ") -> 827889650 | D32: =IF(G31>0,$D$20,"") -> 112950353.5 | E32: =IF(G31>0,D32-F32,"") -> 35128726.38 | F32: =IF(G31>0,C32*$D$17,"") -> 77821627.1 | G32: =IF(G31>0,ROUND(C32-E32,-1)," ") -> 792760920 | I32: =IF(N31>0,I31+1,"END") -> 2 | J32: =IF(N31>0,N31," ") -> 15928040 | K32: =IF(N31>0,$K$20,"") -> 2974756.149 | L32: =IF(N31>0,K32-M32,"") -> 1477520.389 | M32: =IF(N31>0,J32*$D$17,"") -> 1497235.76 | N32: =IF(N31>0,ROUND(J32-L32,-1)," ") -> 14450520 | P32: =IF(U31>0,P31+1,"END") -> 2 | Q32: =IF(U31>0,U31," ") -> 15928040 | R32: =IF(U31>0,$R$20,"") -> 2974756.149 | S32: =IF(U31>0,R32-T32,"") -> 1477520.389 | T32: =IF(U31>0,Q32*$D$17,"") -> 1497235.76 | U32: =IF(U31>0,ROUND(Q32-S32,-1)," ") -> 14450520 | W32: =IF(AB31>0,W31+1,"END") -> 2 | X32: =IF(AB31>0,AB31," ") -> 620917230 | Y32: =IF(AB31>0,$Y$20,"") -> 84712765.11 | Z32: =IF(AB31>0,Y32-AA32,"") -> 26346545.49 | AA32: =IF(AB31>0,X32*$D$17,"") -> 58366219.62 | AB32: =IF(AB31>0,ROUND(X32-Z32,-1)," ") -> 594570680 | AD32: =IF(AI31>0,AD31+1,"END") -> 2 | AE32: =IF(AI31>0,AI31," ") -> 23892070 | AF32: =IF(AI31>0,$AF$20,"") -> 4462134.223 | AG32: =IF(AI31>0,AF32-AH32,"") -> 2216279.643 | AH32: =IF(AI31>0,AE32*$D$17,"") -> 2245854.58 | AI32: =IF(AI31>0,ROUND(AE32-AG32,-1)," ") -> 21675790 | AK32: =IF(AP31>0,AK31+1,"END") -> 2 | AL32: =IF(AP31>0,AP31," ") -> 47784130 | AM32: =IF(AP31>0,$AM$20,"") -> 8924268.446 | AN32: =IF(AP31>0,AM32-AO32,"") -> 4432560.226 | AO32: =IF(AP31>0,AL32*$D$17,"") -> 4491708.22 | AP32: =IF(AP31>0,ROUND(AL32-AN32,-1)," ") -> 43351570
B33: =IF(G32>0,B32+1,"") -> 3 | C33: =IF(G32>0,G32," ") -> 792760920 | D33: =IF(G32>0,$D$20,"") -> 112950353.5 | E33: =IF(G32>0,D33-F33,"") -> 38430827 | F33: =IF(G32>0,C33*$D$17,"") -> 74519526.48 | G33: =IF(G32>0,ROUND(C33-E33,-1)," ") -> 754330090 | I33: =IF(N32>0,I32+1,"") -> 3 | J33: =IF(N32>0,N32," ") -> 14450520 | K33: =IF(N32>0,$K$20,"") -> 2974756.149 | L33: =IF(N32>0,K33-M33,"") -> 1616407.269 | M33: =IF(N32>0,J33*$D$17,"") -> 1358348.88 | N33: =IF(N32>0,ROUND(J33-L33,-1)," ") -> 12834110 | P33: =IF(U32>0,P32+1,"") -> 3 | Q33: =IF(U32>0,U32," ") -> 14450520 | R33: =IF(U32>0,$R$20,"") -> 2974756.149 | S33: =IF(U32>0,R33-T33,"") -> 1616407.269 | T33: =IF(U32>0,Q33*$D$17,"") -> 1358348.88 | U33: =IF(U32>0,ROUND(Q33-S33,-1)," ") -> 12834110 | W33: =IF(AB32>0,W32+1,"") -> 3 | X33: =IF(AB32>0,AB32," ") -> 594570680 | Y33: =IF(AB32>0,$Y$20,"") -> 84712765.11 | Z33: =IF(AB32>0,Y33-AA33,"") -> 28823121.19 | AA33: =IF(AB32>0,X33*$D$17,"") -> 55889643.92 | AB33: =IF(AB32>0,ROUND(X33-Z33,-1)," ") -> 565747560 | AD33: =IF(AI32>0,AD32+1,"") -> 3 | AE33: =IF(AI32>0,AI32," ") -> 21675790 | AF33: =IF(AI32>0,$AF$20,"") -> 4462134.223 | AG33: =IF(AI32>0,AF33-AH33,"") -> 2424609.963 | AH33: =IF(AI32>0,AE33*$D$17,"") -> 2037524.26 | AI33: =IF(AI32>0,ROUND(AE33-AG33,-1)," ") -> 19251180 | AK33: =IF(AP32>0,AK32+1,"") -> 3 | AL33: =IF(AP32>0,AP32," ") -> 43351570 | AM33: =IF(AP32>0,$AM$20,"") -> 8924268.446 | AN33: =IF(AP32>0,AM33-AO33,"") -> 4849220.866 | AO33: =IF(AP32>0,AL33*$D$17,"") -> 4075047.58 | AP33: =IF(AP32>0,ROUND(AL33-AN33,-1)," ") -> 38502350
B34: 4 | C34: 754330090 | D34: 112950353.5 | E34: 42043325.02 | F34: 70907028.46 | G34: 712286760 | I34: 4 | J34: 12834110 | K34: 2974756.149 | L34: 1768349.809 | M34: 1206406.34 | N34: 11065760 | P34: 4 | Q34: 12834110 | R34: 2974756.149 | S34: 1768349.809 | T34: 1206406.34 | U34: 11065760 | W34: 4 | X34: 565747560 | Y34: 84712765.11 | Z34: 31532494.47 | AA34: 53180270.64 | AB34: 534215070 | AD34: 4 | AE34: 19251180 | AF34: 4462134.223 | AG34: 2652523.303 | AH34: 1809610.92 | AI34: 16598660 | AK34: 4 | AL34: 38502350 | AM34: 8924268.446 | AN34: 5305047.546 | AO34: 3619220.9 | AP34: 33197300
B35: 5 | C35: 712286760 | D35: 112950353.5 | E35: 45995398.04 | F35: 66954955.44 | G35: 666291360 | I35: 5 | J35: 11065760 | K35: 2974756.149 | L35: 1934574.709 | M35: 1040181.44 | N35: 9131190 | P35: 5 | Q35: 11065760 | R35: 2974756.149 | S35: 1934574.709 | T35: 1040181.44 | U35: 9131190 | W35: 5 | X35: 534215070 | Y35: 84712765.11 | Z35: 34496548.53 | AA35: 50216216.58 | AB35: 499718520 | AD35: 5 | AE35: 16598660 | AF35: 4462134.223 | AG35: 2901860.183 | AH35: 1560274.04 | AI35: 13696800 | AK35: 5 | AL35: 33197300 | AM35: 8924268.446 | AN35: 5803722.246 | AO35: 3120546.2 | AP35: 27393580
B36: 6 | C36: 666291360 | D36: =IF(G35>0,$D$20,"") -> 112950353.5 | E36: 50318965.64 | F36: 62631387.84 | G36: 615972390 | I36: 6 | J36: 9131190 | K36: 2974756.149 | L36: 2116424.289 | M36: 858331.86 | N36: 7014770 | P36: 6 | Q36: 9131190 | R36: 2974756.149 | S36: 2116424.289 | T36: 858331.86 | U36: 7014770 | W36: 6 | X36: 499718520 | Y36: 84712765.11 | Z36: 37739224.23 | AA36: 46973540.88 | AB36: 461979300 | AD36: 6 | AE36: 13696800 | AF36: 4462134.223 | AG36: 3174635.023 | AH36: 1287499.2 | AI36: 10522160 | AK36: 6 | AL36: 27393580 | AM36: 8924268.446 | AN36: 6349271.926 | AO36: 2574996.52 | AP36: 21044310
B37: =IF(G36>0,B36+1,"") -> 7 | C37: 615972390 | D37: 112950353.5 | E37: 55048948.82 | F37: 57901404.66 | G37: 560923440 | I37: 7 | J37: 7014770 | K37: 2974756.149 | L37: 2315367.769 | M37: 659388.38 | N37: 4699400 | P37: 7 | Q37: 7014770 | R37: 2974756.149 | S37: 2315367.769 | T37: 659388.38 | U37: 4699400 | W37: 7 | X37: 461979300 | Y37: 84712765.11 | Z37: 41286710.91 | AA37: 43426054.2 | AB37: 420692590 | AD37: 7 | AE37: 10522160 | AF37: 4462134.223 | AG37: 3473051.183 | AH37: 989083.04 | AI37: 7049110 | AK37: 7 | AL37: 21044310 | AM37: 8924268.446 | AN37: 6946103.306 | AO37: 1978165.14 | AP37: 14098210
B38: 8 | C38: 560923440 | D38: =IF(G37>0,$D$20,"") -> 112950353.5 | E38: 60223550.12 | F38: 52726803.36 | G38: 500699890 | I38: 8 | J38: 4699400 | K38: 2974756.149 | L38: 2533012.549 | M38: 441743.6 | N38: 2166390 | P38: 8 | Q38: 4699400 | R38: 2974756.149 | S38: 2533012.549 | T38: 441743.6 | U38: 2166390 | W38: 8 | X38: 420692590 | Y38: 84712765.11 | Z38: 45167661.65 | AA38: 39545103.46 | AB38: 375524930 | AD38: 8 | AE38: 7049110 | AF38: 4462134.223 | AG38: 3799517.883 | AH38: 662616.34 | AI38: 3249590 | AK38: 8 | AL38: 14098210 | AM38: 8924268.446 | AN38: 7599036.706 | AO38: 1325231.74 | AP38: 6499170
B39: =IF(G38>0,B38+1,"") -> 9 | C39: 500699890 | D39: =IF(G38>0,$D$20,"") -> 112950353.5 | E39: 65884563.82 | F39: 47065789.66 | G39: 434815330 | I39: 9 | J39: 2166390 | K39: 2974756.149 | L39: 2771115.489 | M39: 203640.66 | N39: -604730 | P39: 9 | Q39: 2166390 | R39: 2974756.149 | S39: 2771115.489 | T39: 203640.66 | U39: -604730 | W39: 9 | X39: 375524930 | Y39: 84712765.11 | Z39: 49413421.69 | AA39: 35299343.42 | AB39: 326111510 | AD39: 9 | AE39: 3249590 | AF39: 4462134.223 | AG39: 4156672.763 | AH39: 305461.46 | AI39: -907080 | AK39: 9 | AL39: 6499170 | AM39: 8924268.446 | AN39: 8313346.466 | AO39: 610921.98 | AP39: -1814180
B40: 10 | C40: 434815330 | D40: 112950353.5 | E40: 72077712.46 | F40: 40872641.02 | G40: 362737620 | W40: 10 | X40: 326111510 | Y40: 84712765.11 | Z40: 54058283.17 | AA40: 30654481.94 | AB40: 272053230
B41: 11 | C41: 362737620 | D41: 112950353.5 | E41: 78853017.2 | F41: 34097336.28 | G41: 283884600 | K41: 2974756.149 | R41: 2974756.149 | W41: 11 | X41: 272053230 | Y41: 84712765.11 | Z41: 59139761.49 | AA41: 25573003.62 | AB41: 212913470 | AF41: 4462134.223 | AM41: 8924268.446
B42: 12 | C42: 283884600 | D42: 112950353.5 | E42: 86265201.08 | F42: 26685152.4 | G42: 197619400 | W42: 12 | X42: 212913470 | Y42: 84712765.11 | Z42: 64698898.93 | AA42: 20013866.18 | AB42: 148214570
B43: =IF(G42>0,B42+1,"") -> 13 | C43: 197619400 | D43: 112950353.5 | E43: 94374129.88 | F43: 18576223.6 | G43: 103245270 | W43: 13 | X43: 148214570 | Y43: 84712765.11 | Z43: 70780595.53 | AA43: 13932169.58 | AB43: 77433970
B44: 14 | C44: 103245270 | D44: =IF(G43>0,$D$20,"") -> 112950353.5 | E44: 103245298.1 | F44: 9705055.38 | G44: =IF(G43>0,ROUND(C44-E44,-1)," ") -> -30 | N44: =IF(N43>0,ROUND(J44-L44,-1)," ") ->  | U44: =IF(U43>0,ROUND(Q44-S44,-1)," ") ->  | W44: 14 | X44: 77433970 | Y44: 84712765.11 | Z44: 77433971.93 | AA44: 7278793.18 | AB44: =IF(AB43>0,ROUND(X44-Z44,-1)," ") -> 0 | AI44: =IF(AI43>0,ROUND(AE44-AG44,-1)," ") ->  | AP44: =IF(AP43>0,ROUND(AL44-AN44,-1)," ") -> 
D45: =IF(G44>0,$D$20,"") ->  | E45: =IF(G44>0,D45-F45,"") ->  | F45: =IF(G44>0,C45*$D$17,"") ->  | L45: =IF(N44>0,K45-M45,"") ->  | M45: =IF(N44>0,J45*$D$17,"") ->  | N45: =IF(N44>0,ROUND(J45-L45,-1)," ") ->  | S45: =IF(U44>0,R45-T45,"") ->  | T45: =IF(U44>0,Q45*$D$17,"") ->  | U45: =IF(U44>0,ROUND(Q45-S45,-1)," ") ->  | Z45: =IF(AB44>0,Y45-AA45,"") ->  | AA45: =IF(AB44>0,X45*$D$17,"") ->  | AB45: =IF(AB44>0,ROUND(X45-Z45,-1)," ") ->  | AG45: =IF(AI44>0,AF45-AH45,"") ->  | AH45: =IF(AI44>0,AE45*$D$17,"") ->  | AI45: =IF(AI44>0,ROUND(AE45-AG45,-1)," ") ->  | AN45: =IF(AP44>0,AM45-AO45,"") ->  | AO45: =IF(AP44>0,AL45*$D$17,"") ->  | AP45: =IF(AP44>0,ROUND(AL45-AN45,-1)," ") -> 
D46: 112950353.5 | E46: =IF(G45>0,D46-F46,"") ->  | F46: =IF(G45>0,C46*$D$17,"") ->  | L46: =IF(N45>0,K46-M46,"") ->  | M46: =IF(N45>0,J46*$D$17,"") ->  | S46: =IF(U45>0,R46-T46,"") ->  | T46: =IF(U45>0,Q46*$D$17,"") ->  | Y46: 84712765.11 | Z46: =IF(AB45>0,Y46-AA46,"") ->  | AA46: =IF(AB45>0,X46*$D$17,"") ->  | AG46: =IF(AI45>0,AF46-AH46,"") ->  | AH46: =IF(AI45>0,AE46*$D$17,"") ->  | AN46: =IF(AP45>0,AM46-AO46,"") ->  | AO46: =IF(AP45>0,AL46*$D$17,"") -> 
G47: =IF(G46>0,ROUND(C47-E47,-1)," ") ->  | N47: =IF(N46>0,ROUND(J47-L47,-1)," ") ->  | U47: =IF(U46>0,ROUND(Q47-S47,-1)," ") ->  | AB47: =IF(AB46>0,ROUND(X47-Z47,-1)," ") ->  | AI47: =IF(AI46>0,ROUND(AE47-AG47,-1)," ") ->  | AP47: =IF(AP46>0,ROUND(AL47-AN47,-1)," ") -> 
D48: =IF(G47>0,D35,"") ->  | N48: =IF(N47>0,ROUND(J48-L48,-1)," ") ->  | U48: =IF(U47>0,ROUND(Q48-S48,-1)," ") ->  | AB48: =IF(AB47>0,ROUND(X48-Z48,-1)," ") ->  | AI48: =IF(AI47>0,ROUND(AE48-AG48,-1)," ") ->  | AP48: =IF(AP47>0,ROUND(AL48-AN48,-1)," ") -> 
B50: =IF(G49>0,B49+1,"") ->  | C50: =IF(G49>0,G49," ") ->  | D50: =IF(G49>0,$D$20,"") ->  | E50: =IF(G49>0,D50-F50,"") ->  | F50: =IF(G49>0,C50*$D$17,"") -> 
D51: =IF(G50>0,D38,"") -> 
D53: =IF(G52>0,$D$20,"") -> 
D54: =IF(G53>0,D41,"") -> 
D56: =IF(G55>0,$D$20,"") -> 
D57: =IF(G56>0,D44,"") -> 
D59: =IF(G58>0,$D$20,"") -> 
D60: =IF(G59>0,D47,"") -> 
I194: =IF(loan_not_paid1*values_entered1,payment_number1,"") ->  | J194: =IF(loan_not_paid1*values_entered1,payment_number1,"") ->  | K194: =IF(loan_not_paid1*values_entered1,payment_date1,"") ->  | L194: =IF(loan_not_paid1*values_entered1,beginning_balance1,"") ->  | M194: =IF(loan_not_paid1*values_entered1,annual_payment1,"") ->  | N194: =IF(loan_not_paid1*values_entered1,principal1,"") ->  | O194: =IF(loan_not_paid1*values_entered1,interest1,"") ->  | P194: =IF(loan_not_paid1*values_entered1,ending_balance1,"") -> 
J205: =IF(loan_not_paid1*values_entered1,payment_number1,"") ->  | K205: =IF(loan_not_paid1*values_entered1,payment_date1,"") ->  | L205: =IF(loan_not_paid1*values_entered1,beginning_balance1,"") ->  | M205: =IF(loan_not_paid1*values_entered1,annual_payment1,"") ->  | N205: =IF(loan_not_paid1*values_entered1,principal1,"") ->  | O205: =IF(loan_not_paid1*values_entered1,interest1,"") ->  | P205: =IF(loan_not_paid1*values_entered1,ending_balance1,"") -> 
I231: =IF(loan_not_paid1*values_entered1,payment_number1,"") -> 
J269: =IF(loan_not_paid1*values_entered1,payment_number1,"") ->  | K269: =IF(loan_not_paid1*values_entered1,payment_date1,"") ->  | L269: =IF(loan_not_paid1*values_entered1,beginning_balance1,"") ->  | M269: =IF(loan_not_paid1*values_entered1,annual_payment1,"") ->  | N269: =IF(loan_not_paid1*values_entered1,principal1,"") ->  | O269: =IF(loan_not_paid1*values_entered1,interest1,"") ->  | P269: =IF(loan_not_paid1*values_entered1,ending_balance1,"") -> 
I295: =IF(loan_not_paid1*values_entered1,payment_number1,"") -> 
J333: =IF(loan_not_paid1*values_entered1,payment_number1,"") ->  | K333: =IF(loan_not_paid1*values_entered1,payment_date1,"") ->  | L333: =IF(loan_not_paid1*values_entered1,beginning_balance1,"") ->  | M333: =IF(loan_not_paid1*values_entered1,annual_payment1,"") ->  | N333: =IF(loan_not_paid1*values_entered1,principal1,"") ->  | O333: =IF(loan_not_paid1*values_entered1,interest1,"") ->  | P333: =IF(loan_not_paid1*values_entered1,ending_balance1,"") -> 
I359: =IF(loan_not_paid1*values_entered1,payment_number1,"") -> 

Sheet Total Operating Cost Calc
B2: Operation and Maintanence Cost Calculation
B4: Fleet 1 | BJ4: Fleet 2
B5: Bus 1 | V5: Bus 2 | AP5: Bus 3 | BJ5: Bus 4 | CD5: Bus 5 | CX5: Bus 6
B6: =CONCATENATE('Fleet Inputs'!$E$5," | ",'Fleet Inputs'!$E$6," | ",'Fleet Inputs'!$E$7) -> Electric | Electric | 12m | V6: =CONCATENATE('Fleet Inputs'!$F$5," | ",'Fleet Inputs'!$F$6," | ",'Fleet Inputs'!$F$7) -> Ultra Low Sulfur Diesel (10 ppm) | Euro III | 12m | AP6: =CONCATENATE('Fleet Inputs'!$G$5," | ",'Fleet Inputs'!$G$6," | ",'Fleet Inputs'!$G$7) -> Ultra Low Sulfur Diesel (10 ppm) | Euro V | 12m | BJ6: =CONCATENATE('Fleet Inputs'!$H$5," | ",'Fleet Inputs'!$H$6," | ",'Fleet Inputs'!$H$7) -> Electric | Electric | 12m | CD6: =CONCATENATE('Fleet Inputs'!$I$5," | ",'Fleet Inputs'!$I$6," | ",'Fleet Inputs'!$I$7) -> Diesel-Electric Hybrid (10 ppm) | Euro V | 12m | CX6: =CONCATENATE('Fleet Inputs'!$J$5," | ",'Fleet Inputs'!$J$6," | ",'Fleet Inputs'!$J$7) -> Ultra Low Sulfur Diesel (10 ppm) | Euro III | 12m
B8: Operating Costs | E8: Maintenance Costs | J8: Overhaul/Retrofits | V8: Operating Costs | Y8: Maintenance Costs | AD8: Overhaul/Retrofits | AP8: Operating Costs | AS8: Maintenance Costs | AX8: Overhaul/Retrofits | BJ8: Operating Costs | BM8: Maintenance Costs | BR8: Overhaul/Retrofits | CD8: Operating Costs | CG8: Maintenance Costs | CL8: Overhaul/Retrofits | CX8: Operating Costs | DA8: Maintenance Costs | DF8: Overhaul/Retrofits
B9: Useful Life | C9: ='Fleet Inputs'!E31 -> 15 | D9: years | V9: Useful Life | W9: ='Fleet Inputs'!F31 -> 10 | X9: years | AP9: Useful Life | AQ9: ='Fleet Inputs'!G31 -> 10 | AR9: years | BJ9: Useful Life | BK9: ='Fleet Inputs'!H31 -> 15 | BL9: years | CD9: Useful Life | CE9: ='Fleet Inputs'!I31 -> 12 | CF9: years | CX9: Useful Life | CY9: ='Fleet Inputs'!J31 -> 10 | CZ9: years
B10: To be evaluated annually | E10: To be evaluated annually | J10: To be evaluated by prescribed frequency - per bus | V10: To be evaluated annually | Y10: To be evaluated annually | AD10: To be evaluated by prescribed frequency - per bus | AP10: To be evaluated annually | AS10: To be evaluated annually | AX10: To be evaluated by prescribed frequency - per bus | BJ10: To be evaluated annually | BM10: To be evaluated annually | BR10: To be evaluated by prescribed frequency - per bus | CD10: To be evaluated annually | CG10: To be evaluated annually | CL10: To be evaluated by prescribed frequency - per bus | CX10: To be evaluated annually | DA10: To be evaluated annually | DF10: To be evaluated by prescribed frequency - per bus
B11: Total cost of driver and on-board labor | C11: ='Fleet Inputs'!E40 -> 0 | D11: $/year/bus | E11: Fixed annual maintenance cost | F11: ='Fleet Inputs'!E53 -> 7310 | G11: /y/bus | J11: Engine overhaul | K11: ='Fleet Inputs'!E71 -> 0 | L11: every | M11: ='Fleet Inputs'!E72 -> 0 | N11: y | V11: Total cost of driver and on-board labor | W11: ='Fleet Inputs'!F40 -> 0 | X11: $/year/bus | Y11: Fixed annual maintenance cost | Z11: ='Fleet Inputs'!F53 -> 12900 | AA11: /y/bus | AD11: Engine overhaul | AE11: ='Fleet Inputs'!F71 -> 0 | AF11: every | AG11: ='Fleet Inputs'!F72 -> 0 | AH11: y | AP11: Total cost of driver and on-board labor | AQ11: ='Fleet Inputs'!G40 -> 0 | AR11: $/year/bus | AS11: Fixed annual maintenance cost | AT11: ='Fleet Inputs'!G53 -> 12900 | AU11: /y/bus | AX11: Engine overhaul | AY11: ='Fleet Inputs'!G71 -> 0 | AZ11: every | BA11: ='Fleet Inputs'!G72 -> 0 | BB11: y | BJ11: Total cost of driver and on-board labor | BK11: ='Fleet Inputs'!H40 -> 0 | BL11: $/year/bus | BM11: Fixed annual maintenance cost | BN11: ='Fleet Inputs'!H53 -> 7310 | BO11: /y/bus | BR11: Engine overhaul | BS11: ='Fleet Inputs'!H71 -> 0 | BT11: every | BU11: ='Fleet Inputs'!H72 -> 0 | BV11: y | CD11: Total cost of driver and on-board labor | CE11: ='Fleet Inputs'!I40 -> 0 | CF11: $/year/bus | CG11: Fixed annual maintenance cost | CH11: ='Fleet Inputs'!I53 -> 19350 | CI11: /y/bus | CL11: Engine overhaul | CM11: ='Fleet Inputs'!I71 -> 0 | CN11: every | CO11: ='Fleet Inputs'!I72 -> 0 | CP11: y | CX11: Total cost of driver and on-board labor | CY11: ='Fleet Inputs'!J40 -> 0 | CZ11: $/year/bus | DA11: Fixed annual maintenance cost | DB11: ='Fleet Inputs'!J53 -> 12900 | DC11: /y/bus | DF11: Engine overhaul | DG11: ='Fleet Inputs'!J71 -> 0 | DH11: every | DI11: ='Fleet Inputs'!J72 -> 0 | DJ11: y
B12: Fuel cost | C12: ='Fleet Inputs'!E44 -> 0 | D12: $/L | E12: Total cost of maintenance labor | F12: ='Fleet Inputs'!E54 -> 0 | G12: /y/bus | J12: Transmission overhaul | K12: ='Fleet Inputs'!E73 -> 0 | L12: every | M12: ='Fleet Inputs'!E74 -> 0 | N12: y | V12: Fuel cost | W12: ='Fleet Inputs'!F44 -> 1.43 | X12: $/L | Y12: Total cost of maintenance labor | Z12: ='Fleet Inputs'!F54 -> 0 | AA12: /y/bus | AD12: Transmission overhaul | AE12: ='Fleet Inputs'!F73 -> 0 | AF12: every | AG12: ='Fleet Inputs'!F74 -> 0 | AH12: y | AP12: Fuel cost | AQ12: ='Fleet Inputs'!G44 -> 1.43 | AR12: $/L | AS12: Total cost of maintenance labor | AT12: ='Fleet Inputs'!G54 -> 0 | AU12: /y/bus | AX12: Transmission overhaul | AY12: ='Fleet Inputs'!G73 -> 0 | AZ12: every | BA12: ='Fleet Inputs'!G74 -> 0 | BB12: y | BJ12: Fuel cost | BK12: ='Fleet Inputs'!H44 -> 0 | BL12: $/L | BM12: Total cost of maintenance labor | BN12: ='Fleet Inputs'!H54 -> 0 | BO12: /y/bus | BR12: Transmission overhaul | BS12: ='Fleet Inputs'!H73 -> 0 | BT12: every | BU12: ='Fleet Inputs'!H74 -> 0 | BV12: y | CD12: Fuel cost | CE12: ='Fleet Inputs'!I44 -> 1.43 | CF12: $/L | CG12: Total cost of maintenance labor | CH12: ='Fleet Inputs'!I54 -> 0 | CI12: /y/bus | CL12: Transmission overhaul | CM12: ='Fleet Inputs'!I73 -> 0 | CN12: every | CO12: ='Fleet Inputs'!I74 -> 0 | CP12: y | CX12: Fuel cost | CY12: ='Fleet Inputs'!J44 -> 1.43 | CZ12: $/L | DA12: Total cost of maintenance labor | DB12: ='Fleet Inputs'!J54 -> 0 | DC12: /y/bus | DF12: Transmission overhaul | DG12: ='Fleet Inputs'!J73 -> 0 | DH12: every | DI12: ='Fleet Inputs'!J74 -> 0 | DJ12: y
B13: Fuel cost projection | C13: ='Fleet Inputs'!E45 -> 0 | D13: %/year | E13: Additional maintenance costs to include | F13: ='Fleet Inputs'!E67 -> 0 | G13: /y/bus | J13: CNG fuel system overhaul | K13: ='Fleet Inputs'!E75 -> 0 | L13: every | M13: ='Fleet Inputs'!E76 -> 0 | N13: y | V13: Fuel cost projection | W13: ='Fleet Inputs'!F45 -> 0 | X13: %/year | Y13: Additional maintenance costs to include | Z13: ='Fleet Inputs'!F67 -> 0 | AA13: /y/bus | AD13: CNG fuel system overhaul | AE13: ='Fleet Inputs'!F75 -> 0 | AF13: every | AG13: ='Fleet Inputs'!F76 -> 0 | AH13: y | AP13: Fuel cost projection | AQ13: ='Fleet Inputs'!G45 -> 0 | AR13: %/year | AS13: Additional maintenance costs to include | AT13: ='Fleet Inputs'!G67 -> 0 | AU13: /y/bus | AX13: CNG fuel system overhaul | AY13: ='Fleet Inputs'!G75 -> 0 | AZ13: every | BA13: ='Fleet Inputs'!G76 -> 0 | BB13: y | BJ13: Fuel cost projection | BK13: ='Fleet Inputs'!H45 -> 0 | BL13: %/year | BM13: Additional maintenance costs to include | BN13: ='Fleet Inputs'!H67 -> 0 | BO13: /y/bus | BR13: CNG fuel system overhaul | BS13: ='Fleet Inputs'!H75 -> 0 | BT13: every | BU13: ='Fleet Inputs'!H76 -> 0 | BV13: y | CD13: Fuel cost projection | CE13: ='Fleet Inputs'!I45 -> 0 | CF13: %/year | CG13: Additional maintenance costs to include | CH13: ='Fleet Inputs'!I67 -> 0 | CI13: /y/bus | CL13: CNG fuel system overhaul | CM13: ='Fleet Inputs'!I75 -> 0 | CN13: every | CO13: ='Fleet Inputs'!I76 -> 0 | CP13: y | CX13: Fuel cost projection | CY13: ='Fleet Inputs'!J45 -> 0 | CZ13: %/year | DA13: Additional maintenance costs to include | DB13: ='Fleet Inputs'!J67 -> 0 | DC13: /y/bus | DF13: CNG fuel system overhaul | DG13: ='Fleet Inputs'!J75 -> 0 | DH13: every | DI13: ='Fleet Inputs'!J76 -> 0 | DJ13: y
B14: Fuel additive | C14: ='Fleet Inputs'!E46 -> 0 | D14: $/L | J14: Hybrid system overhaul | K14: ='Fleet Inputs'!E77 -> 0 | L14: every | M14: ='Fleet Inputs'!E78 -> 0 | N14: y | V14: Fuel additive | W14: ='Fleet Inputs'!F46 -> 0 | X14: $/L | AD14: Hybrid system overhaul | AE14: ='Fleet Inputs'!F77 -> 0 | AF14: every | AG14: ='Fleet Inputs'!F78 -> 0 | AH14: y | AP14: Fuel additive | AQ14: ='Fleet Inputs'!G46 -> 0 | AR14: $/L | AX14: Hybrid system overhaul | AY14: ='Fleet Inputs'!G77 -> 0 | AZ14: every | BA14: ='Fleet Inputs'!G78 -> 0 | BB14: y | BJ14: Fuel additive | BK14: ='Fleet Inputs'!H46 -> 0 | BL14: $/L | BR14: Hybrid system overhaul | BS14: ='Fleet Inputs'!H77 -> 0 | BT14: every | BU14: ='Fleet Inputs'!H78 -> 0 | BV14: y | CD14: Fuel additive | CE14: ='Fleet Inputs'!I46 -> 0 | CF14: $/L | CL14: Hybrid system overhaul | CM14: ='Fleet Inputs'!I77 -> 0 | CN14: every | CO14: ='Fleet Inputs'!I78 -> 0 | CP14: y | CX14: Fuel additive | CY14: ='Fleet Inputs'!J46 -> 0 | CZ14: $/L | DF14: Hybrid system overhaul | DG14: ='Fleet Inputs'!J77 -> 0 | DH14: every | DI14: ='Fleet Inputs'!J78 -> 0 | DJ14: y
B15: Fuel station operation costs | C15: ='Fleet Inputs'!E47 -> 0 | D15: $/year/bus | E15: To be evaluated by prescribed frequency - per bus | J15: Battery replacement | K15: ='Fleet Inputs'!E79 -> 0 | L15: every | M15: ='Fleet Inputs'!E80 -> 0 | N15: y | V15: Fuel station operation costs | W15: ='Fleet Inputs'!F47 -> 0 | X15: $/year/bus | Y15: To be evaluated by prescribed frequency - per bus | AD15: Battery replacement | AE15: ='Fleet Inputs'!F79 -> 0 | AF15: every | AG15: ='Fleet Inputs'!F80 -> 0 | AH15: y | AP15: Fuel station operation costs | AQ15: ='Fleet Inputs'!G47 -> 0 | AR15: $/year/bus | AS15: To be evaluated by prescribed frequency - per bus | AX15: Battery replacement | AY15: ='Fleet Inputs'!G79 -> 0 | AZ15: every | BA15: ='Fleet Inputs'!G80 -> 0 | BB15: y | BJ15: Fuel station operation costs | BK15: ='Fleet Inputs'!H47 -> 0 | BL15: $/year/bus | BM15: To be evaluated by prescribed frequency - per bus | BR15: Battery replacement | BS15: ='Fleet Inputs'!H79 -> 0 | BT15: every | BU15: ='Fleet Inputs'!H80 -> 0 | BV15: y | CD15: Fuel station operation costs | CE15: ='Fleet Inputs'!I47 -> 0 | CF15: $/year/bus | CG15: To be evaluated by prescribed frequency - per bus | CL15: Battery replacement | CM15: ='Fleet Inputs'!I79 -> 0 | CN15: every | CO15: ='Fleet Inputs'!I80 -> 0 | CP15: y | CX15: Fuel station operation costs | CY15: ='Fleet Inputs'!J47 -> 0 | CZ15: $/year/bus | DA15: To be evaluated by prescribed frequency - per bus | DF15: Battery replacement | DG15: ='Fleet Inputs'!J79 -> 0 | DH15: every | DI15: ='Fleet Inputs'!J80 -> 0 | DJ15: y
B16: Insurance | C16: ='Fleet Inputs'!E48 -> 0 | D16: $/year/bus | E16: Brake reline | F16: ='Fleet Inputs'!E55 -> 0 | G16: every | H16: ='Fleet Inputs'!E56 -> 0 | I16: y | J16: Vehicle retrofits | K16: ='Fleet Inputs'!E81 -> 0 | L16: every | M16: ='Fleet Inputs'!E82 -> 0 | N16: y | V16: Insurance | W16: ='Fleet Inputs'!F48 -> 0 | X16: $/year/bus | Y16: Brake reline | Z16: ='Fleet Inputs'!F55 -> 0 | AA16: every | AB16: ='Fleet Inputs'!F56 -> 0 | AC16: y | AD16: Vehicle retrofits | AE16: ='Fleet Inputs'!F81 -> 0 | AF16: every | AG16: ='Fleet Inputs'!F82 -> 0 | AH16: y | AP16: Insurance | AQ16: ='Fleet Inputs'!G48 -> 0 | AR16: $/year/bus | AS16: Brake reline | AT16: ='Fleet Inputs'!G55 -> 0 | AU16: every | AV16: ='Fleet Inputs'!G56 -> 0 | AW16: y | AX16: Vehicle retrofits | AY16: ='Fleet Inputs'!G81 -> 0 | AZ16: every | BA16: ='Fleet Inputs'!G82 -> 0 | BB16: y | BJ16: Insurance | BK16: ='Fleet Inputs'!H48 -> 0 | BL16: $/year/bus | BM16: Brake reline | BN16: ='Fleet Inputs'!H55 -> 0 | BO16: every | BP16: ='Fleet Inputs'!H56 -> 0 | BQ16: y | BR16: Vehicle retrofits | BS16: ='Fleet Inputs'!H81 -> 0 | BT16: every | BU16: ='Fleet Inputs'!H82 -> 0 | BV16: y | CD16: Insurance | CE16: ='Fleet Inputs'!I48 -> 0 | CF16: $/year/bus | CG16: Brake reline | CH16: ='Fleet Inputs'!I55 -> 0 | CI16: every | CJ16: ='Fleet Inputs'!I56 -> 0 | CK16: y | CL16: Vehicle retrofits | CM16: ='Fleet Inputs'!I81 -> 0 | CN16: every | CO16: ='Fleet Inputs'!I82 -> 0 | CP16: y | CX16: Insurance | CY16: ='Fleet Inputs'!J48 -> 0 | CZ16: $/year/bus | DA16: Brake reline | DB16: ='Fleet Inputs'!J55 -> 0 | DC16: every | DD16: ='Fleet Inputs'!J56 -> 0 | DE16: y | DF16: Vehicle retrofits | DG16: ='Fleet Inputs'!J81 -> 0 | DH16: every | DI16: ='Fleet Inputs'!J82 -> 0 | DJ16: y
B17: Additional operational costs to include | C17: ='Fleet Inputs'!E49 -> 0 | D17: $/year/bus | E17: Tires | F17: ='Fleet Inputs'!E57 -> 0 | G17: every | H17: ='Fleet Inputs'!E58 -> 0 | I17: y | V17: Additional operational costs to include | W17: ='Fleet Inputs'!F49 -> 0 | X17: $/year/bus | Y17: Tires | Z17: ='Fleet Inputs'!F57 -> 0 | AA17: every | AB17: ='Fleet Inputs'!F58 -> 0 | AC17: y | AP17: Additional operational costs to include | AQ17: ='Fleet Inputs'!G49 -> 0 | AR17: $/year/bus | AS17: Tires | AT17: ='Fleet Inputs'!G57 -> 0 | AU17: every | AV17: ='Fleet Inputs'!G58 -> 0 | AW17: y | BJ17: Additional operational costs to include | BK17: ='Fleet Inputs'!H49 -> 0 | BL17: $/year/bus | BM17: Tires | BN17: ='Fleet Inputs'!H57 -> 0 | BO17: every | BP17: ='Fleet Inputs'!H58 -> 0 | BQ17: y | CD17: Additional operational costs to include | CE17: ='Fleet Inputs'!I49 -> 0 | CF17: $/year/bus | CG17: Tires | CH17: ='Fleet Inputs'!I57 -> 0 | CI17: every | CJ17: ='Fleet Inputs'!I58 -> 0 | CK17: y | CX17: Additional operational costs to include | CY17: ='Fleet Inputs'!J49 -> 0 | CZ17: $/year/bus | DA17: Tires | DB17: ='Fleet Inputs'!J57 -> 0 | DC17: every | DD17: ='Fleet Inputs'!J58 -> 0 | DE17: y
B18: Energy Use | C18: ='Fleet Inputs'!E41 -> 1.3 | D18: kwh/km | E18: Battery conditioning | F18: ='Fleet Inputs'!E59 -> 0 | G18: every | H18: ='Fleet Inputs'!E60 -> 0 | I18: y | V18: Energy Use | W18: ='Fleet Inputs'!F41 -> 0 | X18: kwh/km | Y18: Battery conditioning | Z18: ='Fleet Inputs'!F59 -> 0 | AA18: every | AB18: ='Fleet Inputs'!F60 -> 0 | AC18: y | AP18: Energy Use | AQ18: ='Fleet Inputs'!G41 -> 0 | AR18: kwh/km | AS18: Battery conditioning | AT18: ='Fleet Inputs'!G59 -> 0 | AU18: every | AV18: ='Fleet Inputs'!G60 -> 0 | AW18: y | BJ18: Energy Use | BK18: ='Fleet Inputs'!H41 -> 1.3 | BL18: kwh/km | BM18: Battery conditioning | BN18: ='Fleet Inputs'!H59 -> 0 | BO18: every | BP18: ='Fleet Inputs'!H60 -> 0 | BQ18: y | CD18: Energy Use | CE18: ='Fleet Inputs'!I41 -> 0 | CF18: kwh/km | CG18: Battery conditioning | CH18: ='Fleet Inputs'!I59 -> 0 | CI18: every | CJ18: ='Fleet Inputs'!I60 -> 0 | CK18: y | CX18: Energy Use | CY18: ='Fleet Inputs'!J41 -> 0 | CZ18: kwh/km | DA18: Battery conditioning | DB18: ='Fleet Inputs'!J59 -> 0 | DC18: every | DD18: ='Fleet Inputs'!J60 -> 0 | DE18: y
B19: Energy cost | C19: ='Fleet Inputs'!E42 -> 0.22 | D19: $/kwh | E19: DPF cleaning | F19: ='Fleet Inputs'!E61 -> 0 | G19: every | H19: ='Fleet Inputs'!E62 -> 0 | I19: y | V19: Energy cost | W19: ='Fleet Inputs'!F42 -> 0 | X19: $/kwh | Y19: DPF cleaning | Z19: ='Fleet Inputs'!F61 -> 0 | AA19: every | AB19: ='Fleet Inputs'!F62 -> 0 | AC19: y | AP19: Energy cost | AQ19: ='Fleet Inputs'!G42 -> 0 | AR19: $/kwh | AS19: DPF cleaning | AT19: ='Fleet Inputs'!G61 -> 0 | AU19: every | AV19: ='Fleet Inputs'!G62 -> 0 | AW19: y | BJ19: Energy cost | BK19: ='Fleet Inputs'!H42 -> 0.22 | BL19: $/kwh | BM19: DPF cleaning | BN19: ='Fleet Inputs'!H61 -> 0 | BO19: every | BP19: ='Fleet Inputs'!H62 -> 0 | BQ19: y | CD19: Energy cost | CE19: ='Fleet Inputs'!I42 -> 0 | CF19: $/kwh | CG19: DPF cleaning | CH19: ='Fleet Inputs'!I61 -> 0 | CI19: every | CJ19: ='Fleet Inputs'!I62 -> 0 | CK19: y | CX19: Energy cost | CY19: ='Fleet Inputs'!J42 -> 0 | CZ19: $/kwh | DA19: DPF cleaning | DB19: ='Fleet Inputs'!J61 -> 0 | DC19: every | DD19: ='Fleet Inputs'!J62 -> 0 | DE19: y
E20: Fuel station maintenance | F20: ='Fleet Inputs'!E63 -> 0 | G20: every | H20: ='Fleet Inputs'!E64 -> 0 | I20: y | Y20: Fuel station maintenance | Z20: ='Fleet Inputs'!F63 -> 0 | AA20: every | AB20: ='Fleet Inputs'!F64 -> 0 | AC20: y | AS20: Fuel station maintenance | AT20: ='Fleet Inputs'!G63 -> 0 | AU20: every | AV20: ='Fleet Inputs'!G64 -> 0 | AW20: y | BM20: Fuel station maintenance | BN20: ='Fleet Inputs'!H63 -> 0 | BO20: every | BP20: ='Fleet Inputs'!H64 -> 0 | BQ20: y | CG20: Fuel station maintenance | CH20: ='Fleet Inputs'!I63 -> 0 | CI20: every | CJ20: ='Fleet Inputs'!I64 -> 0 | CK20: y | DA20: Fuel station maintenance | DB20: ='Fleet Inputs'!J63 -> 0 | DC20: every | DD20: ='Fleet Inputs'!J64 -> 0 | DE20: y
E21: Lubricant | F21: ='Fleet Inputs'!E65 -> 0 | G21: every | H21: ='Fleet Inputs'!E66 -> 0 | I21: y | Y21: Lubricant | Z21: ='Fleet Inputs'!F65 -> 0 | AA21: every | AB21: ='Fleet Inputs'!F66 -> 0 | AC21: y | AS21: Lubricant | AT21: ='Fleet Inputs'!G65 -> 0 | AU21: every | AV21: ='Fleet Inputs'!G66 -> 0 | AW21: y | BM21: Lubricant | BN21: ='Fleet Inputs'!H65 -> 0 | BO21: every | BP21: ='Fleet Inputs'!H66 -> 0 | BQ21: y | CG21: Lubricant | CH21: ='Fleet Inputs'!I65 -> 0 | CI21: every | CJ21: ='Fleet Inputs'!I66 -> 0 | CK21: y | DA21: Lubricant | DB21: ='Fleet Inputs'!J65 -> 0 | DC21: every | DD21: ='Fleet Inputs'!J66 -> 0 | DE21: y
F23: PV | G23: Sum | Z23: PV | AA23: Sum | AT23: PV | AU23: Sum | BN23: PV | BO23: Sum | CH23: PV | CI23: Sum | DB23: PV | DC23: Sum
E24: Lifetime Total Operating PV | F24: =NPV('Fleet Inputs'!$E$12,G24) -> 589363636.4 | G24: =SUM(IF(ISERROR(U34:U63),0,U34:U63)) -> 648300000 | Y24: Lifetime Total Operating PV | Z24: =NPV('Fleet Inputs'!$E$12,AA24) -> 29277272.73 | AA24: =SUM(IF(ISERROR(AO34:AO63),0,AO34:AO63)) -> 32205000 | AS24: Lifetime Total Operating PV | AT24: =NPV('Fleet Inputs'!$E$12,AU24) -> 45956792.73 | AU24: =SUM(IF(ISERROR(BI34:BI63),0,BI34:BI63)) -> 50552472 | BM24: Lifetime Total Operating PV | BN24: =NPV('Fleet Inputs'!$E$12,BO24) -> 442022727.3 | BO24: =SUM(IF(ISERROR(CC34:CC63),0,CC34:CC63)) -> 486225000 | CG24: Lifetime Total Operating PV | CH24: =NPV('Fleet Inputs'!$E$12,CI24) -> 40531090.91 | CI24: =SUM(IF(ISERROR(CW34:CW63),0,CW34:CW63)) -> 44584200 | DA24: Lifetime Total Operating PV | DB24: =NPV('Fleet Inputs'!$E$12,DC24) -> 137870378.2 | DC24: =SUM(IF(ISERROR(DQ34:DQ63),0,DQ34:DQ63)) -> 151657416
E25: Lifetime Operating Cost PV | F25: =NPV('Fleet Inputs'!$E$12,G25) -> 0 | G25: =SUM(IF(ISERROR(C34:C63),0,C34:C63)) -> 0 | Y25: Lifetime Operating Cost PV | Z25: =NPV('Fleet Inputs'!$E$12,AA25) -> 0 | AA25: =SUM(IF(ISERROR(W34:W63),0,W34:W63)) -> 0 | AS25: Lifetime Operating Cost PV | AT25: =NPV('Fleet Inputs'!$E$12,AU25) -> 0 | AU25: =SUM(IF(ISERROR(AQ34:AQ63),0,AQ34:AQ63)) -> 0 | BM25: Lifetime Operating Cost PV | BN25: =NPV('Fleet Inputs'!$E$12,BO25) -> 0 | BO25: =SUM(IF(ISERROR(BK34:BK63),0,BK34:BK63)) -> 0 | CG25: Lifetime Operating Cost PV | CH25: =NPV('Fleet Inputs'!$E$12,CI25) -> 0 | CI25: =SUM(IF(ISERROR(CE34:CE63),0,CE34:CE63)) -> 0 | DA25: Lifetime Operating Cost PV | DB25: =NPV('Fleet Inputs'!$E$12,DC25) -> 0 | DC25: =SUM(IF(ISERROR(CY34:CY63),0,CY34:CY63)) -> 0
E26: Lifetime Fuel Cost PV | F26: =NPV('Fleet Inputs'!$E$12,G26) -> 390000000 | G26: =SUM(IF(ISERROR(D34:E63),0,D34:E63)) -> 429000000 | Y26: Lifetime Fuel Cost PV | Z26: =NPV('Fleet Inputs'!$E$12,AA26) -> 17550000 | AA26: =SUM(IF(ISERROR(X34:Y63),0,X34:Y63)) -> 19305000 | AS26: Lifetime Fuel Cost PV | AT26: =NPV('Fleet Inputs'!$E$12,AU26) -> 34229520 | AU26: =SUM(IF(ISERROR(AR34:AS63),0,AR34:AS63)) -> 37652472 | BM26: Lifetime Fuel Cost PV | BN26: =NPV('Fleet Inputs'!$E$12,BO26) -> 292500000 | BO26: =SUM(IF(ISERROR(BL34:BM63),0,BL34:BM63)) -> 321750000 | CG26: Lifetime Fuel Cost PV | CH26: =NPV('Fleet Inputs'!$E$12,CI26) -> 19422000 | CI26: =SUM(IF(ISERROR(CF34:CG63),0,CF34:CG63)) -> 21364200 | DA26: Lifetime Fuel Cost PV | DB26: =NPV('Fleet Inputs'!$E$12,DC26) -> 102688560 | DC26: =SUM(IF(ISERROR(CZ34:DA63),0,CZ34:DA63)) -> 112957416
E27: Lifetime Maintenance Cost PV | F27: =NPV('Fleet Inputs'!$E$12,G27) -> 199363636.4 | G27: =SUM(IF(ISERROR(S34:S63),0,S34:S63)) -> 219300000 | Y27: Lifetime Maintenance Cost PV | Z27: =NPV('Fleet Inputs'!$E$12,AA27) -> 11727272.73 | AA27: =SUM(IF(ISERROR(AM34:AM63),0,AM34:AM63)) -> 12900000 | AS27: Lifetime Maintenance Cost PV | AT27: =NPV('Fleet Inputs'!$E$12,AU27) -> 11727272.73 | AU27: =SUM(IF(ISERROR(BG34:BG63),0,BG34:BG63)) -> 12900000 | BM27: Lifetime Maintenance Cost PV | BN27: =NPV('Fleet Inputs'!$E$12,BO27) -> 149522727.3 | BO27: =SUM(IF(ISERROR(CA34:CA63),0,CA34:CA63)) -> 164475000 | CG27: Lifetime Maintenance Cost PV | CH27: =NPV('Fleet Inputs'!$E$12,CI27) -> 21109090.91 | CI27: =SUM(IF(ISERROR(CU34:CU63),0,CU34:CU63)) -> 23220000 | DA27: Lifetime Maintenance Cost PV | DB27: =NPV('Fleet Inputs'!$E$12,DC27) -> 35181818.18 | DC27: =SUM(IF(ISERROR(DO34:DO63),0,DO34:DO63)) -> 38700000
E28: Lifetime Overhaul Cost PV | F28: =NPV('Fleet Inputs'!$E$12,G28) -> 0 | G28: =SUM(IF(ISERROR(T34:T63),0,T34:T63)) -> 0 | Y28: Lifetime Overhaul Cost PV | Z28: =NPV('Fleet Inputs'!$E$12,AA28) -> 0 | AA28: =SUM(IF(ISERROR(AN34:AN63),0,AN34:AN63)) -> 0 | AS28: Lifetime Overhaul Cost PV | AT28: =NPV('Fleet Inputs'!$E$12,AU28) -> 0 | AU28: =SUM(IF(ISERROR(BH34:BH63),0,BH34:BH63)) -> 0 | BM28: Lifetime Overhaul Cost PV | BN28: =NPV('Fleet Inputs'!$E$12,BO28) -> 0 | BO28: =SUM(IF(ISERROR(CB34:CB63),0,CB34:CB63)) -> 0 | CG28: Lifetime Overhaul Cost PV | CH28: =NPV('Fleet Inputs'!$E$12,CI28) -> 0 | CI28: =SUM(IF(ISERROR(CV34:CV63),0,CV34:CV63)) -> 0 | DA28: Lifetime Overhaul Cost PV | DB28: =NPV('Fleet Inputs'!$E$12,DC28) -> 0 | DC28: =SUM(IF(ISERROR(DP34:DP63),0,DP34:DP63)) -> 0
B32: Year | C32: Operating costs | D32: Fuel costs | E32: Electricity costs | F32: (Fixed) Maintenance costs | G32: Brake reline | H32: Tires | I32: Battery conditioning | J32: DPF cleaning | K32: Fuel station maintenance | L32: Lubricant | M32: Engine overhaul | N32: Transmission overhaul | O32: CNG fuel system overhaul | P32: Hybrid system overhaul | Q32: Battery replacement | R32: Vehicle retrofits | S32: Total - Maintenance | T32: Total - Overhaul | U32: Total | V32: Year | W32: Operating costs | X32: Fuel costs | Y32: Electricity costs | Z32: (Fixed) Maintenance costs | AA32: Brake reline | AB32: Tires | AC32: Battery conditioning | AD32: DPF cleaning | AE32: Fuel station maintenance | AF32: Lubricant | AG32: Engine overhaul | AH32: Transmission overhaul | AI32: CNG fuel system overhaul | AJ32: Hybrid system overhaul | AK32: Battery replacement | AL32: Vehicle retrofits | AM32: Total - Maintenance | AN32: Total - Overhaul | AO32: Total | AP32: Year | AQ32: Operating costs | AR32: Fuel costs | AS32: Electricity costs | AT32: (Fixed) Maintenance costs | AU32: Brake reline | AV32: Tires | AW32: Battery conditioning | AX32: DPF cleaning | AY32: Fuel station maintenance | AZ32: Lubricant | BA32: Engine overhaul | BB32: Transmission overhaul | BC32: CNG fuel system overhaul | BD32: Hybrid system overhaul | BE32: Battery replacement | BF32: Vehicle retrofits | BG32: Total - Maintenance | BH32: Total - Overhaul | BI32: Total | BJ32: Year | BK32: Operating costs | BL32: Fuel costs | BM32: Electricity costs | BN32: (Fixed) Maintenance costs | BO32: Brake reline | BP32: Tires | BQ32: Battery conditioning | BR32: DPF cleaning | BS32: Fuel station maintenance | BT32: Lubricant | BU32: Engine overhaul | BV32: Transmission overhaul | BW32: CNG fuel system overhaul | BX32: Hybrid system overhaul | BY32: Battery replacement | BZ32: Vehicle retrofits | CA32: Total - Maintenance | CB32: Total - Overhaul | CC32: Total | CD32: Year | CE32: Operating costs | CF32: Fuel costs | CG32: Electricity costs | CH32: (Fixed) Maintenance costs | CI32: Brake reline | CJ32: Tires | CK32: Battery conditioning | CL32: DPF cleaning | CM32: Fuel station maintenance | CN32: Lubricant | CO32: Engine overhaul | CP32: Transmission overhaul | CQ32: CNG fuel system overhaul | CR32: Hybrid system overhaul | CS32: Battery replacement | CT32: Vehicle retrofits | CU32: Total - Maintenance | CV32: Total - Overhaul | CW32: Total | CX32: Year | CY32: Operating costs | CZ32: Fuel costs | DA32: Electricity costs | DB32: (Fixed) Maintenance costs | DC32: Brake reline | DD32: Tires | DE32: Battery conditioning | DF32: DPF cleaning | DG32: Fuel station maintenance | DH32: Lubricant | DI32: Engine overhaul | DJ32: Transmission overhaul | DK32: CNG fuel system overhaul | DL32: Hybrid system overhaul | DM32: Battery replacement | DN32: Vehicle retrofits | DO32: Total - Maintenance | DP32: Total - Overhaul | DQ32: Total
B34: =ROW()-ROW(33:33) -> 1 | C34: =IF(B34<>"",(C$11+C$15+C$16+C$17)*'Fleet Inputs'!$E$10,"") -> 0 | D34: =IF(B34<>"",('Fleet Inputs'!$E$10*'Fleet Inputs'!$E$11*'Fleet Inputs'!$E$43*0.01)*((C$12*(1+C$13)^(B34-1))+C$14), "") -> 0 | E34: =IF(AND(B34<>"",'Fleet Inputs'!$E$5="Electric"),('Fleet Inputs'!$E$10*'Fleet Inputs'!$E$11*$C$18*$C$19), "") -> 28600000 | F34: =IF(B34<>"", (F$11+F$12+F$13)*'Fleet Inputs'!$E$10,"") -> 14620000 | G34: =IF($B34<>"", IF(H$16>=1, IF(MOD(ROW()-ROW($33:$33),H$16)=0,'Fleet Inputs'!$E$10*$F$16,0),IF(H$16=0,0,'Fleet Inputs'!$E$10*F$16/H$16)),"") -> 0 | H34: =IF($B34<>"", IF(H$17>=1, IF(MOD(ROW()-ROW($33:$33),H$17)=0,'Fleet Inputs'!$E$10*F$17,0),IF(H$17=0,0,'Fleet Inputs'!$E$10*F$17/H$17)),"") -> 0 | I34: =IF($B34<>"", IF(H$18>=1, IF(MOD(ROW()-ROW($33:$33),H$18)=0,'Fleet Inputs'!$E$10*F$18,0),IF(H$18=0,0,'Fleet Inputs'!$E$10*F$18/H$18)),"") -> 0 | J34: =IF($B34<>"", IF(H$19>=1, IF(MOD(ROW()-ROW($33:$33),H$19)=0,'Fleet Inputs'!$E$10*F$19,0),IF(H$19=0,0,'Fleet Inputs'!$E$10*F$19/H$19)),"") -> 0 | K34: =IF($B34<>"", IF(H$20>=1, IF(MOD(ROW()-ROW($33:$33),H$20)=0,'Fleet Inputs'!$E$10*F$20,0),IF(H$20=0,0,'Fleet Inputs'!$E$10*F$20/H$20)),"") -> 0 | L34: =IF($B34<>"", IF(H$21>=1, IF(MOD(ROW()-ROW($33:$33),H$21)=0,'Fleet Inputs'!$E$10*F$21,0),IF(H$21=0,0,'Fleet Inputs'!$E$10*F$21/H$21)),"") -> 0 | M34: =IF($B34<>"", IF(M$11>=1, IF(MOD(ROW()-ROW($33:$33),M$11)=0,'Fleet Inputs'!$E$10*K$11,0),IF(M$11=0,0,'Fleet Inputs'!$E$10*K$11/M$11)),"") -> 0 | N34: =IF($B34<>"", IF(M$12>=1, IF(MOD(ROW()-ROW($33:$33),M$12)=0,'Fleet Inputs'!$E$10*K$12,0),IF(M$12=0,0,'Fleet Inputs'!$E$10*K$12/M$12)),"") -> 0 | O34: =IF($B34<>"", IF(M$13>=1, IF(MOD(ROW()-ROW($33:$33),M$13)=0,'Fleet Inputs'!$E$10*K$13,0),IF(M$13=0,0,'Fleet Inputs'!$E$10*K$13/M$13)),"") -> 0 | P34: =IF($B34<>"", IF(M$14>=1, IF(MOD(ROW()-ROW($33:$33),M$14)=0,'Fleet Inputs'!$E$10*K$14,0),IF(M$14=0,0,'Fleet Inputs'!$E$10*K$14/M$14)),"") -> 0 | Q34: =IF($B34<>"", IF(M$15>=1, IF(MOD(ROW()-ROW($33:$33),M$15)=0,'Fleet Inputs'!$E$10*K$15,0),IF(M$15=0,0,'Fleet Inputs'!$E$10*K$15/M$15)),"") -> 0 | R34: =IF($B34<>"", IF(M$16>=1, IF(MOD(ROW()-ROW($33:$33),M$16)=0,'Fleet Inputs'!$E$10*K$16,0),IF(M$16=0,0,'Fleet Inputs'!$E$10*K$16/M$16)),"") -> 0 | S34: =IF(B34<>"", SUM(F34:L34), "") -> 14620000 | T34: =IF(B34<>"", SUM(M34:R34), "") -> 0 | U34: =IF(B34<>"",SUM(C34:R34),"") -> 43220000 | V34: =ROW()-ROW(33:33) -> 1 | W34: =IF(V34<>"",(W$11+W$15+W$16+W$17)*'Fleet Inputs'!$F$10,"") -> 0 | X34: =IF(V34<>"",('Fleet Inputs'!$F$10*'Fleet Inputs'!$F$11*'Fleet Inputs'!$F$43*0.01)*((W$12*(1+W$13)^(V34-1))+W$14), "") -> 1930500 | Y34: =IF(AND(V34<>"",'Fleet Inputs'!$F$5="Electric"),('Fleet Inputs'!F$10*'Fleet Inputs'!$F$11*$W$18*$W$19), "") ->  | Z34: =IF(V34<>"", (Z$11+Z$12+Z$13)*'Fleet Inputs'!$F$10,"") -> 1290000 | AA34: =IF($B34<>"", IF(AB$16>=1, IF(MOD(ROW()-ROW($33:$33),AB$16)=0,'Fleet Inputs'!$F$10*$F$16,0),IF(AB$16=0,0,'Fleet Inputs'!$F$10*Z$16/AB$16)),"") -> 0 | AB34: =IF($B34<>"", IF(AB$17>=1, IF(MOD(ROW()-ROW($33:$33),AB$17)=0,'Fleet Inputs'!$F$10*Z$17,0),IF(AB$17=0,0,'Fleet Inputs'!$F$10*Z$17/AB$17)),"") -> 0 | AC34: =IF($B34<>"", IF(AB$18>=1, IF(MOD(ROW()-ROW($33:$33),AB$18)=0,'Fleet Inputs'!$F$10*Z$18,0),IF(AB$18=0,0,'Fleet Inputs'!$F$10*Z$18/AB$18)),"") -> 0 | AD34: =IF($B34<>"", IF(AB$19>=1, IF(MOD(ROW()-ROW($33:$33),AB$19)=0,'Fleet Inputs'!$F$10*Z$19,0),IF(AB$19=0,0,'Fleet Inputs'!$F$10*Z$19/AB$19)),"") -> 0 | AE34: =IF($B34<>"", IF(AB$20>=1, IF(MOD(ROW()-ROW($33:$33),AB$20)=0,'Fleet Inputs'!$F$10*Z$20,0),IF(AB$20=0,0,'Fleet Inputs'!$F$10*Z$20/AB$20)),"") -> 0 | AF34: =IF($B34<>"", IF(AB$21>=1, IF(MOD(ROW()-ROW($33:$33),AB$21)=0,'Fleet Inputs'!$F$10*Z$21,0),IF(AB$21=0,0,'Fleet Inputs'!$F$10*Z$21/AB$21)),"") -> 0 | AG34: =IF($B34<>"", IF(AG$11>=1, IF(MOD(ROW()-ROW($33:$33),AG$11)=0,'Fleet Inputs'!$F$10*AE$11,0),IF(AG$11=0,0,'Fleet Inputs'!$F$10*AE$11/AG$11)),"") -> 0 | AH34: =IF($B34<>"", IF(AG$12>=1, IF(MOD(ROW()-ROW($33:$33),AG$12)=0,'Fleet Inputs'!$F$10*AE$12,0),IF(AG$12=0,0,'Fleet Inputs'!$F$10*AE$12/AG$12)),"") -> 0 | AI34: =IF($B34<>"", IF(AG$13>=1, IF(MOD(ROW()-ROW($33:$33),AG$13)=0,'Fleet Inputs'!$F$10*AE$13,0),IF(AG$13=0,0,'Fleet Inputs'!$F$10*AE$13/AG$13)),"") -> 0 | AJ34: =IF($B34<>"", IF(AG$14>=1, IF(MOD(ROW()-ROW($33:$33),AG$14)=0,'Fleet Inputs'!$F$10*AE$14,0),IF(AG$14=0,0,'Fleet Inputs'!$F$10*AE$14/AG$14)),"") -> 0 | AK34: =IF($B34<>"", IF(AG$15>=1, IF(MOD(ROW()-ROW($33:$33),AG$15)=0,'Fleet Inputs'!$F$10*AE$15,0),IF(AG$15=0,0,'Fleet Inputs'!$F$10*AE$15/AG$15)),"") -> 0 | AL34: =IF($B34<>"", IF(AG$16>=1, IF(MOD(ROW()-ROW($33:$33),AG$16)=0,'Fleet Inputs'!$F$10*AE$16,0),IF(AG$16=0,0,'Fleet Inputs'!$F$10*AE$16/AG$16)),"") -> 0 | AM34: =IF(V34<>"", SUM(Z34:AF34), "") -> 1290000 | AN34: =IF(V34<>"", SUM(AG34:AL34), "") -> 0 | AO34: =IF(V34<>"",SUM(W34:AL34),"") -> 3220500 | AP34: =ROW()-ROW(33:33) -> 1 | AQ34: =IF(AP34<>"",(AQ$11+AQ$15+AQ$16+AQ$17)*'Fleet Inputs'!$G$10,"") -> 0 | AR34: =IF(AP34<>"",('Fleet Inputs'!$G$10*'Fleet Inputs'!$G$11*'Fleet Inputs'!$G$43*0.01)*((AQ$12*(1+AQ$13)^(AP34-1))+AQ$14), "") -> 3765247.2 | AS34: =IF(AND(AP34<>"",'Fleet Inputs'!$G$5="Electric"),('Fleet Inputs'!$G$10*'Fleet Inputs'!$G$11*$AQ$18*$AQ$19), "") ->  | AT34: =IF(AP34<>"", (AT$11+AT$12+AT$13)*'Fleet Inputs'!$G$10,"") -> 1290000 | AU34: =IF($B34<>"", IF(AV$16>=1, IF(MOD(ROW()-ROW($33:$33),AV$16)=0,'Fleet Inputs'!$G$10*$F$16,0),IF(AV$16=0,0,'Fleet Inputs'!$G$10*AT$16/AV$16)),"") -> 0 | AV34: =IF($B34<>"", IF(AV$17>=1, IF(MOD(ROW()-ROW($33:$33),AV$17)=0,'Fleet Inputs'!$G$10*AT$17,0),IF(AV$17=0,0,'Fleet Inputs'!$G$10*AT$17/AV$17)),"") -> 0 | AW34: =IF($B34<>"", IF(AV$18>=1, IF(MOD(ROW()-ROW($33:$33),AV$18)=0,'Fleet Inputs'!$G$10*AT$18,0),IF(AV$18=0,0,'Fleet Inputs'!$G$10*AT$18/AV$18)),"") -> 0 | AX34: =IF($B34<>"", IF(AV$19>=1, IF(MOD(ROW()-ROW($33:$33),AV$19)=0,'Fleet Inputs'!$G$10*AT$19,0),IF(AV$19=0,0,'Fleet Inputs'!$G$10*AT$19/AV$19)),"") -> 0 | AY34: =IF($B34<>"", IF(AV$20>=1, IF(MOD(ROW()-ROW($33:$33),AV$20)=0,'Fleet Inputs'!$G$10*AT$20,0),IF(AV$20=0,0,'Fleet Inputs'!$G$10*AT$20/AV$20)),"") -> 0 | AZ34: =IF($B34<>"", IF(AV$21>=1, IF(MOD(ROW()-ROW($33:$33),AV$21)=0,'Fleet Inputs'!$G$10*AT$21,0),IF(AV$21=0,0,'Fleet Inputs'!$G$10*AT$21/AV$21)),"") -> 0 | BA34: =IF($B34<>"", IF(BA$11>=1, IF(MOD(ROW()-ROW($33:$33),BA$11)=0,'Fleet Inputs'!$G$10*AY$11,0),IF(BA$11=0,0,'Fleet Inputs'!$G$10*AY$11/BA$11)),"") -> 0 | BB34: =IF($B34<>"", IF(BA$12>=1, IF(MOD(ROW()-ROW($33:$33),BA$12)=0,'Fleet Inputs'!$G$10*AY$12,0),IF(BA$12=0,0,'Fleet Inputs'!$G$10*AY$12/BA$12)),"") -> 0 | BC34: =IF($B34<>"", IF(BA$13>=1, IF(MOD(ROW()-ROW($33:$33),BA$13)=0,'Fleet Inputs'!$G$10*AY$13,0),IF(BA$13=0,0,'Fleet Inputs'!$G$10*AY$13/BA$13)),"") -> 0 | BD34: =IF($B34<>"", IF(BA$14>=1, IF(MOD(ROW()-ROW($33:$33),BA$14)=0,'Fleet Inputs'!$G$10*AY$14,0),IF(BA$14=0,0,'Fleet Inputs'!$G$10*AY$14/BA$14)),"") -> 0 | BE34: =IF($B34<>"", IF(BA$15>=1, IF(MOD(ROW()-ROW($33:$33),BA$15)=0,'Fleet Inputs'!$G$10*AY$15,0),IF(BA$15=0,0,'Fleet Inputs'!$G$10*AY$15/BA$15)),"") -> 0 | BF34: =IF($B34<>"", IF(BA$16>=1, IF(MOD(ROW()-ROW($33:$33),BA$16)=0,'Fleet Inputs'!$G$10*AY$16,0),IF(BA$16=0,0,'Fleet Inputs'!$G$10*AY$16/BA$16)),"") -> 0 | BG34: =IF(AP34<>"", SUM(AT34:AZ34), "") -> 1290000 | BH34: =IF(AP34<>"", SUM(BA34:BF34), "") -> 0 | BI34: =IF(AP34<>"",SUM(AQ34:BF34),"") -> 5055247.2 | BJ34: =ROW()-ROW(33:33) -> 1 | BK34: =IF(BJ34<>"",(BK$11+BK$15+BK$16+BK$17)*'Fleet Inputs'!$H$10,"") -> 0 | BL34: =IF(BJ34<>"",('Fleet Inputs'!$H$10*'Fleet Inputs'!$H$11*'Fleet Inputs'!$H$43*0.01)*((BK$12*(1+BK$13)^(BJ34-1))+BK$14), "") -> 0 | BM34: =IF(AND(BJ34<>"",'Fleet Inputs'!$H$5="Electric"),('Fleet Inputs'!$H$10*'Fleet Inputs'!$H$11*$BK$18*$BK$19), "") -> 21450000 | BN34: =IF(BJ34<>"", (BN$11+BN$12+BN$13)*'Fleet Inputs'!$H$10,"") -> 10965000 | BO34: =IF($B34<>"", IF(BP$16>=1, IF(MOD(ROW()-ROW($33:$33),BP$16)=0,'Fleet Inputs'!$H$10*$F$16,0),IF(BP$16=0,0,'Fleet Inputs'!$H$10*BN$16/BP$16)),"") -> 0 | BP34: =IF($B34<>"", IF(BP$17>=1, IF(MOD(ROW()-ROW($33:$33),BP$17)=0,'Fleet Inputs'!$H$10*BN$17,0),IF(BP$17=0,0,'Fleet Inputs'!$H$10*BN$17/BP$17)),"") -> 0 | BQ34: =IF($B34<>"", IF(BP$18>=1, IF(MOD(ROW()-ROW($33:$33),BP$18)=0,'Fleet Inputs'!$H$10*BN$18,0),IF(BP$18=0,0,'Fleet Inputs'!$H$10*BN$18/BP$18)),"") -> 0 | BR34: =IF($B34<>"", IF(BP$19>=1, IF(MOD(ROW()-ROW($33:$33),BP$19)=0,'Fleet Inputs'!$H$10*BN$19,0),IF(BP$19=0,0,'Fleet Inputs'!$H$10*BN$19/BP$19)),"") -> 0 | BS34: =IF($B34<>"", IF(BP$20>=1, IF(MOD(ROW()-ROW($33:$33),BP$20)=0,'Fleet Inputs'!$H$10*BN$20,0),IF(BP$20=0,0,'Fleet Inputs'!$H$10*BN$20/BP$20)),"") -> 0 | BT34: =IF($B34<>"", IF(BP$21>=1, IF(MOD(ROW()-ROW($33:$33),BP$21)=0,'Fleet Inputs'!$H$10*BN$21,0),IF(BP$21=0,0,'Fleet Inputs'!$H$10*BN$21/BP$21)),"") -> 0 | BU34: =IF($B34<>"", IF(BU$11>=1, IF(MOD(ROW()-ROW($33:$33),BU$11)=0,'Fleet Inputs'!$H$10*BS$11,0),IF(BU$11=0,0,'Fleet Inputs'!$H$10*BS$11/BU$11)),"") -> 0 | BV34: =IF($B34<>"", IF(BU$12>=1, IF(MOD(ROW()-ROW($33:$33),BU$12)=0,'Fleet Inputs'!$H$10*BS$12,0),IF(BU$12=0,0,'Fleet Inputs'!$H$10*BS$12/BU$12)),"") -> 0 | BW34: =IF($B34<>"", IF(BU$13>=1, IF(MOD(ROW()-ROW($33:$33),BU$13)=0,'Fleet Inputs'!$H$10*BS$13,0),IF(BU$13=0,0,'Fleet Inputs'!$H$10*BS$13/BU$13)),"") -> 0 | BX34: =IF($B34<>"", IF(BU$14>=1, IF(MOD(ROW()-ROW($33:$33),BU$14)=0,'Fleet Inputs'!$H$10*BS$14,0),IF(BU$14=0,0,'Fleet Inputs'!$H$10*BS$14/BU$14)),"") -> 0 | BY34: =IF($B34<>"", IF(BU$15>=1, IF(MOD(ROW()-ROW($33:$33),BU$15)=0,'Fleet Inputs'!$H$10*BS$15,0),IF(BU$15=0,0,'Fleet Inputs'!$H$10*BS$15/BU$15)),"") -> 0 | BZ34: =IF($B34<>"", IF(BU$16>=1, IF(MOD(ROW()-ROW($33:$33),BU$16)=0,'Fleet Inputs'!$H$10*BS$16,0),IF(BU$16=0,0,'Fleet Inputs'!$H$10*BS$16/BU$16)),"") -> 0 | CA34: =IF(BJ34<>"", SUM(BN34:BT34), "") -> 10965000 | CB34: =IF(BJ34<>"", SUM(BU34:BZ34), "") -> 0 | CC34: =IF(BJ34<>"",SUM(BK34:BZ34),"") -> 32415000 | CD34: =ROW()-ROW(33:33) -> 1 | CE34: =IF(CD34<>"",(CE$11+CE$15+CE$16+CE$17)*'Fleet Inputs'!$I$10,"") -> 0 | CF34: =IF(CD34<>"",('Fleet Inputs'!$I$10*'Fleet Inputs'!$I$11*'Fleet Inputs'!$I$43*0.01)*((CE$12*(1+CE$13)^(CD34-1))+CE$14), "") -> 1780350 | CG34: =IF(AND(CD34<>"",'Fleet Inputs'!$I$5="Electric"),('Fleet Inputs'!$I$10*'Fleet Inputs'!$I$11*$CE$18*$CE$19), "") ->  | CH34: =IF(CD34<>"", (CH$11+CH$12+CH$13)*'Fleet Inputs'!$I$10,"") -> 1935000 | CI34: =IF($B34<>"", IF(CJ$16>=1, IF(MOD(ROW()-ROW($33:$33),CJ$16)=0,'Fleet Inputs'!$I$10*$F$16,0),IF(CJ$16=0,0,'Fleet Inputs'!$I$10*CH$16/CJ$16)),"") -> 0 | CJ34: =IF($B34<>"", IF(CJ$17>=1, IF(MOD(ROW()-ROW($33:$33),CJ$17)=0,'Fleet Inputs'!$I$10*CH$17,0),IF(CJ$17=0,0,'Fleet Inputs'!$I$10*CH$17/CJ$17)),"") -> 0 | CK34: =IF($B34<>"", IF(CJ$18>=1, IF(MOD(ROW()-ROW($33:$33),CJ$18)=0,'Fleet Inputs'!$I$10*CH$18,0),IF(CJ$18=0,0,'Fleet Inputs'!$I$10*CH$18/CJ$18)),"") -> 0 | CL34: =IF($B34<>"", IF(CJ$19>=1, IF(MOD(ROW()-ROW($33:$33),CJ$19)=0,'Fleet Inputs'!$I$10*CH$19,0),IF(CJ$19=0,0,'Fleet Inputs'!$I$10*CH$19/CJ$19)),"") -> 0 | CM34: =IF($B34<>"", IF(CJ$20>=1, IF(MOD(ROW()-ROW($33:$33),CJ$20)=0,'Fleet Inputs'!$I$10*CH$20,0),IF(CJ$20=0,0,'Fleet Inputs'!$I$10*CH$20/CJ$20)),"") -> 0 | CN34: =IF($B34<>"", IF(CJ$21>=1, IF(MOD(ROW()-ROW($33:$33),CJ$21)=0,'Fleet Inputs'!$I$10*CH$21,0),IF(CJ$21=0,0,'Fleet Inputs'!$I$10*CH$21/CJ$21)),"") -> 0 | CO34: =IF($B34<>"", IF(CO$11>=1, IF(MOD(ROW()-ROW($33:$33),CO$11)=0,'Fleet Inputs'!$I$10*CM$11,0),IF(CO$11=0,0,'Fleet Inputs'!$I$10*CM$11/CO$11)),"") -> 0 | CP34: =IF($B34<>"", IF(CO$12>=1, IF(MOD(ROW()-ROW($33:$33),CO$12)=0,'Fleet Inputs'!$I$10*CM$12,0),IF(CO$12=0,0,'Fleet Inputs'!$I$10*CM$12/CO$12)),"") -> 0 | CQ34: =IF($B34<>"", IF(CO$13>=1, IF(MOD(ROW()-ROW($33:$33),CO$13)=0,'Fleet Inputs'!$I$10*CM$13,0),IF(CO$13=0,0,'Fleet Inputs'!$I$10*CM$13/CO$13)),"") -> 0 | CR34: =IF($B34<>"", IF(CO$14>=1, IF(MOD(ROW()-ROW($33:$33),CO$14)=0,'Fleet Inputs'!$I$10*CM$14,0),IF(CO$14=0,0,'Fleet Inputs'!$I$10*CM$14/CO$14)),"") -> 0 | CS34: =IF($B34<>"", IF(CO$15>=1, IF(MOD(ROW()-ROW($33:$33),CO$15)=0,'Fleet Inputs'!$I$10*CM$15,0),IF(CO$15=0,0,'Fleet Inputs'!$I$10*CM$15/CO$15)),"") -> 0 | CT34: =IF($B34<>"", IF(CO$16>=1, IF(MOD(ROW()-ROW($33:$33),CO$16)=0,'Fleet Inputs'!$I$10*CM$16,0),IF(CO$16=0,0,'Fleet Inputs'!$I$10*CM$16/CO$16)),"") -> 0 | CU34: =IF(CD34<>"", SUM(CH34:CN34), "") -> 1935000 | CV34: =IF(CD34<>"", SUM(CO34:CT34), "") -> 0 | CW34: =IF(CD34<>"",SUM(CE34:CT34),"") -> 3715350 | CX34: =ROW()-ROW(33:33) -> 1 | CY34: =IF(CX34<>"",(CY$11+CY$15+CY$16+CY$17)*'Fleet Inputs'!$J$10,"") -> 0 | CZ34: =IF(CX34<>"",('Fleet Inputs'!$J$10*'Fleet Inputs'!$J$11*'Fleet Inputs'!$J$43*0.01)*((CY$12*(1+CY$13)^(CX34-1))+CY$14), "") -> 11295741.6 | DA34: =IF(AND(CX34<>"",'Fleet Inputs'!$J$5="Electric"),('Fleet Inputs'!$J$10*'Fleet Inputs'!$J$11*$CY$18*$CY$19), "") ->  | DB34: =IF(CX34<>"", (DB$11+DB$12+DB$13)*'Fleet Inputs'!$J$10,"") -> 3870000 | DC34: =IF($B34<>"", IF(DD$16>=1, IF(MOD(ROW()-ROW($33:$33),DD$16)=0,'Fleet Inputs'!$J$10*$F$16,0),IF(DD$16=0,0,'Fleet Inputs'!$J$10*DB$16/DD$16)),"") -> 0 | DD34: =IF($B34<>"", IF(DD$17>=1, IF(MOD(ROW()-ROW($33:$33),DD$17)=0,'Fleet Inputs'!$J$10*DB$17,0),IF(DD$17=0,0,'Fleet Inputs'!$J$10*DB$17/DD$17)),"") -> 0 | DE34: =IF($B34<>"", IF(DD$18>=1, IF(MOD(ROW()-ROW($33:$33),DD$18)=0,'Fleet Inputs'!$J$10*DB$18,0),IF(DD$18=0,0,'Fleet Inputs'!$J$10*DB$18/DD$18)),"") -> 0 | DF34: =IF($B34<>"", IF(DD$19>=1, IF(MOD(ROW()-ROW($33:$33),DD$19)=0,'Fleet Inputs'!$J$10*DB$19,0),IF(DD$19=0,0,'Fleet Inputs'!$J$10*DB$19/DD$19)),"") -> 0 | DG34: =IF($B34<>"", IF(DD$20>=1, IF(MOD(ROW()-ROW($33:$33),DD$20)=0,'Fleet Inputs'!$J$10*DB$20,0),IF(DD$20=0,0,'Fleet Inputs'!$J$10*DB$20/DD$20)),"") -> 0 | DH34: =IF($B34<>"", IF(DD$21>=1, IF(MOD(ROW()-ROW($33:$33),DD$21)=0,'Fleet Inputs'!$J$10*DB$21,0),IF(DD$21=0,0,'Fleet Inputs'!$J$10*DB$21/DD$21)),"") -> 0 | DI34: =IF($B34<>"", IF(DI$11>=1, IF(MOD(ROW()-ROW($33:$33),DI$11)=0,'Fleet Inputs'!$J$10*DG$11,0),IF(DI$11=0,0,'Fleet Inputs'!$J$10*DG$11/DI$11)),"") -> 0 | DJ34: =IF($B34<>"", IF(DI$12>=1, IF(MOD(ROW()-ROW($33:$33),DI$12)=0,'Fleet Inputs'!$J$10*DG$12,0),IF(DI$12=0,0,'Fleet Inputs'!$J$10*DG$12/DI$12)),"") -> 0 | DK34: =IF($B34<>"", IF(DI$13>=1, IF(MOD(ROW()-ROW($33:$33),DI$13)=0,'Fleet Inputs'!$J$10*DG$13,0),IF(DI$13=0,0,'Fleet Inputs'!$J$10*DG$13/DI$13)),"") -> 0 | DL34: =IF($B34<>"", IF(DI$14>=1, IF(MOD(ROW()-ROW($33:$33),DI$14)=0,'Fleet Inputs'!$J$10*DG$14,0),IF(DI$14=0,0,'Fleet Inputs'!$J$10*DG$14/DI$14)),"") -> 0 | DM34: =IF($B34<>"", IF(DI$15>=1, IF(MOD(ROW()-ROW($33:$33),DI$15)=0,'Fleet Inputs'!$J$10*DG$15,0),IF(DI$15=0,0,'Fleet Inputs'!$J$10*DG$15/DI$15)),"") -> 0 | DN34: =IF($B34<>"", IF(DI$16>=1, IF(MOD(ROW()-ROW($33:$33),DI$16)=0,'Fleet Inputs'!$J$10*DG$16,0),IF(DI$16=0,0,'Fleet Inputs'!$J$10*DG$16/DI$16)),"") -> 0 | DO34: =IF(CX34<>"", SUM(DB34:DH34), "") -> 3870000 | DP34: =IF(CX34<>"", SUM(DI34:DN34), "") -> 0 | DQ34: =IF(CX34<>"",SUM(CY34:DN34),"") -> 15165741.6
B35: =IF(B34<$C$9,B34+1,"") -> 2 | C35: =IF(B35<>"",(C$11+C$15+C$16+C$17)*'Fleet Inputs'!$E$10,"") -> 0 | D35: =IF(B35<>"",('Fleet Inputs'!$E$10*'Fleet Inputs'!$E$11*'Fleet Inputs'!$E$43*0.01)*((C$12*(1+C$13)^(B35-1))+C$14), "") -> 0 | E35: =IF(AND(B35<>"",'Fleet Inputs'!$E$5="Electric"),('Fleet Inputs'!$E$10*'Fleet Inputs'!$E$11*$C$18*$C$19), "") -> 28600000 | F35: =IF(B35<>"", (F$11+F$12+F$13)*'Fleet Inputs'!$E$10,"") -> 14620000 | G35: =IF($B35<>"", IF(H$16>=1, IF(MOD(ROW()-ROW($33:$33),H$16)=0,'Fleet Inputs'!$E$10*$F$16,0),IF(H$16=0,0,'Fleet Inputs'!$E$10*F$16/H$16)),"") -> 0 | H35: =IF($B35<>"", IF(H$17>=1, IF(MOD(ROW()-ROW($33:$33),H$17)=0,'Fleet Inputs'!$E$10*F$17,0),IF(H$17=0,0,'Fleet Inputs'!$E$10*F$17/H$17)),"") -> 0 | I35: =IF($B35<>"", IF(H$18>=1, IF(MOD(ROW()-ROW($33:$33),H$18)=0,'Fleet Inputs'!$E$10*F$18,0),IF(H$18=0,0,'Fleet Inputs'!$E$10*F$18/H$18)),"") -> 0 | J35: =IF($B35<>"", IF(H$19>=1, IF(MOD(ROW()-ROW($33:$33),H$19)=0,'Fleet Inputs'!$E$10*F$19,0),IF(H$19=0,0,'Fleet Inputs'!$E$10*F$19/H$19)),"") -> 0 | K35: =IF($B35<>"", IF(H$20>=1, IF(MOD(ROW()-ROW($33:$33),H$20)=0,'Fleet Inputs'!$E$10*F$20,0),IF(H$20=0,0,'Fleet Inputs'!$E$10*F$20/H$20)),"") -> 0 | L35: =IF($B35<>"", IF(H$21>=1, IF(MOD(ROW()-ROW($33:$33),H$21)=0,'Fleet Inputs'!$E$10*F$21,0),IF(H$21=0,0,'Fleet Inputs'!$E$10*F$21/H$21)),"") -> 0 | M35: =IF($B35<>"", IF(M$11>=1, IF(MOD(ROW()-ROW($33:$33),M$11)=0,'Fleet Inputs'!$E$10*K$11,0),IF(M$11=0,0,'Fleet Inputs'!$E$10*K$11/M$11)),"") -> 0 | N35: =IF($B35<>"", IF(M$12>=1, IF(MOD(ROW()-ROW($33:$33),M$12)=0,'Fleet Inputs'!$E$10*K$12,0),IF(M$12=0,0,'Fleet Inputs'!$E$10*K$12/M$12)),"") -> 0 | O35: =IF($B35<>"", IF(M$13>=1, IF(MOD(ROW()-ROW($33:$33),M$13)=0,'Fleet Inputs'!$E$10*K$13,0),IF(M$13=0,0,'Fleet Inputs'!$E$10*K$13/M$13)),"") -> 0 | P35: =IF($B35<>"", IF(M$14>=1, IF(MOD(ROW()-ROW($33:$33),M$14)=0,'Fleet Inputs'!$E$10*K$14,0),IF(M$14=0,0,'Fleet Inputs'!$E$10*K$14/M$14)),"") -> 0 | Q35: =IF($B35<>"", IF(M$15>=1, IF(MOD(ROW()-ROW($33:$33),M$15)=0,'Fleet Inputs'!$E$10*K$15,0),IF(M$15=0,0,'Fleet Inputs'!$E$10*K$15/M$15)),"") -> 0 | R35: =IF($B35<>"", IF(M$16>=1, IF(MOD(ROW()-ROW($33:$33),M$16)=0,'Fleet Inputs'!$E$10*K$16,0),IF(M$16=0,0,'Fleet Inputs'!$E$10*K$16/M$16)),"") -> 0 | S35: =IF(B35<>"", SUM(F35:L35), "") -> 14620000 | T35: 0 | U35: 43220000 | V35: =IF(V34<$W$9,V34+1,"") -> 2 | W35: =IF(V35<>"",(W$11+W$15+W$16+W$17)*'Fleet Inputs'!$F$10,"") -> 0 | X35: =IF(V35<>"",('Fleet Inputs'!$F$10*'Fleet Inputs'!$F$11*'Fleet Inputs'!$F$43*0.01)*((W$12*(1+W$13)^(V35-1))+W$14), "") -> 1930500 | Y35: =IF(AND(V35<>"",'Fleet Inputs'!$F$5="Electric"),('Fleet Inputs'!F$10*'Fleet Inputs'!$F$11*$W$18*$W$19), "") ->  | Z35: =IF(V35<>"", (Z$11+Z$12+Z$13)*'Fleet Inputs'!$F$10,"") -> 1290000 | AA35: =IF($B35<>"", IF(AB$16>=1, IF(MOD(ROW()-ROW($33:$33),AB$16)=0,'Fleet Inputs'!$F$10*$F$16,0),IF(AB$16=0,0,'Fleet Inputs'!$F$10*Z$16/AB$16)),"") -> 0 | AB35: =IF($B35<>"", IF(AB$17>=1, IF(MOD(ROW()-ROW($33:$33),AB$17)=0,'Fleet Inputs'!$F$10*Z$17,0),IF(AB$17=0,0,'Fleet Inputs'!$F$10*Z$17/AB$17)),"") -> 0 | AC35: =IF($B35<>"", IF(AB$18>=1, IF(MOD(ROW()-ROW($33:$33),AB$18)=0,'Fleet Inputs'!$F$10*Z$18,0),IF(AB$18=0,0,'Fleet Inputs'!$F$10*Z$18/AB$18)),"") -> 0 | AD35: =IF($B35<>"", IF(AB$19>=1, IF(MOD(ROW()-ROW($33:$33),AB$19)=0,'Fleet Inputs'!$F$10*Z$19,0),IF(AB$19=0,0,'Fleet Inputs'!$F$10*Z$19/AB$19)),"") -> 0 | AE35: =IF($B35<>"", IF(AB$20>=1, IF(MOD(ROW()-ROW($33:$33),AB$20)=0,'Fleet Inputs'!$F$10*Z$20,0),IF(AB$20=0,0,'Fleet Inputs'!$F$10*Z$20/AB$20)),"") -> 0 | AF35: =IF($B35<>"", IF(AB$21>=1, IF(MOD(ROW()-ROW($33:$33),AB$21)=0,'Fleet Inputs'!$F$10*Z$21,0),IF(AB$21=0,0,'Fleet Inputs'!$F$10*Z$21/AB$21)),"") -> 0 | AG35: =IF($B35<>"", IF(AG$11>=1, IF(MOD(ROW()-ROW($33:$33),AG$11)=0,'Fleet Inputs'!$F$10*AE$11,0),IF(AG$11=0,0,'Fleet Inputs'!$F$10*AE$11/AG$11)),"") -> 0 | AH35: =IF($B35<>"", IF(AG$12>=1, IF(MOD(ROW()-ROW($33:$33),AG$12)=0,'Fleet Inputs'!$F$10*AE$12,0),IF(AG$12=0,0,'Fleet Inputs'!$F$10*AE$12/AG$12)),"") -> 0 | AI35: =IF($B35<>"", IF(AG$13>=1, IF(MOD(ROW()-ROW($33:$33),AG$13)=0,'Fleet Inputs'!$F$10*AE$13,0),IF(AG$13=0,0,'Fleet Inputs'!$F$10*AE$13/AG$13)),"") -> 0 | AJ35: =IF($B35<>"", IF(AG$14>=1, IF(MOD(ROW()-ROW($33:$33),AG$14)=0,'Fleet Inputs'!$F$10*AE$14,0),IF(AG$14=0,0,'Fleet Inputs'!$F$10*AE$14/AG$14)),"") -> 0 | AK35: =IF($B35<>"", IF(AG$15>=1, IF(MOD(ROW()-ROW($33:$33),AG$15)=0,'Fleet Inputs'!$F$10*AE$15,0),IF(AG$15=0,0,'Fleet Inputs'!$F$10*AE$15/AG$15)),"") -> 0 | AL35: =IF($B35<>"", IF(AG$16>=1, IF(MOD(ROW()-ROW($33:$33),AG$16)=0,'Fleet Inputs'!$F$10*AE$16,0),IF(AG$16=0,0,'Fleet Inputs'!$F$10*AE$16/AG$16)),"") -> 0 | AM35: 1290000 | AN35: 0 | AO35: 3220500 | AP35: =IF(AP34<$AQ$9,AP34+1,"") -> 2 | AQ35: =IF(AP35<>"",(AQ$11+AQ$15+AQ$16+AQ$17)*'Fleet Inputs'!$G$10,"") -> 0 | AR35: =IF(AP35<>"",('Fleet Inputs'!$G$10*'Fleet Inputs'!$G$11*'Fleet Inputs'!$G$43*0.01)*((AQ$12*(1+AQ$13)^(AP35-1))+AQ$14), "") -> 3765247.2 | AS35: =IF(AND(AP35<>"",'Fleet Inputs'!$G$5="Electric"),('Fleet Inputs'!$G$10*'Fleet Inputs'!$G$11*$AQ$18*$AQ$19), "") ->  | AT35: =IF(AP35<>"", (AT$11+AT$12+AT$13)*'Fleet Inputs'!$G$10,"") -> 1290000 | AU35: =IF($B35<>"", IF(AV$16>=1, IF(MOD(ROW()-ROW($33:$33),AV$16)=0,'Fleet Inputs'!$G$10*$F$16,0),IF(AV$16=0,0,'Fleet Inputs'!$G$10*AT$16/AV$16)),"") -> 0 | AV35: =IF($B35<>"", IF(AV$17>=1, IF(MOD(ROW()-ROW($33:$33),AV$17)=0,'Fleet Inputs'!$G$10*AT$17,0),IF(AV$17=0,0,'Fleet Inputs'!$G$10*AT$17/AV$17)),"") -> 0 | AW35: =IF($B35<>"", IF(AV$18>=1, IF(MOD(ROW()-ROW($33:$33),AV$18)=0,'Fleet Inputs'!$G$10*AT$18,0),IF(AV$18=0,0,'Fleet Inputs'!$G$10*AT$18/AV$18)),"") -> 0 | AX35: =IF($B35<>"", IF(AV$19>=1, IF(MOD(ROW()-ROW($33:$33),AV$19)=0,'Fleet Inputs'!$G$10*AT$19,0),IF(AV$19=0,0,'Fleet Inputs'!$G$10*AT$19/AV$19)),"") -> 0 | AY35: =IF($B35<>"", IF(AV$20>=1, IF(MOD(ROW()-ROW($33:$33),AV$20)=0,'Fleet Inputs'!$G$10*AT$20,0),IF(AV$20=0,0,'Fleet Inputs'!$G$10*AT$20/AV$20)),"") -> 0 | AZ35: =IF($B35<>"", IF(AV$21>=1, IF(MOD(ROW()-ROW($33:$33),AV$21)=0,'Fleet Inputs'!$G$10*AT$21,0),IF(AV$21=0,0,'Fleet Inputs'!$G$10*AT$21/AV$21)),"") -> 0 | BA35: =IF($B35<>"", IF(BA$11>=1, IF(MOD(ROW()-ROW($33:$33),BA$11)=0,'Fleet Inputs'!$G$10*AY$11,0),IF(BA$11=0,0,'Fleet Inputs'!$G$10*AY$11/BA$11)),"") -> 0 | BB35: =IF($B35<>"", IF(BA$12>=1, IF(MOD(ROW()-ROW($33:$33),BA$12)=0,'Fleet Inputs'!$G$10*AY$12,0),IF(BA$12=0,0,'Fleet Inputs'!$G$10*AY$12/BA$12)),"") -> 0 | BC35: =IF($B35<>"", IF(BA$13>=1, IF(MOD(ROW()-ROW($33:$33),BA$13)=0,'Fleet Inputs'!$G$10*AY$13,0),IF(BA$13=0,0,'Fleet Inputs'!$G$10*AY$13/BA$13)),"") -> 0 | BD35: =IF($B35<>"", IF(BA$14>=1, IF(MOD(ROW()-ROW($33:$33),BA$14)=0,'Fleet Inputs'!$G$10*AY$14,0),IF(BA$14=0,0,'Fleet Inputs'!$G$10*AY$14/BA$14)),"") -> 0 | BE35: =IF($B35<>"", IF(BA$15>=1, IF(MOD(ROW()-ROW($33:$33),BA$15)=0,'Fleet Inputs'!$G$10*AY$15,0),IF(BA$15=0,0,'Fleet Inputs'!$G$10*AY$15/BA$15)),"") -> 0 | BF35: =IF($B35<>"", IF(BA$16>=1, IF(MOD(ROW()-ROW($33:$33),BA$16)=0,'Fleet Inputs'!$G$10*AY$16,0),IF(BA$16=0,0,'Fleet Inputs'!$G$10*AY$16/BA$16)),"") -> 0 | BG35: 1290000 | BH35: 0 | BI35: 5055247.2 | BJ35: =IF(BJ34<$BK$9,BJ34+1,"") -> 2 | BK35: =IF(BJ35<>"",(BK$11+BK$15+BK$16+BK$17)*'Fleet Inputs'!$H$10,"") -> 0 | BL35: =IF(BJ35<>"",('Fleet Inputs'!$H$10*'Fleet Inputs'!$H$11*'Fleet Inputs'!$H$43*0.01)*((BK$12*(1+BK$13)^(BJ35-1))+BK$14), "") -> 0 | BM35: =IF(AND(BJ35<>"",'Fleet Inputs'!$H$5="Electric"),('Fleet Inputs'!$H$10*'Fleet Inputs'!$H$11*$BK$18*$BK$19), "") -> 21450000 | BN35: =IF(BJ35<>"", (BN$11+BN$12+BN$13)*'Fleet Inputs'!$H$10,"") -> 10965000 | BO35: =IF($B35<>"", IF(BP$16>=1, IF(MOD(ROW()-ROW($33:$33),BP$16)=0,'Fleet Inputs'!$H$10*$F$16,0),IF(BP$16=0,0,'Fleet Inputs'!$H$10*BN$16/BP$16)),"") -> 0 | BP35: =IF($B35<>"", IF(BP$17>=1, IF(MOD(ROW()-ROW($33:$33),BP$17)=0,'Fleet Inputs'!$H$10*BN$17,0),IF(BP$17=0,0,'Fleet Inputs'!$H$10*BN$17/BP$17)),"") -> 0 | BQ35: =IF($B35<>"", IF(BP$18>=1, IF(MOD(ROW()-ROW($33:$33),BP$18)=0,'Fleet Inputs'!$H$10*BN$18,0),IF(BP$18=0,0,'Fleet Inputs'!$H$10*BN$18/BP$18)),"") -> 0 | BR35: =IF($B35<>"", IF(BP$19>=1, IF(MOD(ROW()-ROW($33:$33),BP$19)=0,'Fleet Inputs'!$H$10*BN$19,0),IF(BP$19=0,0,'Fleet Inputs'!$H$10*BN$19/BP$19)),"") -> 0 | BS35: =IF($B35<>"", IF(BP$20>=1, IF(MOD(ROW()-ROW($33:$33),BP$20)=0,'Fleet Inputs'!$H$10*BN$20,0),IF(BP$20=0,0,'Fleet Inputs'!$H$10*BN$20/BP$20)),"") -> 0 | BT35: =IF($B35<>"", IF(BP$21>=1, IF(MOD(ROW()-ROW($33:$33),BP$21)=0,'Fleet Inputs'!$H$10*BN$21,0),IF(BP$21=0,0,'Fleet Inputs'!$H$10*BN$21/BP$21)),"") -> 0 | BU35: =IF($B35<>"", IF(BU$11>=1, IF(MOD(ROW()-ROW($33:$33),BU$11)=0,'Fleet Inputs'!$H$10*BS$11,0),IF(BU$11=0,0,'Fleet Inputs'!$H$10*BS$11/BU$11)),"") -> 0 | BV35: =IF($B35<>"", IF(BU$12>=1, IF(MOD(ROW()-ROW($33:$33),BU$12)=0,'Fleet Inputs'!$H$10*BS$12,0),IF(BU$12=0,0,'Fleet Inputs'!$H$10*BS$12/BU$12)),"") -> 0 | BW35: =IF($B35<>"", IF(BU$13>=1, IF(MOD(ROW()-ROW($33:$33),BU$13)=0,'Fleet Inputs'!$H$10*BS$13,0),IF(BU$13=0,0,'Fleet Inputs'!$H$10*BS$13/BU$13)),"") -> 0 | BX35: =IF($B35<>"", IF(BU$14>=1, IF(MOD(ROW()-ROW($33:$33),BU$14)=0,'Fleet Inputs'!$H$10*BS$14,0),IF(BU$14=0,0,'Fleet Inputs'!$H$10*BS$14/BU$14)),"") -> 0 | BY35: =IF($B35<>"", IF(BU$15>=1, IF(MOD(ROW()-ROW($33:$33),BU$15)=0,'Fleet Inputs'!$H$10*BS$15,0),IF(BU$15=0,0,'Fleet Inputs'!$H$10*BS$15/BU$15)),"") -> 0 | BZ35: =IF($B35<>"", IF(BU$16>=1, IF(MOD(ROW()-ROW($33:$33),BU$16)=0,'Fleet Inputs'!$H$10*BS$16,0),IF(BU$16=0,0,'Fleet Inputs'!$H$10*BS$16/BU$16)),"") -> 0 | CA35: 10965000 | CB35: 0 | CC35: 32415000 | CD35: =IF(CD34<$CE$9,CD34+1,"") -> 2 | CE35: =IF(CD35<>"",(CE$11+CE$15+CE$16+CE$17)*'Fleet Inputs'!$I$10,"") -> 0 | CF35: =IF(CD35<>"",('Fleet Inputs'!$I$10*'Fleet Inputs'!$I$11*'Fleet Inputs'!$I$43*0.01)*((CE$12*(1+CE$13)^(CD35-1))+CE$14), "") -> 1780350 | CG35: =IF(AND(CD35<>"",'Fleet Inputs'!$I$5="Electric"),('Fleet Inputs'!$I$10*'Fleet Inputs'!$I$11*$CE$18*$CE$19), "") ->  | CH35: =IF(CD35<>"", (CH$11+CH$12+CH$13)*'Fleet Inputs'!$I$10,"") -> 1935000 | CI35: =IF($B35<>"", IF(CJ$16>=1, IF(MOD(ROW()-ROW($33:$33),CJ$16)=0,'Fleet Inputs'!$I$10*$F$16,0),IF(CJ$16=0,0,'Fleet Inputs'!$I$10*CH$16/CJ$16)),"") -> 0 | CJ35: =IF($B35<>"", IF(CJ$17>=1, IF(MOD(ROW()-ROW($33:$33),CJ$17)=0,'Fleet Inputs'!$I$10*CH$17,0),IF(CJ$17=0,0,'Fleet Inputs'!$I$10*CH$17/CJ$17)),"") -> 0 | CK35: =IF($B35<>"", IF(CJ$18>=1, IF(MOD(ROW()-ROW($33:$33),CJ$18)=0,'Fleet Inputs'!$I$10*CH$18,0),IF(CJ$18=0,0,'Fleet Inputs'!$I$10*CH$18/CJ$18)),"") -> 0 | CL35: =IF($B35<>"", IF(CJ$19>=1, IF(MOD(ROW()-ROW($33:$33),CJ$19)=0,'Fleet Inputs'!$I$10*CH$19,0),IF(CJ$19=0,0,'Fleet Inputs'!$I$10*CH$19/CJ$19)),"") -> 0 | CM35: =IF($B35<>"", IF(CJ$20>=1, IF(MOD(ROW()-ROW($33:$33),CJ$20)=0,'Fleet Inputs'!$I$10*CH$20,0),IF(CJ$20=0,0,'Fleet Inputs'!$I$10*CH$20/CJ$20)),"") -> 0 | CN35: =IF($B35<>"", IF(CJ$21>=1, IF(MOD(ROW()-ROW($33:$33),CJ$21)=0,'Fleet Inputs'!$I$10*CH$21,0),IF(CJ$21=0,0,'Fleet Inputs'!$I$10*CH$21/CJ$21)),"") -> 0 | CO35: =IF($B35<>"", IF(CO$11>=1, IF(MOD(ROW()-ROW($33:$33),CO$11)=0,'Fleet Inputs'!$I$10*CM$11,0),IF(CO$11=0,0,'Fleet Inputs'!$I$10*CM$11/CO$11)),"") -> 0 | CP35: =IF($B35<>"", IF(CO$12>=1, IF(MOD(ROW()-ROW($33:$33),CO$12)=0,'Fleet Inputs'!$I$10*CM$12,0),IF(CO$12=0,0,'Fleet Inputs'!$I$10*CM$12/CO$12)),"") -> 0 | CQ35: =IF($B35<>"", IF(CO$13>=1, IF(MOD(ROW()-ROW($33:$33),CO$13)=0,'Fleet Inputs'!$I$10*CM$13,0),IF(CO$13=0,0,'Fleet Inputs'!$I$10*CM$13/CO$13)),"") -> 0 | CR35: =IF($B35<>"", IF(CO$14>=1, IF(MOD(ROW()-ROW($33:$33),CO$14)=0,'Fleet Inputs'!$I$10*CM$14,0),IF(CO$14=0,0,'Fleet Inputs'!$I$10*CM$14/CO$14)),"") -> 0 | CS35: =IF($B35<>"", IF(CO$15>=1, IF(MOD(ROW()-ROW($33:$33),CO$15)=0,'Fleet Inputs'!$I$10*CM$15,0),IF(CO$15=0,0,'Fleet Inputs'!$I$10*CM$15/CO$15)),"") -> 0 | CT35: =IF($B35<>"", IF(CO$16>=1, IF(MOD(ROW()-ROW($33:$33),CO$16)=0,'Fleet Inputs'!$I$10*CM$16,0),IF(CO$16=0,0,'Fleet Inputs'!$I$10*CM$16/CO$16)),"") -> 0 | CU35: 1935000 | CV35: 0 | CW35: 3715350 | CX35: =IF(CX34<$CY$9,CX34+1,"") -> 2 | CY35: =IF(CX35<>"",(CY$11+CY$15+CY$16+CY$17)*'Fleet Inputs'!$J$10,"") -> 0 | CZ35: =IF(CX35<>"",('Fleet Inputs'!$J$10*'Fleet Inputs'!$J$11*'Fleet Inputs'!$J$43*0.01)*((CY$12*(1+CY$13)^(CX35-1))+CY$14), "") -> 11295741.6 | DA35: =IF(AND(CX35<>"",'Fleet Inputs'!$J$5="Electric"),('Fleet Inputs'!$J$10*'Fleet Inputs'!$J$11*$CY$18*$CY$19), "") ->  | DB35: =IF(CX35<>"", (DB$11+DB$12+DB$13)*'Fleet Inputs'!$J$10,"") -> 3870000 | DC35: =IF($B35<>"", IF(DD$16>=1, IF(MOD(ROW()-ROW($33:$33),DD$16)=0,'Fleet Inputs'!$J$10*$F$16,0),IF(DD$16=0,0,'Fleet Inputs'!$J$10*DB$16/DD$16)),"") -> 0 | DD35: =IF($B35<>"", IF(DD$17>=1, IF(MOD(ROW()-ROW($33:$33),DD$17)=0,'Fleet Inputs'!$J$10*DB$17,0),IF(DD$17=0,0,'Fleet Inputs'!$J$10*DB$17/DD$17)),"") -> 0 | DE35: =IF($B35<>"", IF(DD$18>=1, IF(MOD(ROW()-ROW($33:$33),DD$18)=0,'Fleet Inputs'!$J$10*DB$18,0),IF(DD$18=0,0,'Fleet Inputs'!$J$10*DB$18/DD$18)),"") -> 0 | DF35: =IF($B35<>"", IF(DD$19>=1, IF(MOD(ROW()-ROW($33:$33),DD$19)=0,'Fleet Inputs'!$J$10*DB$19,0),IF(DD$19=0,0,'Fleet Inputs'!$J$10*DB$19/DD$19)),"") -> 0 | DG35: =IF($B35<>"", IF(DD$20>=1, IF(MOD(ROW()-ROW($33:$33),DD$20)=0,'Fleet Inputs'!$J$10*DB$20,0),IF(DD$20=0,0,'Fleet Inputs'!$J$10*DB$20/DD$20)),"") -> 0 | DH35: =IF($B35<>"", IF(DD$21>=1, IF(MOD(ROW()-ROW($33:$33),DD$21)=0,'Fleet Inputs'!$J$10*DB$21,0),IF(DD$21=0,0,'Fleet Inputs'!$J$10*DB$21/DD$21)),"") -> 0 | DI35: =IF($B35<>"", IF(DI$11>=1, IF(MOD(ROW()-ROW($33:$33),DI$11)=0,'Fleet Inputs'!$J$10*DG$11,0),IF(DI$11=0,0,'Fleet Inputs'!$J$10*DG$11/DI$11)),"") -> 0 | DJ35: =IF($B35<>"", IF(DI$12>=1, IF(MOD(ROW()-ROW($33:$33),DI$12)=0,'Fleet Inputs'!$J$10*DG$12,0),IF(DI$12=0,0,'Fleet Inputs'!$J$10*DG$12/DI$12)),"") -> 0 | DK35: =IF($B35<>"", IF(DI$13>=1, IF(MOD(ROW()-ROW($33:$33),DI$13)=0,'Fleet Inputs'!$J$10*DG$13,0),IF(DI$13=0,0,'Fleet Inputs'!$J$10*DG$13/DI$13)),"") -> 0 | DL35: =IF($B35<>"", IF(DI$14>=1, IF(MOD(ROW()-ROW($33:$33),DI$14)=0,'Fleet Inputs'!$J$10*DG$14,0),IF(DI$14=0,0,'Fleet Inputs'!$J$10*DG$14/DI$14)),"") -> 0 | DM35: =IF($B35<>"", IF(DI$15>=1, IF(MOD(ROW()-ROW($33:$33),DI$15)=0,'Fleet Inputs'!$J$10*DG$15,0),IF(DI$15=0,0,'Fleet Inputs'!$J$10*DG$15/DI$15)),"") -> 0 | DN35: =IF($B35<>"", IF(DI$16>=1, IF(MOD(ROW()-ROW($33:$33),DI$16)=0,'Fleet Inputs'!$J$10*DG$16,0),IF(DI$16=0,0,'Fleet Inputs'!$J$10*DG$16/DI$16)),"") -> 0 | DO35: 3870000 | DP35: 0 | DQ35: 15165741.6
B36: =IF(B35<$C$9,B35+1,"") -> 3 | C36: =IF(B36<>"",(C$11+C$15+C$16+C$17)*'Fleet Inputs'!$E$10,"") -> 0 | D36: =IF(B36<>"",('Fleet Inputs'!$E$10*'Fleet Inputs'!$E$11*'Fleet Inputs'!$E$43*0.01)*((C$12*(1+C$13)^(B36-1))+C$14), "") -> 0 | E36: =IF(AND(B36<>"",'Fleet Inputs'!$E$5="Electric"),('Fleet Inputs'!$E$10*'Fleet Inputs'!$E$11*$C$18*$C$19), "") -> 28600000 | F36: =IF(B36<>"", (F$11+F$12+F$13)*'Fleet Inputs'!$E$10,"") -> 14620000 | G36: =IF($B36<>"", IF(H$16>=1, IF(MOD(ROW()-ROW($33:$33),H$16)=0,'Fleet Inputs'!$E$10*$F$16,0),IF(H$16=0,0,'Fleet Inputs'!$E$10*F$16/H$16)),"") -> 0 | H36: =IF($B36<>"", IF(H$17>=1, IF(MOD(ROW()-ROW($33:$33),H$17)=0,'Fleet Inputs'!$E$10*F$17,0),IF(H$17=0,0,'Fleet Inputs'!$E$10*F$17/H$17)),"") -> 0 | I36: =IF($B36<>"", IF(H$18>=1, IF(MOD(ROW()-ROW($33:$33),H$18)=0,'Fleet Inputs'!$E$10*F$18,0),IF(H$18=0,0,'Fleet Inputs'!$E$10*F$18/H$18)),"") -> 0 | J36: =IF($B36<>"", IF(H$19>=1, IF(MOD(ROW()-ROW($33:$33),H$19)=0,'Fleet Inputs'!$E$10*F$19,0),IF(H$19=0,0,'Fleet Inputs'!$E$10*F$19/H$19)),"") -> 0 | K36: =IF($B36<>"", IF(H$20>=1, IF(MOD(ROW()-ROW($33:$33),H$20)=0,'Fleet Inputs'!$E$10*F$20,0),IF(H$20=0,0,'Fleet Inputs'!$E$10*F$20/H$20)),"") -> 0 | L36: =IF($B36<>"", IF(H$21>=1, IF(MOD(ROW()-ROW($33:$33),H$21)=0,'Fleet Inputs'!$E$10*F$21,0),IF(H$21=0,0,'Fleet Inputs'!$E$10*F$21/H$21)),"") -> 0 | M36: =IF($B36<>"", IF(M$11>=1, IF(MOD(ROW()-ROW($33:$33),M$11)=0,'Fleet Inputs'!$E$10*K$11,0),IF(M$11=0,0,'Fleet Inputs'!$E$10*K$11/M$11)),"") -> 0 | N36: =IF($B36<>"", IF(M$12>=1, IF(MOD(ROW()-ROW($33:$33),M$12)=0,'Fleet Inputs'!$E$10*K$12,0),IF(M$12=0,0,'Fleet Inputs'!$E$10*K$12/M$12)),"") -> 0 | O36: =IF($B36<>"", IF(M$13>=1, IF(MOD(ROW()-ROW($33:$33),M$13)=0,'Fleet Inputs'!$E$10*K$13,0),IF(M$13=0,0,'Fleet Inputs'!$E$10*K$13/M$13)),"") -> 0 | P36: =IF($B36<>"", IF(M$14>=1, IF(MOD(ROW()-ROW($33:$33),M$14)=0,'Fleet Inputs'!$E$10*K$14,0),IF(M$14=0,0,'Fleet Inputs'!$E$10*K$14/M$14)),"") -> 0 | Q36: =IF($B36<>"", IF(M$15>=1, IF(MOD(ROW()-ROW($33:$33),M$15)=0,'Fleet Inputs'!$E$10*K$15,0),IF(M$15=0,0,'Fleet Inputs'!$E$10*K$15/M$15)),"") -> 0 | R36: =IF($B36<>"", IF(M$16>=1, IF(MOD(ROW()-ROW($33:$33),M$16)=0,'Fleet Inputs'!$E$10*K$16,0),IF(M$16=0,0,'Fleet Inputs'!$E$10*K$16/M$16)),"") -> 0 | S36: 14620000 | T36: 0 | U36: 43220000 | V36: =IF(V35<$W$9,V35+1,"") -> 3 | W36: =IF(V36<>"",(W$11+W$15+W$16+W$17)*'Fleet Inputs'!$F$10,"") -> 0 | X36: =IF(V36<>"",('Fleet Inputs'!$F$10*'Fleet Inputs'!$F$11*'Fleet Inputs'!$F$43*0.01)*((W$12*(1+W$13)^(V36-1))+W$14), "") -> 1930500 | Y36: =IF(AND(V36<>"",'Fleet Inputs'!$F$5="Electric"),('Fleet Inputs'!F$10*'Fleet Inputs'!$F$11*$W$18*$W$19), "") ->  | Z36: =IF(V36<>"", (Z$11+Z$12+Z$13)*'Fleet Inputs'!$F$10,"") -> 1290000 | AA36: =IF($B36<>"", IF(AB$16>=1, IF(MOD(ROW()-ROW($33:$33),AB$16)=0,'Fleet Inputs'!$F$10*$F$16,0),IF(AB$16=0,0,'Fleet Inputs'!$F$10*Z$16/AB$16)),"") -> 0 | AB36: =IF($B36<>"", IF(AB$17>=1, IF(MOD(ROW()-ROW($33:$33),AB$17)=0,'Fleet Inputs'!$F$10*Z$17,0),IF(AB$17=0,0,'Fleet Inputs'!$F$10*Z$17/AB$17)),"") -> 0 | AC36: =IF($B36<>"", IF(AB$18>=1, IF(MOD(ROW()-ROW($33:$33),AB$18)=0,'Fleet Inputs'!$F$10*Z$18,0),IF(AB$18=0,0,'Fleet Inputs'!$F$10*Z$18/AB$18)),"") -> 0 | AD36: =IF($B36<>"", IF(AB$19>=1, IF(MOD(ROW()-ROW($33:$33),AB$19)=0,'Fleet Inputs'!$F$10*Z$19,0),IF(AB$19=0,0,'Fleet Inputs'!$F$10*Z$19/AB$19)),"") -> 0 | AE36: =IF($B36<>"", IF(AB$20>=1, IF(MOD(ROW()-ROW($33:$33),AB$20)=0,'Fleet Inputs'!$F$10*Z$20,0),IF(AB$20=0,0,'Fleet Inputs'!$F$10*Z$20/AB$20)),"") -> 0 | AF36: =IF($B36<>"", IF(AB$21>=1, IF(MOD(ROW()-ROW($33:$33),AB$21)=0,'Fleet Inputs'!$F$10*Z$21,0),IF(AB$21=0,0,'Fleet Inputs'!$F$10*Z$21/AB$21)),"") -> 0 | AG36: =IF($B36<>"", IF(AG$11>=1, IF(MOD(ROW()-ROW($33:$33),AG$11)=0,'Fleet Inputs'!$F$10*AE$11,0),IF(AG$11=0,0,'Fleet Inputs'!$F$10*AE$11/AG$11)),"") -> 0 | AH36: =IF($B36<>"", IF(AG$12>=1, IF(MOD(ROW()-ROW($33:$33),AG$12)=0,'Fleet Inputs'!$F$10*AE$12,0),IF(AG$12=0,0,'Fleet Inputs'!$F$10*AE$12/AG$12)),"") -> 0 | AI36: =IF($B36<>"", IF(AG$13>=1, IF(MOD(ROW()-ROW($33:$33),AG$13)=0,'Fleet Inputs'!$F$10*AE$13,0),IF(AG$13=0,0,'Fleet Inputs'!$F$10*AE$13/AG$13)),"") -> 0 | AJ36: =IF($B36<>"", IF(AG$14>=1, IF(MOD(ROW()-ROW($33:$33),AG$14)=0,'Fleet Inputs'!$F$10*AE$14,0),IF(AG$14=0,0,'Fleet Inputs'!$F$10*AE$14/AG$14)),"") -> 0 | AK36: =IF($B36<>"", IF(AG$15>=1, IF(MOD(ROW()-ROW($33:$33),AG$15)=0,'Fleet Inputs'!$F$10*AE$15,0),IF(AG$15=0,0,'Fleet Inputs'!$F$10*AE$15/AG$15)),"") -> 0 | AL36: =IF($B36<>"", IF(AG$16>=1, IF(MOD(ROW()-ROW($33:$33),AG$16)=0,'Fleet Inputs'!$F$10*AE$16,0),IF(AG$16=0,0,'Fleet Inputs'!$F$10*AE$16/AG$16)),"") -> 0 | AM36: 1290000 | AN36: 0 | AO36: 3220500 | AP36: =IF(AP35<$AQ$9,AP35+1,"") -> 3 | AQ36: =IF(AP36<>"",(AQ$11+AQ$15+AQ$16+AQ$17)*'Fleet Inputs'!$G$10,"") -> 0 | AR36: =IF(AP36<>"",('Fleet Inputs'!$G$10*'Fleet Inputs'!$G$11*'Fleet Inputs'!$G$43*0.01)*((AQ$12*(1+AQ$13)^(AP36-1))+AQ$14), "") -> 3765247.2 | AS36: =IF(AND(AP36<>"",'Fleet Inputs'!$G$5="Electric"),('Fleet Inputs'!$G$10*'Fleet Inputs'!$G$11*$AQ$18*$AQ$19), "") ->  | AT36: =IF(AP36<>"", (AT$11+AT$12+AT$13)*'Fleet Inputs'!$G$10,"") -> 1290000 | AU36: =IF($B36<>"", IF(AV$16>=1, IF(MOD(ROW()-ROW($33:$33),AV$16)=0,'Fleet Inputs'!$G$10*$F$16,0),IF(AV$16=0,0,'Fleet Inputs'!$G$10*AT$16/AV$16)),"") -> 0 | AV36: =IF($B36<>"", IF(AV$17>=1, IF(MOD(ROW()-ROW($33:$33),AV$17)=0,'Fleet Inputs'!$G$10*AT$17,0),IF(AV$17=0,0,'Fleet Inputs'!$G$10*AT$17/AV$17)),"") -> 0 | AW36: =IF($B36<>"", IF(AV$18>=1, IF(MOD(ROW()-ROW($33:$33),AV$18)=0,'Fleet Inputs'!$G$10*AT$18,0),IF(AV$18=0,0,'Fleet Inputs'!$G$10*AT$18/AV$18)),"") -> 0 | AX36: =IF($B36<>"", IF(AV$19>=1, IF(MOD(ROW()-ROW($33:$33),AV$19)=0,'Fleet Inputs'!$G$10*AT$19,0),IF(AV$19=0,0,'Fleet Inputs'!$G$10*AT$19/AV$19)),"") -> 0 | AY36: =IF($B36<>"", IF(AV$20>=1, IF(MOD(ROW()-ROW($33:$33),AV$20)=0,'Fleet Inputs'!$G$10*AT$20,0),IF(AV$20=0,0,'Fleet Inputs'!$G$10*AT$20/AV$20)),"") -> 0 | AZ36: =IF($B36<>"", IF(AV$21>=1, IF(MOD(ROW()-ROW($33:$33),AV$21)=0,'Fleet Inputs'!$G$10*AT$21,0),IF(AV$21=0,0,'Fleet Inputs'!$G$10*AT$21/AV$21)),"") -> 0 | BA36: =IF($B36<>"", IF(BA$11>=1, IF(MOD(ROW()-ROW($33:$33),BA$11)=0,'Fleet Inputs'!$G$10*AY$11,0),IF(BA$11=0,0,'Fleet Inputs'!$G$10*AY$11/BA$11)),"") -> 0 | BB36: =IF($B36<>"", IF(BA$12>=1, IF(MOD(ROW()-ROW($33:$33),BA$12)=0,'Fleet Inputs'!$G$10*AY$12,0),IF(BA$12=0,0,'Fleet Inputs'!$G$10*AY$12/BA$12)),"") -> 0 | BC36: =IF($B36<>"", IF(BA$13>=1, IF(MOD(ROW()-ROW($33:$33),BA$13)=0,'Fleet Inputs'!$G$10*AY$13,0),IF(BA$13=0,0,'Fleet Inputs'!$G$10*AY$13/BA$13)),"") -> 0 | BD36: =IF($B36<>"", IF(BA$14>=1, IF(MOD(ROW()-ROW($33:$33),BA$14)=0,'Fleet Inputs'!$G$10*AY$14,0),IF(BA$14=0,0,'Fleet Inputs'!$G$10*AY$14/BA$14)),"") -> 0 | BE36: =IF($B36<>"", IF(BA$15>=1, IF(MOD(ROW()-ROW($33:$33),BA$15)=0,'Fleet Inputs'!$G$10*AY$15,0),IF(BA$15=0,0,'Fleet Inputs'!$G$10*AY$15/BA$15)),"") -> 0 | BF36: =IF($B36<>"", IF(BA$16>=1, IF(MOD(ROW()-ROW($33:$33),BA$16)=0,'Fleet Inputs'!$G$10*AY$16,0),IF(BA$16=0,0,'Fleet Inputs'!$G$10*AY$16/BA$16)),"") -> 0 | BG36: 1290000 | BH36: 0 | BI36: 5055247.2 | BJ36: =IF(BJ35<$BK$9,BJ35+1,"") -> 3 | BK36: =IF(BJ36<>"",(BK$11+BK$15+BK$16+BK$17)*'Fleet Inputs'!$H$10,"") -> 0 | BL36: =IF(BJ36<>"",('Fleet Inputs'!$H$10*'Fleet Inputs'!$H$11*'Fleet Inputs'!$H$43*0.01)*((BK$12*(1+BK$13)^(BJ36-1))+BK$14), "") -> 0 | BM36: =IF(AND(BJ36<>"",'Fleet Inputs'!$H$5="Electric"),('Fleet Inputs'!$H$10*'Fleet Inputs'!$H$11*$BK$18*$BK$19), "") -> 21450000 | BN36: =IF(BJ36<>"", (BN$11+BN$12+BN$13)*'Fleet Inputs'!$H$10,"") -> 10965000 | BO36: =IF($B36<>"", IF(BP$16>=1, IF(MOD(ROW()-ROW($33:$33),BP$16)=0,'Fleet Inputs'!$H$10*$F$16,0),IF(BP$16=0,0,'Fleet Inputs'!$H$10*BN$16/BP$16)),"") -> 0 | BP36: =IF($B36<>"", IF(BP$17>=1, IF(MOD(ROW()-ROW($33:$33),BP$17)=0,'Fleet Inputs'!$H$10*BN$17,0),IF(BP$17=0,0,'Fleet Inputs'!$H$10*BN$17/BP$17)),"") -> 0 | BQ36: =IF($B36<>"", IF(BP$18>=1, IF(MOD(ROW()-ROW($33:$33),BP$18)=0,'Fleet Inputs'!$H$10*BN$18,0),IF(BP$18=0,0,'Fleet Inputs'!$H$10*BN$18/BP$18)),"") -> 0 | BR36: =IF($B36<>"", IF(BP$19>=1, IF(MOD(ROW()-ROW($33:$33),BP$19)=0,'Fleet Inputs'!$H$10*BN$19,0),IF(BP$19=0,0,'Fleet Inputs'!$H$10*BN$19/BP$19)),"") -> 0 | BS36: =IF($B36<>"", IF(BP$20>=1, IF(MOD(ROW()-ROW($33:$33),BP$20)=0,'Fleet Inputs'!$H$10*BN$20,0),IF(BP$20=0,0,'Fleet Inputs'!$H$10*BN$20/BP$20)),"") -> 0 | BT36: =IF($B36<>"", IF(BP$21>=1, IF(MOD(ROW()-ROW($33:$33),BP$21)=0,'Fleet Inputs'!$H$10*BN$21,0),IF(BP$21=0,0,'Fleet Inputs'!$H$10*BN$21/BP$21)),"") -> 0 | BU36: =IF($B36<>"", IF(BU$11>=1, IF(MOD(ROW()-ROW($33:$33),BU$11)=0,'Fleet Inputs'!$H$10*BS$11,0),IF(BU$11=0,0,'Fleet Inputs'!$H$10*BS$11/BU$11)),"") -> 0 | BV36: =IF($B36<>"", IF(BU$12>=1, IF(MOD(ROW()-ROW($33:$33),BU$12)=0,'Fleet Inputs'!$H$10*BS$12,0),IF(BU$12=0,0,'Fleet Inputs'!$H$10*BS$12/BU$12)),"") -> 0 | BW36: =IF($B36<>"", IF(BU$13>=1, IF(MOD(ROW()-ROW($33:$33),BU$13)=0,'Fleet Inputs'!$H$10*BS$13,0),IF(BU$13=0,0,'Fleet Inputs'!$H$10*BS$13/BU$13)),"") -> 0 | BX36: =IF($B36<>"", IF(BU$14>=1, IF(MOD(ROW()-ROW($33:$33),BU$14)=0,'Fleet Inputs'!$H$10*BS$14,0),IF(BU$14=0,0,'Fleet Inputs'!$H$10*BS$14/BU$14)),"") -> 0 | BY36: =IF($B36<>"", IF(BU$15>=1, IF(MOD(ROW()-ROW($33:$33),BU$15)=0,'Fleet Inputs'!$H$10*BS$15,0),IF(BU$15=0,0,'Fleet Inputs'!$H$10*BS$15/BU$15)),"") -> 0 | BZ36: =IF($B36<>"", IF(BU$16>=1, IF(MOD(ROW()-ROW($33:$33),BU$16)=0,'Fleet Inputs'!$H$10*BS$16,0),IF(BU$16=0,0,'Fleet Inputs'!$H$10*BS$16/BU$16)),"") -> 0 | CA36: 10965000 | CB36: 0 | CC36: 32415000 | CD36: =IF(CD35<$CE$9,CD35+1,"") -> 3 | CE36: =IF(CD36<>"",(CE$11+CE$15+CE$16+CE$17)*'Fleet Inputs'!$I$10,"") -> 0 | CF36: =IF(CD36<>"",('Fleet Inputs'!$I$10*'Fleet Inputs'!$I$11*'Fleet Inputs'!$I$43*0.01)*((CE$12*(1+CE$13)^(CD36-1))+CE$14), "") -> 1780350 | CG36: =IF(AND(CD36<>"",'Fleet Inputs'!$I$5="Electric"),('Fleet Inputs'!$I$10*'Fleet Inputs'!$I$11*$CE$18*$CE$19), "") ->  | CH36: =IF(CD36<>"", (CH$11+CH$12+CH$13)*'Fleet Inputs'!$I$10,"") -> 1935000 | CI36: =IF($B36<>"", IF(CJ$16>=1, IF(MOD(ROW()-ROW($33:$33),CJ$16)=0,'Fleet Inputs'!$I$10*$F$16,0),IF(CJ$16=0,0,'Fleet Inputs'!$I$10*CH$16/CJ$16)),"") -> 0 | CJ36: =IF($B36<>"", IF(CJ$17>=1, IF(MOD(ROW()-ROW($33:$33),CJ$17)=0,'Fleet Inputs'!$I$10*CH$17,0),IF(CJ$17=0,0,'Fleet Inputs'!$I$10*CH$17/CJ$17)),"") -> 0 | CK36: =IF($B36<>"", IF(CJ$18>=1, IF(MOD(ROW()-ROW($33:$33),CJ$18)=0,'Fleet Inputs'!$I$10*CH$18,0),IF(CJ$18=0,0,'Fleet Inputs'!$I$10*CH$18/CJ$18)),"") -> 0 | CL36: =IF($B36<>"", IF(CJ$19>=1, IF(MOD(ROW()-ROW($33:$33),CJ$19)=0,'Fleet Inputs'!$I$10*CH$19,0),IF(CJ$19=0,0,'Fleet Inputs'!$I$10*CH$19/CJ$19)),"") -> 0 | CM36: =IF($B36<>"", IF(CJ$20>=1, IF(MOD(ROW()-ROW($33:$33),CJ$20)=0,'Fleet Inputs'!$I$10*CH$20,0),IF(CJ$20=0,0,'Fleet Inputs'!$I$10*CH$20/CJ$20)),"") -> 0 | CN36: =IF($B36<>"", IF(CJ$21>=1, IF(MOD(ROW()-ROW($33:$33),CJ$21)=0,'Fleet Inputs'!$I$10*CH$21,0),IF(CJ$21=0,0,'Fleet Inputs'!$I$10*CH$21/CJ$21)),"") -> 0 | CO36: =IF($B36<>"", IF(CO$11>=1, IF(MOD(ROW()-ROW($33:$33),CO$11)=0,'Fleet Inputs'!$I$10*CM$11,0),IF(CO$11=0,0,'Fleet Inputs'!$I$10*CM$11/CO$11)),"") -> 0 | CP36: =IF($B36<>"", IF(CO$12>=1, IF(MOD(ROW()-ROW($33:$33),CO$12)=0,'Fleet Inputs'!$I$10*CM$12,0),IF(CO$12=0,0,'Fleet Inputs'!$I$10*CM$12/CO$12)),"") -> 0 | CQ36: =IF($B36<>"", IF(CO$13>=1, IF(MOD(ROW()-ROW($33:$33),CO$13)=0,'Fleet Inputs'!$I$10*CM$13,0),IF(CO$13=0,0,'Fleet Inputs'!$I$10*CM$13/CO$13)),"") -> 0 | CR36: =IF($B36<>"", IF(CO$14>=1, IF(MOD(ROW()-ROW($33:$33),CO$14)=0,'Fleet Inputs'!$I$10*CM$14,0),IF(CO$14=0,0,'Fleet Inputs'!$I$10*CM$14/CO$14)),"") -> 0 | CS36: =IF($B36<>"", IF(CO$15>=1, IF(MOD(ROW()-ROW($33:$33),CO$15)=0,'Fleet Inputs'!$I$10*CM$15,0),IF(CO$15=0,0,'Fleet Inputs'!$I$10*CM$15/CO$15)),"") -> 0 | CT36: =IF($B36<>"", IF(CO$16>=1, IF(MOD(ROW()-ROW($33:$33),CO$16)=0,'Fleet Inputs'!$I$10*CM$16,0),IF(CO$16=0,0,'Fleet Inputs'!$I$10*CM$16/CO$16)),"") -> 0 | CU36: 1935000 | CV36: 0 | CW36: 3715350 | CX36: =IF(CX35<$CY$9,CX35+1,"") -> 3 | CY36: =IF(CX36<>"",(CY$11+CY$15+CY$16+CY$17)*'Fleet Inputs'!$J$10,"") -> 0 | CZ36: =IF(CX36<>"",('Fleet Inputs'!$J$10*'Fleet Inputs'!$J$11*'Fleet Inputs'!$J$43*0.01)*((CY$12*(1+CY$13)^(CX36-1))+CY$14), "") -> 11295741.6 | DA36: =IF(AND(CX36<>"",'Fleet Inputs'!$J$5="Electric"),('Fleet Inputs'!$J$10*'Fleet Inputs'!$J$11*$CY$18*$CY$19), "") ->  | DB36: =IF(CX36<>"", (DB$11+DB$12+DB$13)*'Fleet Inputs'!$J$10,"") -> 3870000 | DC36: =IF($B36<>"", IF(DD$16>=1, IF(MOD(ROW()-ROW($33:$33),DD$16)=0,'Fleet Inputs'!$J$10*$F$16,0),IF(DD$16=0,0,'Fleet Inputs'!$J$10*DB$16/DD$16)),"") -> 0 | DD36: =IF($B36<>"", IF(DD$17>=1, IF(MOD(ROW()-ROW($33:$33),DD$17)=0,'Fleet Inputs'!$J$10*DB$17,0),IF(DD$17=0,0,'Fleet Inputs'!$J$10*DB$17/DD$17)),"") -> 0 | DE36: =IF($B36<>"", IF(DD$18>=1, IF(MOD(ROW()-ROW($33:$33),DD$18)=0,'Fleet Inputs'!$J$10*DB$18,0),IF(DD$18=0,0,'Fleet Inputs'!$J$10*DB$18/DD$18)),"") -> 0 | DF36: =IF($B36<>"", IF(DD$19>=1, IF(MOD(ROW()-ROW($33:$33),DD$19)=0,'Fleet Inputs'!$J$10*DB$19,0),IF(DD$19=0,0,'Fleet Inputs'!$J$10*DB$19/DD$19)),"") -> 0 | DG36: =IF($B36<>"", IF(DD$20>=1, IF(MOD(ROW()-ROW($33:$33),DD$20)=0,'Fleet Inputs'!$J$10*DB$20,0),IF(DD$20=0,0,'Fleet Inputs'!$J$10*DB$20/DD$20)),"") -> 0 | DH36: =IF($B36<>"", IF(DD$21>=1, IF(MOD(ROW()-ROW($33:$33),DD$21)=0,'Fleet Inputs'!$J$10*DB$21,0),IF(DD$21=0,0,'Fleet Inputs'!$J$10*DB$21/DD$21)),"") -> 0 | DI36: =IF($B36<>"", IF(DI$11>=1, IF(MOD(ROW()-ROW($33:$33),DI$11)=0,'Fleet Inputs'!$J$10*DG$11,0),IF(DI$11=0,0,'Fleet Inputs'!$J$10*DG$11/DI$11)),"") -> 0 | DJ36: =IF($B36<>"", IF(DI$12>=1, IF(MOD(ROW()-ROW($33:$33),DI$12)=0,'Fleet Inputs'!$J$10*DG$12,0),IF(DI$12=0,0,'Fleet Inputs'!$J$10*DG$12/DI$12)),"") -> 0 | DK36: =IF($B36<>"", IF(DI$13>=1, IF(MOD(ROW()-ROW($33:$33),DI$13)=0,'Fleet Inputs'!$J$10*DG$13,0),IF(DI$13=0,0,'Fleet Inputs'!$J$10*DG$13/DI$13)),"") -> 0 | DL36: =IF($B36<>"", IF(DI$14>=1, IF(MOD(ROW()-ROW($33:$33),DI$14)=0,'Fleet Inputs'!$J$10*DG$14,0),IF(DI$14=0,0,'Fleet Inputs'!$J$10*DG$14/DI$14)),"") -> 0 | DM36: =IF($B36<>"", IF(DI$15>=1, IF(MOD(ROW()-ROW($33:$33),DI$15)=0,'Fleet Inputs'!$J$10*DG$15,0),IF(DI$15=0,0,'Fleet Inputs'!$J$10*DG$15/DI$15)),"") -> 0 | DN36: =IF($B36<>"", IF(DI$16>=1, IF(MOD(ROW()-ROW($33:$33),DI$16)=0,'Fleet Inputs'!$J$10*DG$16,0),IF(DI$16=0,0,'Fleet Inputs'!$J$10*DG$16/DI$16)),"") -> 0 | DO36: 3870000 | DP36: 0 | DQ36: 15165741.6
B37: 4 | C37: =IF(B37<>"",(C$11+C$15+C$16+C$17)*'Fleet Inputs'!$E$10,"") -> 0 | D37: =IF(B37<>"",('Fleet Inputs'!$E$10*'Fleet Inputs'!$E$11*'Fleet Inputs'!$E$43*0.01)*((C$12*(1+C$13)^(B37-1))+C$14), "") -> 0 | E37: =IF(AND(B37<>"",'Fleet Inputs'!$E$5="Electric"),('Fleet Inputs'!$E$10*'Fleet Inputs'!$E$11*$C$18*$C$19), "") -> 28600000 | F37: =IF(B37<>"", (F$11+F$12+F$13)*'Fleet Inputs'!$E$10,"") -> 14620000 | G37: =IF($B37<>"", IF(H$16>=1, IF(MOD(ROW()-ROW($33:$33),H$16)=0,'Fleet Inputs'!$E$10*$F$16,0),IF(H$16=0,0,'Fleet Inputs'!$E$10*F$16/H$16)),"") -> 0 | H37: =IF($B37<>"", IF(H$17>=1, IF(MOD(ROW()-ROW($33:$33),H$17)=0,'Fleet Inputs'!$E$10*F$17,0),IF(H$17=0,0,'Fleet Inputs'!$E$10*F$17/H$17)),"") -> 0 | I37: =IF($B37<>"", IF(H$18>=1, IF(MOD(ROW()-ROW($33:$33),H$18)=0,'Fleet Inputs'!$E$10*F$18,0),IF(H$18=0,0,'Fleet Inputs'!$E$10*F$18/H$18)),"") -> 0 | J37: =IF($B37<>"", IF(H$19>=1, IF(MOD(ROW()-ROW($33:$33),H$19)=0,'Fleet Inputs'!$E$10*F$19,0),IF(H$19=0,0,'Fleet Inputs'!$E$10*F$19/H$19)),"") -> 0 | K37: =IF($B37<>"", IF(H$20>=1, IF(MOD(ROW()-ROW($33:$33),H$20)=0,'Fleet Inputs'!$E$10*F$20,0),IF(H$20=0,0,'Fleet Inputs'!$E$10*F$20/H$20)),"") -> 0 | L37: =IF($B37<>"", IF(H$21>=1, IF(MOD(ROW()-ROW($33:$33),H$21)=0,'Fleet Inputs'!$E$10*F$21,0),IF(H$21=0,0,'Fleet Inputs'!$E$10*F$21/H$21)),"") -> 0 | M37: =IF($B37<>"", IF(M$11>=1, IF(MOD(ROW()-ROW($33:$33),M$11)=0,'Fleet Inputs'!$E$10*K$11,0),IF(M$11=0,0,'Fleet Inputs'!$E$10*K$11/M$11)),"") -> 0 | N37: =IF($B37<>"", IF(M$12>=1, IF(MOD(ROW()-ROW($33:$33),M$12)=0,'Fleet Inputs'!$E$10*K$12,0),IF(M$12=0,0,'Fleet Inputs'!$E$10*K$12/M$12)),"") -> 0 | O37: =IF($B37<>"", IF(M$13>=1, IF(MOD(ROW()-ROW($33:$33),M$13)=0,'Fleet Inputs'!$E$10*K$13,0),IF(M$13=0,0,'Fleet Inputs'!$E$10*K$13/M$13)),"") -> 0 | P37: =IF($B37<>"", IF(M$14>=1, IF(MOD(ROW()-ROW($33:$33),M$14)=0,'Fleet Inputs'!$E$10*K$14,0),IF(M$14=0,0,'Fleet Inputs'!$E$10*K$14/M$14)),"") -> 0 | Q37: =IF($B37<>"", IF(M$15>=1, IF(MOD(ROW()-ROW($33:$33),M$15)=0,'Fleet Inputs'!$E$10*K$15,0),IF(M$15=0,0,'Fleet Inputs'!$E$10*K$15/M$15)),"") -> 0 | R37: =IF($B37<>"", IF(M$16>=1, IF(MOD(ROW()-ROW($33:$33),M$16)=0,'Fleet Inputs'!$E$10*K$16,0),IF(M$16=0,0,'Fleet Inputs'!$E$10*K$16/M$16)),"") -> 0 | S37: 14620000 | T37: 0 | U37: 43220000 | V37: 4 | W37: =IF(V37<>"",(W$11+W$15+W$16+W$17)*'Fleet Inputs'!$F$10,"") -> 0 | X37: =IF(V37<>"",('Fleet Inputs'!$F$10*'Fleet Inputs'!$F$11*'Fleet Inputs'!$F$43*0.01)*((W$12*(1+W$13)^(V37-1))+W$14), "") -> 1930500 | Y37: =IF(AND(V37<>"",'Fleet Inputs'!$F$5="Electric"),('Fleet Inputs'!F$10*'Fleet Inputs'!$F$11*$W$18*$W$19), "") ->  | Z37: =IF(V37<>"", (Z$11+Z$12+Z$13)*'Fleet Inputs'!$F$10,"") -> 1290000 | AA37: =IF($B37<>"", IF(AB$16>=1, IF(MOD(ROW()-ROW($33:$33),AB$16)=0,'Fleet Inputs'!$F$10*$F$16,0),IF(AB$16=0,0,'Fleet Inputs'!$F$10*Z$16/AB$16)),"") -> 0 | AB37: =IF($B37<>"", IF(AB$17>=1, IF(MOD(ROW()-ROW($33:$33),AB$17)=0,'Fleet Inputs'!$F$10*Z$17,0),IF(AB$17=0,0,'Fleet Inputs'!$F$10*Z$17/AB$17)),"") -> 0 | AC37: =IF($B37<>"", IF(AB$18>=1, IF(MOD(ROW()-ROW($33:$33),AB$18)=0,'Fleet Inputs'!$F$10*Z$18,0),IF(AB$18=0,0,'Fleet Inputs'!$F$10*Z$18/AB$18)),"") -> 0 | AD37: =IF($B37<>"", IF(AB$19>=1, IF(MOD(ROW()-ROW($33:$33),AB$19)=0,'Fleet Inputs'!$F$10*Z$19,0),IF(AB$19=0,0,'Fleet Inputs'!$F$10*Z$19/AB$19)),"") -> 0 | AE37: =IF($B37<>"", IF(AB$20>=1, IF(MOD(ROW()-ROW($33:$33),AB$20)=0,'Fleet Inputs'!$F$10*Z$20,0),IF(AB$20=0,0,'Fleet Inputs'!$F$10*Z$20/AB$20)),"") -> 0 | AF37: =IF($B37<>"", IF(AB$21>=1, IF(MOD(ROW()-ROW($33:$33),AB$21)=0,'Fleet Inputs'!$F$10*Z$21,0),IF(AB$21=0,0,'Fleet Inputs'!$F$10*Z$21/AB$21)),"") -> 0 | AG37: =IF($B37<>"", IF(AG$11>=1, IF(MOD(ROW()-ROW($33:$33),AG$11)=0,'Fleet Inputs'!$F$10*AE$11,0),IF(AG$11=0,0,'Fleet Inputs'!$F$10*AE$11/AG$11)),"") -> 0 | AH37: =IF($B37<>"", IF(AG$12>=1, IF(MOD(ROW()-ROW($33:$33),AG$12)=0,'Fleet Inputs'!$F$10*AE$12,0),IF(AG$12=0,0,'Fleet Inputs'!$F$10*AE$12/AG$12)),"") -> 0 | AI37: =IF($B37<>"", IF(AG$13>=1, IF(MOD(ROW()-ROW($33:$33),AG$13)=0,'Fleet Inputs'!$F$10*AE$13,0),IF(AG$13=0,0,'Fleet Inputs'!$F$10*AE$13/AG$13)),"") -> 0 | AJ37: =IF($B37<>"", IF(AG$14>=1, IF(MOD(ROW()-ROW($33:$33),AG$14)=0,'Fleet Inputs'!$F$10*AE$14,0),IF(AG$14=0,0,'Fleet Inputs'!$F$10*AE$14/AG$14)),"") -> 0 | AK37: =IF($B37<>"", IF(AG$15>=1, IF(MOD(ROW()-ROW($33:$33),AG$15)=0,'Fleet Inputs'!$F$10*AE$15,0),IF(AG$15=0,0,'Fleet Inputs'!$F$10*AE$15/AG$15)),"") -> 0 | AL37: =IF($B37<>"", IF(AG$16>=1, IF(MOD(ROW()-ROW($33:$33),AG$16)=0,'Fleet Inputs'!$F$10*AE$16,0),IF(AG$16=0,0,'Fleet Inputs'!$F$10*AE$16/AG$16)),"") -> 0 | AM37: 1290000 | AN37: 0 | AO37: 3220500 | AP37: 4 | AQ37: =IF(AP37<>"",(AQ$11+AQ$15+AQ$16+AQ$17)*'Fleet Inputs'!$G$10,"") -> 0 | AR37: =IF(AP37<>"",('Fleet Inputs'!$G$10*'Fleet Inputs'!$G$11*'Fleet Inputs'!$G$43*0.01)*((AQ$12*(1+AQ$13)^(AP37-1))+AQ$14), "") -> 3765247.2 | AS37: =IF(AND(AP37<>"",'Fleet Inputs'!$G$5="Electric"),('Fleet Inputs'!$G$10*'Fleet Inputs'!$G$11*$AQ$18*$AQ$19), "") ->  | AT37: =IF(AP37<>"", (AT$11+AT$12+AT$13)*'Fleet Inputs'!$G$10,"") -> 1290000 | AU37: =IF($B37<>"", IF(AV$16>=1, IF(MOD(ROW()-ROW($33:$33),AV$16)=0,'Fleet Inputs'!$G$10*$F$16,0),IF(AV$16=0,0,'Fleet Inputs'!$G$10*AT$16/AV$16)),"") -> 0 | AV37: =IF($B37<>"", IF(AV$17>=1, IF(MOD(ROW()-ROW($33:$33),AV$17)=0,'Fleet Inputs'!$G$10*AT$17,0),IF(AV$17=0,0,'Fleet Inputs'!$G$10*AT$17/AV$17)),"") -> 0 | AW37: =IF($B37<>"", IF(AV$18>=1, IF(MOD(ROW()-ROW($33:$33),AV$18)=0,'Fleet Inputs'!$G$10*AT$18,0),IF(AV$18=0,0,'Fleet Inputs'!$G$10*AT$18/AV$18)),"") -> 0 | AX37: =IF($B37<>"", IF(AV$19>=1, IF(MOD(ROW()-ROW($33:$33),AV$19)=0,'Fleet Inputs'!$G$10*AT$19,0),IF(AV$19=0,0,'Fleet Inputs'!$G$10*AT$19/AV$19)),"") -> 0 | AY37: =IF($B37<>"", IF(AV$20>=1, IF(MOD(ROW()-ROW($33:$33),AV$20)=0,'Fleet Inputs'!$G$10*AT$20,0),IF(AV$20=0,0,'Fleet Inputs'!$G$10*AT$20/AV$20)),"") -> 0 | AZ37: =IF($B37<>"", IF(AV$21>=1, IF(MOD(ROW()-ROW($33:$33),AV$21)=0,'Fleet Inputs'!$G$10*AT$21,0),IF(AV$21=0,0,'Fleet Inputs'!$G$10*AT$21/AV$21)),"") -> 0 | BA37: =IF($B37<>"", IF(BA$11>=1, IF(MOD(ROW()-ROW($33:$33),BA$11)=0,'Fleet Inputs'!$G$10*AY$11,0),IF(BA$11=0,0,'Fleet Inputs'!$G$10*AY$11/BA$11)),"") -> 0 | BB37: =IF($B37<>"", IF(BA$12>=1, IF(MOD(ROW()-ROW($33:$33),BA$12)=0,'Fleet Inputs'!$G$10*AY$12,0),IF(BA$12=0,0,'Fleet Inputs'!$G$10*AY$12/BA$12)),"") -> 0 | BC37: =IF($B37<>"", IF(BA$13>=1, IF(MOD(ROW()-ROW($33:$33),BA$13)=0,'Fleet Inputs'!$G$10*AY$13,0),IF(BA$13=0,0,'Fleet Inputs'!$G$10*AY$13/BA$13)),"") -> 0 | BD37: =IF($B37<>"", IF(BA$14>=1, IF(MOD(ROW()-ROW($33:$33),BA$14)=0,'Fleet Inputs'!$G$10*AY$14,0),IF(BA$14=0,0,'Fleet Inputs'!$G$10*AY$14/BA$14)),"") -> 0 | BE37: =IF($B37<>"", IF(BA$15>=1, IF(MOD(ROW()-ROW($33:$33),BA$15)=0,'Fleet Inputs'!$G$10*AY$15,0),IF(BA$15=0,0,'Fleet Inputs'!$G$10*AY$15/BA$15)),"") -> 0 | BF37: =IF($B37<>"", IF(BA$16>=1, IF(MOD(ROW()-ROW($33:$33),BA$16)=0,'Fleet Inputs'!$G$10*AY$16,0),IF(BA$16=0,0,'Fleet Inputs'!$G$10*AY$16/BA$16)),"") -> 0 | BG37: 1290000 | BH37: 0 | BI37: 5055247.2 | BJ37: 4 | BK37: =IF(BJ37<>"",(BK$11+BK$15+BK$16+BK$17)*'Fleet Inputs'!$H$10,"") -> 0 | BL37: =IF(BJ37<>"",('Fleet Inputs'!$H$10*'Fleet Inputs'!$H$11*'Fleet Inputs'!$H$43*0.01)*((BK$12*(1+BK$13)^(BJ37-1))+BK$14), "") -> 0 | BM37: =IF(AND(BJ37<>"",'Fleet Inputs'!$H$5="Electric"),('Fleet Inputs'!$H$10*'Fleet Inputs'!$H$11*$BK$18*$BK$19), "") -> 21450000 | BN37: =IF(BJ37<>"", (BN$11+BN$12+BN$13)*'Fleet Inputs'!$H$10,"") -> 10965000 | BO37: =IF($B37<>"", IF(BP$16>=1, IF(MOD(ROW()-ROW($33:$33),BP$16)=0,'Fleet Inputs'!$H$10*$F$16,0),IF(BP$16=0,0,'Fleet Inputs'!$H$10*BN$16/BP$16)),"") -> 0 | BP37: =IF($B37<>"", IF(BP$17>=1, IF(MOD(ROW()-ROW($33:$33),BP$17)=0,'Fleet Inputs'!$H$10*BN$17,0),IF(BP$17=0,0,'Fleet Inputs'!$H$10*BN$17/BP$17)),"") -> 0 | BQ37: =IF($B37<>"", IF(BP$18>=1, IF(MOD(ROW()-ROW($33:$33),BP$18)=0,'Fleet Inputs'!$H$10*BN$18,0),IF(BP$18=0,0,'Fleet Inputs'!$H$10*BN$18/BP$18)),"") -> 0 | BR37: =IF($B37<>"", IF(BP$19>=1, IF(MOD(ROW()-ROW($33:$33),BP$19)=0,'Fleet Inputs'!$H$10*BN$19,0),IF(BP$19=0,0,'Fleet Inputs'!$H$10*BN$19/BP$19)),"") -> 0 | BS37: =IF($B37<>"", IF(BP$20>=1, IF(MOD(ROW()-ROW($33:$33),BP$20)=0,'Fleet Inputs'!$H$10*BN$20,0),IF(BP$20=0,0,'Fleet Inputs'!$H$10*BN$20/BP$20)),"") -> 0 | BT37: =IF($B37<>"", IF(BP$21>=1, IF(MOD(ROW()-ROW($33:$33),BP$21)=0,'Fleet Inputs'!$H$10*BN$21,0),IF(BP$21=0,0,'Fleet Inputs'!$H$10*BN$21/BP$21)),"") -> 0 | BU37: =IF($B37<>"", IF(BU$11>=1, IF(MOD(ROW()-ROW($33:$33),BU$11)=0,'Fleet Inputs'!$H$10*BS$11,0),IF(BU$11=0,0,'Fleet Inputs'!$H$10*BS$11/BU$11)),"") -> 0 | BV37: =IF($B37<>"", IF(BU$12>=1, IF(MOD(ROW()-ROW($33:$33),BU$12)=0,'Fleet Inputs'!$H$10*BS$12,0),IF(BU$12=0,0,'Fleet Inputs'!$H$10*BS$12/BU$12)),"") -> 0 | BW37: =IF($B37<>"", IF(BU$13>=1, IF(MOD(ROW()-ROW($33:$33),BU$13)=0,'Fleet Inputs'!$H$10*BS$13,0),IF(BU$13=0,0,'Fleet Inputs'!$H$10*BS$13/BU$13)),"") -> 0 | BX37: =IF($B37<>"", IF(BU$14>=1, IF(MOD(ROW()-ROW($33:$33),BU$14)=0,'Fleet Inputs'!$H$10*BS$14,0),IF(BU$14=0,0,'Fleet Inputs'!$H$10*BS$14/BU$14)),"") -> 0 | BY37: =IF($B37<>"", IF(BU$15>=1, IF(MOD(ROW()-ROW($33:$33),BU$15)=0,'Fleet Inputs'!$H$10*BS$15,0),IF(BU$15=0,0,'Fleet Inputs'!$H$10*BS$15/BU$15)),"") -> 0 | BZ37: =IF($B37<>"", IF(BU$16>=1, IF(MOD(ROW()-ROW($33:$33),BU$16)=0,'Fleet Inputs'!$H$10*BS$16,0),IF(BU$16=0,0,'Fleet Inputs'!$H$10*BS$16/BU$16)),"") -> 0 | CA37: 10965000 | CB37: 0 | CC37: 32415000 | CD37: 4 | CE37: =IF(CD37<>"",(CE$11+CE$15+CE$16+CE$17)*'Fleet Inputs'!$I$10,"") -> 0 | CF37: =IF(CD37<>"",('Fleet Inputs'!$I$10*'Fleet Inputs'!$I$11*'Fleet Inputs'!$I$43*0.01)*((CE$12*(1+CE$13)^(CD37-1))+CE$14), "") -> 1780350 | CG37: =IF(AND(CD37<>"",'Fleet Inputs'!$I$5="Electric"),('Fleet Inputs'!$I$10*'Fleet Inputs'!$I$11*$CE$18*$CE$19), "") ->  | CH37: =IF(CD37<>"", (CH$11+CH$12+CH$13)*'Fleet Inputs'!$I$10,"") -> 1935000 | CI37: =IF($B37<>"", IF(CJ$16>=1, IF(MOD(ROW()-ROW($33:$33),CJ$16)=0,'Fleet Inputs'!$I$10*$F$16,0),IF(CJ$16=0,0,'Fleet Inputs'!$I$10*CH$16/CJ$16)),"") -> 0 | CJ37: =IF($B37<>"", IF(CJ$17>=1, IF(MOD(ROW()-ROW($33:$33),CJ$17)=0,'Fleet Inputs'!$I$10*CH$17,0),IF(CJ$17=0,0,'Fleet Inputs'!$I$10*CH$17/CJ$17)),"") -> 0 | CK37: =IF($B37<>"", IF(CJ$18>=1, IF(MOD(ROW()-ROW($33:$33),CJ$18)=0,'Fleet Inputs'!$I$10*CH$18,0),IF(CJ$18=0,0,'Fleet Inputs'!$I$10*CH$18/CJ$18)),"") -> 0 | CL37: =IF($B37<>"", IF(CJ$19>=1, IF(MOD(ROW()-ROW($33:$33),CJ$19)=0,'Fleet Inputs'!$I$10*CH$19,0),IF(CJ$19=0,0,'Fleet Inputs'!$I$10*CH$19/CJ$19)),"") -> 0 | CM37: =IF($B37<>"", IF(CJ$20>=1, IF(MOD(ROW()-ROW($33:$33),CJ$20)=0,'Fleet Inputs'!$I$10*CH$20,0),IF(CJ$20=0,0,'Fleet Inputs'!$I$10*CH$20/CJ$20)),"") -> 0 | CN37: =IF($B37<>"", IF(CJ$21>=1, IF(MOD(ROW()-ROW($33:$33),CJ$21)=0,'Fleet Inputs'!$I$10*CH$21,0),IF(CJ$21=0,0,'Fleet Inputs'!$I$10*CH$21/CJ$21)),"") -> 0 | CO37: =IF($B37<>"", IF(CO$11>=1, IF(MOD(ROW()-ROW($33:$33),CO$11)=0,'Fleet Inputs'!$I$10*CM$11,0),IF(CO$11=0,0,'Fleet Inputs'!$I$10*CM$11/CO$11)),"") -> 0 | CP37: =IF($B37<>"", IF(CO$12>=1, IF(MOD(ROW()-ROW($33:$33),CO$12)=0,'Fleet Inputs'!$I$10*CM$12,0),IF(CO$12=0,0,'Fleet Inputs'!$I$10*CM$12/CO$12)),"") -> 0 | CQ37: =IF($B37<>"", IF(CO$13>=1, IF(MOD(ROW()-ROW($33:$33),CO$13)=0,'Fleet Inputs'!$I$10*CM$13,0),IF(CO$13=0,0,'Fleet Inputs'!$I$10*CM$13/CO$13)),"") -> 0 | CR37: =IF($B37<>"", IF(CO$14>=1, IF(MOD(ROW()-ROW($33:$33),CO$14)=0,'Fleet Inputs'!$I$10*CM$14,0),IF(CO$14=0,0,'Fleet Inputs'!$I$10*CM$14/CO$14)),"") -> 0 | CS37: =IF($B37<>"", IF(CO$15>=1, IF(MOD(ROW()-ROW($33:$33),CO$15)=0,'Fleet Inputs'!$I$10*CM$15,0),IF(CO$15=0,0,'Fleet Inputs'!$I$10*CM$15/CO$15)),"") -> 0 | CT37: =IF($B37<>"", IF(CO$16>=1, IF(MOD(ROW()-ROW($33:$33),CO$16)=0,'Fleet Inputs'!$I$10*CM$16,0),IF(CO$16=0,0,'Fleet Inputs'!$I$10*CM$16/CO$16)),"") -> 0 | CU37: 1935000 | CV37: 0 | CW37: 3715350 | CX37: 4 | CY37: =IF(CX37<>"",(CY$11+CY$15+CY$16+CY$17)*'Fleet Inputs'!$J$10,"") -> 0 | CZ37: =IF(CX37<>"",('Fleet Inputs'!$J$10*'Fleet Inputs'!$J$11*'Fleet Inputs'!$J$43*0.01)*((CY$12*(1+CY$13)^(CX37-1))+CY$14), "") -> 11295741.6 | DA37: =IF(AND(CX37<>"",'Fleet Inputs'!$J$5="Electric"),('Fleet Inputs'!$J$10*'Fleet Inputs'!$J$11*$CY$18*$CY$19), "") ->  | DB37: =IF(CX37<>"", (DB$11+DB$12+DB$13)*'Fleet Inputs'!$J$10,"") -> 3870000 | DC37: =IF($B37<>"", IF(DD$16>=1, IF(MOD(ROW()-ROW($33:$33),DD$16)=0,'Fleet Inputs'!$J$10*$F$16,0),IF(DD$16=0,0,'Fleet Inputs'!$J$10*DB$16/DD$16)),"") -> 0 | DD37: =IF($B37<>"", IF(DD$17>=1, IF(MOD(ROW()-ROW($33:$33),DD$17)=0,'Fleet Inputs'!$J$10*DB$17,0),IF(DD$17=0,0,'Fleet Inputs'!$J$10*DB$17/DD$17)),"") -> 0 | DE37: =IF($B37<>"", IF(DD$18>=1, IF(MOD(ROW()-ROW($33:$33),DD$18)=0,'Fleet Inputs'!$J$10*DB$18,0),IF(DD$18=0,0,'Fleet Inputs'!$J$10*DB$18/DD$18)),"") -> 0 | DF37: =IF($B37<>"", IF(DD$19>=1, IF(MOD(ROW()-ROW($33:$33),DD$19)=0,'Fleet Inputs'!$J$10*DB$19,0),IF(DD$19=0,0,'Fleet Inputs'!$J$10*DB$19/DD$19)),"") -> 0 | DG37: =IF($B37<>"", IF(DD$20>=1, IF(MOD(ROW()-ROW($33:$33),DD$20)=0,'Fleet Inputs'!$J$10*DB$20,0),IF(DD$20=0,0,'Fleet Inputs'!$J$10*DB$20/DD$20)),"") -> 0 | DH37: =IF($B37<>"", IF(DD$21>=1, IF(MOD(ROW()-ROW($33:$33),DD$21)=0,'Fleet Inputs'!$J$10*DB$21,0),IF(DD$21=0,0,'Fleet Inputs'!$J$10*DB$21/DD$21)),"") -> 0 | DI37: =IF($B37<>"", IF(DI$11>=1, IF(MOD(ROW()-ROW($33:$33),DI$11)=0,'Fleet Inputs'!$J$10*DG$11,0),IF(DI$11=0,0,'Fleet Inputs'!$J$10*DG$11/DI$11)),"") -> 0 | DJ37: =IF($B37<>"", IF(DI$12>=1, IF(MOD(ROW()-ROW($33:$33),DI$12)=0,'Fleet Inputs'!$J$10*DG$12,0),IF(DI$12=0,0,'Fleet Inputs'!$J$10*DG$12/DI$12)),"") -> 0 | DK37: =IF($B37<>"", IF(DI$13>=1, IF(MOD(ROW()-ROW($33:$33),DI$13)=0,'Fleet Inputs'!$J$10*DG$13,0),IF(DI$13=0,0,'Fleet Inputs'!$J$10*DG$13/DI$13)),"") -> 0 | DL37: =IF($B37<>"", IF(DI$14>=1, IF(MOD(ROW()-ROW($33:$33),DI$14)=0,'Fleet Inputs'!$J$10*DG$14,0),IF(DI$14=0,0,'Fleet Inputs'!$J$10*DG$14/DI$14)),"") -> 0 | DM37: =IF($B37<>"", IF(DI$15>=1, IF(MOD(ROW()-ROW($33:$33),DI$15)=0,'Fleet Inputs'!$J$10*DG$15,0),IF(DI$15=0,0,'Fleet Inputs'!$J$10*DG$15/DI$15)),"") -> 0 | DN37: =IF($B37<>"", IF(DI$16>=1, IF(MOD(ROW()-ROW($33:$33),DI$16)=0,'Fleet Inputs'!$J$10*DG$16,0),IF(DI$16=0,0,'Fleet Inputs'!$J$10*DG$16/DI$16)),"") -> 0 | DO37: 3870000 | DP37: 0 | DQ37: 15165741.6
